Workbook

Sheet Key Points
B3: Compute Working Capital Change after Revenues and Expenses
B5: Compute Depreciation without IDC or fees or anything else related to financing
B7: Put Inputs in Left Column before Calculations for Transparency
B9: Please Use Generic Macros
B11: Use MAX and MIN for NOL Calculations
B13: Use XIRR or IRR for Post-tax IRR

Sheet After Tax Cash Flow Exercise
A1: Timeline
B2: Start of Period | E2: Date | K2: =J3+1 -> 2015-03-01 | L2: =K3+1 -> 2015-04-01 | M2: 2015-05-01 | N2: 2015-06-01 | O2: 2015-07-01 | P2: 2015-08-01 | Q2: 2015-09-01 | R2: 2015-10-01 | S2: 2015-11-01 | T2: 2015-12-01 | U2: 2016-01-01 | V2: 2016-02-01 | W2: 2016-03-01 | X2: 2016-04-01 | Y2: 2016-05-01 | Z2: 2016-06-01 | AA2: 2016-07-01 | AB2: 2016-08-01 | AC2: 2016-09-01 | AD2: 2016-10-01 | AE2: 2016-11-01 | AF2: 2016-12-01 | AG2: 2017-01-01 | AH2: 2017-02-01 | AI2: 2017-03-01 | AJ2: 2017-04-01 | AK2: 2017-05-01 | AL2: 2017-06-01 | AM2: 2017-07-01 | AN2: 2017-08-01 | AO2: 2017-09-01 | AP2: 2017-10-01 | AQ2: 2017-11-01 | AR2: 2017-12-01 | AS2: 2018-01-01 | AT2: 2018-02-01 | AU2: 2018-03-01 | AV2: 2018-04-01 | AW2: 2018-05-01 | AX2: 2018-06-01 | AY2: 2018-07-01 | AZ2: 2018-08-01 | BA2: 2018-09-01 | BB2: 2018-10-01 | BC2: 2018-11-01 | BD2: 2018-12-01 | BE2: 2019-01-01 | BF2: 2019-02-01 | BG2: 2019-03-01 | BH2: 2019-04-01 | BI2: 2019-05-01 | BJ2: 2019-06-01 | BK2: 2019-07-01 | BL2: 2019-08-01 | BM2: 2019-09-01 | BN2: 2019-10-01 | BO2: 2019-11-01 | BP2: 2019-12-01 | BQ2: 2020-01-01 | BR2: 2020-02-01 | BS2: 2020-03-01 | BT2: 2020-04-01 | BU2: 2020-05-01 | BV2: 2020-06-01 | BW2: 2020-07-01 | BX2: =BW3+1 -> 2020-08-01 | BY2: 2020-09-01 | BZ2: 2020-10-01 | CA2: 2020-11-01 | CB2: 2020-12-01 | CC2: 2021-01-01 | CD2: 2021-02-01 | CE2: 2021-03-01 | CF2: 2021-04-01 | CG2: 2021-05-01 | CH2: 2021-06-01 | CI2: 2021-07-01 | CJ2: 2021-08-01 | CK2: 2021-09-01 | CL2: 2021-10-01 | CM2: 2021-11-01 | CN2: 2021-12-01 | CO2: 2022-01-01 | CP2: 2022-02-01 | CQ2: 2022-03-01 | CR2: 2022-04-01 | CS2: 2022-05-01 | CT2: 2022-06-01 | CU2: 2022-07-01 | CV2: 2022-08-01 | CW2: 2022-09-01 | CX2: 2022-10-01 | CY2: 2022-11-01 | CZ2: 2022-12-01 | DA2: 2023-01-01 | DB2: 2023-02-01 | DC2: 2023-03-01 | DD2: 2023-04-01 | DE2: 2023-05-01 | DF2: 2023-06-01 | DG2: 2023-07-01 | DH2: 2023-08-01 | DI2: 2023-09-01 | DJ2: 2023-10-01 | DK2: 2023-11-01 | DL2: 2023-12-01 | DM2: 2024-01-01 | DN2: 2024-02-01 | DO2: 2024-03-01 | DP2: 2024-04-01 | DQ2: 2024-05-01 | DR2: 2024-06-01 | DS2: 2024-07-01 | DT2: 2024-08-01 | DU2: 2024-09-01 | DV2: 2024-10-01 | DW2: 2024-11-01 | DX2: 2024-12-01 | DY2: 2025-01-01 | DZ2: 2025-02-01 | EA2: 2025-03-01 | EB2: 2025-04-01 | EC2: 2025-05-01 | ED2: 2025-06-01 | EE2: 2025-07-01 | EF2: 2025-08-01 | EG2: 2025-09-01 | EH2: 2025-10-01 | EI2: 2025-11-01 | EJ2: =EI3+1 -> 2025-12-01 | EK2: 2026-01-01 | EL2: 2026-02-01 | EM2: 2026-03-01 | EN2: 2026-04-01 | EO2: 2026-05-01 | EP2: 2026-06-01 | EQ2: 2026-07-01 | ER2: 2026-08-01 | ES2: 2026-09-01 | ET2: 2026-10-01 | EU2: 2026-11-01 | EV2: 2026-12-01 | EW2: 2027-01-01 | EX2: 2027-02-01 | EY2: 2027-03-01 | EZ2: 2027-04-01 | FA2: 2027-05-01 | FB2: 2027-06-01 | FC2: 2027-07-01 | FD2: 2027-08-01 | FE2: 2027-09-01 | FF2: 2027-10-01 | FG2: 2027-11-01 | FH2: 2027-12-01 | FI2: 2028-01-01 | FJ2: 2028-02-01 | FK2: 2028-03-01 | FL2: 2028-04-01 | FM2: 2028-05-01 | FN2: 2028-06-01 | FO2: 2028-07-01 | FP2: 2028-08-01 | FQ2: 2028-09-01 | FR2: 2028-10-01 | FS2: 2028-11-01 | FT2: 2028-12-01 | FU2: 2029-01-01 | FV2: 2029-02-01 | FW2: 2029-03-01 | FX2: 2029-04-01 | FY2: 2029-05-01 | FZ2: 2029-06-01 | GA2: 2029-07-01 | GB2: 2029-08-01 | GC2: 2029-09-01 | GD2: 2029-10-01 | GE2: 2029-11-01 | GF2: 2029-12-01 | GG2: 2030-01-01 | GH2: 2030-02-01 | GI2: 2030-03-01 | GJ2: 2030-04-01 | GK2: 2030-05-01 | GL2: 2030-06-01 | GM2: 2030-07-01 | GN2: 2030-08-01 | GO2: 2030-09-01 | GP2: 2030-10-01 | GQ2: 2030-11-01 | GR2: 2030-12-01 | GS2: 2031-01-01 | GT2: 2031-02-01 | GU2: 2031-03-01 | GV2: =GU3+1 -> 2031-04-01 | GW2: 2031-05-01 | GX2: 2031-06-01 | GY2: 2031-07-01 | GZ2: 2031-08-01 | HA2: 2031-09-01 | HB2: 2031-10-01 | HC2: 2031-11-01 | HD2: 2031-12-01 | HE2: 2032-01-01 | HF2: 2032-02-01 | HG2: 2032-03-01 | HH2: 2032-04-01 | HI2: 2032-05-01 | HJ2: 2032-06-01 | HK2: 2032-07-01 | HL2: 2032-08-01 | HM2: 2032-09-01 | HN2: 2032-10-01 | HO2: 2032-11-01 | HP2: 2032-12-01 | HQ2: 2033-01-01 | HR2: 2033-02-01 | HS2: 2033-03-01 | HT2: 2033-04-01 | HU2: 2033-05-01 | HV2: 2033-06-01 | HW2: 2033-07-01 | HX2: 2033-08-01 | HY2: 2033-09-01 | HZ2: 2033-10-01 | IA2: 2033-11-01 | IB2: 2033-12-01 | IC2: 2034-01-01 | ID2: 2034-02-01 | IE2: 2034-03-01 | IF2: 2034-04-01 | IG2: 2034-05-01 | IH2: 2034-06-01 | II2: 2034-07-01 | IJ2: 2034-08-01 | IK2: 2034-09-01 | IL2: 2034-10-01 | IM2: 2034-11-01 | IN2: 2034-12-01 | IO2: 2035-01-01 | IP2: 2035-02-01 | IQ2: 2035-03-01 | IR2: 2035-04-01 | IS2: 2035-05-01 | IT2: 2035-06-01 | IU2: 2035-07-01 | IV2: 2035-08-01 | IW2: 2035-09-01 | IX2: 2035-10-01 | IY2: 2035-11-01 | IZ2: 2035-12-01 | JA2: 2036-01-01 | JB2: 2036-02-01 | JC2: 2036-03-01 | JD2: 2036-04-01 | JE2: 2036-05-01 | JF2: 2036-06-01 | JG2: 2036-07-01 | JH2: =JG3+1 -> 2036-08-01 | JI2: 2036-09-01 | JJ2: 2036-10-01 | JK2: 2036-11-01 | JL2: 2036-12-01 | JM2: 2037-01-01 | JN2: 2037-02-01 | JO2: 2037-03-01 | JP2: 2037-04-01 | JQ2: 2037-05-01 | JR2: 2037-06-01 | JS2: 2037-07-01 | JT2: 2037-08-01 | JU2: 2037-09-01 | JV2: 2037-10-01 | JW2: 2037-11-01 | JX2: 2037-12-01 | JY2: 2038-01-01 | JZ2: 2038-02-01 | KA2: 2038-03-01 | KB2: 2038-04-01 | KC2: 2038-05-01 | KD2: 2038-06-01 | KE2: 2038-07-01 | KF2: 2038-08-01 | KG2: 2038-09-01 | KH2: 2038-10-01 | KI2: 2038-11-01 | KJ2: 2038-12-01 | KK2: 2039-01-01 | KL2: 2039-02-01 | KM2: 2039-03-01 | KN2: 2039-04-01 | KO2: 2039-05-01 | KP2: 2039-06-01 | KQ2: 2039-07-01 | KR2: 2039-08-01 | KS2: 2039-09-01 | KT2: 2039-10-01 | KU2: 2039-11-01 | KV2: 2039-12-01 | KW2: 2040-01-01 | KX2: 2040-02-01 | KY2: 2040-03-01 | KZ2: 2040-04-01 | LA2: 2040-05-01 | LB2: 2040-06-01 | LC2: 2040-07-01 | LD2: 2040-08-01 | LE2: 2040-09-01 | LF2: 2040-10-01 | LG2: 2040-11-01 | LH2: 2040-12-01 | LI2: 2041-01-01 | LJ2: 2041-02-01 | LK2: 2041-03-01 | LL2: 2041-04-01 | LM2: 2041-05-01 | LN2: 2041-06-01 | LO2: 2041-07-01 | LP2: 2041-08-01 | LQ2: 2041-09-01 | LR2: 2041-10-01 | LS2: 2041-11-01 | LT2: =LS3+1 -> 2041-12-01 | LU2: 2042-01-01 | LV2: 2042-02-01 | LW2: 2042-03-01 | LX2: 2042-04-01 | LY2: 2042-05-01 | LZ2: 2042-06-01 | MA2: 2042-07-01 | MB2: 2042-08-01 | MC2: 2042-09-01 | MD2: 2042-10-01 | ME2: 2042-11-01 | MF2: 2042-12-01 | MG2: 2043-01-01 | MH2: 2043-02-01 | MI2: 2043-03-01 | MJ2: 2043-04-01 | MK2: 2043-05-01 | ML2: 2043-06-01 | MM2: 2043-07-01 | MN2: 2043-08-01 | MO2: 2043-09-01 | MP2: 2043-10-01 | MQ2: 2043-11-01 | MR2: 2043-12-01 | MS2: 2044-01-01 | MT2: 2044-02-01 | MU2: 2044-03-01 | MV2: 2044-04-01 | MW2: 2044-05-01 | MX2: 2044-06-01 | MY2: 2044-07-01 | MZ2: 2044-08-01 | NA2: 2044-09-01 | NB2: 2044-10-01 | NC2: 2044-11-01 | ND2: 2044-12-01 | NE2: 2045-01-01 | NF2: 2045-02-01 | NG2: 2045-03-01 | NH2: 2045-04-01 | NI2: 2045-05-01 | NJ2: 2045-06-01 | NK2: 2045-07-01 | NL2: 2045-08-01 | NM2: 2045-09-01 | NN2: 2045-10-01 | NO2: 2045-11-01 | NP2: 2045-12-01 | NQ2: 2046-01-01 | NR2: 2046-02-01 | NS2: 2046-03-01 | NT2: 2046-04-01 | NU2: 2046-05-01 | NV2: 2046-06-01 | NW2: 2046-07-01 | NX2: 2046-08-01 | NY2: 2046-09-01 | NZ2: 2046-10-01 | OA2: 2046-11-01 | OB2: 2046-12-01 | OC2: 2047-01-01 | OD2: 2047-02-01 | OE2: 2047-03-01
B3: End of Period | E3: Date | J3: =F15-1 -> 2015-02-28 | K3: =EDATE(K2,1)-1 -> 2015-03-31 | L3: =EDATE(L2,1)-1 -> 2015-04-30 | M3: 2015-05-31 | N3: 2015-06-30 | O3: 2015-07-31 | P3: 2015-08-31 | Q3: 2015-09-30 | R3: 2015-10-31 | S3: 2015-11-30 | T3: 2015-12-31 | U3: 2016-01-31 | V3: 2016-02-29 | W3: 2016-03-31 | X3: 2016-04-30 | Y3: 2016-05-31 | Z3: 2016-06-30 | AA3: 2016-07-31 | AB3: 2016-08-31 | AC3: 2016-09-30 | AD3: 2016-10-31 | AE3: 2016-11-30 | AF3: 2016-12-31 | AG3: 2017-01-31 | AH3: 2017-02-28 | AI3: 2017-03-31 | AJ3: 2017-04-30 | AK3: 2017-05-31 | AL3: 2017-06-30 | AM3: 2017-07-31 | AN3: 2017-08-31 | AO3: 2017-09-30 | AP3: 2017-10-31 | AQ3: 2017-11-30 | AR3: 2017-12-31 | AS3: 2018-01-31 | AT3: 2018-02-28 | AU3: 2018-03-31 | AV3: 2018-04-30 | AW3: 2018-05-31 | AX3: 2018-06-30 | AY3: 2018-07-31 | AZ3: 2018-08-31 | BA3: 2018-09-30 | BB3: 2018-10-31 | BC3: 2018-11-30 | BD3: 2018-12-31 | BE3: 2019-01-31 | BF3: 2019-02-28 | BG3: 2019-03-31 | BH3: 2019-04-30 | BI3: 2019-05-31 | BJ3: 2019-06-30 | BK3: 2019-07-31 | BL3: 2019-08-31 | BM3: 2019-09-30 | BN3: 2019-10-31 | BO3: 2019-11-30 | BP3: 2019-12-31 | BQ3: 2020-01-31 | BR3: 2020-02-29 | BS3: 2020-03-31 | BT3: 2020-04-30 | BU3: 2020-05-31 | BV3: 2020-06-30 | BW3: 2020-07-31 | BX3: =EDATE(BX2,1)-1 -> 2020-08-31 | BY3: 2020-09-30 | BZ3: 2020-10-31 | CA3: 2020-11-30 | CB3: 2020-12-31 | CC3: 2021-01-31 | CD3: 2021-02-28 | CE3: 2021-03-31 | CF3: 2021-04-30 | CG3: 2021-05-31 | CH3: 2021-06-30 | CI3: 2021-07-31 | CJ3: 2021-08-31 | CK3: 2021-09-30 | CL3: 2021-10-31 | CM3: 2021-11-30 | CN3: 2021-12-31 | CO3: 2022-01-31 | CP3: 2022-02-28 | CQ3: 2022-03-31 | CR3: 2022-04-30 | CS3: 2022-05-31 | CT3: 2022-06-30 | CU3: 2022-07-31 | CV3: 2022-08-31 | CW3: 2022-09-30 | CX3: 2022-10-31 | CY3: 2022-11-30 | CZ3: 2022-12-31 | DA3: 2023-01-31 | DB3: 2023-02-28 | DC3: 2023-03-31 | DD3: 2023-04-30 | DE3: 2023-05-31 | DF3: 2023-06-30 | DG3: 2023-07-31 | DH3: 2023-08-31 | DI3: 2023-09-30 | DJ3: 2023-10-31 | DK3: 2023-11-30 | DL3: 2023-12-31 | DM3: 2024-01-31 | DN3: 2024-02-29 | DO3: 2024-03-31 | DP3: 2024-04-30 | DQ3: 2024-05-31 | DR3: 2024-06-30 | DS3: 2024-07-31 | DT3: 2024-08-31 | DU3: 2024-09-30 | DV3: 2024-10-31 | DW3: 2024-11-30 | DX3: 2024-12-31 | DY3: 2025-01-31 | DZ3: 2025-02-28 | EA3: 2025-03-31 | EB3: 2025-04-30 | EC3: 2025-05-31 | ED3: 2025-06-30 | EE3: 2025-07-31 | EF3: 2025-08-31 | EG3: 2025-09-30 | EH3: 2025-10-31 | EI3: 2025-11-30 | EJ3: =EDATE(EJ2,1)-1 -> 2025-12-31 | EK3: 2026-01-31 | EL3: 2026-02-28 | EM3: 2026-03-31 | EN3: 2026-04-30 | EO3: 2026-05-31 | EP3: 2026-06-30 | EQ3: 2026-07-31 | ER3: 2026-08-31 | ES3: 2026-09-30 | ET3: 2026-10-31 | EU3: 2026-11-30 | EV3: 2026-12-31 | EW3: 2027-01-31 | EX3: 2027-02-28 | EY3: 2027-03-31 | EZ3: 2027-04-30 | FA3: 2027-05-31 | FB3: 2027-06-30 | FC3: 2027-07-31 | FD3: 2027-08-31 | FE3: 2027-09-30 | FF3: 2027-10-31 | FG3: 2027-11-30 | FH3: 2027-12-31 | FI3: 2028-01-31 | FJ3: 2028-02-29 | FK3: 2028-03-31 | FL3: 2028-04-30 | FM3: 2028-05-31 | FN3: 2028-06-30 | FO3: 2028-07-31 | FP3: 2028-08-31 | FQ3: 2028-09-30 | FR3: 2028-10-31 | FS3: 2028-11-30 | FT3: 2028-12-31 | FU3: 2029-01-31 | FV3: 2029-02-28 | FW3: 2029-03-31 | FX3: 2029-04-30 | FY3: 2029-05-31 | FZ3: 2029-06-30 | GA3: 2029-07-31 | GB3: 2029-08-31 | GC3: 2029-09-30 | GD3: 2029-10-31 | GE3: 2029-11-30 | GF3: 2029-12-31 | GG3: 2030-01-31 | GH3: 2030-02-28 | GI3: 2030-03-31 | GJ3: 2030-04-30 | GK3: 2030-05-31 | GL3: 2030-06-30 | GM3: 2030-07-31 | GN3: 2030-08-31 | GO3: 2030-09-30 | GP3: 2030-10-31 | GQ3: 2030-11-30 | GR3: 2030-12-31 | GS3: 2031-01-31 | GT3: 2031-02-28 | GU3: 2031-03-31 | GV3: =EDATE(GV2,1)-1 -> 2031-04-30 | GW3: 2031-05-31 | GX3: 2031-06-30 | GY3: 2031-07-31 | GZ3: 2031-08-31 | HA3: 2031-09-30 | HB3: 2031-10-31 | HC3: 2031-11-30 | HD3: 2031-12-31 | HE3: 2032-01-31 | HF3: 2032-02-29 | HG3: 2032-03-31 | HH3: 2032-04-30 | HI3: 2032-05-31 | HJ3: 2032-06-30 | HK3: 2032-07-31 | HL3: 2032-08-31 | HM3: 2032-09-30 | HN3: 2032-10-31 | HO3: 2032-11-30 | HP3: 2032-12-31 | HQ3: 2033-01-31 | HR3: 2033-02-28 | HS3: 2033-03-31 | HT3: 2033-04-30 | HU3: 2033-05-31 | HV3: 2033-06-30 | HW3: 2033-07-31 | HX3: 2033-08-31 | HY3: 2033-09-30 | HZ3: 2033-10-31 | IA3: 2033-11-30 | IB3: 2033-12-31 | IC3: 2034-01-31 | ID3: 2034-02-28 | IE3: 2034-03-31 | IF3: 2034-04-30 | IG3: 2034-05-31 | IH3: 2034-06-30 | II3: 2034-07-31 | IJ3: 2034-08-31 | IK3: 2034-09-30 | IL3: 2034-10-31 | IM3: 2034-11-30 | IN3: 2034-12-31 | IO3: 2035-01-31 | IP3: 2035-02-28 | IQ3: 2035-03-31 | IR3: 2035-04-30 | IS3: 2035-05-31 | IT3: 2035-06-30 | IU3: 2035-07-31 | IV3: 2035-08-31 | IW3: 2035-09-30 | IX3: 2035-10-31 | IY3: 2035-11-30 | IZ3: 2035-12-31 | JA3: 2036-01-31 | JB3: 2036-02-29 | JC3: 2036-03-31 | JD3: 2036-04-30 | JE3: 2036-05-31 | JF3: 2036-06-30 | JG3: 2036-07-31 | JH3: =EDATE(JH2,1)-1 -> 2036-08-31 | JI3: 2036-09-30 | JJ3: 2036-10-31 | JK3: 2036-11-30 | JL3: 2036-12-31 | JM3: 2037-01-31 | JN3: 2037-02-28 | JO3: 2037-03-31 | JP3: 2037-04-30 | JQ3: 2037-05-31 | JR3: 2037-06-30 | JS3: 2037-07-31 | JT3: 2037-08-31 | JU3: 2037-09-30 | JV3: 2037-10-31 | JW3: 2037-11-30 | JX3: 2037-12-31 | JY3: 2038-01-31 | JZ3: 2038-02-28 | KA3: 2038-03-31 | KB3: 2038-04-30 | KC3: 2038-05-31 | KD3: 2038-06-30 | KE3: 2038-07-31 | KF3: 2038-08-31 | KG3: 2038-09-30 | KH3: 2038-10-31 | KI3: 2038-11-30 | KJ3: 2038-12-31 | KK3: 2039-01-31 | KL3: 2039-02-28 | KM3: 2039-03-31 | KN3: 2039-04-30 | KO3: 2039-05-31 | KP3: 2039-06-30 | KQ3: 2039-07-31 | KR3: 2039-08-31 | KS3: 2039-09-30 | KT3: 2039-10-31 | KU3: 2039-11-30 | KV3: 2039-12-31 | KW3: 2040-01-31 | KX3: 2040-02-29 | KY3: 2040-03-31 | KZ3: 2040-04-30 | LA3: 2040-05-31 | LB3: 2040-06-30 | LC3: 2040-07-31 | LD3: 2040-08-31 | LE3: 2040-09-30 | LF3: 2040-10-31 | LG3: 2040-11-30 | LH3: 2040-12-31 | LI3: 2041-01-31 | LJ3: 2041-02-28 | LK3: 2041-03-31 | LL3: 2041-04-30 | LM3: 2041-05-31 | LN3: 2041-06-30 | LO3: 2041-07-31 | LP3: 2041-08-31 | LQ3: 2041-09-30 | LR3: 2041-10-31 | LS3: 2041-11-30 | LT3: =EDATE(LT2,1)-1 -> 2041-12-31 | LU3: 2042-01-31 | LV3: 2042-02-28 | LW3: 2042-03-31 | LX3: 2042-04-30 | LY3: 2042-05-31 | LZ3: 2042-06-30 | MA3: 2042-07-31 | MB3: 2042-08-31 | MC3: 2042-09-30 | MD3: 2042-10-31 | ME3: 2042-11-30 | MF3: 2042-12-31 | MG3: 2043-01-31 | MH3: 2043-02-28 | MI3: 2043-03-31 | MJ3: 2043-04-30 | MK3: 2043-05-31 | ML3: 2043-06-30 | MM3: 2043-07-31 | MN3: 2043-08-31 | MO3: 2043-09-30 | MP3: 2043-10-31 | MQ3: 2043-11-30 | MR3: 2043-12-31 | MS3: 2044-01-31 | MT3: 2044-02-29 | MU3: 2044-03-31 | MV3: 2044-04-30 | MW3: 2044-05-31 | MX3: 2044-06-30 | MY3: 2044-07-31 | MZ3: 2044-08-31 | NA3: 2044-09-30 | NB3: 2044-10-31 | NC3: 2044-11-30 | ND3: 2044-12-31 | NE3: 2045-01-31 | NF3: 2045-02-28 | NG3: 2045-03-31 | NH3: 2045-04-30 | NI3: 2045-05-31 | NJ3: 2045-06-30 | NK3: 2045-07-31 | NL3: 2045-08-31 | NM3: 2045-09-30 | NN3: 2045-10-31 | NO3: 2045-11-30 | NP3: 2045-12-31 | NQ3: 2046-01-31 | NR3: 2046-02-28 | NS3: 2046-03-31 | NT3: 2046-04-30 | NU3: 2046-05-31 | NV3: 2046-06-30 | NW3: 2046-07-31 | NX3: 2046-08-31 | NY3: 2046-09-30 | NZ3: 2046-10-31 | OA3: 2046-11-30 | OB3: 2046-12-31 | OC3: 2047-01-31 | OD3: 2047-02-28 | OE3: 2047-03-31
B4: Construction Phase | G4: =F15 -> 2015-03-01 | H4: =F16 -> 2018-07-01 | I4: =COUNTIF(K4:MI4,TRUE)=F17 -> TRUE | K4: =AND(K$2>=$G4,K$2<$H4) -> TRUE | L4: TRUE | M4: TRUE | N4: TRUE | O4: TRUE | P4: TRUE | Q4: TRUE | R4: TRUE | S4: TRUE | T4: TRUE | U4: =AND(U$2>=$G4,U$2<$H4) -> TRUE | V4: TRUE | W4: TRUE | X4: TRUE | Y4: TRUE | Z4: TRUE | AA4: TRUE | AB4: TRUE | AC4: TRUE | AD4: TRUE | AE4: =AND(AE$2>=$G4,AE$2<$H4) -> TRUE | AF4: TRUE | AG4: TRUE | AH4: TRUE | AI4: TRUE | AJ4: TRUE | AK4: TRUE | AL4: TRUE | AM4: TRUE | AN4: TRUE | AO4: =AND(AO$2>=$G4,AO$2<$H4) -> TRUE | AP4: TRUE | AQ4: TRUE | AR4: TRUE | AS4: TRUE | AT4: TRUE | AU4: TRUE | AV4: TRUE | AW4: TRUE | AX4: TRUE | AY4: =AND(AY$2>=$G4,AY$2<$H4) -> FALSE | AZ4: FALSE | BA4: FALSE | BB4: FALSE | BC4: FALSE | BD4: FALSE | BE4: FALSE | BF4: FALSE | BG4: FALSE | BH4: FALSE | BI4: =AND(BI$2>=$G4,BI$2<$H4) -> FALSE | BJ4: FALSE | BK4: FALSE | BL4: FALSE | BM4: FALSE | BN4: FALSE | BO4: FALSE | BP4: FALSE | BQ4: FALSE | BR4: FALSE | BS4: =AND(BS$2>=$G4,BS$2<$H4) -> FALSE | BT4: FALSE | BU4: FALSE | BV4: FALSE | BW4: FALSE | BX4: FALSE | BY4: FALSE | BZ4: FALSE | CA4: FALSE | CB4: FALSE | CC4: =AND(CC$2>=$G4,CC$2<$H4) -> FALSE | CD4: FALSE | CE4: FALSE | CF4: FALSE | CG4: FALSE | CH4: FALSE | CI4: FALSE | CJ4: FALSE | CK4: FALSE | CL4: FALSE | CM4: =AND(CM$2>=$G4,CM$2<$H4) -> FALSE | CN4: FALSE | CO4: FALSE | CP4: FALSE | CQ4: FALSE | CR4: FALSE | CS4: FALSE | CT4: FALSE | CU4: FALSE | CV4: FALSE | CW4: =AND(CW$2>=$G4,CW$2<$H4) -> FALSE | CX4: FALSE | CY4: FALSE | CZ4: FALSE | DA4: FALSE | DB4: FALSE | DC4: FALSE | DD4: FALSE | DE4: FALSE | DF4: FALSE | DG4: =AND(DG$2>=$G4,DG$2<$H4) -> FALSE | DH4: FALSE | DI4: FALSE | DJ4: FALSE | DK4: FALSE | DL4: FALSE | DM4: FALSE | DN4: FALSE | DO4: FALSE | DP4: FALSE | DQ4: =AND(DQ$2>=$G4,DQ$2<$H4) -> FALSE | DR4: FALSE | DS4: FALSE | DT4: FALSE | DU4: FALSE | DV4: FALSE | DW4: FALSE | DX4: FALSE | DY4: FALSE | DZ4: FALSE | EA4: =AND(EA$2>=$G4,EA$2<$H4) -> FALSE | EB4: FALSE | EC4: FALSE | ED4: FALSE | EE4: FALSE | EF4: FALSE | EG4: FALSE | EH4: FALSE | EI4: FALSE | EJ4: FALSE | EK4: =AND(EK$2>=$G4,EK$2<$H4) -> FALSE | EL4: FALSE | EM4: FALSE | EN4: FALSE | EO4: FALSE | EP4: FALSE | EQ4: FALSE | ER4: FALSE | ES4: FALSE | ET4: FALSE | EU4: =AND(EU$2>=$G4,EU$2<$H4) -> FALSE | EV4: FALSE | EW4: FALSE | EX4: FALSE | EY4: FALSE | EZ4: FALSE | FA4: FALSE | FB4: FALSE | FC4: FALSE | FD4: FALSE | FE4: =AND(FE$2>=$G4,FE$2<$H4) -> FALSE | FF4: FALSE | FG4: FALSE | FH4: FALSE | FI4: FALSE | FJ4: FALSE | FK4: FALSE | FL4: FALSE | FM4: FALSE | FN4: FALSE | FO4: =AND(FO$2>=$G4,FO$2<$H4) -> FALSE | FP4: FALSE | FQ4: FALSE | FR4: FALSE | FS4: FALSE | FT4: FALSE | FU4: FALSE | FV4: FALSE | FW4: FALSE | FX4: FALSE | FY4: =AND(FY$2>=$G4,FY$2<$H4) -> FALSE | FZ4: FALSE | GA4: FALSE | GB4: FALSE | GC4: FALSE | GD4: FALSE | GE4: FALSE | GF4: FALSE | GG4: FALSE | GH4: FALSE | GI4: =AND(GI$2>=$G4,GI$2<$H4) -> FALSE | GJ4: FALSE | GK4: FALSE | GL4: FALSE | GM4: FALSE | GN4: FALSE | GO4: FALSE | GP4: FALSE | GQ4: FALSE | GR4: FALSE | GS4: =AND(GS$2>=$G4,GS$2<$H4) -> FALSE | GT4: FALSE | GU4: FALSE | GV4: FALSE | GW4: FALSE | GX4: FALSE | GY4: FALSE | GZ4: FALSE | HA4: FALSE | HB4: FALSE | HC4: =AND(HC$2>=$G4,HC$2<$H4) -> FALSE | HD4: FALSE | HE4: FALSE | HF4: FALSE | HG4: FALSE | HH4: FALSE | HI4: FALSE | HJ4: FALSE | HK4: FALSE | HL4: FALSE | HM4: =AND(HM$2>=$G4,HM$2<$H4) -> FALSE | HN4: FALSE | HO4: FALSE | HP4: FALSE | HQ4: FALSE | HR4: FALSE | HS4: FALSE | HT4: FALSE | HU4: FALSE | HV4: FALSE | HW4: =AND(HW$2>=$G4,HW$2<$H4) -> FALSE | HX4: FALSE | HY4: FALSE | HZ4: FALSE | IA4: FALSE | IB4: FALSE | IC4: FALSE | ID4: FALSE | IE4: FALSE | IF4: FALSE | IG4: =AND(IG$2>=$G4,IG$2<$H4) -> FALSE | IH4: FALSE | II4: FALSE | IJ4: FALSE | IK4: FALSE | IL4: FALSE | IM4: FALSE | IN4: FALSE | IO4: FALSE | IP4: FALSE | IQ4: =AND(IQ$2>=$G4,IQ$2<$H4) -> FALSE | IR4: FALSE | IS4: FALSE | IT4: FALSE | IU4: FALSE | IV4: FALSE | IW4: FALSE | IX4: FALSE | IY4: FALSE | IZ4: FALSE | JA4: =AND(JA$2>=$G4,JA$2<$H4) -> FALSE | JB4: FALSE | JC4: FALSE | JD4: FALSE | JE4: FALSE | JF4: FALSE | JG4: FALSE | JH4: FALSE | JI4: FALSE | JJ4: FALSE | JK4: =AND(JK$2>=$G4,JK$2<$H4) -> FALSE | JL4: FALSE | JM4: FALSE | JN4: FALSE | JO4: FALSE | JP4: FALSE | JQ4: FALSE | JR4: FALSE | JS4: FALSE | JT4: FALSE | JU4: =AND(JU$2>=$G4,JU$2<$H4) -> FALSE | JV4: FALSE | JW4: FALSE | JX4: FALSE | JY4: FALSE | JZ4: FALSE | KA4: FALSE | KB4: FALSE | KC4: FALSE | KD4: FALSE | KE4: =AND(KE$2>=$G4,KE$2<$H4) -> FALSE | KF4: FALSE | KG4: FALSE | KH4: FALSE | KI4: FALSE | KJ4: FALSE | KK4: FALSE | KL4: FALSE | KM4: FALSE | KN4: FALSE | KO4: =AND(KO$2>=$G4,KO$2<$H4) -> FALSE | KP4: FALSE | KQ4: FALSE | KR4: FALSE | KS4: FALSE | KT4: FALSE | KU4: FALSE | KV4: FALSE | KW4: FALSE | KX4: FALSE | KY4: =AND(KY$2>=$G4,KY$2<$H4) -> FALSE | KZ4: FALSE | LA4: FALSE | LB4: FALSE | LC4: FALSE | LD4: FALSE | LE4: FALSE | LF4: FALSE | LG4: FALSE | LH4: FALSE | LI4: =AND(LI$2>=$G4,LI$2<$H4) -> FALSE | LJ4: FALSE | LK4: FALSE | LL4: FALSE | LM4: FALSE | LN4: FALSE | LO4: FALSE | LP4: FALSE | LQ4: FALSE | LR4: FALSE | LS4: =AND(LS$2>=$G4,LS$2<$H4) -> FALSE | LT4: FALSE | LU4: FALSE | LV4: FALSE | LW4: FALSE | LX4: FALSE | LY4: FALSE | LZ4: FALSE | MA4: FALSE | MB4: FALSE | MC4: =AND(MC$2>=$G4,MC$2<$H4) -> FALSE | MD4: FALSE | ME4: FALSE | MF4: FALSE | MG4: FALSE | MH4: FALSE | MI4: FALSE | MJ4: FALSE | MK4: FALSE | ML4: FALSE | MM4: =AND(MM$2>=$G4,MM$2<$H4) -> FALSE | MN4: FALSE | MO4: FALSE | MP4: FALSE | MQ4: FALSE | MR4: FALSE | MS4: FALSE | MT4: FALSE | MU4: FALSE | MV4: FALSE | MW4: =AND(MW$2>=$G4,MW$2<$H4) -> FALSE | MX4: FALSE | MY4: FALSE | MZ4: FALSE | NA4: FALSE | NB4: FALSE | NC4: FALSE | ND4: FALSE | NE4: FALSE | NF4: FALSE | NG4: =AND(NG$2>=$G4,NG$2<$H4) -> FALSE | NH4: FALSE | NI4: FALSE | NJ4: FALSE | NK4: FALSE | NL4: FALSE | NM4: FALSE | NN4: FALSE | NO4: FALSE | NP4: FALSE | NQ4: =AND(NQ$2>=$G4,NQ$2<$H4) -> FALSE | NR4: FALSE | NS4: FALSE | NT4: FALSE | NU4: FALSE | NV4: FALSE | NW4: FALSE | NX4: FALSE | NY4: FALSE | NZ4: FALSE | OA4: FALSE | OB4: FALSE | OC4: FALSE | OD4: FALSE | OE4: FALSE
B5: Operation Phase | G5: =F16 -> 2018-07-01 | H5: =F19 -> 2043-07-01 | I5: =COUNTIF(K5:OE5,TRUE)=F18*12 -> TRUE | K5: FALSE | L5: FALSE | M5: FALSE | N5: FALSE | O5: FALSE | P5: FALSE | Q5: FALSE | R5: FALSE | S5: FALSE | T5: FALSE | U5: FALSE | V5: FALSE | W5: FALSE | X5: FALSE | Y5: FALSE | Z5: FALSE | AA5: FALSE | AB5: FALSE | AC5: FALSE | AD5: FALSE | AE5: FALSE | AF5: FALSE | AG5: FALSE | AH5: FALSE | AI5: FALSE | AJ5: FALSE | AK5: FALSE | AL5: FALSE | AM5: FALSE | AN5: FALSE | AO5: FALSE | AP5: FALSE | AQ5: FALSE | AR5: FALSE | AS5: FALSE | AT5: FALSE | AU5: FALSE | AV5: FALSE | AW5: FALSE | AX5: FALSE | AY5: TRUE | AZ5: TRUE | BA5: TRUE | BB5: TRUE | BC5: TRUE | BD5: TRUE | BE5: TRUE | BF5: TRUE | BG5: TRUE | BH5: TRUE | BI5: TRUE | BJ5: TRUE | BK5: TRUE | BL5: TRUE | BM5: TRUE | BN5: TRUE | BO5: TRUE | BP5: TRUE | BQ5: TRUE | BR5: TRUE | BS5: TRUE | BT5: TRUE | BU5: TRUE | BV5: TRUE | BW5: TRUE | BX5: TRUE | BY5: TRUE | BZ5: TRUE | CA5: TRUE | CB5: TRUE | CC5: TRUE | CD5: TRUE | CE5: TRUE | CF5: TRUE | CG5: TRUE | CH5: TRUE | CI5: TRUE | CJ5: TRUE | CK5: TRUE | CL5: TRUE | CM5: TRUE | CN5: TRUE | CO5: TRUE | CP5: TRUE | CQ5: TRUE | CR5: TRUE | CS5: TRUE | CT5: TRUE | CU5: TRUE | CV5: TRUE | CW5: TRUE | CX5: TRUE | CY5: TRUE | CZ5: TRUE | DA5: TRUE | DB5: TRUE | DC5: TRUE | DD5: TRUE | DE5: TRUE | DF5: TRUE | DG5: TRUE | DH5: TRUE | DI5: TRUE | DJ5: TRUE | DK5: TRUE | DL5: TRUE | DM5: TRUE | DN5: TRUE | DO5: TRUE | DP5: TRUE | DQ5: TRUE | DR5: TRUE | DS5: TRUE | DT5: TRUE | DU5: TRUE | DV5: TRUE | DW5: TRUE | DX5: TRUE | DY5: TRUE | DZ5: TRUE | EA5: TRUE | EB5: TRUE | EC5: TRUE | ED5: TRUE | EE5: TRUE | EF5: TRUE | EG5: TRUE | EH5: TRUE | EI5: TRUE | EJ5: TRUE | EK5: TRUE | EL5: TRUE | EM5: TRUE | EN5: TRUE | EO5: TRUE | EP5: TRUE | EQ5: TRUE | ER5: TRUE | ES5: TRUE | ET5: TRUE | EU5: TRUE | EV5: TRUE | EW5: TRUE | EX5: TRUE | EY5: TRUE | EZ5: TRUE | FA5: TRUE | FB5: TRUE | FC5: TRUE | FD5: TRUE | FE5: TRUE | FF5: TRUE | FG5: TRUE | FH5: TRUE | FI5: TRUE | FJ5: TRUE | FK5: TRUE | FL5: TRUE | FM5: TRUE | FN5: TRUE | FO5: TRUE | FP5: TRUE | FQ5: TRUE | FR5: TRUE | FS5: TRUE | FT5: TRUE | FU5: TRUE | FV5: TRUE | FW5: TRUE | FX5: TRUE | FY5: TRUE | FZ5: TRUE | GA5: TRUE | GB5: TRUE | GC5: TRUE | GD5: TRUE | GE5: TRUE | GF5: TRUE | GG5: TRUE | GH5: TRUE | GI5: TRUE | GJ5: TRUE | GK5: TRUE | GL5: TRUE | GM5: TRUE | GN5: TRUE | GO5: TRUE | GP5: TRUE | GQ5: TRUE | GR5: TRUE | GS5: TRUE | GT5: TRUE | GU5: TRUE | GV5: TRUE | GW5: TRUE | GX5: TRUE | GY5: TRUE | GZ5: TRUE | HA5: TRUE | HB5: TRUE | HC5: TRUE | HD5: TRUE | HE5: TRUE | HF5: TRUE | HG5: TRUE | HH5: TRUE | HI5: TRUE | HJ5: TRUE | HK5: TRUE | HL5: TRUE | HM5: TRUE | HN5: TRUE | HO5: TRUE | HP5: TRUE | HQ5: TRUE | HR5: TRUE | HS5: TRUE | HT5: TRUE | HU5: TRUE | HV5: TRUE | HW5: TRUE | HX5: TRUE | HY5: TRUE | HZ5: TRUE | IA5: TRUE | IB5: TRUE | IC5: TRUE | ID5: TRUE | IE5: TRUE | IF5: TRUE | IG5: TRUE | IH5: TRUE | II5: TRUE | IJ5: TRUE | IK5: TRUE | IL5: TRUE | IM5: TRUE | IN5: TRUE | IO5: TRUE | IP5: TRUE | IQ5: TRUE | IR5: TRUE | IS5: TRUE | IT5: TRUE | IU5: TRUE | IV5: TRUE | IW5: TRUE | IX5: TRUE | IY5: TRUE | IZ5: TRUE | JA5: TRUE | JB5: TRUE | JC5: TRUE | JD5: TRUE | JE5: TRUE | JF5: TRUE | JG5: TRUE | JH5: TRUE | JI5: TRUE | JJ5: TRUE | JK5: TRUE | JL5: TRUE | JM5: TRUE | JN5: TRUE | JO5: TRUE | JP5: TRUE | JQ5: TRUE | JR5: TRUE | JS5: TRUE | JT5: TRUE | JU5: TRUE | JV5: TRUE | JW5: TRUE | JX5: TRUE | JY5: TRUE | JZ5: TRUE | KA5: TRUE | KB5: TRUE | KC5: TRUE | KD5: TRUE | KE5: TRUE | KF5: TRUE | KG5: TRUE | KH5: TRUE | KI5: TRUE | KJ5: TRUE | KK5: TRUE | KL5: TRUE | KM5: TRUE | KN5: TRUE | KO5: TRUE | KP5: TRUE | KQ5: TRUE | KR5: TRUE | KS5: TRUE | KT5: TRUE | KU5: TRUE | KV5: TRUE | KW5: TRUE | KX5: TRUE | KY5: TRUE | KZ5: TRUE | LA5: TRUE | LB5: TRUE | LC5: TRUE | LD5: TRUE | LE5: TRUE | LF5: TRUE | LG5: TRUE | LH5: TRUE | LI5: TRUE | LJ5: TRUE | LK5: TRUE | LL5: TRUE | LM5: TRUE | LN5: TRUE | LO5: TRUE | LP5: TRUE | LQ5: TRUE | LR5: TRUE | LS5: TRUE | LT5: TRUE | LU5: TRUE | LV5: TRUE | LW5: TRUE | LX5: TRUE | LY5: TRUE | LZ5: TRUE | MA5: TRUE | MB5: TRUE | MC5: TRUE | MD5: TRUE | ME5: TRUE | MF5: TRUE | MG5: TRUE | MH5: TRUE | MI5: TRUE | MJ5: TRUE | MK5: TRUE | ML5: TRUE | MM5: FALSE | MN5: FALSE | MO5: FALSE | MP5: FALSE | MQ5: FALSE | MR5: FALSE | MS5: FALSE | MT5: FALSE | MU5: FALSE | MV5: FALSE | MW5: FALSE | MX5: FALSE | MY5: FALSE | MZ5: FALSE | NA5: FALSE | NB5: FALSE | NC5: FALSE | ND5: FALSE | NE5: FALSE | NF5: FALSE | NG5: FALSE | NH5: FALSE | NI5: FALSE | NJ5: FALSE | NK5: FALSE | NL5: FALSE | NM5: FALSE | NN5: FALSE | NO5: FALSE | NP5: FALSE | NQ5: FALSE | NR5: FALSE | NS5: FALSE | NT5: FALSE | NU5: FALSE | NV5: FALSE | NW5: FALSE | NX5: FALSE | NY5: FALSE | NZ5: FALSE | OA5: FALSE | OB5: FALSE | OC5: FALSE | OD5: FALSE | OE5: FALSE
B6: Commercial Operation | G6: =F16 -> 2018-07-01 | K6: =K$2=$G6 -> FALSE | L6: FALSE | M6: FALSE | N6: FALSE | O6: FALSE | P6: FALSE | Q6: FALSE | R6: FALSE | S6: FALSE | T6: FALSE | U6: =U$2=$G6 -> FALSE | V6: FALSE | W6: FALSE | X6: FALSE | Y6: FALSE | Z6: FALSE | AA6: FALSE | AB6: FALSE | AC6: FALSE | AD6: FALSE | AE6: =AE$2=$G6 -> FALSE | AF6: FALSE | AG6: FALSE | AH6: FALSE | AI6: FALSE | AJ6: FALSE | AK6: FALSE | AL6: FALSE | AM6: FALSE | AN6: FALSE | AO6: =AO$2=$G6 -> FALSE | AP6: FALSE | AQ6: FALSE | AR6: FALSE | AS6: FALSE | AT6: FALSE | AU6: FALSE | AV6: FALSE | AW6: FALSE | AX6: FALSE | AY6: =AY$2=$G6 -> TRUE | AZ6: FALSE | BA6: FALSE | BB6: FALSE | BC6: FALSE | BD6: FALSE | BE6: FALSE | BF6: FALSE | BG6: FALSE | BH6: FALSE | BI6: =BI$2=$G6 -> FALSE | BJ6: FALSE | BK6: FALSE | BL6: FALSE | BM6: FALSE | BN6: FALSE | BO6: FALSE | BP6: FALSE | BQ6: FALSE | BR6: FALSE | BS6: =BS$2=$G6 -> FALSE | BT6: FALSE | BU6: FALSE | BV6: FALSE | BW6: FALSE | BX6: FALSE | BY6: FALSE | BZ6: FALSE | CA6: FALSE | CB6: FALSE | CC6: =CC$2=$G6 -> FALSE | CD6: FALSE | CE6: FALSE | CF6: FALSE | CG6: FALSE | CH6: FALSE | CI6: FALSE | CJ6: FALSE | CK6: FALSE | CL6: FALSE | CM6: =CM$2=$G6 -> FALSE | CN6: FALSE | CO6: FALSE | CP6: FALSE | CQ6: FALSE | CR6: FALSE | CS6: FALSE | CT6: FALSE | CU6: FALSE | CV6: FALSE | CW6: =CW$2=$G6 -> FALSE | CX6: FALSE | CY6: FALSE | CZ6: FALSE | DA6: FALSE | DB6: FALSE | DC6: FALSE | DD6: FALSE | DE6: FALSE | DF6: FALSE | DG6: =DG$2=$G6 -> FALSE | DH6: FALSE | DI6: FALSE | DJ6: FALSE | DK6: FALSE | DL6: FALSE | DM6: FALSE | DN6: FALSE | DO6: FALSE | DP6: FALSE | DQ6: =DQ$2=$G6 -> FALSE | DR6: FALSE | DS6: FALSE | DT6: FALSE | DU6: FALSE | DV6: FALSE | DW6: FALSE | DX6: FALSE | DY6: FALSE | DZ6: FALSE | EA6: =EA$2=$G6 -> FALSE | EB6: FALSE | EC6: FALSE | ED6: FALSE | EE6: FALSE | EF6: FALSE | EG6: FALSE | EH6: FALSE | EI6: FALSE | EJ6: FALSE | EK6: =EK$2=$G6 -> FALSE | EL6: FALSE | EM6: FALSE | EN6: FALSE | EO6: FALSE | EP6: FALSE | EQ6: FALSE | ER6: FALSE | ES6: FALSE | ET6: FALSE | EU6: =EU$2=$G6 -> FALSE | EV6: FALSE | EW6: FALSE | EX6: FALSE | EY6: FALSE | EZ6: FALSE | FA6: FALSE | FB6: FALSE | FC6: FALSE | FD6: FALSE | FE6: =FE$2=$G6 -> FALSE | FF6: FALSE | FG6: FALSE | FH6: FALSE | FI6: FALSE | FJ6: FALSE | FK6: FALSE | FL6: FALSE | FM6: FALSE | FN6: FALSE | FO6: =FO$2=$G6 -> FALSE | FP6: FALSE | FQ6: FALSE | FR6: FALSE | FS6: FALSE | FT6: FALSE | FU6: FALSE | FV6: FALSE | FW6: FALSE | FX6: FALSE | FY6: =FY$2=$G6 -> FALSE | FZ6: FALSE | GA6: FALSE | GB6: FALSE | GC6: FALSE | GD6: FALSE | GE6: FALSE | GF6: FALSE | GG6: FALSE | GH6: FALSE | GI6: =GI$2=$G6 -> FALSE | GJ6: FALSE | GK6: FALSE | GL6: FALSE | GM6: FALSE | GN6: FALSE | GO6: FALSE | GP6: FALSE | GQ6: FALSE | GR6: FALSE | GS6: =GS$2=$G6 -> FALSE | GT6: FALSE | GU6: FALSE | GV6: FALSE | GW6: FALSE | GX6: FALSE | GY6: FALSE | GZ6: FALSE | HA6: FALSE | HB6: FALSE | HC6: =HC$2=$G6 -> FALSE | HD6: FALSE | HE6: FALSE | HF6: FALSE | HG6: FALSE | HH6: FALSE | HI6: FALSE | HJ6: FALSE | HK6: FALSE | HL6: FALSE | HM6: =HM$2=$G6 -> FALSE | HN6: FALSE | HO6: FALSE | HP6: FALSE | HQ6: FALSE | HR6: FALSE | HS6: FALSE | HT6: FALSE | HU6: FALSE | HV6: FALSE | HW6: =HW$2=$G6 -> FALSE | HX6: FALSE | HY6: FALSE | HZ6: FALSE | IA6: FALSE | IB6: FALSE | IC6: FALSE | ID6: FALSE | IE6: FALSE | IF6: FALSE | IG6: =IG$2=$G6 -> FALSE | IH6: FALSE | II6: FALSE | IJ6: FALSE | IK6: FALSE | IL6: FALSE | IM6: FALSE | IN6: FALSE | IO6: FALSE | IP6: FALSE | IQ6: =IQ$2=$G6 -> FALSE | IR6: FALSE | IS6: FALSE | IT6: FALSE | IU6: FALSE | IV6: FALSE | IW6: FALSE | IX6: FALSE | IY6: FALSE | IZ6: FALSE | JA6: =JA$2=$G6 -> FALSE | JB6: FALSE | JC6: FALSE | JD6: FALSE | JE6: FALSE | JF6: FALSE | JG6: FALSE | JH6: FALSE | JI6: FALSE | JJ6: FALSE | JK6: =JK$2=$G6 -> FALSE | JL6: FALSE | JM6: FALSE | JN6: FALSE | JO6: FALSE | JP6: FALSE | JQ6: FALSE | JR6: FALSE | JS6: FALSE | JT6: FALSE | JU6: =JU$2=$G6 -> FALSE | JV6: FALSE | JW6: FALSE | JX6: FALSE | JY6: FALSE | JZ6: FALSE | KA6: FALSE | KB6: FALSE | KC6: FALSE | KD6: FALSE | KE6: =KE$2=$G6 -> FALSE | KF6: FALSE | KG6: FALSE | KH6: FALSE | KI6: FALSE | KJ6: FALSE | KK6: FALSE | KL6: FALSE | KM6: FALSE | KN6: FALSE | KO6: =KO$2=$G6 -> FALSE | KP6: FALSE | KQ6: FALSE | KR6: FALSE | KS6: FALSE | KT6: FALSE | KU6: FALSE | KV6: FALSE | KW6: FALSE | KX6: FALSE | KY6: =KY$2=$G6 -> FALSE | KZ6: FALSE | LA6: FALSE | LB6: FALSE | LC6: FALSE | LD6: FALSE | LE6: FALSE | LF6: FALSE | LG6: FALSE | LH6: FALSE | LI6: =LI$2=$G6 -> FALSE | LJ6: FALSE | LK6: FALSE | LL6: FALSE | LM6: FALSE | LN6: FALSE | LO6: FALSE | LP6: FALSE | LQ6: FALSE | LR6: FALSE | LS6: =LS$2=$G6 -> FALSE | LT6: FALSE | LU6: FALSE | LV6: FALSE | LW6: FALSE | LX6: FALSE | LY6: FALSE | LZ6: FALSE | MA6: FALSE | MB6: FALSE | MC6: =MC$2=$G6 -> FALSE | MD6: FALSE | ME6: FALSE | MF6: FALSE | MG6: FALSE | MH6: FALSE | MI6: FALSE | MJ6: FALSE | MK6: FALSE | ML6: FALSE | MM6: =MM$2=$G6 -> FALSE | MN6: FALSE | MO6: FALSE | MP6: FALSE | MQ6: FALSE | MR6: FALSE | MS6: FALSE | MT6: FALSE | MU6: FALSE | MV6: FALSE | MW6: =MW$2=$G6 -> FALSE | MX6: FALSE | MY6: FALSE | MZ6: FALSE | NA6: FALSE | NB6: FALSE | NC6: FALSE | ND6: FALSE | NE6: FALSE | NF6: FALSE | NG6: =NG$2=$G6 -> FALSE | NH6: FALSE | NI6: FALSE | NJ6: FALSE | NK6: FALSE | NL6: FALSE | NM6: FALSE | NN6: FALSE | NO6: FALSE | NP6: FALSE | NQ6: =NQ$2=$G6 -> FALSE | NR6: FALSE | NS6: FALSE | NT6: FALSE | NU6: FALSE | NV6: FALSE | NW6: FALSE | NX6: FALSE | NY6: FALSE | NZ6: FALSE | OA6: FALSE | OB6: FALSE | OC6: FALSE | OD6: FALSE | OE6: FALSE
B7: Decommissioning | G7: =F19 -> 2043-07-01 | K7: FALSE | L7: FALSE | M7: FALSE | N7: FALSE | O7: FALSE | P7: FALSE | Q7: FALSE | R7: FALSE | S7: FALSE | T7: FALSE | U7: FALSE | V7: FALSE | W7: FALSE | X7: FALSE | Y7: FALSE | Z7: FALSE | AA7: FALSE | AB7: FALSE | AC7: FALSE | AD7: FALSE | AE7: FALSE | AF7: FALSE | AG7: FALSE | AH7: FALSE | AI7: FALSE | AJ7: FALSE | AK7: FALSE | AL7: FALSE | AM7: FALSE | AN7: FALSE | AO7: FALSE | AP7: FALSE | AQ7: FALSE | AR7: FALSE | AS7: FALSE | AT7: FALSE | AU7: FALSE | AV7: FALSE | AW7: FALSE | AX7: FALSE | AY7: FALSE | AZ7: FALSE | BA7: FALSE | BB7: FALSE | BC7: FALSE | BD7: FALSE | BE7: FALSE | BF7: FALSE | BG7: FALSE | BH7: FALSE | BI7: FALSE | BJ7: FALSE | BK7: FALSE | BL7: FALSE | BM7: FALSE | BN7: FALSE | BO7: FALSE | BP7: FALSE | BQ7: FALSE | BR7: FALSE | BS7: FALSE | BT7: FALSE | BU7: FALSE | BV7: FALSE | BW7: FALSE | BX7: FALSE | BY7: FALSE | BZ7: FALSE | CA7: FALSE | CB7: FALSE | CC7: FALSE | CD7: FALSE | CE7: FALSE | CF7: FALSE | CG7: FALSE | CH7: FALSE | CI7: FALSE | CJ7: FALSE | CK7: FALSE | CL7: FALSE | CM7: FALSE | CN7: FALSE | CO7: FALSE | CP7: FALSE | CQ7: FALSE | CR7: FALSE | CS7: FALSE | CT7: FALSE | CU7: FALSE | CV7: FALSE | CW7: FALSE | CX7: FALSE | CY7: FALSE | CZ7: FALSE | DA7: FALSE | DB7: FALSE | DC7: FALSE | DD7: FALSE | DE7: FALSE | DF7: FALSE | DG7: FALSE | DH7: FALSE | DI7: FALSE | DJ7: FALSE | DK7: FALSE | DL7: FALSE | DM7: FALSE | DN7: FALSE | DO7: FALSE | DP7: FALSE | DQ7: FALSE | DR7: FALSE | DS7: FALSE | DT7: FALSE | DU7: FALSE | DV7: FALSE | DW7: FALSE | DX7: FALSE | DY7: FALSE | DZ7: FALSE | EA7: FALSE | EB7: FALSE | EC7: FALSE | ED7: FALSE | EE7: FALSE | EF7: FALSE | EG7: FALSE | EH7: FALSE | EI7: FALSE | EJ7: FALSE | EK7: FALSE | EL7: FALSE | EM7: FALSE | EN7: FALSE | EO7: FALSE | EP7: FALSE | EQ7: FALSE | ER7: FALSE | ES7: FALSE | ET7: FALSE | EU7: FALSE | EV7: FALSE | EW7: FALSE | EX7: FALSE | EY7: FALSE | EZ7: FALSE | FA7: FALSE | FB7: FALSE | FC7: FALSE | FD7: FALSE | FE7: FALSE | FF7: FALSE | FG7: FALSE | FH7: FALSE | FI7: FALSE | FJ7: FALSE | FK7: FALSE | FL7: FALSE | FM7: FALSE | FN7: FALSE | FO7: FALSE | FP7: FALSE | FQ7: FALSE | FR7: FALSE | FS7: FALSE | FT7: FALSE | FU7: FALSE | FV7: FALSE | FW7: FALSE | FX7: FALSE | FY7: FALSE | FZ7: FALSE | GA7: FALSE | GB7: FALSE | GC7: FALSE | GD7: FALSE | GE7: FALSE | GF7: FALSE | GG7: FALSE | GH7: FALSE | GI7: FALSE | GJ7: FALSE | GK7: FALSE | GL7: FALSE | GM7: FALSE | GN7: FALSE | GO7: FALSE | GP7: FALSE | GQ7: FALSE | GR7: FALSE | GS7: FALSE | GT7: FALSE | GU7: FALSE | GV7: FALSE | GW7: FALSE | GX7: FALSE | GY7: FALSE | GZ7: FALSE | HA7: FALSE | HB7: FALSE | HC7: FALSE | HD7: FALSE | HE7: FALSE | HF7: FALSE | HG7: FALSE | HH7: FALSE | HI7: FALSE | HJ7: FALSE | HK7: FALSE | HL7: FALSE | HM7: FALSE | HN7: FALSE | HO7: FALSE | HP7: FALSE | HQ7: FALSE | HR7: FALSE | HS7: FALSE | HT7: FALSE | HU7: FALSE | HV7: FALSE | HW7: FALSE | HX7: FALSE | HY7: FALSE | HZ7: FALSE | IA7: FALSE | IB7: FALSE | IC7: FALSE | ID7: FALSE | IE7: FALSE | IF7: FALSE | IG7: FALSE | IH7: FALSE | II7: FALSE | IJ7: FALSE | IK7: FALSE | IL7: FALSE | IM7: FALSE | IN7: FALSE | IO7: FALSE | IP7: FALSE | IQ7: FALSE | IR7: FALSE | IS7: FALSE | IT7: FALSE | IU7: FALSE | IV7: FALSE | IW7: FALSE | IX7: FALSE | IY7: FALSE | IZ7: FALSE | JA7: FALSE | JB7: FALSE | JC7: FALSE | JD7: FALSE | JE7: FALSE | JF7: FALSE | JG7: FALSE | JH7: FALSE | JI7: FALSE | JJ7: FALSE | JK7: FALSE | JL7: FALSE | JM7: FALSE | JN7: FALSE | JO7: FALSE | JP7: FALSE | JQ7: FALSE | JR7: FALSE | JS7: FALSE | JT7: FALSE | JU7: FALSE | JV7: FALSE | JW7: FALSE | JX7: FALSE | JY7: FALSE | JZ7: FALSE | KA7: FALSE | KB7: FALSE | KC7: FALSE | KD7: FALSE | KE7: FALSE | KF7: FALSE | KG7: FALSE | KH7: FALSE | KI7: FALSE | KJ7: FALSE | KK7: FALSE | KL7: FALSE | KM7: FALSE | KN7: FALSE | KO7: FALSE | KP7: FALSE | KQ7: FALSE | KR7: FALSE | KS7: FALSE | KT7: FALSE | KU7: FALSE | KV7: FALSE | KW7: FALSE | KX7: FALSE | KY7: FALSE | KZ7: FALSE | LA7: FALSE | LB7: FALSE | LC7: FALSE | LD7: FALSE | LE7: FALSE | LF7: FALSE | LG7: FALSE | LH7: FALSE | LI7: FALSE | LJ7: FALSE | LK7: FALSE | LL7: FALSE | LM7: FALSE | LN7: FALSE | LO7: FALSE | LP7: FALSE | LQ7: FALSE | LR7: FALSE | LS7: FALSE | LT7: FALSE | LU7: FALSE | LV7: FALSE | LW7: FALSE | LX7: FALSE | LY7: FALSE | LZ7: FALSE | MA7: FALSE | MB7: FALSE | MC7: FALSE | MD7: FALSE | ME7: FALSE | MF7: FALSE | MG7: FALSE | MH7: FALSE | MI7: FALSE | MJ7: FALSE | MK7: FALSE | ML7: FALSE | MM7: TRUE | MN7: FALSE | MO7: FALSE | MP7: FALSE | MQ7: FALSE | MR7: FALSE | MS7: FALSE | MT7: FALSE | MU7: FALSE | MV7: FALSE | MW7: FALSE | MX7: FALSE | MY7: FALSE | MZ7: FALSE | NA7: FALSE | NB7: FALSE | NC7: FALSE | ND7: FALSE | NE7: FALSE | NF7: FALSE | NG7: FALSE | NH7: FALSE | NI7: FALSE | NJ7: FALSE | NK7: FALSE | NL7: FALSE | NM7: FALSE | NN7: FALSE | NO7: FALSE | NP7: FALSE | NQ7: FALSE | NR7: FALSE | NS7: FALSE | NT7: FALSE | NU7: FALSE | NV7: FALSE | NW7: FALSE | NX7: FALSE | NY7: FALSE | NZ7: FALSE | OA7: FALSE | OB7: FALSE | OC7: FALSE | OD7: FALSE | OE7: FALSE
B8: Last Construction Month | G8: =EDATE(G6,-1) -> 2018-06-01 | K8: =K2=$G$8 -> FALSE | L8: FALSE | M8: FALSE | N8: FALSE | O8: FALSE | P8: FALSE | Q8: FALSE | R8: FALSE | S8: FALSE | T8: FALSE | U8: FALSE | V8: FALSE | W8: FALSE | X8: FALSE | Y8: FALSE | Z8: FALSE | AA8: FALSE | AB8: FALSE | AC8: FALSE | AD8: FALSE | AE8: FALSE | AF8: FALSE | AG8: FALSE | AH8: FALSE | AI8: FALSE | AJ8: FALSE | AK8: FALSE | AL8: FALSE | AM8: FALSE | AN8: FALSE | AO8: FALSE | AP8: FALSE | AQ8: FALSE | AR8: FALSE | AS8: FALSE | AT8: FALSE | AU8: FALSE | AV8: FALSE | AW8: FALSE | AX8: TRUE | AY8: FALSE | AZ8: FALSE | BA8: FALSE | BB8: FALSE | BC8: FALSE | BD8: FALSE | BE8: FALSE | BF8: FALSE | BG8: FALSE | BH8: FALSE | BI8: FALSE | BJ8: FALSE | BK8: FALSE | BL8: FALSE | BM8: FALSE | BN8: FALSE | BO8: FALSE | BP8: FALSE | BQ8: FALSE | BR8: FALSE | BS8: FALSE | BT8: FALSE | BU8: FALSE | BV8: FALSE | BW8: =BW2=$G$8 -> FALSE | BX8: FALSE | BY8: FALSE | BZ8: FALSE | CA8: FALSE | CB8: FALSE | CC8: FALSE | CD8: FALSE | CE8: FALSE | CF8: FALSE | CG8: FALSE | CH8: FALSE | CI8: FALSE | CJ8: FALSE | CK8: FALSE | CL8: FALSE | CM8: FALSE | CN8: FALSE | CO8: FALSE | CP8: FALSE | CQ8: FALSE | CR8: FALSE | CS8: FALSE | CT8: FALSE | CU8: FALSE | CV8: FALSE | CW8: FALSE | CX8: FALSE | CY8: FALSE | CZ8: FALSE | DA8: FALSE | DB8: FALSE | DC8: FALSE | DD8: FALSE | DE8: FALSE | DF8: FALSE | DG8: FALSE | DH8: FALSE | DI8: FALSE | DJ8: FALSE | DK8: FALSE | DL8: FALSE | DM8: FALSE | DN8: FALSE | DO8: FALSE | DP8: FALSE | DQ8: FALSE | DR8: FALSE | DS8: FALSE | DT8: FALSE | DU8: FALSE | DV8: FALSE | DW8: FALSE | DX8: FALSE | DY8: FALSE | DZ8: FALSE | EA8: FALSE | EB8: FALSE | EC8: FALSE | ED8: FALSE | EE8: FALSE | EF8: FALSE | EG8: FALSE | EH8: FALSE | EI8: =EI2=$G$8 -> FALSE | EJ8: FALSE | EK8: FALSE | EL8: FALSE | EM8: FALSE | EN8: FALSE | EO8: FALSE | EP8: FALSE | EQ8: FALSE | ER8: FALSE | ES8: FALSE | ET8: FALSE | EU8: FALSE | EV8: FALSE | EW8: FALSE | EX8: FALSE | EY8: FALSE | EZ8: FALSE | FA8: FALSE | FB8: FALSE | FC8: FALSE | FD8: FALSE | FE8: FALSE | FF8: FALSE | FG8: FALSE | FH8: FALSE | FI8: FALSE | FJ8: FALSE | FK8: FALSE | FL8: FALSE | FM8: FALSE | FN8: FALSE | FO8: FALSE | FP8: FALSE | FQ8: FALSE | FR8: FALSE | FS8: FALSE | FT8: FALSE | FU8: FALSE | FV8: FALSE | FW8: FALSE | FX8: FALSE | FY8: FALSE | FZ8: FALSE | GA8: FALSE | GB8: FALSE | GC8: FALSE | GD8: FALSE | GE8: FALSE | GF8: FALSE | GG8: FALSE | GH8: FALSE | GI8: FALSE | GJ8: FALSE | GK8: FALSE | GL8: FALSE | GM8: FALSE | GN8: FALSE | GO8: FALSE | GP8: FALSE | GQ8: FALSE | GR8: FALSE | GS8: FALSE | GT8: FALSE | GU8: =GU2=$G$8 -> FALSE | GV8: FALSE | GW8: FALSE | GX8: FALSE | GY8: FALSE | GZ8: FALSE | HA8: FALSE | HB8: FALSE | HC8: FALSE | HD8: FALSE | HE8: FALSE | HF8: FALSE | HG8: FALSE | HH8: FALSE | HI8: FALSE | HJ8: FALSE | HK8: FALSE | HL8: FALSE | HM8: FALSE | HN8: FALSE | HO8: FALSE | HP8: FALSE | HQ8: FALSE | HR8: FALSE | HS8: FALSE | HT8: FALSE | HU8: FALSE | HV8: FALSE | HW8: FALSE | HX8: FALSE | HY8: FALSE | HZ8: FALSE | IA8: FALSE | IB8: FALSE | IC8: FALSE | ID8: FALSE | IE8: FALSE | IF8: FALSE | IG8: FALSE | IH8: FALSE | II8: FALSE | IJ8: FALSE | IK8: FALSE | IL8: FALSE | IM8: FALSE | IN8: FALSE | IO8: FALSE | IP8: FALSE | IQ8: FALSE | IR8: FALSE | IS8: FALSE | IT8: FALSE | IU8: FALSE | IV8: FALSE | IW8: FALSE | IX8: FALSE | IY8: FALSE | IZ8: FALSE | JA8: FALSE | JB8: FALSE | JC8: FALSE | JD8: FALSE | JE8: FALSE | JF8: FALSE | JG8: =JG2=$G$8 -> FALSE | JH8: FALSE | JI8: FALSE | JJ8: FALSE | JK8: FALSE | JL8: FALSE | JM8: FALSE | JN8: FALSE | JO8: FALSE | JP8: FALSE | JQ8: FALSE | JR8: FALSE | JS8: FALSE | JT8: FALSE | JU8: FALSE | JV8: FALSE | JW8: FALSE | JX8: FALSE | JY8: FALSE | JZ8: FALSE | KA8: FALSE | KB8: FALSE | KC8: FALSE | KD8: FALSE | KE8: FALSE | KF8: FALSE | KG8: FALSE | KH8: FALSE | KI8: FALSE | KJ8: FALSE | KK8: FALSE | KL8: FALSE | KM8: FALSE | KN8: FALSE | KO8: FALSE | KP8: FALSE | KQ8: FALSE | KR8: FALSE | KS8: FALSE | KT8: FALSE | KU8: FALSE | KV8: FALSE | KW8: FALSE | KX8: FALSE | KY8: FALSE | KZ8: FALSE | LA8: FALSE | LB8: FALSE | LC8: FALSE | LD8: FALSE | LE8: FALSE | LF8: FALSE | LG8: FALSE | LH8: FALSE | LI8: FALSE | LJ8: FALSE | LK8: FALSE | LL8: FALSE | LM8: FALSE | LN8: FALSE | LO8: FALSE | LP8: FALSE | LQ8: FALSE | LR8: FALSE | LS8: =LS2=$G$8 -> FALSE | LT8: FALSE | LU8: FALSE | LV8: FALSE | LW8: FALSE | LX8: FALSE | LY8: FALSE | LZ8: FALSE | MA8: FALSE | MB8: FALSE | MC8: FALSE | MD8: FALSE | ME8: FALSE | MF8: FALSE | MG8: FALSE | MH8: FALSE | MI8: FALSE | MJ8: FALSE | MK8: FALSE | ML8: FALSE | MM8: FALSE | MN8: FALSE | MO8: FALSE | MP8: FALSE | MQ8: FALSE | MR8: FALSE | MS8: FALSE | MT8: FALSE | MU8: FALSE | MV8: FALSE | MW8: FALSE | MX8: FALSE | MY8: FALSE | MZ8: FALSE | NA8: FALSE | NB8: FALSE | NC8: FALSE | ND8: FALSE | NE8: FALSE | NF8: FALSE | NG8: FALSE | NH8: FALSE | NI8: FALSE | NJ8: FALSE | NK8: FALSE | NL8: FALSE | NM8: FALSE | NN8: FALSE | NO8: FALSE | NP8: FALSE | NQ8: FALSE | NR8: FALSE | NS8: FALSE | NT8: FALSE | NU8: FALSE | NV8: FALSE | NW8: FALSE | NX8: FALSE | NY8: FALSE | NZ8: FALSE | OA8: FALSE | OB8: FALSE | OC8: FALSE | OD8: FALSE | OE8: FALSE
B9: Days | E9: Days | K9: =K3-K2+1 -> 31 | L9: 30 | M9: 31 | N9: 30 | O9: 31 | P9: 31 | Q9: 30 | R9: 31 | S9: 30 | T9: 31 | U9: 31 | V9: 29 | W9: 31 | X9: 30 | Y9: 31 | Z9: 30 | AA9: 31 | AB9: 31 | AC9: 30 | AD9: 31 | AE9: 30 | AF9: 31 | AG9: 31 | AH9: 28 | AI9: 31 | AJ9: 30 | AK9: 31 | AL9: 30 | AM9: 31 | AN9: 31 | AO9: 30 | AP9: 31 | AQ9: 30 | AR9: 31 | AS9: 31 | AT9: 28 | AU9: 31 | AV9: 30 | AW9: 31 | AX9: 30 | AY9: 31 | AZ9: 31 | BA9: 30 | BB9: 31 | BC9: 30 | BD9: 31 | BE9: 31 | BF9: 28 | BG9: 31 | BH9: 30 | BI9: 31 | BJ9: 30 | BK9: 31 | BL9: 31 | BM9: 30 | BN9: 31 | BO9: 30 | BP9: 31 | BQ9: 31 | BR9: 29 | BS9: 31 | BT9: 30 | BU9: 31 | BV9: 30 | BW9: =BW3-BW2+1 -> 31 | BX9: 31 | BY9: 30 | BZ9: 31 | CA9: 30 | CB9: 31 | CC9: 31 | CD9: 28 | CE9: 31 | CF9: 30 | CG9: 31 | CH9: 30 | CI9: 31 | CJ9: 31 | CK9: 30 | CL9: 31 | CM9: 30 | CN9: 31 | CO9: 31 | CP9: 28 | CQ9: 31 | CR9: 30 | CS9: 31 | CT9: 30 | CU9: 31 | CV9: 31 | CW9: 30 | CX9: 31 | CY9: 30 | CZ9: 31 | DA9: 31 | DB9: 28 | DC9: 31 | DD9: 30 | DE9: 31 | DF9: 30 | DG9: 31 | DH9: 31 | DI9: 30 | DJ9: 31 | DK9: 30 | DL9: 31 | DM9: 31 | DN9: 29 | DO9: 31 | DP9: 30 | DQ9: 31 | DR9: 30 | DS9: 31 | DT9: 31 | DU9: 30 | DV9: 31 | DW9: 30 | DX9: 31 | DY9: 31 | DZ9: 28 | EA9: 31 | EB9: 30 | EC9: 31 | ED9: 30 | EE9: 31 | EF9: 31 | EG9: 30 | EH9: 31 | EI9: =EI3-EI2+1 -> 30 | EJ9: 31 | EK9: 31 | EL9: 28 | EM9: 31 | EN9: 30 | EO9: 31 | EP9: 30 | EQ9: 31 | ER9: 31 | ES9: 30 | ET9: 31 | EU9: 30 | EV9: 31 | EW9: 31 | EX9: 28 | EY9: 31 | EZ9: 30 | FA9: 31 | FB9: 30 | FC9: 31 | FD9: 31 | FE9: 30 | FF9: 31 | FG9: 30 | FH9: 31 | FI9: 31 | FJ9: 29 | FK9: 31 | FL9: 30 | FM9: 31 | FN9: 30 | FO9: 31 | FP9: 31 | FQ9: 30 | FR9: 31 | FS9: 30 | FT9: 31 | FU9: 31 | FV9: 28 | FW9: 31 | FX9: 30 | FY9: 31 | FZ9: 30 | GA9: 31 | GB9: 31 | GC9: 30 | GD9: 31 | GE9: 30 | GF9: 31 | GG9: 31 | GH9: 28 | GI9: 31 | GJ9: 30 | GK9: 31 | GL9: 30 | GM9: 31 | GN9: 31 | GO9: 30 | GP9: 31 | GQ9: 30 | GR9: 31 | GS9: 31 | GT9: 28 | GU9: =GU3-GU2+1 -> 31 | GV9: 30 | GW9: 31 | GX9: 30 | GY9: 31 | GZ9: 31 | HA9: 30 | HB9: 31 | HC9: 30 | HD9: 31 | HE9: 31 | HF9: 29 | HG9: 31 | HH9: 30 | HI9: 31 | HJ9: 30 | HK9: 31 | HL9: 31 | HM9: 30 | HN9: 31 | HO9: 30 | HP9: 31 | HQ9: 31 | HR9: 28 | HS9: 31 | HT9: 30 | HU9: 31 | HV9: 30 | HW9: 31 | HX9: 31 | HY9: 30 | HZ9: 31 | IA9: 30 | IB9: 31 | IC9: 31 | ID9: 28 | IE9: 31 | IF9: 30 | IG9: 31 | IH9: 30 | II9: 31 | IJ9: 31 | IK9: 30 | IL9: 31 | IM9: 30 | IN9: 31 | IO9: 31 | IP9: 28 | IQ9: 31 | IR9: 30 | IS9: 31 | IT9: 30 | IU9: 31 | IV9: 31 | IW9: 30 | IX9: 31 | IY9: 30 | IZ9: 31 | JA9: 31 | JB9: 29 | JC9: 31 | JD9: 30 | JE9: 31 | JF9: 30 | JG9: =JG3-JG2+1 -> 31 | JH9: 31 | JI9: 30 | JJ9: 31 | JK9: 30 | JL9: 31 | JM9: 31 | JN9: 28 | JO9: 31 | JP9: 30 | JQ9: 31 | JR9: 30 | JS9: 31 | JT9: 31 | JU9: 30 | JV9: 31 | JW9: 30 | JX9: 31 | JY9: 31 | JZ9: 28 | KA9: 31 | KB9: 30 | KC9: 31 | KD9: 30 | KE9: 31 | KF9: 31 | KG9: 30 | KH9: 31 | KI9: 30 | KJ9: 31 | KK9: 31 | KL9: 28 | KM9: 31 | KN9: 30 | KO9: 31 | KP9: 30 | KQ9: 31 | KR9: 31 | KS9: 30 | KT9: 31 | KU9: 30 | KV9: 31 | KW9: 31 | KX9: 29 | KY9: 31 | KZ9: 30 | LA9: 31 | LB9: 30 | LC9: 31 | LD9: 31 | LE9: 30 | LF9: 31 | LG9: 30 | LH9: 31 | LI9: 31 | LJ9: 28 | LK9: 31 | LL9: 30 | LM9: 31 | LN9: 30 | LO9: 31 | LP9: 31 | LQ9: 30 | LR9: 31 | LS9: =LS3-LS2+1 -> 30 | LT9: 31 | LU9: 31 | LV9: 28 | LW9: 31 | LX9: 30 | LY9: 31 | LZ9: 30 | MA9: 31 | MB9: 31 | MC9: 30 | MD9: 31 | ME9: 30 | MF9: 31 | MG9: 31 | MH9: 28 | MI9: 31 | MJ9: 30 | MK9: 31 | ML9: 30 | MM9: 31 | MN9: 31 | MO9: 30 | MP9: 31 | MQ9: 30 | MR9: 31 | MS9: 31 | MT9: 29 | MU9: 31 | MV9: 30 | MW9: 31 | MX9: 30 | MY9: 31 | MZ9: 31 | NA9: 30 | NB9: 31 | NC9: 30 | ND9: 31 | NE9: 31 | NF9: 28 | NG9: 31 | NH9: 30 | NI9: 31 | NJ9: 30 | NK9: 31 | NL9: 31 | NM9: 30 | NN9: 31 | NO9: 30 | NP9: 31 | NQ9: 31 | NR9: 28 | NS9: 31 | NT9: 30 | NU9: 31 | NV9: 30 | NW9: 31 | NX9: 31 | NY9: 30 | NZ9: 31 | OA9: 30 | OB9: 31 | OC9: 31 | OD9: 28 | OE9: 31
B10: Hours | E10: Hours | K10: =K9*24 -> 744 | L10: =L9*24 -> 720 | M10: 744 | N10: 720 | O10: 744 | P10: 744 | Q10: 720 | R10: 744 | S10: 720 | T10: 744 | U10: 744 | V10: 696 | W10: 744 | X10: 720 | Y10: 744 | Z10: 720 | AA10: 744 | AB10: 744 | AC10: 720 | AD10: 744 | AE10: 720 | AF10: 744 | AG10: 744 | AH10: 672 | AI10: 744 | AJ10: 720 | AK10: 744 | AL10: 720 | AM10: 744 | AN10: 744 | AO10: 720 | AP10: 744 | AQ10: 720 | AR10: 744 | AS10: 744 | AT10: 672 | AU10: 744 | AV10: 720 | AW10: 744 | AX10: 720 | AY10: 744 | AZ10: 744 | BA10: 720 | BB10: 744 | BC10: 720 | BD10: 744 | BE10: 744 | BF10: 672 | BG10: 744 | BH10: 720 | BI10: 744 | BJ10: 720 | BK10: 744 | BL10: 744 | BM10: 720 | BN10: 744 | BO10: 720 | BP10: 744 | BQ10: 744 | BR10: 696 | BS10: 744 | BT10: 720 | BU10: 744 | BV10: 720 | BW10: 744 | BX10: =BX9*24 -> 744 | BY10: 720 | BZ10: 744 | CA10: 720 | CB10: 744 | CC10: 744 | CD10: 672 | CE10: 744 | CF10: 720 | CG10: 744 | CH10: 720 | CI10: 744 | CJ10: 744 | CK10: 720 | CL10: 744 | CM10: 720 | CN10: 744 | CO10: 744 | CP10: 672 | CQ10: 744 | CR10: 720 | CS10: 744 | CT10: 720 | CU10: 744 | CV10: 744 | CW10: 720 | CX10: 744 | CY10: 720 | CZ10: 744 | DA10: 744 | DB10: 672 | DC10: 744 | DD10: 720 | DE10: 744 | DF10: 720 | DG10: 744 | DH10: 744 | DI10: 720 | DJ10: 744 | DK10: 720 | DL10: 744 | DM10: 744 | DN10: 696 | DO10: 744 | DP10: 720 | DQ10: 744 | DR10: 720 | DS10: 744 | DT10: 744 | DU10: 720 | DV10: 744 | DW10: 720 | DX10: 744 | DY10: 744 | DZ10: 672 | EA10: 744 | EB10: 720 | EC10: 744 | ED10: 720 | EE10: 744 | EF10: 744 | EG10: 720 | EH10: 744 | EI10: 720 | EJ10: =EJ9*24 -> 744 | EK10: 744 | EL10: 672 | EM10: 744 | EN10: 720 | EO10: 744 | EP10: 720 | EQ10: 744 | ER10: 744 | ES10: 720 | ET10: 744 | EU10: 720 | EV10: 744 | EW10: 744 | EX10: 672 | EY10: 744 | EZ10: 720 | FA10: 744 | FB10: 720 | FC10: 744 | FD10: 744 | FE10: 720 | FF10: 744 | FG10: 720 | FH10: 744 | FI10: 744 | FJ10: 696 | FK10: 744 | FL10: 720 | FM10: 744 | FN10: 720 | FO10: 744 | FP10: 744 | FQ10: 720 | FR10: 744 | FS10: 720 | FT10: 744 | FU10: 744 | FV10: 672 | FW10: 744 | FX10: 720 | FY10: 744 | FZ10: 720 | GA10: 744 | GB10: 744 | GC10: 720 | GD10: 744 | GE10: 720 | GF10: 744 | GG10: 744 | GH10: 672 | GI10: 744 | GJ10: 720 | GK10: 744 | GL10: 720 | GM10: 744 | GN10: 744 | GO10: 720 | GP10: 744 | GQ10: 720 | GR10: 744 | GS10: 744 | GT10: 672 | GU10: 744 | GV10: =GV9*24 -> 720 | GW10: 744 | GX10: 720 | GY10: 744 | GZ10: 744 | HA10: 720 | HB10: 744 | HC10: 720 | HD10: 744 | HE10: 744 | HF10: 696 | HG10: 744 | HH10: 720 | HI10: 744 | HJ10: 720 | HK10: 744 | HL10: 744 | HM10: 720 | HN10: 744 | HO10: 720 | HP10: 744 | HQ10: 744 | HR10: 672 | HS10: 744 | HT10: 720 | HU10: 744 | HV10: 720 | HW10: 744 | HX10: 744 | HY10: 720 | HZ10: 744 | IA10: 720 | IB10: 744 | IC10: 744 | ID10: 672 | IE10: 744 | IF10: 720 | IG10: 744 | IH10: 720 | II10: 744 | IJ10: 744 | IK10: 720 | IL10: 744 | IM10: 720 | IN10: 744 | IO10: 744 | IP10: 672 | IQ10: 744 | IR10: 720 | IS10: 744 | IT10: 720 | IU10: 744 | IV10: 744 | IW10: 720 | IX10: 744 | IY10: 720 | IZ10: 744 | JA10: 744 | JB10: 696 | JC10: 744 | JD10: 720 | JE10: 744 | JF10: 720 | JG10: 744 | JH10: =JH9*24 -> 744 | JI10: 720 | JJ10: 744 | JK10: 720 | JL10: 744 | JM10: 744 | JN10: 672 | JO10: 744 | JP10: 720 | JQ10: 744 | JR10: 720 | JS10: 744 | JT10: 744 | JU10: 720 | JV10: 744 | JW10: 720 | JX10: 744 | JY10: 744 | JZ10: 672 | KA10: 744 | KB10: 720 | KC10: 744 | KD10: 720 | KE10: 744 | KF10: 744 | KG10: 720 | KH10: 744 | KI10: 720 | KJ10: 744 | KK10: 744 | KL10: 672 | KM10: 744 | KN10: 720 | KO10: 744 | KP10: 720 | KQ10: 744 | KR10: 744 | KS10: 720 | KT10: 744 | KU10: 720 | KV10: 744 | KW10: 744 | KX10: 696 | KY10: 744 | KZ10: 720 | LA10: 744 | LB10: 720 | LC10: 744 | LD10: 744 | LE10: 720 | LF10: 744 | LG10: 720 | LH10: 744 | LI10: 744 | LJ10: 672 | LK10: 744 | LL10: 720 | LM10: 744 | LN10: 720 | LO10: 744 | LP10: 744 | LQ10: 720 | LR10: 744 | LS10: 720 | LT10: =LT9*24 -> 744 | LU10: 744 | LV10: 672 | LW10: 744 | LX10: 720 | LY10: 744 | LZ10: 720 | MA10: 744 | MB10: 744 | MC10: 720 | MD10: 744 | ME10: 720 | MF10: 744 | MG10: 744 | MH10: 672 | MI10: 744 | MJ10: 720 | MK10: 744 | ML10: 720 | MM10: 744 | MN10: 744 | MO10: 720 | MP10: 744 | MQ10: 720 | MR10: 744 | MS10: 744 | MT10: 696 | MU10: 744 | MV10: 720 | MW10: 744 | MX10: 720 | MY10: 744 | MZ10: 744 | NA10: 720 | NB10: 744 | NC10: 720 | ND10: 744 | NE10: 744 | NF10: 672 | NG10: 744 | NH10: 720 | NI10: 744 | NJ10: 720 | NK10: 744 | NL10: 744 | NM10: 720 | NN10: 744 | NO10: 720 | NP10: 744 | NQ10: 744 | NR10: 672 | NS10: 744 | NT10: 720 | NU10: 744 | NV10: 720 | NW10: 744 | NX10: 744 | NY10: 720 | NZ10: 744 | OA10: 720 | OB10: 744 | OC10: 744 | OD10: 672 | OE10: 744
B11: Year | K11: =YEAR(K3) -> 2015 | L11: 2015 | M11: 2015 | N11: 2015 | O11: 2015 | P11: 2015 | Q11: 2015 | R11: 2015 | S11: 2015 | T11: 2015 | U11: 2016 | V11: 2016 | W11: 2016 | X11: 2016 | Y11: 2016 | Z11: 2016 | AA11: 2016 | AB11: 2016 | AC11: 2016 | AD11: 2016 | AE11: 2016 | AF11: 2016 | AG11: 2017 | AH11: 2017 | AI11: 2017 | AJ11: 2017 | AK11: 2017 | AL11: 2017 | AM11: 2017 | AN11: 2017 | AO11: 2017 | AP11: 2017 | AQ11: 2017 | AR11: 2017 | AS11: 2018 | AT11: 2018 | AU11: 2018 | AV11: 2018 | AW11: 2018 | AX11: 2018 | AY11: 2018 | AZ11: 2018 | BA11: 2018 | BB11: 2018 | BC11: 2018 | BD11: 2018 | BE11: 2019 | BF11: 2019 | BG11: 2019 | BH11: 2019 | BI11: 2019 | BJ11: 2019 | BK11: 2019 | BL11: 2019 | BM11: 2019 | BN11: 2019 | BO11: 2019 | BP11: 2019 | BQ11: 2020 | BR11: 2020 | BS11: 2020 | BT11: 2020 | BU11: 2020 | BV11: 2020 | BW11: =YEAR(BW3) -> 2020 | BX11: 2020 | BY11: 2020 | BZ11: 2020 | CA11: 2020 | CB11: 2020 | CC11: 2021 | CD11: 2021 | CE11: 2021 | CF11: 2021 | CG11: 2021 | CH11: 2021 | CI11: 2021 | CJ11: 2021 | CK11: 2021 | CL11: 2021 | CM11: 2021 | CN11: 2021 | CO11: 2022 | CP11: 2022 | CQ11: 2022 | CR11: 2022 | CS11: 2022 | CT11: 2022 | CU11: 2022 | CV11: 2022 | CW11: 2022 | CX11: 2022 | CY11: 2022 | CZ11: 2022 | DA11: 2023 | DB11: 2023 | DC11: 2023 | DD11: 2023 | DE11: 2023 | DF11: 2023 | DG11: 2023 | DH11: 2023 | DI11: 2023 | DJ11: 2023 | DK11: 2023 | DL11: 2023 | DM11: 2024 | DN11: 2024 | DO11: 2024 | DP11: 2024 | DQ11: 2024 | DR11: 2024 | DS11: 2024 | DT11: 2024 | DU11: 2024 | DV11: 2024 | DW11: 2024 | DX11: 2024 | DY11: 2025 | DZ11: 2025 | EA11: 2025 | EB11: 2025 | EC11: 2025 | ED11: 2025 | EE11: 2025 | EF11: 2025 | EG11: 2025 | EH11: 2025 | EI11: =YEAR(EI3) -> 2025 | EJ11: 2025 | EK11: 2026 | EL11: 2026 | EM11: 2026 | EN11: 2026 | EO11: 2026 | EP11: 2026 | EQ11: 2026 | ER11: 2026 | ES11: 2026 | ET11: 2026 | EU11: 2026 | EV11: 2026 | EW11: 2027 | EX11: 2027 | EY11: 2027 | EZ11: 2027 | FA11: 2027 | FB11: 2027 | FC11: 2027 | FD11: 2027 | FE11: 2027 | FF11: 2027 | FG11: 2027 | FH11: 2027 | FI11: 2028 | FJ11: 2028 | FK11: 2028 | FL11: 2028 | FM11: 2028 | FN11: 2028 | FO11: 2028 | FP11: 2028 | FQ11: 2028 | FR11: 2028 | FS11: 2028 | FT11: 2028 | FU11: 2029 | FV11: 2029 | FW11: 2029 | FX11: 2029 | FY11: 2029 | FZ11: 2029 | GA11: 2029 | GB11: 2029 | GC11: 2029 | GD11: 2029 | GE11: 2029 | GF11: 2029 | GG11: 2030 | GH11: 2030 | GI11: 2030 | GJ11: 2030 | GK11: 2030 | GL11: 2030 | GM11: 2030 | GN11: 2030 | GO11: 2030 | GP11: 2030 | GQ11: 2030 | GR11: 2030 | GS11: 2031 | GT11: 2031 | GU11: =YEAR(GU3) -> 2031 | GV11: 2031 | GW11: 2031 | GX11: 2031 | GY11: 2031 | GZ11: 2031 | HA11: 2031 | HB11: 2031 | HC11: 2031 | HD11: 2031 | HE11: 2032 | HF11: 2032 | HG11: 2032 | HH11: 2032 | HI11: 2032 | HJ11: 2032 | HK11: 2032 | HL11: 2032 | HM11: 2032 | HN11: 2032 | HO11: 2032 | HP11: 2032 | HQ11: 2033 | HR11: 2033 | HS11: 2033 | HT11: 2033 | HU11: 2033 | HV11: 2033 | HW11: 2033 | HX11: 2033 | HY11: 2033 | HZ11: 2033 | IA11: 2033 | IB11: 2033 | IC11: 2034 | ID11: 2034 | IE11: 2034 | IF11: 2034 | IG11: 2034 | IH11: 2034 | II11: 2034 | IJ11: 2034 | IK11: 2034 | IL11: 2034 | IM11: 2034 | IN11: 2034 | IO11: 2035 | IP11: 2035 | IQ11: 2035 | IR11: 2035 | IS11: 2035 | IT11: 2035 | IU11: 2035 | IV11: 2035 | IW11: 2035 | IX11: 2035 | IY11: 2035 | IZ11: 2035 | JA11: 2036 | JB11: 2036 | JC11: 2036 | JD11: 2036 | JE11: 2036 | JF11: 2036 | JG11: =YEAR(JG3) -> 2036 | JH11: 2036 | JI11: 2036 | JJ11: 2036 | JK11: 2036 | JL11: 2036 | JM11: 2037 | JN11: 2037 | JO11: 2037 | JP11: 2037 | JQ11: 2037 | JR11: 2037 | JS11: 2037 | JT11: 2037 | JU11: 2037 | JV11: 2037 | JW11: 2037 | JX11: 2037 | JY11: 2038 | JZ11: 2038 | KA11: 2038 | KB11: 2038 | KC11: 2038 | KD11: 2038 | KE11: 2038 | KF11: 2038 | KG11: 2038 | KH11: 2038 | KI11: 2038 | KJ11: 2038 | KK11: 2039 | KL11: 2039 | KM11: 2039 | KN11: 2039 | KO11: 2039 | KP11: 2039 | KQ11: 2039 | KR11: 2039 | KS11: 2039 | KT11: 2039 | KU11: 2039 | KV11: 2039 | KW11: 2040 | KX11: 2040 | KY11: 2040 | KZ11: 2040 | LA11: 2040 | LB11: 2040 | LC11: 2040 | LD11: 2040 | LE11: 2040 | LF11: 2040 | LG11: 2040 | LH11: 2040 | LI11: 2041 | LJ11: 2041 | LK11: 2041 | LL11: 2041 | LM11: 2041 | LN11: 2041 | LO11: 2041 | LP11: 2041 | LQ11: 2041 | LR11: 2041 | LS11: =YEAR(LS3) -> 2041 | LT11: 2041 | LU11: 2042 | LV11: 2042 | LW11: 2042 | LX11: 2042 | LY11: 2042 | LZ11: 2042 | MA11: 2042 | MB11: 2042 | MC11: 2042 | MD11: 2042 | ME11: 2042 | MF11: 2042 | MG11: 2043 | MH11: 2043 | MI11: 2043 | MJ11: 2043 | MK11: 2043 | ML11: 2043 | MM11: 2043 | MN11: 2043 | MO11: 2043 | MP11: 2043 | MQ11: 2043 | MR11: 2043 | MS11: 2044 | MT11: 2044 | MU11: 2044 | MV11: 2044 | MW11: 2044 | MX11: 2044 | MY11: 2044 | MZ11: 2044 | NA11: 2044 | NB11: 2044 | NC11: 2044 | ND11: 2044 | NE11: 2045 | NF11: 2045 | NG11: 2045 | NH11: 2045 | NI11: 2045 | NJ11: 2045 | NK11: 2045 | NL11: 2045 | NM11: 2045 | NN11: 2045 | NO11: 2045 | NP11: 2045 | NQ11: 2046 | NR11: 2046 | NS11: 2046 | NT11: 2046 | NU11: 2046 | NV11: 2046 | NW11: 2046 | NX11: 2046 | NY11: 2046 | NZ11: 2046 | OA11: 2046 | OB11: 2046 | OC11: 2047 | OD11: 2047 | OE11: 2047
A13: Assumptions
B14: Timing Assumptions | K14: Pre-tax IRR | L14: =I127 -> 0
C15: Model Start | E15: date | F15: 2015-03-01 | K15: After Tax IRR | L15: =I154 -> 0
C16: Commercial Operation | E16: date | F16: 2018-07-01
C17: Construction Period | E17: months | F17: =DAYS360(F15,F16)/30 -> 40
C18: Plant Life | E18: years | F18: 25
C19: Decomissioning | E19: date | F19: =EDATE(F16,F18*12) -> 2043-07-01
B21: Operating Assumptions
C22: Capacity | E22: MW | F22: 300
C24: Capacity Factor | E24: Code Number | F24: 2 | H24: 1 | I24: 2 | J24: 3 | K24: 4
E25: % | F25: Month | G25: Date | H25: P25 | I25: P50 | J25: P75 | K25: P95
F26: 0 | G26: =EDATE($F$16,F26) -> 2018-07-01 | H26: 0.35 | I26: 0.33 | J26: 0.3 | K26: 0.25
F27: 12 | G27: =EDATE($F$16,F27) -> 2019-07-01 | H27: 0.36 | I27: 0.35 | J27: 0.3 | K27: 0.26
F28: 50 | G28: 2022-09-01 | H28: 0.365 | I28: 0.355 | J28: 0.3 | K28: 0.255
F29: 120 | G29: 2028-07-01 | H29: 0.365 | I29: 0.34 | J29: 0.3 | K29: 0.253
F30: 250 | G30: 2039-05-01 | H30: 0.365 | I30: 0.33 | J30: 0.3 | K30: 0.24
B32: Capital Expenditures
C33: Capex/kW | E33: USD/kW | F33: 2000
C34: Construction Year | G34: 1 | H34: 2 | I34: 3 | J34: 4
C35: Percent | G35: 0.2 | H35: 0.65 | I35: =1-SUM(G35:H35) -> 0.15 | J35: 0
B37: Revenue Assumptions
C38: Merchant Revenues | E38: USD/MWH | F38: 70
C40: Year | G40: 2015 | H40: 2016 | I40: 2017 | J40: 2018 | K40: 2019 | L40: 2020 | M40: 2021 | N40: 2022 | O40: 2023
C41: Scenario Number | E41: Code | F41: 1
D42: Base Case Revenue Growth | G42: -0.03 | H42: 0 | I42: 0.01 | J42: 0.025 | K42: 0.02 | L42: 0.015 | M42: 0.015 | N42: 0.015 | O42: 0.015
D43: Low Case Growth | G43: -0.04 | H43: -0.01 | I43: 0 | J43: 0 | K43: 0.01 | L43: 0.01 | M43: 0.01 | N43: 0.015 | O43: 0.015
D44: High Case Growth | G44: 0 | H44: 0.015 | I44: 0.02 | J44: 0.025 | K44: 0.025 | L44: 0.025 | M44: 0.025 | N44: 0.015 | O44: 0.015
D46: =INDEX(D42:D44,$F$41) -> Base Case Revenue Growth | G46: =INDEX(G42:G44,$F$41) -> -0.03 | H46: 0 | I46: 0.01 | J46: 0.025 | K46: 0.02 | L46: 0.015 | M46: 0.015 | N46: 0.015 | O46: 0.015
B48: Operating Expenses | E48: Base Period | F48: 2016-01-01
C49: Fixed OM | F49: Age | G49: USD/kW-year
F50: 1 | G50: 35
F51: 10 | G51: 42
F52: 15 | G52: 45
C54: O&M Escalation (General Inflation) | G54: 2015 | H54: 2016 | I54: 2017 | J54: 2018 | K54: 2019 | L54: 2020 | M54: 2021 | N54: 2022 | O54: 2023
C55: Scenario Number | E55: Code | F55: 1
D56: Base Case Inflation Case | G56: 0.015 | H56: 0.02 | I56: 0.02 | J56: 0.02 | K56: 0.02 | L56: 0.03 | M56: 0.03 | N56: 0.03 | O56: 0.03
D57: Low Inflation Case | G57: 0 | H57: 0.002 | I57: 0.005 | J57: 0.01 | K57: 0.01 | L57: 0.01 | M57: 0.01 | N57: 0.01 | O57: 0.01
D58: High Inflation Case | G58: 0.015 | H58: 0.0175 | I58: 0.019 | J58: 0.025 | K58: 0.03 | L58: 0.03 | M58: 0.03 | N58: 0.03 | O58: 0.03
D60: =INDEX(D56:D58,$F$55) -> Base Case Inflation Case | G60: =INDEX(G56:G58,$F$55) -> 0.015 | H60: 0.02 | I60: 0.02 | J60: 0.02 | K60: 0.02 | L60: 0.03 | M60: 0.03 | N60: 0.03 | O60: 0.03
C62: Working Capital
D63: Days Receivables | E63: Days | F63: 45
D64: Days Payables | E64: Days | F64: 20
B66: Deprecaition and Tax Assumptions
C67: Income Tax Rate | E67: % | F67: 0.25
C69: Tax Life | E69: Years | F69: 10
C70: Declining Balance Factor | E70: Times | F70: 1.5
C72: Year | G72: 0 | H72: 1 | I72: 2 | J72: 3 | K72: 4 | L72: 5 | M72: 6 | N72: 7 | O72: 8 | P72: 9 | Q72: 10 | R72: 11 | S72: 12 | T72: 13 | U72: 14 | V72: 15
C73: Rate
A76: Capacity, Output and Capital Expenditures
B77: Plant Capacity | E77: MW | F77: Total Cap | G77: =F22 -> 300 | K77: =$G$77*K5 -> 0 | L77: 0 | M77: 0 | N77: 0 | O77: 0 | P77: 0 | Q77: 0 | R77: 0 | S77: 0 | T77: 0 | U77: 0 | V77: 0 | W77: 0 | X77: 0 | Y77: 0 | Z77: 0 | AA77: 0 | AB77: 0 | AC77: 0 | AD77: 0 | AE77: 0 | AF77: 0 | AG77: 0 | AH77: 0 | AI77: 0 | AJ77: 0 | AK77: 0 | AL77: 0 | AM77: 0 | AN77: 0 | AO77: 0 | AP77: 0 | AQ77: 0 | AR77: 0 | AS77: 0 | AT77: 0 | AU77: 0 | AV77: 0 | AW77: 0 | AX77: 0 | AY77: 300 | AZ77: 300 | BA77: 300 | BB77: 300 | BC77: 300 | BD77: 300 | BE77: 300 | BF77: 300 | BG77: 300 | BH77: 300 | BI77: 300 | BJ77: 300 | BK77: 300 | BL77: 300 | BM77: 300 | BN77: 300 | BO77: 300 | BP77: 300 | BQ77: 300 | BR77: 300 | BS77: 300 | BT77: 300 | BU77: 300 | BV77: 300 | BW77: =$G$77*BW5 -> 300 | BX77: 300 | BY77: 300 | BZ77: 300 | CA77: 300 | CB77: 300 | CC77: 300 | CD77: 300 | CE77: 300 | CF77: 300 | CG77: 300 | CH77: 300 | CI77: 300 | CJ77: 300 | CK77: 300 | CL77: 300 | CM77: 300 | CN77: 300 | CO77: 300 | CP77: 300 | CQ77: 300 | CR77: 300 | CS77: 300 | CT77: 300 | CU77: 300 | CV77: 300 | CW77: 300 | CX77: 300 | CY77: 300 | CZ77: 300 | DA77: 300 | DB77: 300 | DC77: 300 | DD77: 300 | DE77: 300 | DF77: 300 | DG77: 300 | DH77: 300 | DI77: 300 | DJ77: 300 | DK77: 300 | DL77: 300 | DM77: 300 | DN77: 300 | DO77: 300 | DP77: 300 | DQ77: 300 | DR77: 300 | DS77: 300 | DT77: 300 | DU77: 300 | DV77: 300 | DW77: 300 | DX77: 300 | DY77: 300 | DZ77: 300 | EA77: 300 | EB77: 300 | EC77: 300 | ED77: 300 | EE77: 300 | EF77: 300 | EG77: 300 | EH77: 300 | EI77: =$G$77*EI5 -> 300 | EJ77: 300 | EK77: 300 | EL77: 300 | EM77: 300 | EN77: 300 | EO77: 300 | EP77: 300 | EQ77: 300 | ER77: 300 | ES77: 300 | ET77: 300 | EU77: 300 | EV77: 300 | EW77: 300 | EX77: 300 | EY77: 300 | EZ77: 300 | FA77: 300 | FB77: 300 | FC77: 300 | FD77: 300 | FE77: 300 | FF77: 300 | FG77: 300 | FH77: 300 | FI77: 300 | FJ77: 300 | FK77: 300 | FL77: 300 | FM77: 300 | FN77: 300 | FO77: 300 | FP77: 300 | FQ77: 300 | FR77: 300 | FS77: 300 | FT77: 300 | FU77: 300 | FV77: 300 | FW77: 300 | FX77: 300 | FY77: 300 | FZ77: 300 | GA77: 300 | GB77: 300 | GC77: 300 | GD77: 300 | GE77: 300 | GF77: 300 | GG77: 300 | GH77: 300 | GI77: 300 | GJ77: 300 | GK77: 300 | GL77: 300 | GM77: 300 | GN77: 300 | GO77: 300 | GP77: 300 | GQ77: 300 | GR77: 300 | GS77: 300 | GT77: 300 | GU77: =$G$77*GU5 -> 300 | GV77: 300 | GW77: 300 | GX77: 300 | GY77: 300 | GZ77: 300 | HA77: 300 | HB77: 300 | HC77: 300 | HD77: 300 | HE77: 300 | HF77: 300 | HG77: 300 | HH77: 300 | HI77: 300 | HJ77: 300 | HK77: 300 | HL77: 300 | HM77: 300 | HN77: 300 | HO77: 300 | HP77: 300 | HQ77: 300 | HR77: 300 | HS77: 300 | HT77: 300 | HU77: 300 | HV77: 300 | HW77: 300 | HX77: 300 | HY77: 300 | HZ77: 300 | IA77: 300 | IB77: 300 | IC77: 300 | ID77: 300 | IE77: 300 | IF77: 300 | IG77: 300 | IH77: 300 | II77: 300 | IJ77: 300 | IK77: 300 | IL77: 300 | IM77: 300 | IN77: 300 | IO77: 300 | IP77: 300 | IQ77: 300 | IR77: 300 | IS77: 300 | IT77: 300 | IU77: 300 | IV77: 300 | IW77: 300 | IX77: 300 | IY77: 300 | IZ77: 300 | JA77: 300 | JB77: 300 | JC77: 300 | JD77: 300 | JE77: 300 | JF77: 300 | JG77: =$G$77*JG5 -> 300 | JH77: 300 | JI77: 300 | JJ77: 300 | JK77: 300 | JL77: 300 | JM77: 300 | JN77: 300 | JO77: 300 | JP77: 300 | JQ77: 300 | JR77: 300 | JS77: 300 | JT77: 300 | JU77: 300 | JV77: 300 | JW77: 300 | JX77: 300 | JY77: 300 | JZ77: 300 | KA77: 300 | KB77: 300 | KC77: 300 | KD77: 300 | KE77: 300 | KF77: 300 | KG77: 300 | KH77: 300 | KI77: 300 | KJ77: 300 | KK77: 300 | KL77: 300 | KM77: 300 | KN77: 300 | KO77: 300 | KP77: 300 | KQ77: 300 | KR77: 300 | KS77: 300 | KT77: 300 | KU77: 300 | KV77: 300 | KW77: 300 | KX77: 300 | KY77: 300 | KZ77: 300 | LA77: 300 | LB77: 300 | LC77: 300 | LD77: 300 | LE77: 300 | LF77: 300 | LG77: 300 | LH77: 300 | LI77: 300 | LJ77: 300 | LK77: 300 | LL77: 300 | LM77: 300 | LN77: 300 | LO77: 300 | LP77: 300 | LQ77: 300 | LR77: 300 | LS77: =$G$77*LS5 -> 300 | LT77: 300 | LU77: 300 | LV77: 300 | LW77: 300 | LX77: 300 | LY77: 300 | LZ77: 300 | MA77: 300 | MB77: 300 | MC77: 300 | MD77: 300 | ME77: 300 | MF77: 300 | MG77: 300 | MH77: 300 | MI77: 300 | MJ77: 300 | MK77: 300 | ML77: 300 | MM77: 0 | MN77: 0 | MO77: 0 | MP77: 0 | MQ77: 0 | MR77: 0 | MS77: 0 | MT77: 0 | MU77: 0 | MV77: 0 | MW77: 0 | MX77: 0 | MY77: 0 | MZ77: 0 | NA77: 0 | NB77: 0 | NC77: 0 | ND77: 0 | NE77: 0 | NF77: 0 | NG77: 0 | NH77: 0 | NI77: 0 | NJ77: 0 | NK77: 0 | NL77: 0 | NM77: 0 | NN77: 0 | NO77: 0 | NP77: 0 | NQ77: 0 | NR77: 0 | NS77: 0 | NT77: 0 | NU77: 0 | NV77: 0 | NW77: 0 | NX77: 0 | NY77: 0 | NZ77: 0 | OA77: 0 | OB77: 0 | OC77: 0 | OD77: 0 | OE77: 0
B78: Capacity Factor | E78: %
C79: Row Number | K79: =MATCH(K2,$G$26:$G$30,1) ->  | AY79: 1 | AZ79: 1 | BA79: 1 | BB79: 1 | BC79: 1 | BD79: 1 | BE79: 1 | BF79: 1 | BG79: 1 | BH79: 1 | BI79: 1 | BJ79: 1 | BK79: 2 | BL79: 2 | BM79: 2 | BN79: 2 | BO79: 2 | BP79: 2 | BQ79: 2 | BR79: 2 | BS79: 2 | BT79: 2 | BU79: 2 | BV79: 2 | BW79: =MATCH(BW2,$G$26:$G$30,1) -> 2 | BX79: 2 | BY79: 2 | BZ79: 2 | CA79: 2 | CB79: 2 | CC79: 2 | CD79: 2 | CE79: 2 | CF79: 2 | CG79: 2 | CH79: 2 | CI79: 2 | CJ79: 2 | CK79: 2 | CL79: 2 | CM79: 2 | CN79: 2 | CO79: 2 | CP79: 2 | CQ79: 2 | CR79: 2 | CS79: 2 | CT79: 2 | CU79: 2 | CV79: 2 | CW79: 3 | CX79: 3 | CY79: 3 | CZ79: 3 | DA79: 3 | DB79: 3 | DC79: 3 | DD79: 3 | DE79: 3 | DF79: 3 | DG79: 3 | DH79: 3 | DI79: 3 | DJ79: 3 | DK79: 3 | DL79: 3 | DM79: 3 | DN79: 3 | DO79: 3 | DP79: 3 | DQ79: 3 | DR79: 3 | DS79: 3 | DT79: 3 | DU79: 3 | DV79: 3 | DW79: 3 | DX79: 3 | DY79: 3 | DZ79: 3 | EA79: 3 | EB79: 3 | EC79: 3 | ED79: 3 | EE79: 3 | EF79: 3 | EG79: 3 | EH79: 3 | EI79: =MATCH(EI2,$G$26:$G$30,1) -> 3 | EJ79: 3 | EK79: 3 | EL79: 3 | EM79: 3 | EN79: 3 | EO79: 3 | EP79: 3 | EQ79: 3 | ER79: 3 | ES79: 3 | ET79: 3 | EU79: 3 | EV79: 3 | EW79: 3 | EX79: 3 | EY79: 3 | EZ79: 3 | FA79: 3 | FB79: 3 | FC79: 3 | FD79: 3 | FE79: 3 | FF79: 3 | FG79: 3 | FH79: 3 | FI79: 3 | FJ79: 3 | FK79: 3 | FL79: 3 | FM79: 3 | FN79: 3 | FO79: 4 | FP79: 4 | FQ79: 4 | FR79: 4 | FS79: 4 | FT79: 4 | FU79: 4 | FV79: 4 | FW79: 4 | FX79: 4 | FY79: 4 | FZ79: 4 | GA79: 4 | GB79: 4 | GC79: 4 | GD79: 4 | GE79: 4 | GF79: 4 | GG79: 4 | GH79: 4 | GI79: 4 | GJ79: 4 | GK79: 4 | GL79: 4 | GM79: 4 | GN79: 4 | GO79: 4 | GP79: 4 | GQ79: 4 | GR79: 4 | GS79: 4 | GT79: 4 | GU79: =MATCH(GU2,$G$26:$G$30,1) -> 4 | GV79: 4 | GW79: 4 | GX79: 4 | GY79: 4 | GZ79: 4 | HA79: 4 | HB79: 4 | HC79: 4 | HD79: 4 | HE79: 4 | HF79: 4 | HG79: 4 | HH79: 4 | HI79: 4 | HJ79: 4 | HK79: 4 | HL79: 4 | HM79: 4 | HN79: 4 | HO79: 4 | HP79: 4 | HQ79: 4 | HR79: 4 | HS79: 4 | HT79: 4 | HU79: 4 | HV79: 4 | HW79: 4 | HX79: 4 | HY79: 4 | HZ79: 4 | IA79: 4 | IB79: 4 | IC79: 4 | ID79: 4 | IE79: 4 | IF79: 4 | IG79: 4 | IH79: 4 | II79: 4 | IJ79: 4 | IK79: 4 | IL79: 4 | IM79: 4 | IN79: 4 | IO79: 4 | IP79: 4 | IQ79: 4 | IR79: 4 | IS79: 4 | IT79: 4 | IU79: 4 | IV79: 4 | IW79: 4 | IX79: 4 | IY79: 4 | IZ79: 4 | JA79: 4 | JB79: 4 | JC79: 4 | JD79: 4 | JE79: 4 | JF79: 4 | JG79: =MATCH(JG2,$G$26:$G$30,1) -> 4 | JH79: 4 | JI79: 4 | JJ79: 4 | JK79: 4 | JL79: 4 | JM79: 4 | JN79: 4 | JO79: 4 | JP79: 4 | JQ79: 4 | JR79: 4 | JS79: 4 | JT79: 4 | JU79: 4 | JV79: 4 | JW79: 4 | JX79: 4 | JY79: 4 | JZ79: 4 | KA79: 4 | KB79: 4 | KC79: 4 | KD79: 4 | KE79: 4 | KF79: 4 | KG79: 4 | KH79: 4 | KI79: 4 | KJ79: 4 | KK79: 4 | KL79: 4 | KM79: 4 | KN79: 4 | KO79: 5 | KP79: 5 | KQ79: 5 | KR79: 5 | KS79: 5 | KT79: 5 | KU79: 5 | KV79: 5 | KW79: 5 | KX79: 5 | KY79: 5 | KZ79: 5 | LA79: 5 | LB79: 5 | LC79: 5 | LD79: 5 | LE79: 5 | LF79: 5 | LG79: 5 | LH79: 5 | LI79: 5 | LJ79: 5 | LK79: 5 | LL79: 5 | LM79: 5 | LN79: 5 | LO79: 5 | LP79: 5 | LQ79: 5 | LR79: 5 | LS79: =MATCH(LS2,$G$26:$G$30,1) -> 5 | LT79: 5 | LU79: 5 | LV79: 5 | LW79: 5 | LX79: 5 | LY79: 5 | LZ79: 5 | MA79: 5 | MB79: 5 | MC79: 5 | MD79: 5 | ME79: 5 | MF79: 5 | MG79: 5 | MH79: 5 | MI79: 5 | MJ79: 5 | MK79: 5 | ML79: 5 | MM79: 5 | MN79: 5 | MO79: 5 | MP79: 5 | MQ79: 5 | MR79: 5 | MS79: 5 | MT79: 5 | MU79: 5 | MV79: 5 | MW79: 5 | MX79: 5 | MY79: 5 | MZ79: 5 | NA79: 5 | NB79: 5 | NC79: 5 | ND79: 5 | NE79: 5 | NF79: 5 | NG79: 5 | NH79: 5 | NI79: 5 | NJ79: 5 | NK79: 5 | NL79: 5 | NM79: 5 | NN79: 5 | NO79: 5 | NP79: 5 | NQ79: 5 | NR79: 5 | NS79: 5 | NT79: 5 | NU79: 5 | NV79: 5 | NW79: 5 | NX79: 5 | NY79: 5 | NZ79: 5 | OA79: 5 | OB79: 5 | OC79: 5 | OD79: 5 | OE79: 5
C80: Capacity Factor | K80: =INDEX($H$26:$K$30,K79,$F$24) ->  | L80: =INDEX($H$26:$K$30,L79,$F$24) ->  | AY80: 0.33 | AZ80: 0.33 | BA80: 0.33 | BB80: 0.33 | BC80: 0.33 | BD80: 0.33 | BE80: 0.33 | BF80: 0.33 | BG80: 0.33 | BH80: 0.33 | BI80: 0.33 | BJ80: 0.33 | BK80: 0.35 | BL80: 0.35 | BM80: 0.35 | BN80: 0.35 | BO80: 0.35 | BP80: 0.35 | BQ80: 0.35 | BR80: 0.35 | BS80: 0.35 | BT80: 0.35 | BU80: 0.35 | BV80: 0.35 | BW80: 0.35 | BX80: =INDEX($H$26:$K$30,BX79,$F$24) -> 0.35 | BY80: 0.35 | BZ80: 0.35 | CA80: 0.35 | CB80: 0.35 | CC80: 0.35 | CD80: 0.35 | CE80: 0.35 | CF80: 0.35 | CG80: 0.35 | CH80: 0.35 | CI80: 0.35 | CJ80: 0.35 | CK80: 0.35 | CL80: 0.35 | CM80: 0.35 | CN80: 0.35 | CO80: 0.35 | CP80: 0.35 | CQ80: 0.35 | CR80: 0.35 | CS80: 0.35 | CT80: 0.35 | CU80: 0.35 | CV80: 0.35 | CW80: 0.355 | CX80: 0.355 | CY80: 0.355 | CZ80: 0.355 | DA80: 0.355 | DB80: 0.355 | DC80: 0.355 | DD80: 0.355 | DE80: 0.355 | DF80: 0.355 | DG80: 0.355 | DH80: 0.355 | DI80: 0.355 | DJ80: 0.355 | DK80: 0.355 | DL80: 0.355 | DM80: 0.355 | DN80: 0.355 | DO80: 0.355 | DP80: 0.355 | DQ80: 0.355 | DR80: 0.355 | DS80: 0.355 | DT80: 0.355 | DU80: 0.355 | DV80: 0.355 | DW80: 0.355 | DX80: 0.355 | DY80: 0.355 | DZ80: 0.355 | EA80: 0.355 | EB80: 0.355 | EC80: 0.355 | ED80: 0.355 | EE80: 0.355 | EF80: 0.355 | EG80: 0.355 | EH80: 0.355 | EI80: 0.355 | EJ80: =INDEX($H$26:$K$30,EJ79,$F$24) -> 0.355 | EK80: 0.355 | EL80: 0.355 | EM80: 0.355 | EN80: 0.355 | EO80: 0.355 | EP80: 0.355 | EQ80: 0.355 | ER80: 0.355 | ES80: 0.355 | ET80: 0.355 | EU80: 0.355 | EV80: 0.355 | EW80: 0.355 | EX80: 0.355 | EY80: 0.355 | EZ80: 0.355 | FA80: 0.355 | FB80: 0.355 | FC80: 0.355 | FD80: 0.355 | FE80: 0.355 | FF80: 0.355 | FG80: 0.355 | FH80: 0.355 | FI80: 0.355 | FJ80: 0.355 | FK80: 0.355 | FL80: 0.355 | FM80: 0.355 | FN80: 0.355 | FO80: 0.34 | FP80: 0.34 | FQ80: 0.34 | FR80: 0.34 | FS80: 0.34 | FT80: 0.34 | FU80: 0.34 | FV80: 0.34 | FW80: 0.34 | FX80: 0.34 | FY80: 0.34 | FZ80: 0.34 | GA80: 0.34 | GB80: 0.34 | GC80: 0.34 | GD80: 0.34 | GE80: 0.34 | GF80: 0.34 | GG80: 0.34 | GH80: 0.34 | GI80: 0.34 | GJ80: 0.34 | GK80: 0.34 | GL80: 0.34 | GM80: 0.34 | GN80: 0.34 | GO80: 0.34 | GP80: 0.34 | GQ80: 0.34 | GR80: 0.34 | GS80: 0.34 | GT80: 0.34 | GU80: 0.34 | GV80: =INDEX($H$26:$K$30,GV79,$F$24) -> 0.34 | GW80: 0.34 | GX80: 0.34 | GY80: 0.34 | GZ80: 0.34 | HA80: 0.34 | HB80: 0.34 | HC80: 0.34 | HD80: 0.34 | HE80: 0.34 | HF80: 0.34 | HG80: 0.34 | HH80: 0.34 | HI80: 0.34 | HJ80: 0.34 | HK80: 0.34 | HL80: 0.34 | HM80: 0.34 | HN80: 0.34 | HO80: 0.34 | HP80: 0.34 | HQ80: 0.34 | HR80: 0.34 | HS80: 0.34 | HT80: 0.34 | HU80: 0.34 | HV80: 0.34 | HW80: 0.34 | HX80: 0.34 | HY80: 0.34 | HZ80: 0.34 | IA80: 0.34 | IB80: 0.34 | IC80: 0.34 | ID80: 0.34 | IE80: 0.34 | IF80: 0.34 | IG80: 0.34 | IH80: 0.34 | II80: 0.34 | IJ80: 0.34 | IK80: 0.34 | IL80: 0.34 | IM80: 0.34 | IN80: 0.34 | IO80: 0.34 | IP80: 0.34 | IQ80: 0.34 | IR80: 0.34 | IS80: 0.34 | IT80: 0.34 | IU80: 0.34 | IV80: 0.34 | IW80: 0.34 | IX80: 0.34 | IY80: 0.34 | IZ80: 0.34 | JA80: 0.34 | JB80: 0.34 | JC80: 0.34 | JD80: 0.34 | JE80: 0.34 | JF80: 0.34 | JG80: 0.34 | JH80: =INDEX($H$26:$K$30,JH79,$F$24) -> 0.34 | JI80: 0.34 | JJ80: 0.34 | JK80: 0.34 | JL80: 0.34 | JM80: 0.34 | JN80: 0.34 | JO80: 0.34 | JP80: 0.34 | JQ80: 0.34 | JR80: 0.34 | JS80: 0.34 | JT80: 0.34 | JU80: 0.34 | JV80: 0.34 | JW80: 0.34 | JX80: 0.34 | JY80: 0.34 | JZ80: 0.34 | KA80: 0.34 | KB80: 0.34 | KC80: 0.34 | KD80: 0.34 | KE80: 0.34 | KF80: 0.34 | KG80: 0.34 | KH80: 0.34 | KI80: 0.34 | KJ80: 0.34 | KK80: 0.34 | KL80: 0.34 | KM80: 0.34 | KN80: 0.34 | KO80: 0.33 | KP80: 0.33 | KQ80: 0.33 | KR80: 0.33 | KS80: 0.33 | KT80: 0.33 | KU80: 0.33 | KV80: 0.33 | KW80: 0.33 | KX80: 0.33 | KY80: 0.33 | KZ80: 0.33 | LA80: 0.33 | LB80: 0.33 | LC80: 0.33 | LD80: 0.33 | LE80: 0.33 | LF80: 0.33 | LG80: 0.33 | LH80: 0.33 | LI80: 0.33 | LJ80: 0.33 | LK80: 0.33 | LL80: 0.33 | LM80: 0.33 | LN80: 0.33 | LO80: 0.33 | LP80: 0.33 | LQ80: 0.33 | LR80: 0.33 | LS80: 0.33 | LT80: =INDEX($H$26:$K$30,LT79,$F$24) -> 0.33 | LU80: 0.33 | LV80: 0.33 | LW80: 0.33 | LX80: 0.33 | LY80: 0.33 | LZ80: 0.33 | MA80: 0.33 | MB80: 0.33 | MC80: 0.33 | MD80: 0.33 | ME80: 0.33 | MF80: 0.33 | MG80: 0.33 | MH80: 0.33 | MI80: 0.33 | MJ80: 0.33 | MK80: 0.33 | ML80: 0.33 | MM80: 0.33 | MN80: 0.33 | MO80: 0.33 | MP80: 0.33 | MQ80: 0.33 | MR80: 0.33 | MS80: 0.33 | MT80: 0.33 | MU80: 0.33 | MV80: 0.33 | MW80: 0.33 | MX80: 0.33 | MY80: 0.33 | MZ80: 0.33 | NA80: 0.33 | NB80: 0.33 | NC80: 0.33 | ND80: 0.33 | NE80: 0.33 | NF80: 0.33 | NG80: 0.33 | NH80: 0.33 | NI80: 0.33 | NJ80: 0.33 | NK80: 0.33 | NL80: 0.33 | NM80: 0.33 | NN80: 0.33 | NO80: 0.33 | NP80: 0.33 | NQ80: 0.33 | NR80: 0.33 | NS80: 0.33 | NT80: 0.33 | NU80: 0.33 | NV80: 0.33 | NW80: 0.33 | NX80: 0.33 | NY80: 0.33 | NZ80: 0.33 | OA80: 0.33 | OB80: 0.33 | OC80: 0.33 | OD80: 0.33 | OE80: 0.33
C82: Generation | E82: MWH | K82: =IF(K5,K77*K80*K10) -> FALSE | L82: FALSE | M82: FALSE | N82: FALSE | O82: FALSE | P82: FALSE | Q82: FALSE | R82: FALSE | S82: FALSE | T82: FALSE | U82: FALSE | V82: FALSE | W82: FALSE | X82: FALSE | Y82: FALSE | Z82: FALSE | AA82: FALSE | AB82: FALSE | AC82: FALSE | AD82: FALSE | AE82: FALSE | AF82: FALSE | AG82: FALSE | AH82: FALSE | AI82: FALSE | AJ82: FALSE | AK82: FALSE | AL82: FALSE | AM82: FALSE | AN82: FALSE | AO82: FALSE | AP82: FALSE | AQ82: FALSE | AR82: FALSE | AS82: FALSE | AT82: FALSE | AU82: FALSE | AV82: FALSE | AW82: FALSE | AX82: FALSE | AY82: 73656 | AZ82: 73656 | BA82: 71280 | BB82: 73656 | BC82: 71280 | BD82: 73656 | BE82: 73656 | BF82: 66528 | BG82: 73656 | BH82: 71280 | BI82: 73656 | BJ82: 71280 | BK82: 78120 | BL82: 78120 | BM82: 75600 | BN82: 78120 | BO82: 75600 | BP82: 78120 | BQ82: 78120 | BR82: 73080 | BS82: 78120 | BT82: 75600 | BU82: 78120 | BV82: 75600 | BW82: =IF(BW5,BW77*BW80*BW10) -> 78120 | BX82: 78120 | BY82: 75600 | BZ82: 78120 | CA82: 75600 | CB82: 78120 | CC82: 78120 | CD82: 70560 | CE82: 78120 | CF82: 75600 | CG82: 78120 | CH82: 75600 | CI82: 78120 | CJ82: 78120 | CK82: 75600 | CL82: 78120 | CM82: 75600 | CN82: 78120 | CO82: 78120 | CP82: 70560 | CQ82: 78120 | CR82: 75600 | CS82: 78120 | CT82: 75600 | CU82: 78120 | CV82: 78120 | CW82: 76680 | CX82: 79236 | CY82: 76680 | CZ82: 79236 | DA82: 79236 | DB82: 71568 | DC82: 79236 | DD82: 76680 | DE82: 79236 | DF82: 76680 | DG82: 79236 | DH82: 79236 | DI82: 76680 | DJ82: 79236 | DK82: 76680 | DL82: 79236 | DM82: 79236 | DN82: 74124 | DO82: 79236 | DP82: 76680 | DQ82: 79236 | DR82: 76680 | DS82: 79236 | DT82: 79236 | DU82: 76680 | DV82: 79236 | DW82: 76680 | DX82: 79236 | DY82: 79236 | DZ82: 71568 | EA82: 79236 | EB82: 76680 | EC82: 79236 | ED82: 76680 | EE82: 79236 | EF82: 79236 | EG82: 76680 | EH82: 79236 | EI82: =IF(EI5,EI77*EI80*EI10) -> 76680 | EJ82: 79236 | EK82: 79236 | EL82: 71568 | EM82: 79236 | EN82: 76680 | EO82: 79236 | EP82: 76680 | EQ82: 79236 | ER82: 79236 | ES82: 76680 | ET82: 79236 | EU82: 76680 | EV82: 79236 | EW82: 79236 | EX82: 71568 | EY82: 79236 | EZ82: 76680 | FA82: 79236 | FB82: 76680 | FC82: 79236 | FD82: 79236 | FE82: 76680 | FF82: 79236 | FG82: 76680 | FH82: 79236 | FI82: 79236 | FJ82: 74124 | FK82: 79236 | FL82: 76680 | FM82: 79236 | FN82: 76680 | FO82: 75888 | FP82: 75888 | FQ82: 73440 | FR82: 75888 | FS82: 73440 | FT82: 75888 | FU82: 75888 | FV82: 68544 | FW82: 75888 | FX82: 73440 | FY82: 75888 | FZ82: 73440 | GA82: 75888 | GB82: 75888 | GC82: 73440 | GD82: 75888 | GE82: 73440 | GF82: 75888 | GG82: 75888 | GH82: 68544 | GI82: 75888 | GJ82: 73440 | GK82: 75888 | GL82: 73440 | GM82: 75888 | GN82: 75888 | GO82: 73440 | GP82: 75888 | GQ82: 73440 | GR82: 75888 | GS82: 75888 | GT82: 68544 | GU82: =IF(GU5,GU77*GU80*GU10) -> 75888 | GV82: 73440 | GW82: 75888 | GX82: 73440 | GY82: 75888 | GZ82: 75888 | HA82: 73440 | HB82: 75888 | HC82: 73440 | HD82: 75888 | HE82: 75888 | HF82: 70992 | HG82: 75888 | HH82: 73440 | HI82: 75888 | HJ82: 73440 | HK82: 75888 | HL82: 75888 | HM82: 73440 | HN82: 75888 | HO82: 73440 | HP82: 75888 | HQ82: 75888 | HR82: 68544 | HS82: 75888 | HT82: 73440 | HU82: 75888 | HV82: 73440 | HW82: 75888 | HX82: 75888 | HY82: 73440 | HZ82: 75888 | IA82: 73440 | IB82: 75888 | IC82: 75888 | ID82: 68544 | IE82: 75888 | IF82: 73440 | IG82: 75888 | IH82: 73440 | II82: 75888 | IJ82: 75888 | IK82: 73440 | IL82: 75888 | IM82: 73440 | IN82: 75888 | IO82: 75888 | IP82: 68544 | IQ82: 75888 | IR82: 73440 | IS82: 75888 | IT82: 73440 | IU82: 75888 | IV82: 75888 | IW82: 73440 | IX82: 75888 | IY82: 73440 | IZ82: 75888 | JA82: 75888 | JB82: 70992 | JC82: 75888 | JD82: 73440 | JE82: 75888 | JF82: 73440 | JG82: =IF(JG5,JG77*JG80*JG10) -> 75888 | JH82: 75888 | JI82: 73440 | JJ82: 75888 | JK82: 73440 | JL82: 75888 | JM82: 75888 | JN82: 68544 | JO82: 75888 | JP82: 73440 | JQ82: 75888 | JR82: 73440 | JS82: 75888 | JT82: 75888 | JU82: 73440 | JV82: 75888 | JW82: 73440 | JX82: 75888 | JY82: 75888 | JZ82: 68544 | KA82: 75888 | KB82: 73440 | KC82: 75888 | KD82: 73440 | KE82: 75888 | KF82: 75888 | KG82: 73440 | KH82: 75888 | KI82: 73440 | KJ82: 75888 | KK82: 75888 | KL82: 68544 | KM82: 75888 | KN82: 73440 | KO82: 73656 | KP82: 71280 | KQ82: 73656 | KR82: 73656 | KS82: 71280 | KT82: 73656 | KU82: 71280 | KV82: 73656 | KW82: 73656 | KX82: 68904 | KY82: 73656 | KZ82: 71280 | LA82: 73656 | LB82: 71280 | LC82: 73656 | LD82: 73656 | LE82: 71280 | LF82: 73656 | LG82: 71280 | LH82: 73656 | LI82: 73656 | LJ82: 66528 | LK82: 73656 | LL82: 71280 | LM82: 73656 | LN82: 71280 | LO82: 73656 | LP82: 73656 | LQ82: 71280 | LR82: 73656 | LS82: =IF(LS5,LS77*LS80*LS10) -> 71280 | LT82: 73656 | LU82: 73656 | LV82: 66528 | LW82: 73656 | LX82: 71280 | LY82: 73656 | LZ82: 71280 | MA82: 73656 | MB82: 73656 | MC82: 71280 | MD82: 73656 | ME82: 71280 | MF82: 73656 | MG82: 73656 | MH82: 66528 | MI82: 73656 | MJ82: 71280 | MK82: 73656 | ML82: 71280 | MM82: FALSE | MN82: FALSE | MO82: FALSE | MP82: FALSE | MQ82: FALSE | MR82: FALSE | MS82: FALSE | MT82: FALSE | MU82: FALSE | MV82: FALSE | MW82: FALSE | MX82: FALSE | MY82: FALSE | MZ82: FALSE | NA82: FALSE | NB82: FALSE | NC82: FALSE | ND82: FALSE | NE82: FALSE | NF82: FALSE | NG82: FALSE | NH82: FALSE | NI82: FALSE | NJ82: FALSE | NK82: FALSE | NL82: FALSE | NM82: FALSE | NN82: FALSE | NO82: FALSE | NP82: FALSE | NQ82: FALSE | NR82: FALSE | NS82: FALSE | NT82: FALSE | NU82: FALSE | NV82: FALSE | NW82: FALSE | NX82: FALSE | NY82: FALSE | NZ82: FALSE | OA82: FALSE | OB82: FALSE | OC82: FALSE | OD82: FALSE | OE82: FALSE
B84: Capital Expenditures
C85: Construction Period | K85: =J85+K4 -> 1 | L85: 2 | M85: 3 | N85: 4 | O85: 5 | P85: 6 | Q85: 7 | R85: 8 | S85: 9 | T85: 10 | U85: 11 | V85: 12 | W85: 13 | X85: 14 | Y85: 15 | Z85: 16 | AA85: 17 | AB85: 18 | AC85: 19 | AD85: 20 | AE85: 21 | AF85: 22 | AG85: 23 | AH85: 24 | AI85: 25 | AJ85: 26 | AK85: 27 | AL85: 28 | AM85: 29 | AN85: 30 | AO85: 31 | AP85: 32 | AQ85: 33 | AR85: 34 | AS85: 35 | AT85: 36 | AU85: 37 | AV85: 38 | AW85: 39 | AX85: 40 | AY85: 40 | AZ85: 40 | BA85: 40 | BB85: 40 | BC85: 40 | BD85: 40 | BE85: 40 | BF85: 40 | BG85: 40 | BH85: 40 | BI85: 40 | BJ85: 40 | BK85: 40 | BL85: 40 | BM85: 40 | BN85: 40 | BO85: 40 | BP85: 40 | BQ85: 40 | BR85: 40 | BS85: 40 | BT85: 40 | BU85: 40 | BV85: 40 | BW85: =BV85+BW4 -> 40 | BX85: 40 | BY85: 40 | BZ85: 40 | CA85: 40 | CB85: 40 | CC85: 40 | CD85: 40 | CE85: 40 | CF85: 40 | CG85: 40 | CH85: 40 | CI85: 40 | CJ85: 40 | CK85: 40 | CL85: 40 | CM85: 40 | CN85: 40 | CO85: 40 | CP85: 40 | CQ85: 40 | CR85: 40 | CS85: 40 | CT85: 40 | CU85: 40 | CV85: 40 | CW85: 40 | CX85: 40 | CY85: 40 | CZ85: 40 | DA85: 40 | DB85: 40 | DC85: 40 | DD85: 40 | DE85: 40 | DF85: 40 | DG85: 40 | DH85: 40 | DI85: 40 | DJ85: 40 | DK85: 40 | DL85: 40 | DM85: 40 | DN85: 40 | DO85: 40 | DP85: 40 | DQ85: 40 | DR85: 40 | DS85: 40 | DT85: 40 | DU85: 40 | DV85: 40 | DW85: 40 | DX85: 40 | DY85: 40 | DZ85: 40 | EA85: 40 | EB85: 40 | EC85: 40 | ED85: 40 | EE85: 40 | EF85: 40 | EG85: 40 | EH85: 40 | EI85: =EH85+EI4 -> 40 | EJ85: 40 | EK85: 40 | EL85: 40 | EM85: 40 | EN85: 40 | EO85: 40 | EP85: 40 | EQ85: 40 | ER85: 40 | ES85: 40 | ET85: 40 | EU85: 40 | EV85: 40 | EW85: 40 | EX85: 40 | EY85: 40 | EZ85: 40 | FA85: 40 | FB85: 40 | FC85: 40 | FD85: 40 | FE85: 40 | FF85: 40 | FG85: 40 | FH85: 40 | FI85: 40 | FJ85: 40 | FK85: 40 | FL85: 40 | FM85: 40 | FN85: 40 | FO85: 40 | FP85: 40 | FQ85: 40 | FR85: 40 | FS85: 40 | FT85: 40 | FU85: 40 | FV85: 40 | FW85: 40 | FX85: 40 | FY85: 40 | FZ85: 40 | GA85: 40 | GB85: 40 | GC85: 40 | GD85: 40 | GE85: 40 | GF85: 40 | GG85: 40 | GH85: 40 | GI85: 40 | GJ85: 40 | GK85: 40 | GL85: 40 | GM85: 40 | GN85: 40 | GO85: 40 | GP85: 40 | GQ85: 40 | GR85: 40 | GS85: 40 | GT85: 40 | GU85: =GT85+GU4 -> 40 | GV85: 40 | GW85: 40 | GX85: 40 | GY85: 40 | GZ85: 40 | HA85: 40 | HB85: 40 | HC85: 40 | HD85: 40 | HE85: 40 | HF85: 40 | HG85: 40 | HH85: 40 | HI85: 40 | HJ85: 40 | HK85: 40 | HL85: 40 | HM85: 40 | HN85: 40 | HO85: 40 | HP85: 40 | HQ85: 40 | HR85: 40 | HS85: 40 | HT85: 40 | HU85: 40 | HV85: 40 | HW85: 40 | HX85: 40 | HY85: 40 | HZ85: 40 | IA85: 40 | IB85: 40 | IC85: 40 | ID85: 40 | IE85: 40 | IF85: 40 | IG85: 40 | IH85: 40 | II85: 40 | IJ85: 40 | IK85: 40 | IL85: 40 | IM85: 40 | IN85: 40 | IO85: 40 | IP85: 40 | IQ85: 40 | IR85: 40 | IS85: 40 | IT85: 40 | IU85: 40 | IV85: 40 | IW85: 40 | IX85: 40 | IY85: 40 | IZ85: 40 | JA85: 40 | JB85: 40 | JC85: 40 | JD85: 40 | JE85: 40 | JF85: 40 | JG85: =JF85+JG4 -> 40 | JH85: 40 | JI85: 40 | JJ85: 40 | JK85: 40 | JL85: 40 | JM85: 40 | JN85: 40 | JO85: 40 | JP85: 40 | JQ85: 40 | JR85: 40 | JS85: 40 | JT85: 40 | JU85: 40 | JV85: 40 | JW85: 40 | JX85: 40 | JY85: 40 | JZ85: 40 | KA85: 40 | KB85: 40 | KC85: 40 | KD85: 40 | KE85: 40 | KF85: 40 | KG85: 40 | KH85: 40 | KI85: 40 | KJ85: 40 | KK85: 40 | KL85: 40 | KM85: 40 | KN85: 40 | KO85: 40 | KP85: 40 | KQ85: 40 | KR85: 40 | KS85: 40 | KT85: 40 | KU85: 40 | KV85: 40 | KW85: 40 | KX85: 40 | KY85: 40 | KZ85: 40 | LA85: 40 | LB85: 40 | LC85: 40 | LD85: 40 | LE85: 40 | LF85: 40 | LG85: 40 | LH85: 40 | LI85: 40 | LJ85: 40 | LK85: 40 | LL85: 40 | LM85: 40 | LN85: 40 | LO85: 40 | LP85: 40 | LQ85: 40 | LR85: 40 | LS85: =LR85+LS4 -> 40 | LT85: 40 | LU85: 40 | LV85: 40 | LW85: 40 | LX85: 40 | LY85: 40 | LZ85: 40 | MA85: 40 | MB85: 40 | MC85: 40 | MD85: 40 | ME85: 40 | MF85: 40 | MG85: 40 | MH85: 40 | MI85: 40 | MJ85: 40 | MK85: 40 | ML85: 40 | MM85: 40 | MN85: 40 | MO85: 40 | MP85: 40 | MQ85: 40 | MR85: 40 | MS85: 40 | MT85: 40 | MU85: 40 | MV85: 40 | MW85: 40 | MX85: 40 | MY85: 40 | MZ85: 40 | NA85: 40 | NB85: 40 | NC85: 40 | ND85: 40 | NE85: 40 | NF85: 40 | NG85: 40 | NH85: 40 | NI85: 40 | NJ85: 40 | NK85: 40 | NL85: 40 | NM85: 40 | NN85: 40 | NO85: 40 | NP85: 40 | NQ85: 40 | NR85: 40 | NS85: 40 | NT85: 40 | NU85: 40 | NV85: 40 | NW85: 40 | NX85: 40 | NY85: 40 | NZ85: 40 | OA85: 40 | OB85: 40 | OC85: 40 | OD85: 40 | OE85: 40
C86: Construction Year | K86: =ROUNDUP(K85/12,0) -> 1 | L86: =ROUNDUP(L85/12,0) -> 1 | M86: 1 | N86: 1 | O86: 1 | P86: 1 | Q86: 1 | R86: 1 | S86: 1 | T86: 1 | U86: 1 | V86: 1 | W86: 2 | X86: 2 | Y86: 2 | Z86: 2 | AA86: 2 | AB86: 2 | AC86: 2 | AD86: 2 | AE86: 2 | AF86: 2 | AG86: 2 | AH86: 2 | AI86: 3 | AJ86: 3 | AK86: 3 | AL86: 3 | AM86: 3 | AN86: 3 | AO86: 3 | AP86: 3 | AQ86: 3 | AR86: 3 | AS86: 3 | AT86: 3 | AU86: 4 | AV86: 4 | AW86: 4 | AX86: 4 | AY86: 4 | AZ86: 4 | BA86: 4 | BB86: 4 | BC86: 4 | BD86: 4 | BE86: 4 | BF86: 4 | BG86: 4 | BH86: 4 | BI86: 4 | BJ86: 4 | BK86: 4 | BL86: 4 | BM86: 4 | BN86: 4 | BO86: 4 | BP86: 4 | BQ86: 4 | BR86: 4 | BS86: 4 | BT86: 4 | BU86: 4 | BV86: 4 | BW86: 4 | BX86: =ROUNDUP(BX85/12,0) -> 4 | BY86: 4 | BZ86: 4 | CA86: 4 | CB86: 4 | CC86: 4 | CD86: 4 | CE86: 4 | CF86: 4 | CG86: 4 | CH86: 4 | CI86: 4 | CJ86: 4 | CK86: 4 | CL86: 4 | CM86: 4 | CN86: 4 | CO86: 4 | CP86: 4 | CQ86: 4 | CR86: 4 | CS86: 4 | CT86: 4 | CU86: 4 | CV86: 4 | CW86: 4 | CX86: 4 | CY86: 4 | CZ86: 4 | DA86: 4 | DB86: 4 | DC86: 4 | DD86: 4 | DE86: 4 | DF86: 4 | DG86: 4 | DH86: 4 | DI86: 4 | DJ86: 4 | DK86: 4 | DL86: 4 | DM86: 4 | DN86: 4 | DO86: 4 | DP86: 4 | DQ86: 4 | DR86: 4 | DS86: 4 | DT86: 4 | DU86: 4 | DV86: 4 | DW86: 4 | DX86: 4 | DY86: 4 | DZ86: 4 | EA86: 4 | EB86: 4 | EC86: 4 | ED86: 4 | EE86: 4 | EF86: 4 | EG86: 4 | EH86: 4 | EI86: 4 | EJ86: =ROUNDUP(EJ85/12,0) -> 4 | EK86: 4 | EL86: 4 | EM86: 4 | EN86: 4 | EO86: 4 | EP86: 4 | EQ86: 4 | ER86: 4 | ES86: 4 | ET86: 4 | EU86: 4 | EV86: 4 | EW86: 4 | EX86: 4 | EY86: 4 | EZ86: 4 | FA86: 4 | FB86: 4 | FC86: 4 | FD86: 4 | FE86: 4 | FF86: 4 | FG86: 4 | FH86: 4 | FI86: 4 | FJ86: 4 | FK86: 4 | FL86: 4 | FM86: 4 | FN86: 4 | FO86: 4 | FP86: 4 | FQ86: 4 | FR86: 4 | FS86: 4 | FT86: 4 | FU86: 4 | FV86: 4 | FW86: 4 | FX86: 4 | FY86: 4 | FZ86: 4 | GA86: 4 | GB86: 4 | GC86: 4 | GD86: 4 | GE86: 4 | GF86: 4 | GG86: 4 | GH86: 4 | GI86: 4 | GJ86: 4 | GK86: 4 | GL86: 4 | GM86: 4 | GN86: 4 | GO86: 4 | GP86: 4 | GQ86: 4 | GR86: 4 | GS86: 4 | GT86: 4 | GU86: 4 | GV86: =ROUNDUP(GV85/12,0) -> 4 | GW86: 4 | GX86: 4 | GY86: 4 | GZ86: 4 | HA86: 4 | HB86: 4 | HC86: 4 | HD86: 4 | HE86: 4 | HF86: 4 | HG86: 4 | HH86: 4 | HI86: 4 | HJ86: 4 | HK86: 4 | HL86: 4 | HM86: 4 | HN86: 4 | HO86: 4 | HP86: 4 | HQ86: 4 | HR86: 4 | HS86: 4 | HT86: 4 | HU86: 4 | HV86: 4 | HW86: 4 | HX86: 4 | HY86: 4 | HZ86: 4 | IA86: 4 | IB86: 4 | IC86: 4 | ID86: 4 | IE86: 4 | IF86: 4 | IG86: 4 | IH86: 4 | II86: 4 | IJ86: 4 | IK86: 4 | IL86: 4 | IM86: 4 | IN86: 4 | IO86: 4 | IP86: 4 | IQ86: 4 | IR86: 4 | IS86: 4 | IT86: 4 | IU86: 4 | IV86: 4 | IW86: 4 | IX86: 4 | IY86: 4 | IZ86: 4 | JA86: 4 | JB86: 4 | JC86: 4 | JD86: 4 | JE86: 4 | JF86: 4 | JG86: 4 | JH86: =ROUNDUP(JH85/12,0) -> 4 | JI86: 4 | JJ86: 4 | JK86: 4 | JL86: 4 | JM86: 4 | JN86: 4 | JO86: 4 | JP86: 4 | JQ86: 4 | JR86: 4 | JS86: 4 | JT86: 4 | JU86: 4 | JV86: 4 | JW86: 4 | JX86: 4 | JY86: 4 | JZ86: 4 | KA86: 4 | KB86: 4 | KC86: 4 | KD86: 4 | KE86: 4 | KF86: 4 | KG86: 4 | KH86: 4 | KI86: 4 | KJ86: 4 | KK86: 4 | KL86: 4 | KM86: 4 | KN86: 4 | KO86: 4 | KP86: 4 | KQ86: 4 | KR86: 4 | KS86: 4 | KT86: 4 | KU86: 4 | KV86: 4 | KW86: 4 | KX86: 4 | KY86: 4 | KZ86: 4 | LA86: 4 | LB86: 4 | LC86: 4 | LD86: 4 | LE86: 4 | LF86: 4 | LG86: 4 | LH86: 4 | LI86: 4 | LJ86: 4 | LK86: 4 | LL86: 4 | LM86: 4 | LN86: 4 | LO86: 4 | LP86: 4 | LQ86: 4 | LR86: 4 | LS86: 4 | LT86: =ROUNDUP(LT85/12,0) -> 4 | LU86: 4 | LV86: 4 | LW86: 4 | LX86: 4 | LY86: 4 | LZ86: 4 | MA86: 4 | MB86: 4 | MC86: 4 | MD86: 4 | ME86: 4 | MF86: 4 | MG86: 4 | MH86: 4 | MI86: 4 | MJ86: 4 | MK86: 4 | ML86: 4 | MM86: 4 | MN86: 4 | MO86: 4 | MP86: 4 | MQ86: 4 | MR86: 4 | MS86: 4 | MT86: 4 | MU86: 4 | MV86: 4 | MW86: 4 | MX86: 4 | MY86: 4 | MZ86: 4 | NA86: 4 | NB86: 4 | NC86: 4 | ND86: 4 | NE86: 4 | NF86: 4 | NG86: 4 | NH86: 4 | NI86: 4 | NJ86: 4 | NK86: 4 | NL86: 4 | NM86: 4 | NN86: 4 | NO86: 4 | NP86: 4 | NQ86: 4 | NR86: 4 | NS86: 4 | NT86: 4 | NU86: 4 | NV86: 4 | NW86: 4 | NX86: 4 | NY86: 4 | NZ86: 4 | OA86: 4 | OB86: 4 | OC86: 4 | OD86: 4 | OE86: 4
C87: Unadjusted S-Curve | K87: =LOOKUP(K86,34:34,35:35)/12*K4 -> 0.01666666667 | L87: 0.01666666667 | M87: 0.01666666667 | N87: 0.01666666667 | O87: 0.01666666667 | P87: 0.01666666667 | Q87: 0.01666666667 | R87: 0.01666666667 | S87: 0.01666666667 | T87: 0.01666666667 | U87: 0.01666666667 | V87: 0.01666666667 | W87: 0.05416666667 | X87: 0.05416666667 | Y87: 0.05416666667 | Z87: 0.05416666667 | AA87: 0.05416666667 | AB87: 0.05416666667 | AC87: 0.05416666667 | AD87: 0.05416666667 | AE87: 0.05416666667 | AF87: 0.05416666667 | AG87: 0.05416666667 | AH87: 0.05416666667 | AI87: 0.0125 | AJ87: 0.0125 | AK87: 0.0125 | AL87: 0.0125 | AM87: 0.0125 | AN87: 0.0125 | AO87: 0.0125 | AP87: 0.0125 | AQ87: 0.0125 | AR87: 0.0125 | AS87: 0.0125 | AT87: 0.0125 | AU87: 0 | AV87: 0 | AW87: 0 | AX87: 0 | AY87: 0 | AZ87: 0 | BA87: 0 | BB87: 0 | BC87: 0 | BD87: 0 | BE87: 0 | BF87: 0 | BG87: 0 | BH87: 0 | BI87: 0 | BJ87: 0 | BK87: 0 | BL87: 0 | BM87: 0 | BN87: 0 | BO87: 0 | BP87: 0 | BQ87: 0 | BR87: 0 | BS87: 0 | BT87: 0 | BU87: 0 | BV87: 0 | BW87: =LOOKUP(BW86,34:34,35:35)/12*BW4 -> 0 | BX87: 0 | BY87: 0 | BZ87: 0 | CA87: 0 | CB87: 0 | CC87: 0 | CD87: 0 | CE87: 0 | CF87: 0 | CG87: 0 | CH87: 0 | CI87: 0 | CJ87: 0 | CK87: 0 | CL87: 0 | CM87: 0 | CN87: 0 | CO87: 0 | CP87: 0 | CQ87: 0 | CR87: 0 | CS87: 0 | CT87: 0 | CU87: 0 | CV87: 0 | CW87: 0 | CX87: 0 | CY87: 0 | CZ87: 0 | DA87: 0 | DB87: 0 | DC87: 0 | DD87: 0 | DE87: 0 | DF87: 0 | DG87: 0 | DH87: 0 | DI87: 0 | DJ87: 0 | DK87: 0 | DL87: 0 | DM87: 0 | DN87: 0 | DO87: 0 | DP87: 0 | DQ87: 0 | DR87: 0 | DS87: 0 | DT87: 0 | DU87: 0 | DV87: 0 | DW87: 0 | DX87: 0 | DY87: 0 | DZ87: 0 | EA87: 0 | EB87: 0 | EC87: 0 | ED87: 0 | EE87: 0 | EF87: 0 | EG87: 0 | EH87: 0 | EI87: =LOOKUP(EI86,34:34,35:35)/12*EI4 -> 0 | EJ87: 0 | EK87: 0 | EL87: 0 | EM87: 0 | EN87: 0 | EO87: 0 | EP87: 0 | EQ87: 0 | ER87: 0 | ES87: 0 | ET87: 0 | EU87: 0 | EV87: 0 | EW87: 0 | EX87: 0 | EY87: 0 | EZ87: 0 | FA87: 0 | FB87: 0 | FC87: 0 | FD87: 0 | FE87: 0 | FF87: 0 | FG87: 0 | FH87: 0 | FI87: 0 | FJ87: 0 | FK87: 0 | FL87: 0 | FM87: 0 | FN87: 0 | FO87: 0 | FP87: 0 | FQ87: 0 | FR87: 0 | FS87: 0 | FT87: 0 | FU87: 0 | FV87: 0 | FW87: 0 | FX87: 0 | FY87: 0 | FZ87: 0 | GA87: 0 | GB87: 0 | GC87: 0 | GD87: 0 | GE87: 0 | GF87: 0 | GG87: 0 | GH87: 0 | GI87: 0 | GJ87: 0 | GK87: 0 | GL87: 0 | GM87: 0 | GN87: 0 | GO87: 0 | GP87: 0 | GQ87: 0 | GR87: 0 | GS87: 0 | GT87: 0 | GU87: =LOOKUP(GU86,34:34,35:35)/12*GU4 -> 0 | GV87: 0 | GW87: 0 | GX87: 0 | GY87: 0 | GZ87: 0 | HA87: 0 | HB87: 0 | HC87: 0 | HD87: 0 | HE87: 0 | HF87: 0 | HG87: 0 | HH87: 0 | HI87: 0 | HJ87: 0 | HK87: 0 | HL87: 0 | HM87: 0 | HN87: 0 | HO87: 0 | HP87: 0 | HQ87: 0 | HR87: 0 | HS87: 0 | HT87: 0 | HU87: 0 | HV87: 0 | HW87: 0 | HX87: 0 | HY87: 0 | HZ87: 0 | IA87: 0 | IB87: 0 | IC87: 0 | ID87: 0 | IE87: 0 | IF87: 0 | IG87: 0 | IH87: 0 | II87: 0 | IJ87: 0 | IK87: 0 | IL87: 0 | IM87: 0 | IN87: 0 | IO87: 0 | IP87: 0 | IQ87: 0 | IR87: 0 | IS87: 0 | IT87: 0 | IU87: 0 | IV87: 0 | IW87: 0 | IX87: 0 | IY87: 0 | IZ87: 0 | JA87: 0 | JB87: 0 | JC87: 0 | JD87: 0 | JE87: 0 | JF87: 0 | JG87: =LOOKUP(JG86,34:34,35:35)/12*JG4 -> 0 | JH87: 0 | JI87: 0 | JJ87: 0 | JK87: 0 | JL87: 0 | JM87: 0 | JN87: 0 | JO87: 0 | JP87: 0 | JQ87: 0 | JR87: 0 | JS87: 0 | JT87: 0 | JU87: 0 | JV87: 0 | JW87: 0 | JX87: 0 | JY87: 0 | JZ87: 0 | KA87: 0 | KB87: 0 | KC87: 0 | KD87: 0 | KE87: 0 | KF87: 0 | KG87: 0 | KH87: 0 | KI87: 0 | KJ87: 0 | KK87: 0 | KL87: 0 | KM87: 0 | KN87: 0 | KO87: 0 | KP87: 0 | KQ87: 0 | KR87: 0 | KS87: 0 | KT87: 0 | KU87: 0 | KV87: 0 | KW87: 0 | KX87: 0 | KY87: 0 | KZ87: 0 | LA87: 0 | LB87: 0 | LC87: 0 | LD87: 0 | LE87: 0 | LF87: 0 | LG87: 0 | LH87: 0 | LI87: 0 | LJ87: 0 | LK87: 0 | LL87: 0 | LM87: 0 | LN87: 0 | LO87: 0 | LP87: 0 | LQ87: 0 | LR87: 0 | LS87: =LOOKUP(LS86,34:34,35:35)/12*LS4 -> 0 | LT87: 0 | LU87: 0 | LV87: 0 | LW87: 0 | LX87: 0 | LY87: 0 | LZ87: 0 | MA87: 0 | MB87: 0 | MC87: 0 | MD87: 0 | ME87: 0 | MF87: 0 | MG87: 0 | MH87: 0 | MI87: 0 | MJ87: 0 | MK87: 0 | ML87: 0 | MM87: 0 | MN87: 0 | MO87: 0 | MP87: 0 | MQ87: 0 | MR87: 0 | MS87: 0 | MT87: 0 | MU87: 0 | MV87: 0 | MW87: 0 | MX87: 0 | MY87: 0 | MZ87: 0 | NA87: 0 | NB87: 0 | NC87: 0 | ND87: 0 | NE87: 0 | NF87: 0 | NG87: 0 | NH87: 0 | NI87: 0 | NJ87: 0 | NK87: 0 | NL87: 0 | NM87: 0 | NN87: 0 | NO87: 0 | NP87: 0 | NQ87: 0 | NR87: 0 | NS87: 0 | NT87: 0 | NU87: 0 | NV87: 0 | NW87: 0 | NX87: 0 | NY87: 0 | NZ87: 0 | OA87: 0 | OB87: 0 | OC87: 0 | OD87: 0 | OE87: =LOOKUP(OE86,34:34,35:35)/12*OE4 -> 0
C88: Accumulated S-Curve | K88: =J88+K87 -> 0.01666666667 | L88: =K88+L87 -> 0.03333333333 | M88: 0.05 | N88: 0.06666666667 | O88: 0.08333333333 | P88: 0.1 | Q88: 0.1166666667 | R88: 0.1333333333 | S88: 0.15 | T88: 0.1666666667 | U88: 0.1833333333 | V88: 0.2 | W88: 0.2541666667 | X88: 0.3083333333 | Y88: 0.3625 | Z88: 0.4166666667 | AA88: 0.4708333333 | AB88: 0.525 | AC88: 0.5791666667 | AD88: 0.6333333333 | AE88: 0.6875 | AF88: 0.7416666667 | AG88: 0.7958333333 | AH88: 0.85 | AI88: 0.8625 | AJ88: 0.875 | AK88: 0.8875 | AL88: 0.9 | AM88: 0.9125 | AN88: 0.925 | AO88: 0.9375 | AP88: 0.95 | AQ88: 0.9625 | AR88: 0.975 | AS88: 0.9875 | AT88: 1 | AU88: 1 | AV88: 1 | AW88: 1 | AX88: 1 | AY88: 1 | AZ88: 1 | BA88: 1 | BB88: 1 | BC88: 1 | BD88: 1 | BE88: 1 | BF88: 1 | BG88: 1 | BH88: 1 | BI88: 1 | BJ88: 1 | BK88: 1 | BL88: 1 | BM88: 1 | BN88: 1 | BO88: 1 | BP88: 1 | BQ88: 1 | BR88: 1 | BS88: 1 | BT88: 1 | BU88: 1 | BV88: 1 | BW88: 1 | BX88: =BW88+BX87 -> 1 | BY88: 1 | BZ88: 1 | CA88: 1 | CB88: 1 | CC88: 1 | CD88: 1 | CE88: 1 | CF88: 1 | CG88: 1 | CH88: 1 | CI88: 1 | CJ88: 1 | CK88: 1 | CL88: 1 | CM88: 1 | CN88: 1 | CO88: 1 | CP88: 1 | CQ88: 1 | CR88: 1 | CS88: 1 | CT88: 1 | CU88: 1 | CV88: 1 | CW88: 1 | CX88: 1 | CY88: 1 | CZ88: 1 | DA88: 1 | DB88: 1 | DC88: 1 | DD88: 1 | DE88: 1 | DF88: 1 | DG88: 1 | DH88: 1 | DI88: 1 | DJ88: 1 | DK88: 1 | DL88: 1 | DM88: 1 | DN88: 1 | DO88: 1 | DP88: 1 | DQ88: 1 | DR88: 1 | DS88: 1 | DT88: 1 | DU88: 1 | DV88: 1 | DW88: 1 | DX88: 1 | DY88: 1 | DZ88: 1 | EA88: 1 | EB88: 1 | EC88: 1 | ED88: 1 | EE88: 1 | EF88: 1 | EG88: 1 | EH88: 1 | EI88: 1 | EJ88: =EI88+EJ87 -> 1 | EK88: 1 | EL88: 1 | EM88: 1 | EN88: 1 | EO88: 1 | EP88: 1 | EQ88: 1 | ER88: 1 | ES88: 1 | ET88: 1 | EU88: 1 | EV88: 1 | EW88: 1 | EX88: 1 | EY88: 1 | EZ88: 1 | FA88: 1 | FB88: 1 | FC88: 1 | FD88: 1 | FE88: 1 | FF88: 1 | FG88: 1 | FH88: 1 | FI88: 1 | FJ88: 1 | FK88: 1 | FL88: 1 | FM88: 1 | FN88: 1 | FO88: 1 | FP88: 1 | FQ88: 1 | FR88: 1 | FS88: 1 | FT88: 1 | FU88: 1 | FV88: 1 | FW88: 1 | FX88: 1 | FY88: 1 | FZ88: 1 | GA88: 1 | GB88: 1 | GC88: 1 | GD88: 1 | GE88: 1 | GF88: 1 | GG88: 1 | GH88: 1 | GI88: 1 | GJ88: 1 | GK88: 1 | GL88: 1 | GM88: 1 | GN88: 1 | GO88: 1 | GP88: 1 | GQ88: 1 | GR88: 1 | GS88: 1 | GT88: 1 | GU88: 1 | GV88: =GU88+GV87 -> 1 | GW88: 1 | GX88: 1 | GY88: 1 | GZ88: 1 | HA88: 1 | HB88: 1 | HC88: 1 | HD88: 1 | HE88: 1 | HF88: 1 | HG88: 1 | HH88: 1 | HI88: 1 | HJ88: 1 | HK88: 1 | HL88: 1 | HM88: 1 | HN88: 1 | HO88: 1 | HP88: 1 | HQ88: 1 | HR88: 1 | HS88: 1 | HT88: 1 | HU88: 1 | HV88: 1 | HW88: 1 | HX88: 1 | HY88: 1 | HZ88: 1 | IA88: 1 | IB88: 1 | IC88: 1 | ID88: 1 | IE88: 1 | IF88: 1 | IG88: 1 | IH88: 1 | II88: 1 | IJ88: 1 | IK88: 1 | IL88: 1 | IM88: 1 | IN88: 1 | IO88: 1 | IP88: 1 | IQ88: 1 | IR88: 1 | IS88: 1 | IT88: 1 | IU88: 1 | IV88: 1 | IW88: 1 | IX88: 1 | IY88: 1 | IZ88: 1 | JA88: 1 | JB88: 1 | JC88: 1 | JD88: 1 | JE88: 1 | JF88: 1 | JG88: 1 | JH88: =JG88+JH87 -> 1 | JI88: 1 | JJ88: 1 | JK88: 1 | JL88: 1 | JM88: 1 | JN88: 1 | JO88: 1 | JP88: 1 | JQ88: 1 | JR88: 1 | JS88: 1 | JT88: 1 | JU88: 1 | JV88: 1 | JW88: 1 | JX88: 1 | JY88: 1 | JZ88: 1 | KA88: 1 | KB88: 1 | KC88: 1 | KD88: 1 | KE88: 1 | KF88: 1 | KG88: 1 | KH88: 1 | KI88: 1 | KJ88: 1 | KK88: 1 | KL88: 1 | KM88: 1 | KN88: 1 | KO88: 1 | KP88: 1 | KQ88: 1 | KR88: 1 | KS88: 1 | KT88: 1 | KU88: 1 | KV88: 1 | KW88: 1 | KX88: 1 | KY88: 1 | KZ88: 1 | LA88: 1 | LB88: 1 | LC88: 1 | LD88: 1 | LE88: 1 | LF88: 1 | LG88: 1 | LH88: 1 | LI88: 1 | LJ88: 1 | LK88: 1 | LL88: 1 | LM88: 1 | LN88: 1 | LO88: 1 | LP88: 1 | LQ88: 1 | LR88: 1 | LS88: 1 | LT88: =LS88+LT87 -> 1 | LU88: 1 | LV88: 1 | LW88: 1 | LX88: 1 | LY88: 1 | LZ88: 1 | MA88: 1 | MB88: 1 | MC88: 1 | MD88: 1 | ME88: 1 | MF88: 1 | MG88: 1 | MH88: 1 | MI88: 1 | MJ88: 1 | MK88: 1 | ML88: 1 | MM88: 1 | MN88: 1 | MO88: 1 | MP88: 1 | MQ88: 1 | MR88: 1 | MS88: 1 | MT88: 1 | MU88: 1 | MV88: 1 | MW88: 1 | MX88: 1 | MY88: 1 | MZ88: 1 | NA88: 1 | NB88: 1 | NC88: 1 | ND88: 1 | NE88: 1 | NF88: 1 | NG88: 1 | NH88: 1 | NI88: 1 | NJ88: 1 | NK88: 1 | NL88: 1 | NM88: 1 | NN88: 1 | NO88: 1 | NP88: 1 | NQ88: 1 | NR88: 1 | NS88: 1 | NT88: 1 | NU88: 1 | NV88: 1 | NW88: 1 | NX88: 1 | NY88: 1 | NZ88: 1 | OA88: 1 | OB88: 1 | OC88: 1 | OD88: 1 | OE88: 1
C89: Adjustment | K89: =(1-K88)*K8 -> 0 | L89: 0 | M89: 0 | N89: 0 | O89: 0 | P89: 0 | Q89: 0 | R89: 0 | S89: 0 | T89: 0 | U89: 0 | V89: 0 | W89: 0 | X89: 0 | Y89: 0 | Z89: 0 | AA89: 0 | AB89: 0 | AC89: 0 | AD89: 0 | AE89: 0 | AF89: 0 | AG89: 0 | AH89: 0 | AI89: 0 | AJ89: 0 | AK89: 0 | AL89: 0 | AM89: 0 | AN89: 0 | AO89: 0 | AP89: 0 | AQ89: 0 | AR89: 0 | AS89: 0 | AT89: 0 | AU89: 0 | AV89: 0 | AW89: 0 | AX89: 2.220446049e-16 | AY89: 0 | AZ89: 0 | BA89: 0 | BB89: 0 | BC89: 0 | BD89: 0 | BE89: 0 | BF89: 0 | BG89: 0 | BH89: 0 | BI89: 0 | BJ89: 0 | BK89: 0 | BL89: 0 | BM89: 0 | BN89: 0 | BO89: 0 | BP89: 0 | BQ89: 0 | BR89: 0 | BS89: 0 | BT89: 0 | BU89: 0 | BV89: 0 | BW89: =(1-BW88)*BW8 -> 0 | BX89: 0 | BY89: 0 | BZ89: 0 | CA89: 0 | CB89: 0 | CC89: 0 | CD89: 0 | CE89: 0 | CF89: 0 | CG89: 0 | CH89: 0 | CI89: 0 | CJ89: 0 | CK89: 0 | CL89: 0 | CM89: 0 | CN89: 0 | CO89: 0 | CP89: 0 | CQ89: 0 | CR89: 0 | CS89: 0 | CT89: 0 | CU89: 0 | CV89: 0 | CW89: 0 | CX89: 0 | CY89: 0 | CZ89: 0 | DA89: 0 | DB89: 0 | DC89: 0 | DD89: 0 | DE89: 0 | DF89: 0 | DG89: 0 | DH89: 0 | DI89: 0 | DJ89: 0 | DK89: 0 | DL89: 0 | DM89: 0 | DN89: 0 | DO89: 0 | DP89: 0 | DQ89: 0 | DR89: 0 | DS89: 0 | DT89: 0 | DU89: 0 | DV89: 0 | DW89: 0 | DX89: 0 | DY89: 0 | DZ89: 0 | EA89: 0 | EB89: 0 | EC89: 0 | ED89: 0 | EE89: 0 | EF89: 0 | EG89: 0 | EH89: 0 | EI89: =(1-EI88)*EI8 -> 0 | EJ89: 0 | EK89: 0 | EL89: 0 | EM89: 0 | EN89: 0 | EO89: 0 | EP89: 0 | EQ89: 0 | ER89: 0 | ES89: 0 | ET89: 0 | EU89: 0 | EV89: 0 | EW89: 0 | EX89: 0 | EY89: 0 | EZ89: 0 | FA89: 0 | FB89: 0 | FC89: 0 | FD89: 0 | FE89: 0 | FF89: 0 | FG89: 0 | FH89: 0 | FI89: 0 | FJ89: 0 | FK89: 0 | FL89: 0 | FM89: 0 | FN89: 0 | FO89: 0 | FP89: 0 | FQ89: 0 | FR89: 0 | FS89: 0 | FT89: 0 | FU89: 0 | FV89: 0 | FW89: 0 | FX89: 0 | FY89: 0 | FZ89: 0 | GA89: 0 | GB89: 0 | GC89: 0 | GD89: 0 | GE89: 0 | GF89: 0 | GG89: 0 | GH89: 0 | GI89: 0 | GJ89: 0 | GK89: 0 | GL89: 0 | GM89: 0 | GN89: 0 | GO89: 0 | GP89: 0 | GQ89: 0 | GR89: 0 | GS89: 0 | GT89: 0 | GU89: =(1-GU88)*GU8 -> 0 | GV89: 0 | GW89: 0 | GX89: 0 | GY89: 0 | GZ89: 0 | HA89: 0 | HB89: 0 | HC89: 0 | HD89: 0 | HE89: 0 | HF89: 0 | HG89: 0 | HH89: 0 | HI89: 0 | HJ89: 0 | HK89: 0 | HL89: 0 | HM89: 0 | HN89: 0 | HO89: 0 | HP89: 0 | HQ89: 0 | HR89: 0 | HS89: 0 | HT89: 0 | HU89: 0 | HV89: 0 | HW89: 0 | HX89: 0 | HY89: 0 | HZ89: 0 | IA89: 0 | IB89: 0 | IC89: 0 | ID89: 0 | IE89: 0 | IF89: 0 | IG89: 0 | IH89: 0 | II89: 0 | IJ89: 0 | IK89: 0 | IL89: 0 | IM89: 0 | IN89: 0 | IO89: 0 | IP89: 0 | IQ89: 0 | IR89: 0 | IS89: 0 | IT89: 0 | IU89: 0 | IV89: 0 | IW89: 0 | IX89: 0 | IY89: 0 | IZ89: 0 | JA89: 0 | JB89: 0 | JC89: 0 | JD89: 0 | JE89: 0 | JF89: 0 | JG89: =(1-JG88)*JG8 -> 0 | JH89: 0 | JI89: 0 | JJ89: 0 | JK89: 0 | JL89: 0 | JM89: 0 | JN89: 0 | JO89: 0 | JP89: 0 | JQ89: 0 | JR89: 0 | JS89: 0 | JT89: 0 | JU89: 0 | JV89: 0 | JW89: 0 | JX89: 0 | JY89: 0 | JZ89: 0 | KA89: 0 | KB89: 0 | KC89: 0 | KD89: 0 | KE89: 0 | KF89: 0 | KG89: 0 | KH89: 0 | KI89: 0 | KJ89: 0 | KK89: 0 | KL89: 0 | KM89: 0 | KN89: 0 | KO89: 0 | KP89: 0 | KQ89: 0 | KR89: 0 | KS89: 0 | KT89: 0 | KU89: 0 | KV89: 0 | KW89: 0 | KX89: 0 | KY89: 0 | KZ89: 0 | LA89: 0 | LB89: 0 | LC89: 0 | LD89: 0 | LE89: 0 | LF89: 0 | LG89: 0 | LH89: 0 | LI89: 0 | LJ89: 0 | LK89: 0 | LL89: 0 | LM89: 0 | LN89: 0 | LO89: 0 | LP89: 0 | LQ89: 0 | LR89: 0 | LS89: =(1-LS88)*LS8 -> 0 | LT89: 0 | LU89: 0 | LV89: 0 | LW89: 0 | LX89: 0 | LY89: 0 | LZ89: 0 | MA89: 0 | MB89: 0 | MC89: 0 | MD89: 0 | ME89: 0 | MF89: 0 | MG89: 0 | MH89: 0 | MI89: 0 | MJ89: 0 | MK89: 0 | ML89: 0 | MM89: 0 | MN89: 0 | MO89: 0 | MP89: 0 | MQ89: 0 | MR89: 0 | MS89: 0 | MT89: 0 | MU89: 0 | MV89: 0 | MW89: 0 | MX89: 0 | MY89: 0 | MZ89: 0 | NA89: 0 | NB89: 0 | NC89: 0 | ND89: 0 | NE89: 0 | NF89: 0 | NG89: 0 | NH89: 0 | NI89: 0 | NJ89: 0 | NK89: 0 | NL89: 0 | NM89: 0 | NN89: 0 | NO89: 0 | NP89: 0 | NQ89: 0 | NR89: 0 | NS89: 0 | NT89: 0 | NU89: 0 | NV89: 0 | NW89: 0 | NX89: 0 | NY89: 0 | NZ89: 0 | OA89: 0 | OB89: 0 | OC89: 0 | OD89: 0 | OE89: =(1-OE88)*OE8 -> 0
C90: Adjusted S-Curve | I90: =SUM(K90:OE90)=1 -> TRUE | K90: =K87+K89 -> 0.01666666667 | L90: =L87+L89 -> 0.01666666667 | M90: 0.01666666667 | N90: 0.01666666667 | O90: 0.01666666667 | P90: 0.01666666667 | Q90: 0.01666666667 | R90: 0.01666666667 | S90: 0.01666666667 | T90: 0.01666666667 | U90: 0.01666666667 | V90: 0.01666666667 | W90: 0.05416666667 | X90: 0.05416666667 | Y90: 0.05416666667 | Z90: 0.05416666667 | AA90: 0.05416666667 | AB90: 0.05416666667 | AC90: 0.05416666667 | AD90: 0.05416666667 | AE90: 0.05416666667 | AF90: 0.05416666667 | AG90: 0.05416666667 | AH90: 0.05416666667 | AI90: 0.0125 | AJ90: 0.0125 | AK90: 0.0125 | AL90: 0.0125 | AM90: 0.0125 | AN90: 0.0125 | AO90: 0.0125 | AP90: 0.0125 | AQ90: 0.0125 | AR90: 0.0125 | AS90: 0.0125 | AT90: 0.0125 | AU90: 0 | AV90: 0 | AW90: 0 | AX90: 2.220446049e-16 | AY90: 0 | AZ90: 0 | BA90: 0 | BB90: 0 | BC90: 0 | BD90: 0 | BE90: 0 | BF90: 0 | BG90: 0 | BH90: 0 | BI90: 0 | BJ90: 0 | BK90: 0 | BL90: 0 | BM90: 0 | BN90: 0 | BO90: 0 | BP90: 0 | BQ90: 0 | BR90: 0 | BS90: 0 | BT90: 0 | BU90: 0 | BV90: 0 | BW90: 0 | BX90: =BX87+BX89 -> 0 | BY90: 0 | BZ90: 0 | CA90: 0 | CB90: 0 | CC90: 0 | CD90: 0 | CE90: 0 | CF90: 0 | CG90: 0 | CH90: 0 | CI90: 0 | CJ90: 0 | CK90: 0 | CL90: 0 | CM90: 0 | CN90: 0 | CO90: 0 | CP90: 0 | CQ90: 0 | CR90: 0 | CS90: 0 | CT90: 0 | CU90: 0 | CV90: 0 | CW90: 0 | CX90: 0 | CY90: 0 | CZ90: 0 | DA90: 0 | DB90: 0 | DC90: 0 | DD90: 0 | DE90: 0 | DF90: 0 | DG90: 0 | DH90: 0 | DI90: 0 | DJ90: 0 | DK90: 0 | DL90: 0 | DM90: 0 | DN90: 0 | DO90: 0 | DP90: 0 | DQ90: 0 | DR90: 0 | DS90: 0 | DT90: 0 | DU90: 0 | DV90: 0 | DW90: 0 | DX90: 0 | DY90: 0 | DZ90: 0 | EA90: 0 | EB90: 0 | EC90: 0 | ED90: 0 | EE90: 0 | EF90: 0 | EG90: 0 | EH90: 0 | EI90: 0 | EJ90: =EJ87+EJ89 -> 0 | EK90: 0 | EL90: 0 | EM90: 0 | EN90: 0 | EO90: 0 | EP90: 0 | EQ90: 0 | ER90: 0 | ES90: 0 | ET90: 0 | EU90: 0 | EV90: 0 | EW90: 0 | EX90: 0 | EY90: 0 | EZ90: 0 | FA90: 0 | FB90: 0 | FC90: 0 | FD90: 0 | FE90: 0 | FF90: 0 | FG90: 0 | FH90: 0 | FI90: 0 | FJ90: 0 | FK90: 0 | FL90: 0 | FM90: 0 | FN90: 0 | FO90: 0 | FP90: 0 | FQ90: 0 | FR90: 0 | FS90: 0 | FT90: 0 | FU90: 0 | FV90: 0 | FW90: 0 | FX90: 0 | FY90: 0 | FZ90: 0 | GA90: 0 | GB90: 0 | GC90: 0 | GD90: 0 | GE90: 0 | GF90: 0 | GG90: 0 | GH90: 0 | GI90: 0 | GJ90: 0 | GK90: 0 | GL90: 0 | GM90: 0 | GN90: 0 | GO90: 0 | GP90: 0 | GQ90: 0 | GR90: 0 | GS90: 0 | GT90: 0 | GU90: 0 | GV90: =GV87+GV89 -> 0 | GW90: 0 | GX90: 0 | GY90: 0 | GZ90: 0 | HA90: 0 | HB90: 0 | HC90: 0 | HD90: 0 | HE90: 0 | HF90: 0 | HG90: 0 | HH90: 0 | HI90: 0 | HJ90: 0 | HK90: 0 | HL90: 0 | HM90: 0 | HN90: 0 | HO90: 0 | HP90: 0 | HQ90: 0 | HR90: 0 | HS90: 0 | HT90: 0 | HU90: 0 | HV90: 0 | HW90: 0 | HX90: 0 | HY90: 0 | HZ90: 0 | IA90: 0 | IB90: 0 | IC90: 0 | ID90: 0 | IE90: 0 | IF90: 0 | IG90: 0 | IH90: 0 | II90: 0 | IJ90: 0 | IK90: 0 | IL90: 0 | IM90: 0 | IN90: 0 | IO90: 0 | IP90: 0 | IQ90: 0 | IR90: 0 | IS90: 0 | IT90: 0 | IU90: 0 | IV90: 0 | IW90: 0 | IX90: 0 | IY90: 0 | IZ90: 0 | JA90: 0 | JB90: 0 | JC90: 0 | JD90: 0 | JE90: 0 | JF90: 0 | JG90: 0 | JH90: =JH87+JH89 -> 0 | JI90: 0 | JJ90: 0 | JK90: 0 | JL90: 0 | JM90: 0 | JN90: 0 | JO90: 0 | JP90: 0 | JQ90: 0 | JR90: 0 | JS90: 0 | JT90: 0 | JU90: 0 | JV90: 0 | JW90: 0 | JX90: 0 | JY90: 0 | JZ90: 0 | KA90: 0 | KB90: 0 | KC90: 0 | KD90: 0 | KE90: 0 | KF90: 0 | KG90: 0 | KH90: 0 | KI90: 0 | KJ90: 0 | KK90: 0 | KL90: 0 | KM90: 0 | KN90: 0 | KO90: 0 | KP90: 0 | KQ90: 0 | KR90: 0 | KS90: 0 | KT90: 0 | KU90: 0 | KV90: 0 | KW90: 0 | KX90: 0 | KY90: 0 | KZ90: 0 | LA90: 0 | LB90: 0 | LC90: 0 | LD90: 0 | LE90: 0 | LF90: 0 | LG90: 0 | LH90: 0 | LI90: 0 | LJ90: 0 | LK90: 0 | LL90: 0 | LM90: 0 | LN90: 0 | LO90: 0 | LP90: 0 | LQ90: 0 | LR90: 0 | LS90: 0 | LT90: =LT87+LT89 -> 0 | LU90: 0 | LV90: 0 | LW90: 0 | LX90: 0 | LY90: 0 | LZ90: 0 | MA90: 0 | MB90: 0 | MC90: 0 | MD90: 0 | ME90: 0 | MF90: 0 | MG90: 0 | MH90: 0 | MI90: 0 | MJ90: 0 | MK90: 0 | ML90: 0 | MM90: 0 | MN90: 0 | MO90: 0 | MP90: 0 | MQ90: 0 | MR90: 0 | MS90: 0 | MT90: 0 | MU90: 0 | MV90: 0 | MW90: 0 | MX90: 0 | MY90: 0 | MZ90: 0 | NA90: 0 | NB90: 0 | NC90: 0 | ND90: 0 | NE90: 0 | NF90: 0 | NG90: 0 | NH90: 0 | NI90: 0 | NJ90: 0 | NK90: 0 | NL90: 0 | NM90: 0 | NN90: 0 | NO90: 0 | NP90: 0 | NQ90: 0 | NR90: 0 | NS90: 0 | NT90: 0 | NU90: 0 | NV90: 0 | NW90: 0 | NX90: 0 | NY90: 0 | NZ90: 0 | OA90: 0 | OB90: 0 | OC90: 0 | OD90: 0 | OE90: 0
C91: Total Capital Expenditues | E91: USD 000's | F91: Cost/kW | G91: =F33 -> 2000 | K91: =$G$91*$G$77*K90 -> 10000 | L91: =$G$91*$G$77*L90 -> 10000 | M91: 10000 | N91: 10000 | O91: 10000 | P91: 10000 | Q91: 10000 | R91: 10000 | S91: 10000 | T91: 10000 | U91: 10000 | V91: 10000 | W91: 32500 | X91: 32500 | Y91: 32500 | Z91: 32500 | AA91: 32500 | AB91: 32500 | AC91: 32500 | AD91: 32500 | AE91: 32500 | AF91: 32500 | AG91: 32500 | AH91: 32500 | AI91: 7500 | AJ91: 7500 | AK91: 7500 | AL91: 7500 | AM91: 7500 | AN91: 7500 | AO91: 7500 | AP91: 7500 | AQ91: 7500 | AR91: 7500 | AS91: 7500 | AT91: 7500 | AU91: 0 | AV91: 0 | AW91: 0 | AX91: 1.33226763e-10 | AY91: 0 | AZ91: 0 | BA91: 0 | BB91: 0 | BC91: 0 | BD91: 0 | BE91: 0 | BF91: 0 | BG91: 0 | BH91: 0 | BI91: 0 | BJ91: 0 | BK91: 0 | BL91: 0 | BM91: 0 | BN91: 0 | BO91: 0 | BP91: 0 | BQ91: 0 | BR91: 0 | BS91: 0 | BT91: 0 | BU91: 0 | BV91: 0 | BW91: 0 | BX91: =$G$91*$G$77*BX90 -> 0 | BY91: 0 | BZ91: 0 | CA91: 0 | CB91: 0 | CC91: 0 | CD91: 0 | CE91: 0 | CF91: 0 | CG91: 0 | CH91: 0 | CI91: 0 | CJ91: 0 | CK91: 0 | CL91: 0 | CM91: 0 | CN91: 0 | CO91: 0 | CP91: 0 | CQ91: 0 | CR91: 0 | CS91: 0 | CT91: 0 | CU91: 0 | CV91: 0 | CW91: 0 | CX91: 0 | CY91: 0 | CZ91: 0 | DA91: 0 | DB91: 0 | DC91: 0 | DD91: 0 | DE91: 0 | DF91: 0 | DG91: 0 | DH91: 0 | DI91: 0 | DJ91: 0 | DK91: 0 | DL91: 0 | DM91: 0 | DN91: 0 | DO91: 0 | DP91: 0 | DQ91: 0 | DR91: 0 | DS91: 0 | DT91: 0 | DU91: 0 | DV91: 0 | DW91: 0 | DX91: 0 | DY91: 0 | DZ91: 0 | EA91: 0 | EB91: 0 | EC91: 0 | ED91: 0 | EE91: 0 | EF91: 0 | EG91: 0 | EH91: 0 | EI91: 0 | EJ91: =$G$91*$G$77*EJ90 -> 0 | EK91: 0 | EL91: 0 | EM91: 0 | EN91: 0 | EO91: 0 | EP91: 0 | EQ91: 0 | ER91: 0 | ES91: 0 | ET91: 0 | EU91: 0 | EV91: 0 | EW91: 0 | EX91: 0 | EY91: 0 | EZ91: 0 | FA91: 0 | FB91: 0 | FC91: 0 | FD91: 0 | FE91: 0 | FF91: 0 | FG91: 0 | FH91: 0 | FI91: 0 | FJ91: 0 | FK91: 0 | FL91: 0 | FM91: 0 | FN91: 0 | FO91: 0 | FP91: 0 | FQ91: 0 | FR91: 0 | FS91: 0 | FT91: 0 | FU91: 0 | FV91: 0 | FW91: 0 | FX91: 0 | FY91: 0 | FZ91: 0 | GA91: 0 | GB91: 0 | GC91: 0 | GD91: 0 | GE91: 0 | GF91: 0 | GG91: 0 | GH91: 0 | GI91: 0 | GJ91: 0 | GK91: 0 | GL91: 0 | GM91: 0 | GN91: 0 | GO91: 0 | GP91: 0 | GQ91: 0 | GR91: 0 | GS91: 0 | GT91: 0 | GU91: 0 | GV91: =$G$91*$G$77*GV90 -> 0 | GW91: 0 | GX91: 0 | GY91: 0 | GZ91: 0 | HA91: 0 | HB91: 0 | HC91: 0 | HD91: 0 | HE91: 0 | HF91: 0 | HG91: 0 | HH91: 0 | HI91: 0 | HJ91: 0 | HK91: 0 | HL91: 0 | HM91: 0 | HN91: 0 | HO91: 0 | HP91: 0 | HQ91: 0 | HR91: 0 | HS91: 0 | HT91: 0 | HU91: 0 | HV91: 0 | HW91: 0 | HX91: 0 | HY91: 0 | HZ91: 0 | IA91: 0 | IB91: 0 | IC91: 0 | ID91: 0 | IE91: 0 | IF91: 0 | IG91: 0 | IH91: 0 | II91: 0 | IJ91: 0 | IK91: 0 | IL91: 0 | IM91: 0 | IN91: 0 | IO91: 0 | IP91: 0 | IQ91: 0 | IR91: 0 | IS91: 0 | IT91: 0 | IU91: 0 | IV91: 0 | IW91: 0 | IX91: 0 | IY91: 0 | IZ91: 0 | JA91: 0 | JB91: 0 | JC91: 0 | JD91: 0 | JE91: 0 | JF91: 0 | JG91: 0 | JH91: =$G$91*$G$77*JH90 -> 0 | JI91: 0 | JJ91: 0 | JK91: 0 | JL91: 0 | JM91: 0 | JN91: 0 | JO91: 0 | JP91: 0 | JQ91: 0 | JR91: 0 | JS91: 0 | JT91: 0 | JU91: 0 | JV91: 0 | JW91: 0 | JX91: 0 | JY91: 0 | JZ91: 0 | KA91: 0 | KB91: 0 | KC91: 0 | KD91: 0 | KE91: 0 | KF91: 0 | KG91: 0 | KH91: 0 | KI91: 0 | KJ91: 0 | KK91: 0 | KL91: 0 | KM91: 0 | KN91: 0 | KO91: 0 | KP91: 0 | KQ91: 0 | KR91: 0 | KS91: 0 | KT91: 0 | KU91: 0 | KV91: 0 | KW91: 0 | KX91: 0 | KY91: 0 | KZ91: 0 | LA91: 0 | LB91: 0 | LC91: 0 | LD91: 0 | LE91: 0 | LF91: 0 | LG91: 0 | LH91: 0 | LI91: 0 | LJ91: 0 | LK91: 0 | LL91: 0 | LM91: 0 | LN91: 0 | LO91: 0 | LP91: 0 | LQ91: 0 | LR91: 0 | LS91: 0 | LT91: =$G$91*$G$77*LT90 -> 0 | LU91: 0 | LV91: 0 | LW91: 0 | LX91: 0 | LY91: 0 | LZ91: 0 | MA91: 0 | MB91: 0 | MC91: 0 | MD91: 0 | ME91: 0 | MF91: 0 | MG91: 0 | MH91: 0 | MI91: 0 | MJ91: 0 | MK91: 0 | ML91: 0 | MM91: 0 | MN91: 0 | MO91: 0 | MP91: 0 | MQ91: 0 | MR91: 0 | MS91: 0 | MT91: 0 | MU91: 0 | MV91: 0 | MW91: 0 | MX91: 0 | MY91: 0 | MZ91: 0 | NA91: 0 | NB91: 0 | NC91: 0 | ND91: 0 | NE91: 0 | NF91: 0 | NG91: 0 | NH91: 0 | NI91: 0 | NJ91: 0 | NK91: 0 | NL91: 0 | NM91: 0 | NN91: 0 | NO91: 0 | NP91: 0 | NQ91: 0 | NR91: 0 | NS91: 0 | NT91: 0 | NU91: 0 | NV91: 0 | NW91: 0 | NX91: 0 | NY91: 0 | NZ91: 0 | OA91: 0 | OB91: 0 | OC91: 0 | OD91: 0 | OE91: 0
A93: EBITDA
B94: Revenues
C95: Base Merchant Price | E95: USD/MWH | F95: Base Price | G95: =F38 -> 70 | K95: =$G$95 -> 70 | L95: =$G$95 -> 70 | M95: 70 | N95: 70 | O95: 70 | P95: 70 | Q95: 70 | R95: 70 | S95: 70 | T95: 70 | U95: 70 | V95: 70 | W95: 70 | X95: 70 | Y95: 70 | Z95: 70 | AA95: 70 | AB95: 70 | AC95: 70 | AD95: 70 | AE95: 70 | AF95: 70 | AG95: 70 | AH95: 70 | AI95: 70 | AJ95: 70 | AK95: 70 | AL95: 70 | AM95: 70 | AN95: 70 | AO95: 70 | AP95: 70 | AQ95: 70 | AR95: 70 | AS95: 70 | AT95: 70 | AU95: 70 | AV95: 70 | AW95: 70 | AX95: 70 | AY95: 70 | AZ95: 70 | BA95: 70 | BB95: 70 | BC95: 70 | BD95: 70 | BE95: 70 | BF95: 70 | BG95: 70 | BH95: 70 | BI95: 70 | BJ95: 70 | BK95: 70 | BL95: 70 | BM95: 70 | BN95: 70 | BO95: 70 | BP95: 70 | BQ95: 70 | BR95: 70 | BS95: 70 | BT95: 70 | BU95: 70 | BV95: 70 | BW95: 70 | BX95: =$G$95 -> 70 | BY95: 70 | BZ95: 70 | CA95: 70 | CB95: 70 | CC95: 70 | CD95: 70 | CE95: 70 | CF95: 70 | CG95: 70 | CH95: 70 | CI95: 70 | CJ95: 70 | CK95: 70 | CL95: 70 | CM95: 70 | CN95: 70 | CO95: 70 | CP95: 70 | CQ95: 70 | CR95: 70 | CS95: 70 | CT95: 70 | CU95: 70 | CV95: 70 | CW95: 70 | CX95: 70 | CY95: 70 | CZ95: 70 | DA95: 70 | DB95: 70 | DC95: 70 | DD95: 70 | DE95: 70 | DF95: 70 | DG95: 70 | DH95: 70 | DI95: 70 | DJ95: 70 | DK95: 70 | DL95: 70 | DM95: 70 | DN95: 70 | DO95: 70 | DP95: 70 | DQ95: 70 | DR95: 70 | DS95: 70 | DT95: 70 | DU95: 70 | DV95: 70 | DW95: 70 | DX95: 70 | DY95: 70 | DZ95: 70 | EA95: 70 | EB95: 70 | EC95: 70 | ED95: 70 | EE95: 70 | EF95: 70 | EG95: 70 | EH95: 70 | EI95: 70 | EJ95: =$G$95 -> 70 | EK95: 70 | EL95: 70 | EM95: 70 | EN95: 70 | EO95: 70 | EP95: 70 | EQ95: 70 | ER95: 70 | ES95: 70 | ET95: 70 | EU95: 70 | EV95: 70 | EW95: 70 | EX95: 70 | EY95: 70 | EZ95: 70 | FA95: 70 | FB95: 70 | FC95: 70 | FD95: 70 | FE95: 70 | FF95: 70 | FG95: 70 | FH95: 70 | FI95: 70 | FJ95: 70 | FK95: 70 | FL95: 70 | FM95: 70 | FN95: 70 | FO95: 70 | FP95: 70 | FQ95: 70 | FR95: 70 | FS95: 70 | FT95: 70 | FU95: 70 | FV95: 70 | FW95: 70 | FX95: 70 | FY95: 70 | FZ95: 70 | GA95: 70 | GB95: 70 | GC95: 70 | GD95: 70 | GE95: 70 | GF95: 70 | GG95: 70 | GH95: 70 | GI95: 70 | GJ95: 70 | GK95: 70 | GL95: 70 | GM95: 70 | GN95: 70 | GO95: 70 | GP95: 70 | GQ95: 70 | GR95: 70 | GS95: 70 | GT95: 70 | GU95: 70 | GV95: =$G$95 -> 70 | GW95: 70 | GX95: 70 | GY95: 70 | GZ95: 70 | HA95: 70 | HB95: 70 | HC95: 70 | HD95: 70 | HE95: 70 | HF95: 70 | HG95: 70 | HH95: 70 | HI95: 70 | HJ95: 70 | HK95: 70 | HL95: 70 | HM95: 70 | HN95: 70 | HO95: 70 | HP95: 70 | HQ95: 70 | HR95: 70 | HS95: 70 | HT95: 70 | HU95: 70 | HV95: 70 | HW95: 70 | HX95: 70 | HY95: 70 | HZ95: 70 | IA95: 70 | IB95: 70 | IC95: 70 | ID95: 70 | IE95: 70 | IF95: 70 | IG95: 70 | IH95: 70 | II95: 70 | IJ95: 70 | IK95: 70 | IL95: 70 | IM95: 70 | IN95: 70 | IO95: 70 | IP95: 70 | IQ95: 70 | IR95: 70 | IS95: 70 | IT95: 70 | IU95: 70 | IV95: 70 | IW95: 70 | IX95: 70 | IY95: 70 | IZ95: 70 | JA95: 70 | JB95: 70 | JC95: 70 | JD95: 70 | JE95: 70 | JF95: 70 | JG95: 70 | JH95: =$G$95 -> 70 | JI95: 70 | JJ95: 70 | JK95: 70 | JL95: 70 | JM95: 70 | JN95: 70 | JO95: 70 | JP95: 70 | JQ95: 70 | JR95: 70 | JS95: 70 | JT95: 70 | JU95: 70 | JV95: 70 | JW95: 70 | JX95: 70 | JY95: 70 | JZ95: 70 | KA95: 70 | KB95: 70 | KC95: 70 | KD95: 70 | KE95: 70 | KF95: 70 | KG95: 70 | KH95: 70 | KI95: 70 | KJ95: 70 | KK95: 70 | KL95: 70 | KM95: 70 | KN95: 70 | KO95: 70 | KP95: 70 | KQ95: 70 | KR95: 70 | KS95: 70 | KT95: 70 | KU95: 70 | KV95: 70 | KW95: 70 | KX95: 70 | KY95: 70 | KZ95: 70 | LA95: 70 | LB95: 70 | LC95: 70 | LD95: 70 | LE95: 70 | LF95: 70 | LG95: 70 | LH95: 70 | LI95: 70 | LJ95: 70 | LK95: 70 | LL95: 70 | LM95: 70 | LN95: 70 | LO95: 70 | LP95: 70 | LQ95: 70 | LR95: 70 | LS95: 70 | LT95: =$G$95 -> 70 | LU95: 70 | LV95: 70 | LW95: 70 | LX95: 70 | LY95: 70 | LZ95: 70 | MA95: 70 | MB95: 70 | MC95: 70 | MD95: 70 | ME95: 70 | MF95: 70 | MG95: 70 | MH95: 70 | MI95: 70 | MJ95: 70 | MK95: 70 | ML95: 70 | MM95: 70 | MN95: 70 | MO95: 70 | MP95: 70 | MQ95: 70 | MR95: 70 | MS95: 70 | MT95: 70 | MU95: 70 | MV95: 70 | MW95: 70 | MX95: 70 | MY95: 70 | MZ95: 70 | NA95: 70 | NB95: 70 | NC95: 70 | ND95: 70 | NE95: 70 | NF95: 70 | NG95: 70 | NH95: 70 | NI95: 70 | NJ95: 70 | NK95: 70 | NL95: 70 | NM95: 70 | NN95: 70 | NO95: 70 | NP95: 70 | NQ95: 70 | NR95: 70 | NS95: 70 | NT95: 70 | NU95: 70 | NV95: 70 | NW95: 70 | NX95: 70 | NY95: 70 | NZ95: 70 | OA95: 70 | OB95: 70 | OC95: 70 | OD95: 70 | OE95: 70
C96: Annual Growth | K96: =LOOKUP(K11,40:40,46:46) -> -0.03 | L96: -0.03 | M96: -0.03 | N96: -0.03 | O96: -0.03 | P96: -0.03 | Q96: -0.03 | R96: -0.03 | S96: -0.03 | T96: -0.03 | U96: 0 | V96: 0 | W96: 0 | X96: 0 | Y96: 0 | Z96: 0 | AA96: 0 | AB96: 0 | AC96: 0 | AD96: 0 | AE96: 0 | AF96: 0 | AG96: 0.01 | AH96: 0.01 | AI96: 0.01 | AJ96: 0.01 | AK96: 0.01 | AL96: 0.01 | AM96: 0.01 | AN96: 0.01 | AO96: 0.01 | AP96: 0.01 | AQ96: 0.01 | AR96: 0.01 | AS96: 0.025 | AT96: 0.025 | AU96: 0.025 | AV96: 0.025 | AW96: 0.025 | AX96: 0.025 | AY96: 0.025 | AZ96: 0.025 | BA96: 0.025 | BB96: 0.025 | BC96: 0.025 | BD96: 0.025 | BE96: 0.02 | BF96: 0.02 | BG96: 0.02 | BH96: 0.02 | BI96: 0.02 | BJ96: 0.02 | BK96: 0.02 | BL96: 0.02 | BM96: 0.02 | BN96: 0.02 | BO96: 0.02 | BP96: 0.02 | BQ96: 0.015 | BR96: 0.015 | BS96: 0.015 | BT96: 0.015 | BU96: 0.015 | BV96: 0.015 | BW96: =LOOKUP(BW11,40:40,46:46) -> 0.015 | BX96: 0.015 | BY96: 0.015 | BZ96: 0.015 | CA96: 0.015 | CB96: 0.015 | CC96: 0.015 | CD96: 0.015 | CE96: 0.015 | CF96: 0.015 | CG96: 0.015 | CH96: 0.015 | CI96: 0.015 | CJ96: 0.015 | CK96: 0.015 | CL96: 0.015 | CM96: 0.015 | CN96: 0.015 | CO96: 0.015 | CP96: 0.015 | CQ96: 0.015 | CR96: 0.015 | CS96: 0.015 | CT96: 0.015 | CU96: 0.015 | CV96: 0.015 | CW96: 0.015 | CX96: 0.015 | CY96: 0.015 | CZ96: 0.015 | DA96: 0.015 | DB96: 0.015 | DC96: 0.015 | DD96: 0.015 | DE96: 0.015 | DF96: 0.015 | DG96: 0.015 | DH96: 0.015 | DI96: 0.015 | DJ96: 0.015 | DK96: 0.015 | DL96: 0.015 | DM96: 0.015 | DN96: 0.015 | DO96: 0.015 | DP96: 0.015 | DQ96: 0.015 | DR96: 0.015 | DS96: 0.015 | DT96: 0.015 | DU96: 0.015 | DV96: 0.015 | DW96: 0.015 | DX96: 0.015 | DY96: 0.015 | DZ96: 0.015 | EA96: 0.015 | EB96: 0.015 | EC96: 0.015 | ED96: 0.015 | EE96: 0.015 | EF96: 0.015 | EG96: 0.015 | EH96: 0.015 | EI96: =LOOKUP(EI11,40:40,46:46) -> 0.015 | EJ96: 0.015 | EK96: 0.015 | EL96: 0.015 | EM96: 0.015 | EN96: 0.015 | EO96: 0.015 | EP96: 0.015 | EQ96: 0.015 | ER96: 0.015 | ES96: 0.015 | ET96: 0.015 | EU96: 0.015 | EV96: 0.015 | EW96: 0.015 | EX96: 0.015 | EY96: 0.015 | EZ96: 0.015 | FA96: 0.015 | FB96: 0.015 | FC96: 0.015 | FD96: 0.015 | FE96: 0.015 | FF96: 0.015 | FG96: 0.015 | FH96: 0.015 | FI96: 0.015 | FJ96: 0.015 | FK96: 0.015 | FL96: 0.015 | FM96: 0.015 | FN96: 0.015 | FO96: 0.015 | FP96: 0.015 | FQ96: 0.015 | FR96: 0.015 | FS96: 0.015 | FT96: 0.015 | FU96: 0.015 | FV96: 0.015 | FW96: 0.015 | FX96: 0.015 | FY96: 0.015 | FZ96: 0.015 | GA96: 0.015 | GB96: 0.015 | GC96: 0.015 | GD96: 0.015 | GE96: 0.015 | GF96: 0.015 | GG96: 0.015 | GH96: 0.015 | GI96: 0.015 | GJ96: 0.015 | GK96: 0.015 | GL96: 0.015 | GM96: 0.015 | GN96: 0.015 | GO96: 0.015 | GP96: 0.015 | GQ96: 0.015 | GR96: 0.015 | GS96: 0.015 | GT96: 0.015 | GU96: =LOOKUP(GU11,40:40,46:46) -> 0.015 | GV96: 0.015 | GW96: 0.015 | GX96: 0.015 | GY96: 0.015 | GZ96: 0.015 | HA96: 0.015 | HB96: 0.015 | HC96: 0.015 | HD96: 0.015 | HE96: 0.015 | HF96: 0.015 | HG96: 0.015 | HH96: 0.015 | HI96: 0.015 | HJ96: 0.015 | HK96: 0.015 | HL96: 0.015 | HM96: 0.015 | HN96: 0.015 | HO96: 0.015 | HP96: 0.015 | HQ96: 0.015 | HR96: 0.015 | HS96: 0.015 | HT96: 0.015 | HU96: 0.015 | HV96: 0.015 | HW96: 0.015 | HX96: 0.015 | HY96: 0.015 | HZ96: 0.015 | IA96: 0.015 | IB96: 0.015 | IC96: 0.015 | ID96: 0.015 | IE96: 0.015 | IF96: 0.015 | IG96: 0.015 | IH96: 0.015 | II96: 0.015 | IJ96: 0.015 | IK96: 0.015 | IL96: 0.015 | IM96: 0.015 | IN96: 0.015 | IO96: 0.015 | IP96: 0.015 | IQ96: 0.015 | IR96: 0.015 | IS96: 0.015 | IT96: 0.015 | IU96: 0.015 | IV96: 0.015 | IW96: 0.015 | IX96: 0.015 | IY96: 0.015 | IZ96: 0.015 | JA96: 0.015 | JB96: 0.015 | JC96: 0.015 | JD96: 0.015 | JE96: 0.015 | JF96: 0.015 | JG96: =LOOKUP(JG11,40:40,46:46) -> 0.015 | JH96: 0.015 | JI96: 0.015 | JJ96: 0.015 | JK96: 0.015 | JL96: 0.015 | JM96: 0.015 | JN96: 0.015 | JO96: 0.015 | JP96: 0.015 | JQ96: 0.015 | JR96: 0.015 | JS96: 0.015 | JT96: 0.015 | JU96: 0.015 | JV96: 0.015 | JW96: 0.015 | JX96: 0.015 | JY96: 0.015 | JZ96: 0.015 | KA96: 0.015 | KB96: 0.015 | KC96: 0.015 | KD96: 0.015 | KE96: 0.015 | KF96: 0.015 | KG96: 0.015 | KH96: 0.015 | KI96: 0.015 | KJ96: 0.015 | KK96: 0.015 | KL96: 0.015 | KM96: 0.015 | KN96: 0.015 | KO96: 0.015 | KP96: 0.015 | KQ96: 0.015 | KR96: 0.015 | KS96: 0.015 | KT96: 0.015 | KU96: 0.015 | KV96: 0.015 | KW96: 0.015 | KX96: 0.015 | KY96: 0.015 | KZ96: 0.015 | LA96: 0.015 | LB96: 0.015 | LC96: 0.015 | LD96: 0.015 | LE96: 0.015 | LF96: 0.015 | LG96: 0.015 | LH96: 0.015 | LI96: 0.015 | LJ96: 0.015 | LK96: 0.015 | LL96: 0.015 | LM96: 0.015 | LN96: 0.015 | LO96: 0.015 | LP96: 0.015 | LQ96: 0.015 | LR96: 0.015 | LS96: =LOOKUP(LS11,40:40,46:46) -> 0.015 | LT96: 0.015 | LU96: 0.015 | LV96: 0.015 | LW96: 0.015 | LX96: 0.015 | LY96: 0.015 | LZ96: 0.015 | MA96: 0.015 | MB96: 0.015 | MC96: 0.015 | MD96: 0.015 | ME96: 0.015 | MF96: 0.015 | MG96: 0.015 | MH96: 0.015 | MI96: 0.015 | MJ96: 0.015 | MK96: 0.015 | ML96: 0.015 | MM96: 0.015 | MN96: 0.015 | MO96: 0.015 | MP96: 0.015 | MQ96: 0.015 | MR96: 0.015 | MS96: 0.015 | MT96: 0.015 | MU96: 0.015 | MV96: 0.015 | MW96: 0.015 | MX96: 0.015 | MY96: 0.015 | MZ96: 0.015 | NA96: 0.015 | NB96: 0.015 | NC96: 0.015 | ND96: 0.015 | NE96: 0.015 | NF96: 0.015 | NG96: 0.015 | NH96: 0.015 | NI96: 0.015 | NJ96: 0.015 | NK96: 0.015 | NL96: 0.015 | NM96: 0.015 | NN96: 0.015 | NO96: 0.015 | NP96: 0.015 | NQ96: 0.015 | NR96: 0.015 | NS96: 0.015 | NT96: 0.015 | NU96: 0.015 | NV96: 0.015 | NW96: 0.015 | NX96: 0.015 | NY96: 0.015 | NZ96: 0.015 | OA96: 0.015 | OB96: 0.015 | OC96: 0.015 | OD96: 0.015 | OE96: 0.015
C97: Periodic/Monthly Growth | K97: =(1+K96)^(1/12)-1 -> -0.002535048614 | L97: =(1+L96)^(1/12)-1 -> -0.002535048614 | M97: -0.002535048614 | N97: -0.002535048614 | O97: -0.002535048614 | P97: -0.002535048614 | Q97: -0.002535048614 | R97: -0.002535048614 | S97: -0.002535048614 | T97: -0.002535048614 | U97: 0 | V97: 0 | W97: 0 | X97: 0 | Y97: 0 | Z97: 0 | AA97: 0 | AB97: 0 | AC97: 0 | AD97: 0 | AE97: 0 | AF97: 0 | AG97: 0.0008295381143 | AH97: 0.0008295381143 | AI97: 0.0008295381143 | AJ97: 0.0008295381143 | AK97: 0.0008295381143 | AL97: 0.0008295381143 | AM97: 0.0008295381143 | AN97: 0.0008295381143 | AO97: 0.0008295381143 | AP97: 0.0008295381143 | AQ97: 0.0008295381143 | AR97: 0.0008295381143 | AS97: 0.00205983627 | AT97: 0.00205983627 | AU97: 0.00205983627 | AV97: 0.00205983627 | AW97: 0.00205983627 | AX97: 0.00205983627 | AY97: 0.00205983627 | AZ97: 0.00205983627 | BA97: 0.00205983627 | BB97: 0.00205983627 | BC97: 0.00205983627 | BD97: 0.00205983627 | BE97: 0.001651581302 | BF97: 0.001651581302 | BG97: 0.001651581302 | BH97: 0.001651581302 | BI97: 0.001651581302 | BJ97: 0.001651581302 | BK97: 0.001651581302 | BL97: 0.001651581302 | BM97: 0.001651581302 | BN97: 0.001651581302 | BO97: 0.001651581302 | BP97: 0.001651581302 | BQ97: 0.001241487716 | BR97: 0.001241487716 | BS97: 0.001241487716 | BT97: 0.001241487716 | BU97: 0.001241487716 | BV97: 0.001241487716 | BW97: 0.001241487716 | BX97: =(1+BX96)^(1/12)-1 -> 0.001241487716 | BY97: 0.001241487716 | BZ97: 0.001241487716 | CA97: 0.001241487716 | CB97: 0.001241487716 | CC97: 0.001241487716 | CD97: 0.001241487716 | CE97: 0.001241487716 | CF97: 0.001241487716 | CG97: 0.001241487716 | CH97: 0.001241487716 | CI97: 0.001241487716 | CJ97: 0.001241487716 | CK97: 0.001241487716 | CL97: 0.001241487716 | CM97: 0.001241487716 | CN97: 0.001241487716 | CO97: 0.001241487716 | CP97: 0.001241487716 | CQ97: 0.001241487716 | CR97: 0.001241487716 | CS97: 0.001241487716 | CT97: 0.001241487716 | CU97: 0.001241487716 | CV97: 0.001241487716 | CW97: 0.001241487716 | CX97: 0.001241487716 | CY97: 0.001241487716 | CZ97: 0.001241487716 | DA97: 0.001241487716 | DB97: 0.001241487716 | DC97: 0.001241487716 | DD97: 0.001241487716 | DE97: 0.001241487716 | DF97: 0.001241487716 | DG97: 0.001241487716 | DH97: 0.001241487716 | DI97: 0.001241487716 | DJ97: 0.001241487716 | DK97: 0.001241487716 | DL97: 0.001241487716 | DM97: 0.001241487716 | DN97: 0.001241487716 | DO97: 0.001241487716 | DP97: 0.001241487716 | DQ97: 0.001241487716 | DR97: 0.001241487716 | DS97: 0.001241487716 | DT97: 0.001241487716 | DU97: 0.001241487716 | DV97: 0.001241487716 | DW97: 0.001241487716 | DX97: 0.001241487716 | DY97: 0.001241487716 | DZ97: 0.001241487716 | EA97: 0.001241487716 | EB97: 0.001241487716 | EC97: 0.001241487716 | ED97: 0.001241487716 | EE97: 0.001241487716 | EF97: 0.001241487716 | EG97: 0.001241487716 | EH97: 0.001241487716 | EI97: 0.001241487716 | EJ97: =(1+EJ96)^(1/12)-1 -> 0.001241487716 | EK97: 0.001241487716 | EL97: 0.001241487716 | EM97: 0.001241487716 | EN97: 0.001241487716 | EO97: 0.001241487716 | EP97: 0.001241487716 | EQ97: 0.001241487716 | ER97: 0.001241487716 | ES97: 0.001241487716 | ET97: 0.001241487716 | EU97: 0.001241487716 | EV97: 0.001241487716 | EW97: 0.001241487716 | EX97: 0.001241487716 | EY97: 0.001241487716 | EZ97: 0.001241487716 | FA97: 0.001241487716 | FB97: 0.001241487716 | FC97: 0.001241487716 | FD97: 0.001241487716 | FE97: 0.001241487716 | FF97: 0.001241487716 | FG97: 0.001241487716 | FH97: 0.001241487716 | FI97: 0.001241487716 | FJ97: 0.001241487716 | FK97: 0.001241487716 | FL97: 0.001241487716 | FM97: 0.001241487716 | FN97: 0.001241487716 | FO97: 0.001241487716 | FP97: 0.001241487716 | FQ97: 0.001241487716 | FR97: 0.001241487716 | FS97: 0.001241487716 | FT97: 0.001241487716 | FU97: 0.001241487716 | FV97: 0.001241487716 | FW97: 0.001241487716 | FX97: 0.001241487716 | FY97: 0.001241487716 | FZ97: 0.001241487716 | GA97: 0.001241487716 | GB97: 0.001241487716 | GC97: 0.001241487716 | GD97: 0.001241487716 | GE97: 0.001241487716 | GF97: 0.001241487716 | GG97: 0.001241487716 | GH97: 0.001241487716 | GI97: 0.001241487716 | GJ97: 0.001241487716 | GK97: 0.001241487716 | GL97: 0.001241487716 | GM97: 0.001241487716 | GN97: 0.001241487716 | GO97: 0.001241487716 | GP97: 0.001241487716 | GQ97: 0.001241487716 | GR97: 0.001241487716 | GS97: 0.001241487716 | GT97: 0.001241487716 | GU97: 0.001241487716 | GV97: =(1+GV96)^(1/12)-1 -> 0.001241487716 | GW97: 0.001241487716 | GX97: 0.001241487716 | GY97: 0.001241487716 | GZ97: 0.001241487716 | HA97: 0.001241487716 | HB97: 0.001241487716 | HC97: 0.001241487716 | HD97: 0.001241487716 | HE97: 0.001241487716 | HF97: 0.001241487716 | HG97: 0.001241487716 | HH97: 0.001241487716 | HI97: 0.001241487716 | HJ97: 0.001241487716 | HK97: 0.001241487716 | HL97: 0.001241487716 | HM97: 0.001241487716 | HN97: 0.001241487716 | HO97: 0.001241487716 | HP97: 0.001241487716 | HQ97: 0.001241487716 | HR97: 0.001241487716 | HS97: 0.001241487716 | HT97: 0.001241487716 | HU97: 0.001241487716 | HV97: 0.001241487716 | HW97: 0.001241487716 | HX97: 0.001241487716 | HY97: 0.001241487716 | HZ97: 0.001241487716 | IA97: 0.001241487716 | IB97: 0.001241487716 | IC97: 0.001241487716 | ID97: 0.001241487716 | IE97: 0.001241487716 | IF97: 0.001241487716 | IG97: 0.001241487716 | IH97: 0.001241487716 | II97: 0.001241487716 | IJ97: 0.001241487716 | IK97: 0.001241487716 | IL97: 0.001241487716 | IM97: 0.001241487716 | IN97: 0.001241487716 | IO97: 0.001241487716 | IP97: 0.001241487716 | IQ97: 0.001241487716 | IR97: 0.001241487716 | IS97: 0.001241487716 | IT97: 0.001241487716 | IU97: 0.001241487716 | IV97: 0.001241487716 | IW97: 0.001241487716 | IX97: 0.001241487716 | IY97: 0.001241487716 | IZ97: 0.001241487716 | JA97: 0.001241487716 | JB97: 0.001241487716 | JC97: 0.001241487716 | JD97: 0.001241487716 | JE97: 0.001241487716 | JF97: 0.001241487716 | JG97: 0.001241487716 | JH97: =(1+JH96)^(1/12)-1 -> 0.001241487716 | JI97: 0.001241487716 | JJ97: 0.001241487716 | JK97: 0.001241487716 | JL97: 0.001241487716 | JM97: 0.001241487716 | JN97: 0.001241487716 | JO97: 0.001241487716 | JP97: 0.001241487716 | JQ97: 0.001241487716 | JR97: 0.001241487716 | JS97: 0.001241487716 | JT97: 0.001241487716 | JU97: 0.001241487716 | JV97: 0.001241487716 | JW97: 0.001241487716 | JX97: 0.001241487716 | JY97: 0.001241487716 | JZ97: 0.001241487716 | KA97: 0.001241487716 | KB97: 0.001241487716 | KC97: 0.001241487716 | KD97: 0.001241487716 | KE97: 0.001241487716 | KF97: 0.001241487716 | KG97: 0.001241487716 | KH97: 0.001241487716 | KI97: 0.001241487716 | KJ97: 0.001241487716 | KK97: 0.001241487716 | KL97: 0.001241487716 | KM97: 0.001241487716 | KN97: 0.001241487716 | KO97: 0.001241487716 | KP97: 0.001241487716 | KQ97: 0.001241487716 | KR97: 0.001241487716 | KS97: 0.001241487716 | KT97: 0.001241487716 | KU97: 0.001241487716 | KV97: 0.001241487716 | KW97: 0.001241487716 | KX97: 0.001241487716 | KY97: 0.001241487716 | KZ97: 0.001241487716 | LA97: 0.001241487716 | LB97: 0.001241487716 | LC97: 0.001241487716 | LD97: 0.001241487716 | LE97: 0.001241487716 | LF97: 0.001241487716 | LG97: 0.001241487716 | LH97: 0.001241487716 | LI97: 0.001241487716 | LJ97: 0.001241487716 | LK97: 0.001241487716 | LL97: 0.001241487716 | LM97: 0.001241487716 | LN97: 0.001241487716 | LO97: 0.001241487716 | LP97: 0.001241487716 | LQ97: 0.001241487716 | LR97: 0.001241487716 | LS97: 0.001241487716 | LT97: =(1+LT96)^(1/12)-1 -> 0.001241487716 | LU97: 0.001241487716 | LV97: 0.001241487716 | LW97: 0.001241487716 | LX97: 0.001241487716 | LY97: 0.001241487716 | LZ97: 0.001241487716 | MA97: 0.001241487716 | MB97: 0.001241487716 | MC97: 0.001241487716 | MD97: 0.001241487716 | ME97: 0.001241487716 | MF97: 0.001241487716 | MG97: 0.001241487716 | MH97: 0.001241487716 | MI97: 0.001241487716 | MJ97: 0.001241487716 | MK97: 0.001241487716 | ML97: 0.001241487716 | MM97: 0.001241487716 | MN97: 0.001241487716 | MO97: 0.001241487716 | MP97: 0.001241487716 | MQ97: 0.001241487716 | MR97: 0.001241487716 | MS97: 0.001241487716 | MT97: 0.001241487716 | MU97: 0.001241487716 | MV97: 0.001241487716 | MW97: 0.001241487716 | MX97: 0.001241487716 | MY97: 0.001241487716 | MZ97: 0.001241487716 | NA97: 0.001241487716 | NB97: 0.001241487716 | NC97: 0.001241487716 | ND97: 0.001241487716 | NE97: 0.001241487716 | NF97: 0.001241487716 | NG97: 0.001241487716 | NH97: 0.001241487716 | NI97: 0.001241487716 | NJ97: 0.001241487716 | NK97: 0.001241487716 | NL97: 0.001241487716 | NM97: 0.001241487716 | NN97: 0.001241487716 | NO97: 0.001241487716 | NP97: 0.001241487716 | NQ97: 0.001241487716 | NR97: 0.001241487716 | NS97: 0.001241487716 | NT97: 0.001241487716 | NU97: 0.001241487716 | NV97: 0.001241487716 | NW97: 0.001241487716 | NX97: 0.001241487716 | NY97: 0.001241487716 | NZ97: 0.001241487716 | OA97: 0.001241487716 | OB97: 0.001241487716 | OC97: 0.001241487716 | OD97: 0.001241487716 | OE97: 0.001241487716
C98: Price Index | J98: 1 | K98: =J98*(1+K97) -> 0.9974649514 | L98: =K98*(1+L97) -> 0.9949363292 | M98: 0.9924141173 | N98: 0.9898982992 | O98: 0.9873888589 | P98: 0.9848857802 | Q98: 0.9823890468 | R98: 0.9798986429 | S98: 0.9774145522 | T98: 0.9749367588 | U98: 0.9749367588 | V98: 0.9749367588 | W98: 0.9749367588 | X98: 0.9749367588 | Y98: 0.9749367588 | Z98: 0.9749367588 | AA98: 0.9749367588 | AB98: 0.9749367588 | AC98: 0.9749367588 | AD98: 0.9749367588 | AE98: 0.9749367588 | AF98: 0.9749367588 | AG98: 0.975745506 | AH98: 0.976554924 | AI98: 0.9773650136 | AJ98: 0.9781757751 | AK98: 0.9789872092 | AL98: 0.9797993164 | AM98: 0.9806120973 | AN98: 0.9814255524 | AO98: 0.9822396823 | AP98: 0.9830544875 | AQ98: 0.9838699687 | AR98: 0.9846861263 | AS98: 0.9867144185 | AT98: 0.9887468887 | AU98: 0.9907835454 | AV98: 0.9928243973 | AW98: 0.994869453 | AX98: 0.9969187212 | AY98: 0.9989722105 | AZ98: 1.00102993 | BA98: 1.003091887 | BB98: 1.005158092 | BC98: 1.007228554 | BD98: 1.00930328 | BE98: 1.010970226 | BF98: 1.012639925 | BG98: 1.014312383 | BH98: 1.015987602 | BI98: 1.017665588 | BJ98: 1.019346346 | BK98: 1.021029879 | BL98: 1.022716193 | BM98: 1.024405292 | BN98: 1.02609718 | BO98: 1.027791863 | BP98: 1.029489345 | BQ98: 1.030767443 | BR98: 1.032047129 | BS98: 1.033328402 | BT98: 1.034611267 | BU98: 1.035895724 | BV98: 1.037181776 | BW98: 1.038469424 | BX98: =BW98*(1+BX97) -> 1.039758671 | BY98: 1.041049519 | BZ98: 1.042341969 | CA98: 1.043636024 | CB98: 1.044931685 | CC98: 1.046228955 | CD98: 1.047527836 | CE98: 1.048828328 | CF98: 1.050130436 | CG98: 1.05143416 | CH98: 1.052739503 | CI98: 1.054046466 | CJ98: 1.055355051 | CK98: 1.056665262 | CL98: 1.057977099 | CM98: 1.059290564 | CN98: 1.060605661 | CO98: 1.061922389 | CP98: 1.063240753 | CQ98: 1.064560753 | CR98: 1.065882392 | CS98: 1.067205672 | CT98: 1.068530595 | CU98: 1.069857163 | CV98: 1.071185377 | CW98: 1.072515241 | CX98: 1.073846755 | CY98: 1.075179923 | CZ98: 1.076514745 | DA98: 1.077851225 | DB98: 1.079189364 | DC98: 1.080529165 | DD98: 1.081870628 | DE98: 1.083213757 | DF98: 1.084558554 | DG98: 1.08590502 | DH98: 1.087253158 | DI98: 1.088602969 | DJ98: 1.089954457 | DK98: 1.091307622 | DL98: 1.092662467 | DM98: 1.094018994 | DN98: 1.095377205 | DO98: 1.096737102 | DP98: 1.098098688 | DQ98: 1.099461964 | DR98: 1.100826932 | DS98: 1.102193595 | DT98: 1.103561955 | DU98: 1.104932014 | DV98: 1.106303773 | DW98: 1.107677236 | DX98: 1.109052404 | DY98: 1.110429279 | DZ98: 1.111807863 | EA98: 1.113188159 | EB98: 1.114570168 | EC98: 1.115953893 | ED98: 1.117339336 | EE98: 1.118726499 | EF98: 1.120115385 | EG98: 1.121505994 | EH98: 1.12289833 | EI98: 1.124292394 | EJ98: =EI98*(1+EJ97) -> 1.12568819 | EK98: 1.127085718 | EL98: 1.128484981 | EM98: 1.129885981 | EN98: 1.131288721 | EO98: 1.132693202 | EP98: 1.134099426 | EQ98: 1.135507397 | ER98: 1.136917115 | ES98: 1.138328584 | ET98: 1.139741805 | EU98: 1.14115678 | EV98: 1.142573513 | EW98: 1.143992004 | EX98: 1.145412256 | EY98: 1.146834271 | EZ98: 1.148258051 | FA98: 1.1496836 | FB98: 1.151110918 | FC98: 1.152540008 | FD98: 1.153970872 | FE98: 1.155403513 | FF98: 1.156837932 | FG98: 1.158274132 | FH98: 1.159712115 | FI98: 1.161151884 | FJ98: 1.162593439 | FK98: 1.164036785 | FL98: 1.165481922 | FM98: 1.166928854 | FN98: 1.168377582 | FO98: 1.169828108 | FP98: 1.171280435 | FQ98: 1.172734565 | FR98: 1.174190501 | FS98: 1.175648244 | FT98: 1.177107797 | FU98: 1.178569162 | FV98: 1.180032341 | FW98: 1.181497337 | FX98: 1.182964151 | FY98: 1.184432787 | FZ98: 1.185903245 | GA98: 1.18737553 | GB98: 1.188849642 | GC98: 1.190325584 | GD98: 1.191803359 | GE98: 1.193282968 | GF98: 1.194764414 | GG98: 1.196247699 | GH98: 1.197732826 | GI98: 1.199219797 | GJ98: 1.200708613 | GK98: 1.202199278 | GL98: 1.203691794 | GM98: 1.205186163 | GN98: 1.206682386 | GO98: 1.208180468 | GP98: 1.209680409 | GQ98: 1.211182212 | GR98: 1.21268588 | GS98: 1.214191415 | GT98: 1.215698818 | GU98: 1.217208094 | GV98: =GU98*(1+GV97) -> 1.218719243 | GW98: 1.220232267 | GX98: 1.221747171 | GY98: 1.223263955 | GZ98: 1.224782622 | HA98: 1.226303175 | HB98: 1.227825615 | HC98: 1.229349945 | HD98: 1.230876168 | HE98: 1.232404286 | HF98: 1.233934301 | HG98: 1.235466215 | HH98: 1.237000031 | HI98: 1.238535751 | HJ98: 1.240073378 | HK98: 1.241612914 | HL98: 1.243154361 | HM98: 1.244697722 | HN98: 1.246242999 | HO98: 1.247790195 | HP98: 1.249339311 | HQ98: 1.25089035 | HR98: 1.252443315 | HS98: 1.253998208 | HT98: 1.255555032 | HU98: 1.257113788 | HV98: 1.258674479 | HW98: 1.260237108 | HX98: 1.261801677 | HY98: 1.263368188 | HZ98: 1.264936644 | IA98: 1.266507048 | IB98: 1.268079401 | IC98: 1.269653706 | ID98: 1.271229965 | IE98: 1.272808181 | IF98: 1.274388357 | IG98: 1.275970495 | IH98: 1.277554596 | II98: 1.279140665 | IJ98: 1.280728702 | IK98: 1.282318711 | IL98: 1.283910694 | IM98: 1.285504653 | IN98: 1.287100592 | IO98: 1.288698511 | IP98: 1.290298414 | IQ98: 1.291900304 | IR98: 1.293504182 | IS98: 1.295110052 | IT98: 1.296717915 | IU98: 1.298327775 | IV98: 1.299939633 | IW98: 1.301553492 | IX98: 1.303169354 | IY98: 1.304787223 | IZ98: 1.3064071 | JA98: 1.308028989 | JB98: 1.309652891 | JC98: 1.311278809 | JD98: 1.312906745 | JE98: 1.314536703 | JF98: 1.316168684 | JG98: 1.317802691 | JH98: =JG98*(1+JH97) -> 1.319438727 | JI98: 1.321076794 | JJ98: 1.322716895 | JK98: 1.324359031 | JL98: 1.326003207 | JM98: 1.327649424 | JN98: 1.329297684 | JO98: 1.330947991 | JP98: 1.332600346 | JQ98: 1.334254753 | JR98: 1.335911214 | JS98: 1.337569732 | JT98: 1.339230308 | JU98: 1.340892946 | JV98: 1.342557648 | JW98: 1.344224417 | JX98: 1.345893255 | JY98: 1.347564165 | JZ98: 1.349237149 | KA98: 1.350912211 | KB98: 1.352589352 | KC98: 1.354268575 | KD98: 1.355949882 | KE98: 1.357633278 | KF98: 1.359318763 | KG98: 1.36100634 | KH98: 1.362696013 | KI98: 1.364387783 | KJ98: 1.366081654 | KK98: 1.367777627 | KL98: 1.369475707 | KM98: 1.371175894 | KN98: 1.372878192 | KO98: 1.374582603 | KP98: 1.376289131 | KQ98: 1.377997777 | KR98: 1.379708544 | KS98: 1.381421435 | KT98: 1.383136453 | KU98: 1.3848536 | KV98: 1.386572879 | KW98: 1.388294292 | KX98: 1.390017842 | KY98: 1.391743532 | KZ98: 1.393471365 | LA98: 1.395201342 | LB98: 1.396933468 | LC98: 1.398667743 | LD98: 1.400404172 | LE98: 1.402142757 | LF98: 1.4038835 | LG98: 1.405626404 | LH98: 1.407371472 | LI98: 1.409118706 | LJ98: 1.41086811 | LK98: 1.412619685 | LL98: 1.414373435 | LM98: 1.416129362 | LN98: 1.41788747 | LO98: 1.41964776 | LP98: 1.421410235 | LQ98: 1.423174898 | LR98: 1.424941752 | LS98: 1.4267108 | LT98: =LS98*(1+LT97) -> 1.428482044 | LU98: 1.430255487 | LV98: 1.432031131 | LW98: 1.43380898 | LX98: 1.435589037 | LY98: 1.437371303 | LZ98: 1.439155782 | MA98: 1.440942476 | MB98: 1.442731388 | MC98: 1.444522522 | MD98: 1.446315879 | ME98: 1.448111462 | MF98: 1.449909275 | MG98: 1.451709319 | MH98: 1.453511598 | MI98: 1.455316115 | MJ98: 1.457122872 | MK98: 1.458931872 | ML98: 1.460743118 | MM98: 1.462556613 | MN98: 1.464372359 | MO98: 1.466190359 | MP98: 1.468010617 | MQ98: 1.469833134 | MR98: 1.471657914 | MS98: 1.473484959 | MT98: 1.475314272 | MU98: 1.477145857 | MV98: 1.478979715 | MW98: 1.48081585 | MX98: 1.482654265 | MY98: 1.484494962 | MZ98: 1.486337944 | NA98: 1.488183215 | NB98: 1.490030776 | NC98: 1.491880631 | ND98: 1.493732782 | NE98: 1.495587233 | NF98: 1.497443986 | NG98: 1.499303045 | NH98: 1.501164411 | NI98: 1.503028088 | NJ98: 1.504894079 | NK98: 1.506762387 | NL98: 1.508633014 | NM98: 1.510505963 | NN98: 1.512381238 | NO98: 1.51425884 | NP98: 1.516138774 | NQ98: 1.518021042 | NR98: 1.519905646 | NS98: 1.52179259 | NT98: 1.523681877 | NU98: 1.52557351 | NV98: 1.52746749 | NW98: 1.529363822 | NX98: 1.531262509 | NY98: 1.533163552 | NZ98: 1.535066956 | OA98: 1.536972723 | OB98: 1.538880856 | OC98: 1.540791357 | OD98: 1.542704231 | OE98: 1.544619479
C99: Nominal Price | K99: =K98*K95 -> 69.8225466 | L99: =L98*L95 -> 69.64554305 | M99: 69.46898821 | N99: 69.29288095 | O99: 69.11722013 | P99: 68.94200461 | Q99: 68.76723328 | R99: 68.592905 | S99: 68.41901865 | T99: 68.24557311 | U99: 68.24557311 | V99: 68.24557311 | W99: 68.24557311 | X99: 68.24557311 | Y99: 68.24557311 | Z99: 68.24557311 | AA99: 68.24557311 | AB99: 68.24557311 | AC99: 68.24557311 | AD99: 68.24557311 | AE99: 68.24557311 | AF99: 68.24557311 | AG99: 68.30218542 | AH99: 68.35884468 | AI99: 68.41555095 | AJ99: 68.47230426 | AK99: 68.52910464 | AL99: 68.58595215 | AM99: 68.64284681 | AN99: 68.69978867 | AO99: 68.75677776 | AP99: 68.81381413 | AQ99: 68.87089781 | AR99: 68.92802884 | AS99: 69.0700093 | AT99: 69.21228221 | AU99: 69.35484818 | AV99: 69.49770781 | AW99: 69.64086171 | AX99: 69.78431048 | AY99: 69.92805473 | AZ99: 70.07209508 | BA99: 70.21643212 | BB99: 70.36106647 | BC99: 70.50599875 | BD99: 70.65122957 | BE99: 70.76791581 | BF99: 70.88479478 | BG99: 71.00186678 | BH99: 71.11913214 | BI99: 71.23659117 | BJ99: 71.35424419 | BK99: 71.47209152 | BL99: 71.59013349 | BM99: 71.70837042 | BN99: 71.82680262 | BO99: 71.94543043 | BP99: 72.06425416 | BQ99: 72.15372104 | BR99: 72.243299 | BS99: 72.33298817 | BT99: 72.42278869 | BU99: 72.51270069 | BV99: 72.60272432 | BW99: 72.69285971 | BX99: =BX98*BX95 -> 72.783107 | BY99: 72.87346633 | BZ99: 72.96393784 | CA99: 73.05452168 | CB99: 73.14521797 | CC99: 73.23602686 | CD99: 73.32694849 | CE99: 73.41798299 | CF99: 73.50913052 | CG99: 73.6003912 | CH99: 73.69176518 | CI99: 73.7832526 | CJ99: 73.8748536 | CK99: 73.96656833 | CL99: 74.05839691 | CM99: 74.1503395 | CN99: 74.24239624 | CO99: 74.33456726 | CP99: 74.42685271 | CQ99: 74.51925274 | CR99: 74.61176747 | CS99: 74.70439707 | CT99: 74.79714166 | CU99: 74.89000139 | CV99: 74.98297641 | CW99: 75.07606685 | CX99: 75.16927287 | CY99: 75.2625946 | CZ99: 75.35603218 | DA99: 75.44958577 | DB99: 75.5432555 | DC99: 75.63704153 | DD99: 75.73094399 | DE99: 75.82496302 | DF99: 75.91909878 | DG99: 76.01335141 | DH99: 76.10772105 | DI99: 76.20220785 | DJ99: 76.29681196 | DK99: 76.39153351 | DL99: 76.48637266 | DM99: 76.58132956 | DN99: 76.67640434 | DO99: 76.77159715 | DP99: 76.86690815 | DQ99: 76.96233747 | DR99: 77.05788526 | DS99: 77.15355168 | DT99: 77.24933687 | DU99: 77.34524097 | DV99: 77.44126414 | DW99: 77.53740652 | DX99: 77.63366825 | DY99: 77.7300495 | DZ99: 77.8265504 | EA99: 77.92317111 | EB99: 78.01991177 | EC99: 78.11677253 | ED99: 78.21375354 | EE99: 78.31085496 | EF99: 78.40807692 | EG99: 78.50541959 | EH99: 78.6028831 | EI99: 78.70046761 | EJ99: =EJ98*EJ95 -> 78.79817328 | EK99: 78.89600024 | EL99: 78.99394866 | EM99: 79.09201867 | EN99: 79.19021044 | EO99: 79.28852412 | EP99: 79.38695985 | EQ99: 79.48551778 | ER99: 79.58419808 | ES99: 79.68300088 | ET99: 79.78192635 | EU99: 79.88097463 | EV99: 79.98014588 | EW99: 80.07944025 | EX99: 80.17885789 | EY99: 80.27839895 | EZ99: 80.3780636 | FA99: 80.47785198 | FB99: 80.57776424 | FC99: 80.67780055 | FD99: 80.77796105 | FE99: 80.87824589 | FF99: 80.97865524 | FG99: 81.07918925 | FH99: 81.17984807 | FI99: 81.28063185 | FJ99: 81.38154076 | FK99: 81.48257494 | FL99: 81.58373455 | FM99: 81.68501976 | FN99: 81.78643071 | FO99: 81.88796756 | FP99: 81.98963046 | FQ99: 82.09141958 | FR99: 82.19333507 | FS99: 82.29537709 | FT99: 82.39754579 | FU99: 82.49984133 | FV99: 82.60226387 | FW99: 82.70481356 | FX99: 82.80749057 | FY99: 82.91029506 | FZ99: 83.01322717 | GA99: 83.11628707 | GB99: 83.21947492 | GC99: 83.32279088 | GD99: 83.4262351 | GE99: 83.52980774 | GF99: 83.63350897 | GG99: 83.73733895 | GH99: 83.84129783 | GI99: 83.94538577 | GJ99: 84.04960293 | GK99: 84.15394948 | GL99: 84.25842558 | GM99: 84.36303138 | GN99: 84.46776704 | GO99: 84.57263274 | GP99: 84.67762862 | GQ99: 84.78275486 | GR99: 84.88801161 | GS99: 84.99339903 | GT99: 85.09891729 | GU99: 85.20456655 | GV99: =GV98*GV95 -> 85.31034698 | GW99: 85.41625872 | GX99: 85.52230196 | GY99: 85.62847685 | GZ99: 85.73478355 | HA99: 85.84122223 | HB99: 85.94779305 | HC99: 86.05449618 | HD99: 86.16133178 | HE99: 86.26830002 | HF99: 86.37540105 | HG99: 86.48263505 | HH99: 86.59000218 | HI99: 86.6975026 | HJ99: 86.80513649 | HK99: 86.912904 | HL99: 87.0208053 | HM99: 87.12884056 | HN99: 87.23700995 | HO99: 87.34531362 | HP99: 87.45375176 | HQ99: 87.56232452 | HR99: 87.67103207 | HS99: 87.77987458 | HT99: 87.88885221 | HU99: 87.99796514 | HV99: 88.10721354 | HW99: 88.21659756 | HX99: 88.32611738 | HY99: 88.43577317 | HZ99: 88.5455651 | IA99: 88.65549333 | IB99: 88.76555804 | IC99: 88.87575939 | ID99: 88.98609755 | IE99: 89.0965727 | IF99: 89.207185 | IG99: 89.31793462 | IH99: 89.42882174 | II99: 89.53984652 | IJ99: 89.65100914 | IK99: 89.76230977 | IL99: 89.87374857 | IM99: 89.98532573 | IN99: 90.09704141 | IO99: 90.20889578 | IP99: 90.32088901 | IQ99: 90.43302129 | IR99: 90.54529277 | IS99: 90.65770364 | IT99: 90.77025407 | IU99: 90.88294422 | IV99: 90.99577428 | IW99: 91.10874442 | IX99: 91.2218548 | IY99: 91.33510562 | IZ99: 91.44849703 | JA99: 91.56202921 | JB99: 91.67570235 | JC99: 91.78951661 | JD99: 91.90347216 | JE99: 92.01756919 | JF99: 92.13180788 | JG99: 92.24618838 | JH99: =JH98*JH95 -> 92.36071089 | JI99: 92.47537558 | JJ99: 92.59018263 | JK99: 92.7051322 | JL99: 92.82022448 | JM99: 92.93545965 | JN99: 93.05083788 | JO99: 93.16635935 | JP99: 93.28202425 | JQ99: 93.39783273 | JR99: 93.51378499 | JS99: 93.62988121 | JT99: 93.74612156 | JU99: 93.86250622 | JV99: 93.97903536 | JW99: 94.09570918 | JX99: 94.21252785 | JY99: 94.32949155 | JZ99: 94.44660045 | KA99: 94.56385474 | KB99: 94.68125461 | KC99: 94.79880022 | KD99: 94.91649177 | KE99: 95.03432943 | KF99: 95.15231338 | KG99: 95.27044381 | KH99: 95.38872089 | KI99: 95.50714482 | KJ99: 95.62571577 | KK99: 95.74443392 | KL99: 95.86329946 | KM99: 95.98231257 | KN99: 96.10147343 | KO99: 96.22078223 | KP99: 96.34023915 | KQ99: 96.45984437 | KR99: 96.57959808 | KS99: 96.69950047 | KT99: 96.81955171 | KU99: 96.93975199 | KV99: 97.0601015 | KW99: 97.18060043 | KX99: 97.30124895 | KY99: 97.42204725 | KZ99: 97.54299553 | LA99: 97.66409396 | LB99: 97.78534273 | LC99: 97.90674204 | LD99: 98.02829205 | LE99: 98.14999297 | LF99: 98.27184498 | LG99: 98.39384827 | LH99: 98.51600303 | LI99: 98.63830943 | LJ99: 98.76076768 | LK99: 98.88337796 | LL99: 99.00614046 | LM99: 99.12905537 | LN99: 99.25212287 | LO99: 99.37534317 | LP99: 99.49871643 | LQ99: 99.62224287 | LR99: 99.74592266 | LS99: 99.869756 | LT99: =LT98*LT95 -> 99.99374307 | LU99: 100.1178841 | LV99: 100.2421792 | LW99: 100.3666286 | LX99: 100.4912326 | LY99: 100.6159912 | LZ99: 100.7409047 | MA99: 100.8659733 | MB99: 100.9911972 | MC99: 101.1165765 | MD99: 101.2421115 | ME99: 101.3678023 | MF99: 101.4936492 | MG99: 101.6196523 | MH99: 101.7458119 | MI99: 101.8721281 | MJ99: 101.9986011 | MK99: 102.1252311 | ML99: 102.2520183 | MM99: 102.3789629 | MN99: 102.5060651 | MO99: 102.6333252 | MP99: 102.7607432 | MQ99: 102.8883194 | MR99: 103.016054 | MS99: 103.1439471 | MT99: 103.2719991 | MU99: 103.40021 | MV99: 103.5285801 | MW99: 103.6571095 | MX99: 103.7857986 | MY99: 103.9146474 | MZ99: 104.0436561 | NA99: 104.172825 | NB99: 104.3021543 | NC99: 104.4316442 | ND99: 104.5612948 | NE99: 104.6911063 | NF99: 104.8210791 | NG99: 104.9512131 | NH99: 105.0815088 | NI99: 105.2119662 | NJ99: 105.3425855 | NK99: 105.4733671 | NL99: 105.604311 | NM99: 105.7354174 | NN99: 105.8666866 | NO99: 105.9981188 | NP99: 106.1297142 | NQ99: 106.2614729 | NR99: 106.3933952 | NS99: 106.5254813 | NT99: 106.6577314 | NU99: 106.7901457 | NV99: 106.9227243 | NW99: 107.0554676 | NX99: 107.1883756 | NY99: 107.3214487 | NZ99: 107.4546869 | OA99: 107.5880906 | OB99: 107.7216599 | OC99: 107.855395 | OD99: 107.9892962 | OE99: 108.1233636
C100: Generation | E100: MWH | K100: =K82 -> FALSE | L100: =L82 -> FALSE | M100: FALSE | N100: FALSE | O100: FALSE | P100: FALSE | Q100: FALSE | R100: FALSE | S100: FALSE | T100: FALSE | U100: FALSE | V100: FALSE | W100: FALSE | X100: FALSE | Y100: FALSE | Z100: FALSE | AA100: FALSE | AB100: FALSE | AC100: FALSE | AD100: FALSE | AE100: FALSE | AF100: FALSE | AG100: FALSE | AH100: FALSE | AI100: FALSE | AJ100: FALSE | AK100: FALSE | AL100: FALSE | AM100: FALSE | AN100: FALSE | AO100: FALSE | AP100: FALSE | AQ100: FALSE | AR100: FALSE | AS100: FALSE | AT100: FALSE | AU100: FALSE | AV100: FALSE | AW100: FALSE | AX100: FALSE | AY100: 73656 | AZ100: 73656 | BA100: 71280 | BB100: 73656 | BC100: 71280 | BD100: 73656 | BE100: 73656 | BF100: 66528 | BG100: 73656 | BH100: 71280 | BI100: 73656 | BJ100: 71280 | BK100: 78120 | BL100: 78120 | BM100: 75600 | BN100: 78120 | BO100: 75600 | BP100: 78120 | BQ100: 78120 | BR100: 73080 | BS100: 78120 | BT100: 75600 | BU100: 78120 | BV100: 75600 | BW100: 78120 | BX100: =BX82 -> 78120 | BY100: 75600 | BZ100: 78120 | CA100: 75600 | CB100: 78120 | CC100: 78120 | CD100: 70560 | CE100: 78120 | CF100: 75600 | CG100: 78120 | CH100: 75600 | CI100: 78120 | CJ100: 78120 | CK100: 75600 | CL100: 78120 | CM100: 75600 | CN100: 78120 | CO100: 78120 | CP100: 70560 | CQ100: 78120 | CR100: 75600 | CS100: 78120 | CT100: 75600 | CU100: 78120 | CV100: 78120 | CW100: 76680 | CX100: 79236 | CY100: 76680 | CZ100: 79236 | DA100: 79236 | DB100: 71568 | DC100: 79236 | DD100: 76680 | DE100: 79236 | DF100: 76680 | DG100: 79236 | DH100: 79236 | DI100: 76680 | DJ100: 79236 | DK100: 76680 | DL100: 79236 | DM100: 79236 | DN100: 74124 | DO100: 79236 | DP100: 76680 | DQ100: 79236 | DR100: 76680 | DS100: 79236 | DT100: 79236 | DU100: 76680 | DV100: 79236 | DW100: 76680 | DX100: 79236 | DY100: 79236 | DZ100: 71568 | EA100: 79236 | EB100: 76680 | EC100: 79236 | ED100: 76680 | EE100: 79236 | EF100: 79236 | EG100: 76680 | EH100: 79236 | EI100: 76680 | EJ100: =EJ82 -> 79236 | EK100: 79236 | EL100: 71568 | EM100: 79236 | EN100: 76680 | EO100: 79236 | EP100: 76680 | EQ100: 79236 | ER100: 79236 | ES100: 76680 | ET100: 79236 | EU100: 76680 | EV100: 79236 | EW100: 79236 | EX100: 71568 | EY100: 79236 | EZ100: 76680 | FA100: 79236 | FB100: 76680 | FC100: 79236 | FD100: 79236 | FE100: 76680 | FF100: 79236 | FG100: 76680 | FH100: 79236 | FI100: 79236 | FJ100: 74124 | FK100: 79236 | FL100: 76680 | FM100: 79236 | FN100: 76680 | FO100: 75888 | FP100: 75888 | FQ100: 73440 | FR100: 75888 | FS100: 73440 | FT100: 75888 | FU100: 75888 | FV100: 68544 | FW100: 75888 | FX100: 73440 | FY100: 75888 | FZ100: 73440 | GA100: 75888 | GB100: 75888 | GC100: 73440 | GD100: 75888 | GE100: 73440 | GF100: 75888 | GG100: 75888 | GH100: 68544 | GI100: 75888 | GJ100: 73440 | GK100: 75888 | GL100: 73440 | GM100: 75888 | GN100: 75888 | GO100: 73440 | GP100: 75888 | GQ100: 73440 | GR100: 75888 | GS100: 75888 | GT100: 68544 | GU100: 75888 | GV100: =GV82 -> 73440 | GW100: 75888 | GX100: 73440 | GY100: 75888 | GZ100: 75888 | HA100: 73440 | HB100: 75888 | HC100: 73440 | HD100: 75888 | HE100: 75888 | HF100: 70992 | HG100: 75888 | HH100: 73440 | HI100: 75888 | HJ100: 73440 | HK100: 75888 | HL100: 75888 | HM100: 73440 | HN100: 75888 | HO100: 73440 | HP100: 75888 | HQ100: 75888 | HR100: 68544 | HS100: 75888 | HT100: 73440 | HU100: 75888 | HV100: 73440 | HW100: 75888 | HX100: 75888 | HY100: 73440 | HZ100: 75888 | IA100: 73440 | IB100: 75888 | IC100: 75888 | ID100: 68544 | IE100: 75888 | IF100: 73440 | IG100: 75888 | IH100: 73440 | II100: 75888 | IJ100: 75888 | IK100: 73440 | IL100: 75888 | IM100: 73440 | IN100: 75888 | IO100: 75888 | IP100: 68544 | IQ100: 75888 | IR100: 73440 | IS100: 75888 | IT100: 73440 | IU100: 75888 | IV100: 75888 | IW100: 73440 | IX100: 75888 | IY100: 73440 | IZ100: 75888 | JA100: 75888 | JB100: 70992 | JC100: 75888 | JD100: 73440 | JE100: 75888 | JF100: 73440 | JG100: 75888 | JH100: =JH82 -> 75888 | JI100: 73440 | JJ100: 75888 | JK100: 73440 | JL100: 75888 | JM100: 75888 | JN100: 68544 | JO100: 75888 | JP100: 73440 | JQ100: 75888 | JR100: 73440 | JS100: 75888 | JT100: 75888 | JU100: 73440 | JV100: 75888 | JW100: 73440 | JX100: 75888 | JY100: 75888 | JZ100: 68544 | KA100: 75888 | KB100: 73440 | KC100: 75888 | KD100: 73440 | KE100: 75888 | KF100: 75888 | KG100: 73440 | KH100: 75888 | KI100: 73440 | KJ100: 75888 | KK100: 75888 | KL100: 68544 | KM100: 75888 | KN100: 73440 | KO100: 73656 | KP100: 71280 | KQ100: 73656 | KR100: 73656 | KS100: 71280 | KT100: 73656 | KU100: 71280 | KV100: 73656 | KW100: 73656 | KX100: 68904 | KY100: 73656 | KZ100: 71280 | LA100: 73656 | LB100: 71280 | LC100: 73656 | LD100: 73656 | LE100: 71280 | LF100: 73656 | LG100: 71280 | LH100: 73656 | LI100: 73656 | LJ100: 66528 | LK100: 73656 | LL100: 71280 | LM100: 73656 | LN100: 71280 | LO100: 73656 | LP100: 73656 | LQ100: 71280 | LR100: 73656 | LS100: 71280 | LT100: =LT82 -> 73656 | LU100: 73656 | LV100: 66528 | LW100: 73656 | LX100: 71280 | LY100: 73656 | LZ100: 71280 | MA100: 73656 | MB100: 73656 | MC100: 71280 | MD100: 73656 | ME100: 71280 | MF100: 73656 | MG100: 73656 | MH100: 66528 | MI100: 73656 | MJ100: 71280 | MK100: 73656 | ML100: 71280 | MM100: FALSE | MN100: FALSE | MO100: FALSE | MP100: FALSE | MQ100: FALSE | MR100: FALSE | MS100: FALSE | MT100: FALSE | MU100: FALSE | MV100: FALSE | MW100: FALSE | MX100: FALSE | MY100: FALSE | MZ100: FALSE | NA100: FALSE | NB100: FALSE | NC100: FALSE | ND100: FALSE | NE100: FALSE | NF100: FALSE | NG100: FALSE | NH100: FALSE | NI100: FALSE | NJ100: FALSE | NK100: FALSE | NL100: FALSE | NM100: FALSE | NN100: FALSE | NO100: FALSE | NP100: FALSE | NQ100: FALSE | NR100: FALSE | NS100: FALSE | NT100: FALSE | NU100: FALSE | NV100: FALSE | NW100: FALSE | NX100: FALSE | NY100: FALSE | NZ100: FALSE | OA100: FALSE | OB100: FALSE | OC100: FALSE | OD100: FALSE | OE100: FALSE
C101: Merchant Revenues | E101: USD 000's | K101: =K99*K100/1000 -> 0 | L101: =L99*L100/1000 -> 0 | M101: 0 | N101: 0 | O101: 0 | P101: 0 | Q101: 0 | R101: 0 | S101: 0 | T101: 0 | U101: 0 | V101: 0 | W101: 0 | X101: 0 | Y101: 0 | Z101: 0 | AA101: 0 | AB101: 0 | AC101: 0 | AD101: 0 | AE101: 0 | AF101: 0 | AG101: 0 | AH101: 0 | AI101: 0 | AJ101: 0 | AK101: 0 | AL101: 0 | AM101: 0 | AN101: 0 | AO101: 0 | AP101: 0 | AQ101: 0 | AR101: 0 | AS101: 0 | AT101: 0 | AU101: 0 | AV101: 0 | AW101: 0 | AX101: 0 | AY101: 5150.6208 | AZ101: 5161.230235 | BA101: 5005.027282 | BB101: 5182.514712 | BC101: 5025.667591 | BD101: 5203.886965 | BE101: 5212.481607 | BF101: 4715.823627 | BG101: 5229.7135 | BH101: 5069.371739 | BI101: 5247.002359 | BJ101: 5086.130526 | BK101: 5583.39979 | BL101: 5592.621229 | BM101: 5421.152804 | BN101: 5611.109821 | BO101: 5439.07454 | BP101: 5629.659535 | BQ101: 5636.648688 | BR101: 5279.540291 | BS101: 5650.653036 | BT101: 5475.162825 | BU101: 5664.692178 | BV101: 5488.765958 | BW101: 5678.7662 | BX101: =BX99*BX100/1000 -> 5685.816319 | BY101: 5509.234055 | BZ101: 5699.942824 | CA101: 5522.921839 | CB101: 5714.104428 | CC101: 5721.198418 | CD101: 5173.949485 | CE101: 5735.412831 | CF101: 5557.290267 | CG101: 5749.66256 | CH101: 5571.097448 | CI101: 5763.947693 | CJ101: 5771.103563 | CK101: 5591.872565 | CL101: 5785.441967 | CM101: 5605.765666 | CN101: 5799.815994 | CO101: 5807.016394 | CP101: 5251.558727 | CQ101: 5821.444024 | CR101: 5640.649621 | CS101: 5835.907499 | CT101: 5654.663909 | CU101: 5850.406909 | CV101: 5857.670117 | CW101: 5756.832806 | CX101: 5956.112505 | CY101: 5771.135754 | CZ101: 5970.910566 | DA101: 5978.323378 | DB101: 5406.47971 | DC101: 5993.176622 | DD101: 5807.048785 | DE101: 6008.06677 | DF101: 5821.476495 | DG101: 6022.993912 | DH101: 6030.471385 | DI101: 5843.185298 | DJ101: 6045.454192 | DK101: 5857.70279 | DL101: 6060.474224 | DM101: 6067.998229 | DN101: 5683.561795 | DO101: 6083.074272 | DP101: 5894.154517 | DQ101: 6098.187772 | DR101: 5908.798642 | DS101: 6113.338821 | DT101: 6120.928456 | DU101: 5930.833078 | DV101: 6136.136005 | DW101: 5945.568332 | DX101: 6151.381338 | DY101: 6159.018202 | DZ101: 5569.890559 | EA101: 6174.320386 | EB101: 5982.566834 | EC101: 6189.660588 | ED101: 5997.430622 | EE101: 6205.038903 | EF101: 6212.742383 | EG101: 6019.795574 | EH101: 6228.178045 | EI101: 6034.751857 | EJ101: =EJ99*EJ100/1000 -> 6243.652058 | EK101: 6251.403475 | EL101: 5653.438918 | EM101: 6266.935192 | EN101: 6072.305337 | EO101: 6282.505497 | EP101: 6087.392081 | EQ101: 6298.114487 | ER101: 6305.933519 | ES101: 6110.092508 | ET101: 6321.600716 | EU101: 6125.273135 | EV101: 6337.306839 | EW101: 6345.174527 | EX101: 5738.240501 | EY101: 6360.93922 | EZ101: 6163.389917 | FA101: 6376.743079 | FB101: 6178.702962 | FC101: 6392.586204 | FD101: 6400.522522 | FE101: 6201.743895 | FF101: 6416.424727 | FG101: 6217.152232 | FH101: 6432.366441 | FI101: 6440.352145 | FJ101: 6032.325327 | FK101: 6456.353308 | FL101: 6255.840766 | FM101: 6472.394226 | FN101: 6271.383507 | FO101: 6214.314082 | FP101: 6222.029077 | FQ101: 6028.793854 | FR101: 6237.487812 | FS101: 6043.772493 | FT101: 6252.984955 | FU101: 6260.747959 | FV101: 5661.889575 | FW101: 6276.302892 | FX101: 6081.382108 | FY101: 6291.896471 | FZ101: 6096.491403 | GA101: 6307.528793 | GB101: 6315.359513 | GC101: 6119.225762 | GD101: 6331.050129 | GE101: 6134.429081 | GF101: 6346.779729 | GG101: 6354.659178 | GH101: 5746.817918 | GI101: 6370.447435 | GJ101: 6172.602839 | GK101: 6386.274918 | GL101: 6187.938774 | GM101: 6402.141725 | GN101: 6410.089905 | GO101: 6211.014148 | GP101: 6426.015881 | GQ101: 6226.445517 | GR101: 6441.981425 | GS101: 6449.979066 | GT101: 5833.020187 | GU101: 6466.004147 | GV101: =GV99*GV100/1000 -> 6265.191882 | GW101: 6482.069042 | GX101: 6280.757856 | GY101: 6498.173851 | GZ101: 6506.241254 | HA101: 6304.179361 | HB101: 6522.406119 | HC101: 6319.8422 | HD101: 6538.611146 | HE101: 6546.728752 | HF101: 6131.962471 | HG101: 6562.994209 | HH101: 6359.16976 | HI101: 6579.300078 | HJ101: 6374.969224 | HK101: 6595.646459 | HL101: 6603.834873 | HM101: 6398.742051 | HN101: 6620.242211 | HO101: 6414.639833 | HP101: 6636.690313 | HQ101: 6644.929683 | HR101: 6009.323222 | HS101: 6661.439122 | HT101: 6454.557307 | HU101: 6677.989579 | HV101: 6470.593762 | HW101: 6694.581156 | HX101: 6702.892396 | HY101: 6494.723182 | HZ101: 6719.545844 | IA101: 6510.85943 | IB101: 6736.240668 | IC101: 6744.603628 | ID101: 6099.46307 | IE101: 6761.360709 | IF101: 6551.375666 | IG101: 6778.159423 | IH101: 6567.652669 | II101: 6794.999873 | IJ101: 6803.435782 | IK101: 6592.144029 | IL101: 6820.339032 | IM101: 6608.522322 | IN101: 6837.284278 | IO101: 6845.772683 | IP101: 6190.955016 | IQ101: 6862.781119 | IR101: 6649.646301 | IS101: 6879.831814 | IT101: 6666.167459 | IU101: 6896.924871 | IV101: 6905.487319 | IW101: 6691.02619 | IX101: 6922.644117 | IY101: 6707.650156 | IZ101: 6939.843542 | JA101: 6948.459273 | JB101: 6508.241461 | JC101: 6965.722836 | JD101: 6749.390996 | JE101: 6983.029291 | JF101: 6766.15997 | JG101: 7000.378744 | JH101: =JH99*JH100/1000 -> 7009.069628 | JI101: 6791.391583 | JJ101: 7026.483779 | JK101: 6808.264909 | JL101: 7043.941196 | JM101: 7052.686162 | JN101: 6378.076632 | JO101: 7070.208679 | JP101: 6850.631861 | JQ101: 7087.77473 | JR101: 6867.65237 | JS101: 7105.384425 | JT101: 7114.205673 | JU101: 6893.262456 | JV101: 7131.881036 | JW101: 6910.388882 | JX101: 7149.600313 | JY101: 7158.476454 | JZ101: 6473.747781 | KA101: 7176.261809 | KB101: 6953.391338 | KC101: 7194.091351 | KD101: 6970.667156 | KE101: 7211.965192 | KF101: 7220.918758 | KG101: 6996.661393 | KH101: 7238.859251 | KI101: 7014.044716 | KJ101: 7256.844318 | KK101: 7265.853601 | KL101: 6570.853998 | KM101: 7283.905736 | KN101: 7057.692209 | KO101: 7087.237936 | KP101: 6867.132246 | KQ101: 7104.846297 | KR101: 7113.666876 | KS101: 6892.740393 | KT101: 7131.340901 | KU101: 6909.865522 | KV101: 7149.058836 | KW101: 7157.934305 | KX101: 6704.445258 | KY101: 7175.718313 | KZ101: 6952.864721 | LA101: 7193.546505 | LB101: 6970.13923 | LC101: 7211.418991 | LD101: 7220.371879 | LE101: 6996.131499 | LF101: 7238.311014 | LG101: 7013.513505 | LH101: 7256.294719 | LI101: 7265.30332 | LJ101: 6570.356352 | LK101: 7283.354087 | LL101: 7057.157692 | LM101: 7301.449702 | LN101: 7074.691318 | LO101: 7319.590276 | LP101: 7328.677458 | LQ101: 7101.073472 | LR101: 7346.885679 | LS101: 7118.716207 | LT101: =LT99*LT100/1000 -> 7365.13914 | LU101: 7374.282869 | LV101: 6668.911698 | LW101: 7392.604399 | LX101: 7163.015058 | LY101: 7410.971448 | LZ101: 7180.811688 | MA101: 7429.38413 | MB101: 7438.607619 | MC101: 7207.589574 | MD101: 7457.088965 | ME101: 7225.496951 | MF101: 7475.616227 | MG101: 7484.897113 | MH101: 6768.945373 | MI101: 7503.493465 | MJ101: 7270.460283 | MK101: 7522.13602 | ML101: 7288.523864 | MM101: 0 | MN101: 0 | MO101: 0 | MP101: 0 | MQ101: 0 | MR101: 0 | MS101: 0 | MT101: 0 | MU101: 0 | MV101: 0 | MW101: 0 | MX101: 0 | MY101: 0 | MZ101: 0 | NA101: 0 | NB101: 0 | NC101: 0 | ND101: 0 | NE101: 0 | NF101: 0 | NG101: 0 | NH101: 0 | NI101: 0 | NJ101: 0 | NK101: 0 | NL101: 0 | NM101: 0 | NN101: 0 | NO101: 0 | NP101: 0 | NQ101: 0 | NR101: 0 | NS101: 0 | NT101: 0 | NU101: 0 | NV101: 0 | NW101: 0 | NX101: 0 | NY101: 0 | NZ101: 0 | OA101: 0 | OB101: 0 | OC101: 0 | OD101: 0 | OE101: 0
B103: Operating Expense
C104: Age of Project in Months | K104: =J104+K5 -> 0 | L104: 0 | M104: 0 | N104: 0 | O104: 0 | P104: 0 | Q104: 0 | R104: 0 | S104: 0 | T104: 0 | U104: 0 | V104: 0 | W104: 0 | X104: 0 | Y104: 0 | Z104: 0 | AA104: 0 | AB104: 0 | AC104: 0 | AD104: 0 | AE104: 0 | AF104: 0 | AG104: 0 | AH104: 0 | AI104: 0 | AJ104: 0 | AK104: 0 | AL104: 0 | AM104: 0 | AN104: 0 | AO104: 0 | AP104: 0 | AQ104: 0 | AR104: 0 | AS104: 0 | AT104: 0 | AU104: 0 | AV104: 0 | AW104: 0 | AX104: 0 | AY104: 1 | AZ104: 2 | BA104: 3 | BB104: 4 | BC104: 5 | BD104: 6 | BE104: 7 | BF104: 8 | BG104: 9 | BH104: 10 | BI104: 11 | BJ104: 12 | BK104: 13 | BL104: 14 | BM104: 15 | BN104: 16 | BO104: 17 | BP104: 18 | BQ104: 19 | BR104: 20 | BS104: 21 | BT104: 22 | BU104: 23 | BV104: 24 | BW104: =BV104+BW5 -> 25 | BX104: 26 | BY104: 27 | BZ104: 28 | CA104: 29 | CB104: 30 | CC104: 31 | CD104: 32 | CE104: 33 | CF104: 34 | CG104: 35 | CH104: 36 | CI104: 37 | CJ104: 38 | CK104: 39 | CL104: 40 | CM104: 41 | CN104: 42 | CO104: 43 | CP104: 44 | CQ104: 45 | CR104: 46 | CS104: 47 | CT104: 48 | CU104: 49 | CV104: 50 | CW104: 51 | CX104: 52 | CY104: 53 | CZ104: 54 | DA104: 55 | DB104: 56 | DC104: 57 | DD104: 58 | DE104: 59 | DF104: 60 | DG104: 61 | DH104: 62 | DI104: 63 | DJ104: 64 | DK104: 65 | DL104: 66 | DM104: 67 | DN104: 68 | DO104: 69 | DP104: 70 | DQ104: 71 | DR104: 72 | DS104: 73 | DT104: 74 | DU104: 75 | DV104: 76 | DW104: 77 | DX104: 78 | DY104: 79 | DZ104: 80 | EA104: 81 | EB104: 82 | EC104: 83 | ED104: 84 | EE104: 85 | EF104: 86 | EG104: 87 | EH104: 88 | EI104: =EH104+EI5 -> 89 | EJ104: 90 | EK104: 91 | EL104: 92 | EM104: 93 | EN104: 94 | EO104: 95 | EP104: 96 | EQ104: 97 | ER104: 98 | ES104: 99 | ET104: 100 | EU104: 101 | EV104: 102 | EW104: 103 | EX104: 104 | EY104: 105 | EZ104: 106 | FA104: 107 | FB104: 108 | FC104: 109 | FD104: 110 | FE104: 111 | FF104: 112 | FG104: 113 | FH104: 114 | FI104: 115 | FJ104: 116 | FK104: 117 | FL104: 118 | FM104: 119 | FN104: 120 | FO104: 121 | FP104: 122 | FQ104: 123 | FR104: 124 | FS104: 125 | FT104: 126 | FU104: 127 | FV104: 128 | FW104: 129 | FX104: 130 | FY104: 131 | FZ104: 132 | GA104: 133 | GB104: 134 | GC104: 135 | GD104: 136 | GE104: 137 | GF104: 138 | GG104: 139 | GH104: 140 | GI104: 141 | GJ104: 142 | GK104: 143 | GL104: 144 | GM104: 145 | GN104: 146 | GO104: 147 | GP104: 148 | GQ104: 149 | GR104: 150 | GS104: 151 | GT104: 152 | GU104: =GT104+GU5 -> 153 | GV104: 154 | GW104: 155 | GX104: 156 | GY104: 157 | GZ104: 158 | HA104: 159 | HB104: 160 | HC104: 161 | HD104: 162 | HE104: 163 | HF104: 164 | HG104: 165 | HH104: 166 | HI104: 167 | HJ104: 168 | HK104: 169 | HL104: 170 | HM104: 171 | HN104: 172 | HO104: 173 | HP104: 174 | HQ104: 175 | HR104: 176 | HS104: 177 | HT104: 178 | HU104: 179 | HV104: 180 | HW104: 181 | HX104: 182 | HY104: 183 | HZ104: 184 | IA104: 185 | IB104: 186 | IC104: 187 | ID104: 188 | IE104: 189 | IF104: 190 | IG104: 191 | IH104: 192 | II104: 193 | IJ104: 194 | IK104: 195 | IL104: 196 | IM104: 197 | IN104: 198 | IO104: 199 | IP104: 200 | IQ104: 201 | IR104: 202 | IS104: 203 | IT104: 204 | IU104: 205 | IV104: 206 | IW104: 207 | IX104: 208 | IY104: 209 | IZ104: 210 | JA104: 211 | JB104: 212 | JC104: 213 | JD104: 214 | JE104: 215 | JF104: 216 | JG104: =JF104+JG5 -> 217 | JH104: 218 | JI104: 219 | JJ104: 220 | JK104: 221 | JL104: 222 | JM104: 223 | JN104: 224 | JO104: 225 | JP104: 226 | JQ104: 227 | JR104: 228 | JS104: 229 | JT104: 230 | JU104: 231 | JV104: 232 | JW104: 233 | JX104: 234 | JY104: 235 | JZ104: 236 | KA104: 237 | KB104: 238 | KC104: 239 | KD104: 240 | KE104: 241 | KF104: 242 | KG104: 243 | KH104: 244 | KI104: 245 | KJ104: 246 | KK104: 247 | KL104: 248 | KM104: 249 | KN104: 250 | KO104: 251 | KP104: 252 | KQ104: 253 | KR104: 254 | KS104: 255 | KT104: 256 | KU104: 257 | KV104: 258 | KW104: 259 | KX104: 260 | KY104: 261 | KZ104: 262 | LA104: 263 | LB104: 264 | LC104: 265 | LD104: 266 | LE104: 267 | LF104: 268 | LG104: 269 | LH104: 270 | LI104: 271 | LJ104: 272 | LK104: 273 | LL104: 274 | LM104: 275 | LN104: 276 | LO104: 277 | LP104: 278 | LQ104: 279 | LR104: 280 | LS104: =LR104+LS5 -> 281 | LT104: 282 | LU104: 283 | LV104: 284 | LW104: 285 | LX104: 286 | LY104: 287 | LZ104: 288 | MA104: 289 | MB104: 290 | MC104: 291 | MD104: 292 | ME104: 293 | MF104: 294 | MG104: 295 | MH104: 296 | MI104: 297 | MJ104: 298 | MK104: 299 | ML104: 300 | MM104: 300 | MN104: 300 | MO104: 300 | MP104: 300 | MQ104: 300 | MR104: 300 | MS104: 300 | MT104: 300 | MU104: 300 | MV104: 300 | MW104: 300 | MX104: 300 | MY104: 300 | MZ104: 300 | NA104: 300 | NB104: 300 | NC104: 300 | ND104: 300 | NE104: 300 | NF104: 300 | NG104: 300 | NH104: 300 | NI104: 300 | NJ104: 300 | NK104: 300 | NL104: 300 | NM104: 300 | NN104: 300 | NO104: 300 | NP104: 300 | NQ104: 300 | NR104: 300 | NS104: 300 | NT104: 300 | NU104: 300 | NV104: 300 | NW104: 300 | NX104: 300 | NY104: 300 | NZ104: 300 | OA104: 300 | OB104: 300 | OC104: 300 | OD104: 300 | OE104: 300
C105: Age of Project in Years | K105: =ROUNDUP(K104/12,0) -> 0 | L105: =ROUNDUP(L104/12,0) -> 0 | M105: 0 | N105: 0 | O105: 0 | P105: 0 | Q105: 0 | R105: 0 | S105: 0 | T105: 0 | U105: 0 | V105: 0 | W105: 0 | X105: 0 | Y105: 0 | Z105: 0 | AA105: 0 | AB105: 0 | AC105: 0 | AD105: 0 | AE105: 0 | AF105: 0 | AG105: 0 | AH105: 0 | AI105: 0 | AJ105: 0 | AK105: 0 | AL105: 0 | AM105: 0 | AN105: 0 | AO105: 0 | AP105: 0 | AQ105: 0 | AR105: 0 | AS105: 0 | AT105: 0 | AU105: 0 | AV105: 0 | AW105: 0 | AX105: 0 | AY105: 1 | AZ105: 1 | BA105: 1 | BB105: 1 | BC105: 1 | BD105: 1 | BE105: 1 | BF105: 1 | BG105: 1 | BH105: 1 | BI105: 1 | BJ105: 1 | BK105: 2 | BL105: 2 | BM105: 2 | BN105: 2 | BO105: 2 | BP105: 2 | BQ105: 2 | BR105: 2 | BS105: 2 | BT105: 2 | BU105: 2 | BV105: 2 | BW105: 3 | BX105: =ROUNDUP(BX104/12,0) -> 3 | BY105: 3 | BZ105: 3 | CA105: 3 | CB105: 3 | CC105: 3 | CD105: 3 | CE105: 3 | CF105: 3 | CG105: 3 | CH105: 3 | CI105: 4 | CJ105: 4 | CK105: 4 | CL105: 4 | CM105: 4 | CN105: 4 | CO105: 4 | CP105: 4 | CQ105: 4 | CR105: 4 | CS105: 4 | CT105: 4 | CU105: 5 | CV105: 5 | CW105: 5 | CX105: 5 | CY105: 5 | CZ105: 5 | DA105: 5 | DB105: 5 | DC105: 5 | DD105: 5 | DE105: 5 | DF105: 5 | DG105: 6 | DH105: 6 | DI105: 6 | DJ105: 6 | DK105: 6 | DL105: 6 | DM105: 6 | DN105: 6 | DO105: 6 | DP105: 6 | DQ105: 6 | DR105: 6 | DS105: 7 | DT105: 7 | DU105: 7 | DV105: 7 | DW105: 7 | DX105: 7 | DY105: 7 | DZ105: 7 | EA105: 7 | EB105: 7 | EC105: 7 | ED105: 7 | EE105: 8 | EF105: 8 | EG105: 8 | EH105: 8 | EI105: 8 | EJ105: =ROUNDUP(EJ104/12,0) -> 8 | EK105: 8 | EL105: 8 | EM105: 8 | EN105: 8 | EO105: 8 | EP105: 8 | EQ105: 9 | ER105: 9 | ES105: 9 | ET105: 9 | EU105: 9 | EV105: 9 | EW105: 9 | EX105: 9 | EY105: 9 | EZ105: 9 | FA105: 9 | FB105: 9 | FC105: 10 | FD105: 10 | FE105: 10 | FF105: 10 | FG105: 10 | FH105: 10 | FI105: 10 | FJ105: 10 | FK105: 10 | FL105: 10 | FM105: 10 | FN105: 10 | FO105: 11 | FP105: 11 | FQ105: 11 | FR105: 11 | FS105: 11 | FT105: 11 | FU105: 11 | FV105: 11 | FW105: 11 | FX105: 11 | FY105: 11 | FZ105: 11 | GA105: 12 | GB105: 12 | GC105: 12 | GD105: 12 | GE105: 12 | GF105: 12 | GG105: 12 | GH105: 12 | GI105: 12 | GJ105: 12 | GK105: 12 | GL105: 12 | GM105: 13 | GN105: 13 | GO105: 13 | GP105: 13 | GQ105: 13 | GR105: 13 | GS105: 13 | GT105: 13 | GU105: 13 | GV105: =ROUNDUP(GV104/12,0) -> 13 | GW105: 13 | GX105: 13 | GY105: 14 | GZ105: 14 | HA105: 14 | HB105: 14 | HC105: 14 | HD105: 14 | HE105: 14 | HF105: 14 | HG105: 14 | HH105: 14 | HI105: 14 | HJ105: 14 | HK105: 15 | HL105: 15 | HM105: 15 | HN105: 15 | HO105: 15 | HP105: 15 | HQ105: 15 | HR105: 15 | HS105: 15 | HT105: 15 | HU105: 15 | HV105: 15 | HW105: 16 | HX105: 16 | HY105: 16 | HZ105: 16 | IA105: 16 | IB105: 16 | IC105: 16 | ID105: 16 | IE105: 16 | IF105: 16 | IG105: 16 | IH105: 16 | II105: 17 | IJ105: 17 | IK105: 17 | IL105: 17 | IM105: 17 | IN105: 17 | IO105: 17 | IP105: 17 | IQ105: 17 | IR105: 17 | IS105: 17 | IT105: 17 | IU105: 18 | IV105: 18 | IW105: 18 | IX105: 18 | IY105: 18 | IZ105: 18 | JA105: 18 | JB105: 18 | JC105: 18 | JD105: 18 | JE105: 18 | JF105: 18 | JG105: 19 | JH105: =ROUNDUP(JH104/12,0) -> 19 | JI105: 19 | JJ105: 19 | JK105: 19 | JL105: 19 | JM105: 19 | JN105: 19 | JO105: 19 | JP105: 19 | JQ105: 19 | JR105: 19 | JS105: 20 | JT105: 20 | JU105: 20 | JV105: 20 | JW105: 20 | JX105: 20 | JY105: 20 | JZ105: 20 | KA105: 20 | KB105: 20 | KC105: 20 | KD105: 20 | KE105: 21 | KF105: 21 | KG105: 21 | KH105: 21 | KI105: 21 | KJ105: 21 | KK105: 21 | KL105: 21 | KM105: 21 | KN105: 21 | KO105: 21 | KP105: 21 | KQ105: 22 | KR105: 22 | KS105: 22 | KT105: 22 | KU105: 22 | KV105: 22 | KW105: 22 | KX105: 22 | KY105: 22 | KZ105: 22 | LA105: 22 | LB105: 22 | LC105: 23 | LD105: 23 | LE105: 23 | LF105: 23 | LG105: 23 | LH105: 23 | LI105: 23 | LJ105: 23 | LK105: 23 | LL105: 23 | LM105: 23 | LN105: 23 | LO105: 24 | LP105: 24 | LQ105: 24 | LR105: 24 | LS105: 24 | LT105: =ROUNDUP(LT104/12,0) -> 24 | LU105: 24 | LV105: 24 | LW105: 24 | LX105: 24 | LY105: 24 | LZ105: 24 | MA105: 25 | MB105: 25 | MC105: 25 | MD105: 25 | ME105: 25 | MF105: 25 | MG105: 25 | MH105: 25 | MI105: 25 | MJ105: 25 | MK105: 25 | ML105: 25 | MM105: 25 | MN105: 25 | MO105: 25 | MP105: 25 | MQ105: 25 | MR105: 25 | MS105: 25 | MT105: 25 | MU105: 25 | MV105: 25 | MW105: 25 | MX105: 25 | MY105: 25 | MZ105: 25 | NA105: 25 | NB105: 25 | NC105: 25 | ND105: 25 | NE105: 25 | NF105: 25 | NG105: 25 | NH105: 25 | NI105: 25 | NJ105: 25 | NK105: 25 | NL105: 25 | NM105: 25 | NN105: 25 | NO105: 25 | NP105: 25 | NQ105: 25 | NR105: 25 | NS105: 25 | NT105: 25 | NU105: 25 | NV105: 25 | NW105: 25 | NX105: 25 | NY105: 25 | NZ105: 25 | OA105: 25 | OB105: 25 | OC105: 25 | OD105: 25 | OE105: 25
C106: Real Operting Cost/kW | E106: USD/kW-mo | K106: =lookup1(K105,$F$50:$F$52,$G$50:$G$52)/12 -> 0 | L106: =lookup1(L105,$F$50:$F$52,$G$50:$G$52)/12 -> 0 | M106: 0 | N106: 0 | O106: 0 | P106: 0 | Q106: 0 | R106: 0 | S106: 0 | T106: 0 | U106: 0 | V106: 0 | W106: 0 | X106: 0 | Y106: 0 | Z106: 0 | AA106: 0 | AB106: 0 | AC106: 0 | AD106: 0 | AE106: 0 | AF106: 0 | AG106: 0 | AH106: 0 | AI106: 0 | AJ106: 0 | AK106: 0 | AL106: 0 | AM106: 0 | AN106: 0 | AO106: 0 | AP106: 0 | AQ106: 0 | AR106: 0 | AS106: 0 | AT106: 0 | AU106: 0 | AV106: 0 | AW106: 0 | AX106: 0 | AY106: 2.916666667 | AZ106: 2.916666667 | BA106: 2.916666667 | BB106: 2.916666667 | BC106: 2.916666667 | BD106: 2.916666667 | BE106: 2.916666667 | BF106: 2.916666667 | BG106: 2.916666667 | BH106: 2.916666667 | BI106: 2.916666667 | BJ106: 2.916666667 | BK106: 2.916666667 | BL106: 2.916666667 | BM106: 2.916666667 | BN106: 2.916666667 | BO106: 2.916666667 | BP106: 2.916666667 | BQ106: 2.916666667 | BR106: 2.916666667 | BS106: 2.916666667 | BT106: 2.916666667 | BU106: 2.916666667 | BV106: 2.916666667 | BW106: 2.916666667 | BX106: =lookup1(BX105,$F$50:$F$52,$G$50:$G$52)/12 -> 2.916666667 | BY106: 2.916666667 | BZ106: 2.916666667 | CA106: 2.916666667 | CB106: 2.916666667 | CC106: 2.916666667 | CD106: 2.916666667 | CE106: 2.916666667 | CF106: 2.916666667 | CG106: 2.916666667 | CH106: 2.916666667 | CI106: 2.916666667 | CJ106: 2.916666667 | CK106: 2.916666667 | CL106: 2.916666667 | CM106: 2.916666667 | CN106: 2.916666667 | CO106: 2.916666667 | CP106: 2.916666667 | CQ106: 2.916666667 | CR106: 2.916666667 | CS106: 2.916666667 | CT106: 2.916666667 | CU106: 2.916666667 | CV106: 2.916666667 | CW106: 2.916666667 | CX106: 2.916666667 | CY106: 2.916666667 | CZ106: 2.916666667 | DA106: 2.916666667 | DB106: 2.916666667 | DC106: 2.916666667 | DD106: 2.916666667 | DE106: 2.916666667 | DF106: 2.916666667 | DG106: 2.916666667 | DH106: 2.916666667 | DI106: 2.916666667 | DJ106: 2.916666667 | DK106: 2.916666667 | DL106: 2.916666667 | DM106: 2.916666667 | DN106: 2.916666667 | DO106: 2.916666667 | DP106: 2.916666667 | DQ106: 2.916666667 | DR106: 2.916666667 | DS106: 2.916666667 | DT106: 2.916666667 | DU106: 2.916666667 | DV106: 2.916666667 | DW106: 2.916666667 | DX106: 2.916666667 | DY106: 2.916666667 | DZ106: 2.916666667 | EA106: 2.916666667 | EB106: 2.916666667 | EC106: 2.916666667 | ED106: 2.916666667 | EE106: 2.916666667 | EF106: 2.916666667 | EG106: 2.916666667 | EH106: 2.916666667 | EI106: 2.916666667 | EJ106: =lookup1(EJ105,$F$50:$F$52,$G$50:$G$52)/12 -> 2.916666667 | EK106: 2.916666667 | EL106: 2.916666667 | EM106: 2.916666667 | EN106: 2.916666667 | EO106: 2.916666667 | EP106: 2.916666667 | EQ106: 2.916666667 | ER106: 2.916666667 | ES106: 2.916666667 | ET106: 2.916666667 | EU106: 2.916666667 | EV106: 2.916666667 | EW106: 2.916666667 | EX106: 2.916666667 | EY106: 2.916666667 | EZ106: 2.916666667 | FA106: 2.916666667 | FB106: 2.916666667 | FC106: 3.5 | FD106: 3.5 | FE106: 3.5 | FF106: 3.5 | FG106: 3.5 | FH106: 3.5 | FI106: 3.5 | FJ106: 3.5 | FK106: 3.5 | FL106: 3.5 | FM106: 3.5 | FN106: 3.5 | FO106: 3.5 | FP106: 3.5 | FQ106: 3.5 | FR106: 3.5 | FS106: 3.5 | FT106: 3.5 | FU106: 3.5 | FV106: 3.5 | FW106: 3.5 | FX106: 3.5 | FY106: 3.5 | FZ106: 3.5 | GA106: 3.5 | GB106: 3.5 | GC106: 3.5 | GD106: 3.5 | GE106: 3.5 | GF106: 3.5 | GG106: 3.5 | GH106: 3.5 | GI106: 3.5 | GJ106: 3.5 | GK106: 3.5 | GL106: 3.5 | GM106: 3.5 | GN106: 3.5 | GO106: 3.5 | GP106: 3.5 | GQ106: 3.5 | GR106: 3.5 | GS106: 3.5 | GT106: 3.5 | GU106: 3.5 | GV106: =lookup1(GV105,$F$50:$F$52,$G$50:$G$52)/12 -> 3.5 | GW106: 3.5 | GX106: 3.5 | GY106: 3.5 | GZ106: 3.5 | HA106: 3.5 | HB106: 3.5 | HC106: 3.5 | HD106: 3.5 | HE106: 3.5 | HF106: 3.5 | HG106: 3.5 | HH106: 3.5 | HI106: 3.5 | HJ106: 3.5 | HK106: 3.75 | HL106: 3.75 | HM106: 3.75 | HN106: 3.75 | HO106: 3.75 | HP106: 3.75 | HQ106: 3.75 | HR106: 3.75 | HS106: 3.75 | HT106: 3.75 | HU106: 3.75 | HV106: 3.75 | HW106: 3.75 | HX106: 3.75 | HY106: 3.75 | HZ106: 3.75 | IA106: 3.75 | IB106: 3.75 | IC106: 3.75 | ID106: 3.75 | IE106: 3.75 | IF106: 3.75 | IG106: 3.75 | IH106: 3.75 | II106: 3.75 | IJ106: 3.75 | IK106: 3.75 | IL106: 3.75 | IM106: 3.75 | IN106: 3.75 | IO106: 3.75 | IP106: 3.75 | IQ106: 3.75 | IR106: 3.75 | IS106: 3.75 | IT106: 3.75 | IU106: 3.75 | IV106: 3.75 | IW106: 3.75 | IX106: 3.75 | IY106: 3.75 | IZ106: 3.75 | JA106: 3.75 | JB106: 3.75 | JC106: 3.75 | JD106: 3.75 | JE106: 3.75 | JF106: 3.75 | JG106: 3.75 | JH106: =lookup1(JH105,$F$50:$F$52,$G$50:$G$52)/12 -> 3.75 | JI106: 3.75 | JJ106: 3.75 | JK106: 3.75 | JL106: 3.75 | JM106: 3.75 | JN106: 3.75 | JO106: 3.75 | JP106: 3.75 | JQ106: 3.75 | JR106: 3.75 | JS106: 3.75 | JT106: 3.75 | JU106: 3.75 | JV106: 3.75 | JW106: 3.75 | JX106: 3.75 | JY106: 3.75 | JZ106: 3.75 | KA106: 3.75 | KB106: 3.75 | KC106: 3.75 | KD106: 3.75 | KE106: 3.75 | KF106: 3.75 | KG106: 3.75 | KH106: 3.75 | KI106: 3.75 | KJ106: 3.75 | KK106: 3.75 | KL106: 3.75 | KM106: 3.75 | KN106: 3.75 | KO106: 3.75 | KP106: 3.75 | KQ106: 3.75 | KR106: 3.75 | KS106: 3.75 | KT106: 3.75 | KU106: 3.75 | KV106: 3.75 | KW106: 3.75 | KX106: 3.75 | KY106: 3.75 | KZ106: 3.75 | LA106: 3.75 | LB106: 3.75 | LC106: 3.75 | LD106: 3.75 | LE106: 3.75 | LF106: 3.75 | LG106: 3.75 | LH106: 3.75 | LI106: 3.75 | LJ106: 3.75 | LK106: 3.75 | LL106: 3.75 | LM106: 3.75 | LN106: 3.75 | LO106: 3.75 | LP106: 3.75 | LQ106: 3.75 | LR106: 3.75 | LS106: 3.75 | LT106: =lookup1(LT105,$F$50:$F$52,$G$50:$G$52)/12 -> 3.75 | LU106: 3.75 | LV106: 3.75 | LW106: 3.75 | LX106: 3.75 | LY106: 3.75 | LZ106: 3.75 | MA106: 3.75 | MB106: 3.75 | MC106: 3.75 | MD106: 3.75 | ME106: 3.75 | MF106: 3.75 | MG106: 3.75 | MH106: 3.75 | MI106: 3.75 | MJ106: 3.75 | MK106: 3.75 | ML106: 3.75 | MM106: 3.75 | MN106: 3.75 | MO106: 3.75 | MP106: 3.75 | MQ106: 3.75 | MR106: 3.75 | MS106: 3.75 | MT106: 3.75 | MU106: 3.75 | MV106: 3.75 | MW106: 3.75 | MX106: 3.75 | MY106: 3.75 | MZ106: 3.75 | NA106: 3.75 | NB106: 3.75 | NC106: 3.75 | ND106: 3.75 | NE106: 3.75 | NF106: 3.75 | NG106: 3.75 | NH106: 3.75 | NI106: 3.75 | NJ106: 3.75 | NK106: 3.75 | NL106: 3.75 | NM106: 3.75 | NN106: 3.75 | NO106: 3.75 | NP106: 3.75 | NQ106: 3.75 | NR106: 3.75 | NS106: 3.75 | NT106: 3.75 | NU106: 3.75 | NV106: 3.75 | NW106: 3.75 | NX106: 3.75 | NY106: 3.75 | NZ106: 3.75 | OA106: 3.75 | OB106: 3.75 | OC106: 3.75 | OD106: 3.75 | OE106: 3.75
C107: Periodic Inflation Rate | E107: % | K107: =(1+lookup1(K11,54:54,60:60))^(1/12)-1 -> 0.001241487716 | L107: 0.001241487716 | M107: 0.001241487716 | N107: 0.001241487716 | O107: 0.001241487716 | P107: 0.001241487716 | Q107: 0.001241487716 | R107: 0.001241487716 | S107: 0.001241487716 | T107: 0.001241487716 | U107: 0.001651581302 | V107: 0.001651581302 | W107: 0.001651581302 | X107: 0.001651581302 | Y107: 0.001651581302 | Z107: 0.001651581302 | AA107: 0.001651581302 | AB107: 0.001651581302 | AC107: 0.001651581302 | AD107: 0.001651581302 | AE107: 0.001651581302 | AF107: 0.001651581302 | AG107: 0.001651581302 | AH107: 0.001651581302 | AI107: 0.001651581302 | AJ107: 0.001651581302 | AK107: 0.001651581302 | AL107: 0.001651581302 | AM107: 0.001651581302 | AN107: 0.001651581302 | AO107: 0.001651581302 | AP107: 0.001651581302 | AQ107: 0.001651581302 | AR107: 0.001651581302 | AS107: 0.001651581302 | AT107: 0.001651581302 | AU107: 0.001651581302 | AV107: 0.001651581302 | AW107: 0.001651581302 | AX107: 0.001651581302 | AY107: 0.001651581302 | AZ107: 0.001651581302 | BA107: 0.001651581302 | BB107: 0.001651581302 | BC107: 0.001651581302 | BD107: 0.001651581302 | BE107: 0.001651581302 | BF107: 0.001651581302 | BG107: 0.001651581302 | BH107: 0.001651581302 | BI107: 0.001651581302 | BJ107: 0.001651581302 | BK107: 0.001651581302 | BL107: 0.001651581302 | BM107: 0.001651581302 | BN107: 0.001651581302 | BO107: 0.001651581302 | BP107: 0.001651581302 | BQ107: 0.002466269772 | BR107: 0.002466269772 | BS107: 0.002466269772 | BT107: 0.002466269772 | BU107: 0.002466269772 | BV107: 0.002466269772 | BW107: =(1+lookup1(BW11,54:54,60:60))^(1/12)-1 -> 0.002466269772 | BX107: 0.002466269772 | BY107: 0.002466269772 | BZ107: 0.002466269772 | CA107: 0.002466269772 | CB107: 0.002466269772 | CC107: 0.002466269772 | CD107: 0.002466269772 | CE107: 0.002466269772 | CF107: 0.002466269772 | CG107: 0.002466269772 | CH107: 0.002466269772 | CI107: 0.002466269772 | CJ107: 0.002466269772 | CK107: 0.002466269772 | CL107: 0.002466269772 | CM107: 0.002466269772 | CN107: 0.002466269772 | CO107: 0.002466269772 | CP107: 0.002466269772 | CQ107: 0.002466269772 | CR107: 0.002466269772 | CS107: 0.002466269772 | CT107: 0.002466269772 | CU107: 0.002466269772 | CV107: 0.002466269772 | CW107: 0.002466269772 | CX107: 0.002466269772 | CY107: 0.002466269772 | CZ107: 0.002466269772 | DA107: 0.002466269772 | DB107: 0.002466269772 | DC107: 0.002466269772 | DD107: 0.002466269772 | DE107: 0.002466269772 | DF107: 0.002466269772 | DG107: 0.002466269772 | DH107: 0.002466269772 | DI107: 0.002466269772 | DJ107: 0.002466269772 | DK107: 0.002466269772 | DL107: 0.002466269772 | DM107: 0.002466269772 | DN107: 0.002466269772 | DO107: 0.002466269772 | DP107: 0.002466269772 | DQ107: 0.002466269772 | DR107: 0.002466269772 | DS107: 0.002466269772 | DT107: 0.002466269772 | DU107: 0.002466269772 | DV107: 0.002466269772 | DW107: 0.002466269772 | DX107: 0.002466269772 | DY107: 0.002466269772 | DZ107: 0.002466269772 | EA107: 0.002466269772 | EB107: 0.002466269772 | EC107: 0.002466269772 | ED107: 0.002466269772 | EE107: 0.002466269772 | EF107: 0.002466269772 | EG107: 0.002466269772 | EH107: 0.002466269772 | EI107: =(1+lookup1(EI11,54:54,60:60))^(1/12)-1 -> 0.002466269772 | EJ107: 0.002466269772 | EK107: 0.002466269772 | EL107: 0.002466269772 | EM107: 0.002466269772 | EN107: 0.002466269772 | EO107: 0.002466269772 | EP107: 0.002466269772 | EQ107: 0.002466269772 | ER107: 0.002466269772 | ES107: 0.002466269772 | ET107: 0.002466269772 | EU107: 0.002466269772 | EV107: 0.002466269772 | EW107: 0.002466269772 | EX107: 0.002466269772 | EY107: 0.002466269772 | EZ107: 0.002466269772 | FA107: 0.002466269772 | FB107: 0.002466269772 | FC107: 0.002466269772 | FD107: 0.002466269772 | FE107: 0.002466269772 | FF107: 0.002466269772 | FG107: 0.002466269772 | FH107: 0.002466269772 | FI107: 0.002466269772 | FJ107: 0.002466269772 | FK107: 0.002466269772 | FL107: 0.002466269772 | FM107: 0.002466269772 | FN107: 0.002466269772 | FO107: 0.002466269772 | FP107: 0.002466269772 | FQ107: 0.002466269772 | FR107: 0.002466269772 | FS107: 0.002466269772 | FT107: 0.002466269772 | FU107: 0.002466269772 | FV107: 0.002466269772 | FW107: 0.002466269772 | FX107: 0.002466269772 | FY107: 0.002466269772 | FZ107: 0.002466269772 | GA107: 0.002466269772 | GB107: 0.002466269772 | GC107: 0.002466269772 | GD107: 0.002466269772 | GE107: 0.002466269772 | GF107: 0.002466269772 | GG107: 0.002466269772 | GH107: 0.002466269772 | GI107: 0.002466269772 | GJ107: 0.002466269772 | GK107: 0.002466269772 | GL107: 0.002466269772 | GM107: 0.002466269772 | GN107: 0.002466269772 | GO107: 0.002466269772 | GP107: 0.002466269772 | GQ107: 0.002466269772 | GR107: 0.002466269772 | GS107: 0.002466269772 | GT107: 0.002466269772 | GU107: =(1+lookup1(GU11,54:54,60:60))^(1/12)-1 -> 0.002466269772 | GV107: 0.002466269772 | GW107: 0.002466269772 | GX107: 0.002466269772 | GY107: 0.002466269772 | GZ107: 0.002466269772 | HA107: 0.002466269772 | HB107: 0.002466269772 | HC107: 0.002466269772 | HD107: 0.002466269772 | HE107: 0.002466269772 | HF107: 0.002466269772 | HG107: 0.002466269772 | HH107: 0.002466269772 | HI107: 0.002466269772 | HJ107: 0.002466269772 | HK107: 0.002466269772 | HL107: 0.002466269772 | HM107: 0.002466269772 | HN107: 0.002466269772 | HO107: 0.002466269772 | HP107: 0.002466269772 | HQ107: 0.002466269772 | HR107: 0.002466269772 | HS107: 0.002466269772 | HT107: 0.002466269772 | HU107: 0.002466269772 | HV107: 0.002466269772 | HW107: 0.002466269772 | HX107: 0.002466269772 | HY107: 0.002466269772 | HZ107: 0.002466269772 | IA107: 0.002466269772 | IB107: 0.002466269772 | IC107: 0.002466269772 | ID107: 0.002466269772 | IE107: 0.002466269772 | IF107: 0.002466269772 | IG107: 0.002466269772 | IH107: 0.002466269772 | II107: 0.002466269772 | IJ107: 0.002466269772 | IK107: 0.002466269772 | IL107: 0.002466269772 | IM107: 0.002466269772 | IN107: 0.002466269772 | IO107: 0.002466269772 | IP107: 0.002466269772 | IQ107: 0.002466269772 | IR107: 0.002466269772 | IS107: 0.002466269772 | IT107: 0.002466269772 | IU107: 0.002466269772 | IV107: 0.002466269772 | IW107: 0.002466269772 | IX107: 0.002466269772 | IY107: 0.002466269772 | IZ107: 0.002466269772 | JA107: 0.002466269772 | JB107: 0.002466269772 | JC107: 0.002466269772 | JD107: 0.002466269772 | JE107: 0.002466269772 | JF107: 0.002466269772 | JG107: =(1+lookup1(JG11,54:54,60:60))^(1/12)-1 -> 0.002466269772 | JH107: 0.002466269772 | JI107: 0.002466269772 | JJ107: 0.002466269772 | JK107: 0.002466269772 | JL107: 0.002466269772 | JM107: 0.002466269772 | JN107: 0.002466269772 | JO107: 0.002466269772 | JP107: 0.002466269772 | JQ107: 0.002466269772 | JR107: 0.002466269772 | JS107: 0.002466269772 | JT107: 0.002466269772 | JU107: 0.002466269772 | JV107: 0.002466269772 | JW107: 0.002466269772 | JX107: 0.002466269772 | JY107: 0.002466269772 | JZ107: 0.002466269772 | KA107: 0.002466269772 | KB107: 0.002466269772 | KC107: 0.002466269772 | KD107: 0.002466269772 | KE107: 0.002466269772 | KF107: 0.002466269772 | KG107: 0.002466269772 | KH107: 0.002466269772 | KI107: 0.002466269772 | KJ107: 0.002466269772 | KK107: 0.002466269772 | KL107: 0.002466269772 | KM107: 0.002466269772 | KN107: 0.002466269772 | KO107: 0.002466269772 | KP107: 0.002466269772 | KQ107: 0.002466269772 | KR107: 0.002466269772 | KS107: 0.002466269772 | KT107: 0.002466269772 | KU107: 0.002466269772 | KV107: 0.002466269772 | KW107: 0.002466269772 | KX107: 0.002466269772 | KY107: 0.002466269772 | KZ107: 0.002466269772 | LA107: 0.002466269772 | LB107: 0.002466269772 | LC107: 0.002466269772 | LD107: 0.002466269772 | LE107: 0.002466269772 | LF107: 0.002466269772 | LG107: 0.002466269772 | LH107: 0.002466269772 | LI107: 0.002466269772 | LJ107: 0.002466269772 | LK107: 0.002466269772 | LL107: 0.002466269772 | LM107: 0.002466269772 | LN107: 0.002466269772 | LO107: 0.002466269772 | LP107: 0.002466269772 | LQ107: 0.002466269772 | LR107: 0.002466269772 | LS107: =(1+lookup1(LS11,54:54,60:60))^(1/12)-1 -> 0.002466269772 | LT107: 0.002466269772 | LU107: 0.002466269772 | LV107: 0.002466269772 | LW107: 0.002466269772 | LX107: 0.002466269772 | LY107: 0.002466269772 | LZ107: 0.002466269772 | MA107: 0.002466269772 | MB107: 0.002466269772 | MC107: 0.002466269772 | MD107: 0.002466269772 | ME107: 0.002466269772 | MF107: 0.002466269772 | MG107: 0.002466269772 | MH107: 0.002466269772 | MI107: 0.002466269772 | MJ107: 0.002466269772 | MK107: 0.002466269772 | ML107: 0.002466269772 | MM107: 0.002466269772 | MN107: 0.002466269772 | MO107: 0.002466269772 | MP107: 0.002466269772 | MQ107: 0.002466269772 | MR107: 0.002466269772 | MS107: 0.002466269772 | MT107: 0.002466269772 | MU107: 0.002466269772 | MV107: 0.002466269772 | MW107: 0.002466269772 | MX107: 0.002466269772 | MY107: 0.002466269772 | MZ107: 0.002466269772 | NA107: 0.002466269772 | NB107: 0.002466269772 | NC107: 0.002466269772 | ND107: 0.002466269772 | NE107: 0.002466269772 | NF107: 0.002466269772 | NG107: 0.002466269772 | NH107: 0.002466269772 | NI107: 0.002466269772 | NJ107: 0.002466269772 | NK107: 0.002466269772 | NL107: 0.002466269772 | NM107: 0.002466269772 | NN107: 0.002466269772 | NO107: 0.002466269772 | NP107: 0.002466269772 | NQ107: 0.002466269772 | NR107: 0.002466269772 | NS107: 0.002466269772 | NT107: 0.002466269772 | NU107: 0.002466269772 | NV107: 0.002466269772 | NW107: 0.002466269772 | NX107: 0.002466269772 | NY107: 0.002466269772 | NZ107: 0.002466269772 | OA107: 0.002466269772 | OB107: 0.002466269772 | OC107: 0.002466269772 | OD107: 0.002466269772 | OE107: 0.002466269772
C108: Inflation Index | E108: Index | F108: Base Period | G108: =F48 -> 2016-01-01 | J108: 1 | K108: =J108*(1+K107*(K2>=$G$108)) -> 1 | L108: 1 | M108: 1 | N108: 1 | O108: 1 | P108: 1 | Q108: 1 | R108: 1 | S108: 1 | T108: 1 | U108: 1.001651581 | V108: 1.00330589 | W108: 1.004962932 | X108: 1.00662271 | Y108: 1.008285229 | Z108: 1.009950494 | AA108: 1.011618509 | AB108: 1.013289279 | AC108: 1.014962809 | AD108: 1.016639103 | AE108: 1.018318165 | AF108: 1.02 | AG108: 1.021684613 | AH108: 1.023372008 | AI108: 1.02506219 | AJ108: 1.026755164 | AK108: 1.028450933 | AL108: 1.030149504 | AM108: 1.031850879 | AN108: 1.033555065 | AO108: 1.035262065 | AP108: 1.036971885 | AQ108: 1.038684528 | AR108: 1.0404 | AS108: 1.042118305 | AT108: 1.043839448 | AU108: 1.045563434 | AV108: 1.047290267 | AW108: 1.049019952 | AX108: 1.050752494 | AY108: 1.052487897 | AZ108: 1.054226166 | BA108: 1.055967307 | BB108: 1.057711322 | BC108: 1.059458219 | BD108: 1.061208 | BE108: 1.062960671 | BF108: 1.064716237 | BG108: 1.066474703 | BH108: 1.068236072 | BI108: 1.070000351 | BJ108: 1.071767544 | BK108: 1.073537655 | BL108: 1.07531069 | BM108: 1.077086653 | BN108: 1.078865549 | BO108: 1.080647383 | BP108: 1.08243216 | BQ108: 1.08510173 | BR108: 1.087777883 | BS108: 1.090460637 | BT108: 1.093150007 | BU108: 1.09584601 | BV108: 1.098548662 | BW108: =BV108*(1+BW107*(BW2>=$G$108)) -> 1.101257979 | BX108: 1.103973978 | BY108: 1.106696676 | BZ108: 1.109426089 | CA108: 1.112162233 | CB108: 1.114905125 | CC108: 1.117654782 | CD108: 1.12041122 | CE108: 1.123174456 | CF108: 1.125944507 | CG108: 1.12872139 | CH108: 1.131505122 | CI108: 1.134295719 | CJ108: 1.137093198 | CK108: 1.139897576 | CL108: 1.142708871 | CM108: 1.1455271 | CN108: 1.148352279 | CO108: 1.151184425 | CP108: 1.154023556 | CQ108: 1.15686969 | CR108: 1.159722843 | CS108: 1.162583032 | CT108: 1.165450275 | CU108: 1.16832459 | CV108: 1.171205994 | CW108: 1.174094504 | CX108: 1.176990137 | CY108: 1.179892913 | CZ108: 1.182802847 | DA108: 1.185719958 | DB108: 1.188644263 | DC108: 1.191575781 | DD108: 1.194514528 | DE108: 1.197460523 | DF108: 1.200413784 | DG108: 1.203374328 | DH108: 1.206342174 | DI108: 1.209317339 | DJ108: 1.212299842 | DK108: 1.2152897 | DL108: 1.218286932 | DM108: 1.221291557 | DN108: 1.224303591 | DO108: 1.227323054 | DP108: 1.230349964 | DQ108: 1.233384339 | DR108: 1.236426197 | DS108: 1.239475558 | DT108: 1.242532439 | DU108: 1.245596859 | DV108: 1.248668837 | DW108: 1.251748391 | DX108: 1.25483554 | DY108: 1.257930303 | DZ108: 1.261032699 | EA108: 1.264142746 | EB108: 1.267260463 | EC108: 1.270385869 | ED108: 1.273518983 | EE108: 1.276659824 | EF108: 1.279808412 | EG108: 1.282964765 | EH108: 1.286128902 | EI108: =EH108*(1+EI107*(EI2>=$G$108)) -> 1.289300843 | EJ108: 1.292480606 | EK108: 1.295668212 | EL108: 1.29886368 | EM108: 1.302067028 | EN108: 1.305278276 | EO108: 1.308497445 | EP108: 1.311724553 | EQ108: 1.314959619 | ER108: 1.318202664 | ES108: 1.321453708 | ET108: 1.324712769 | EU108: 1.327979868 | EV108: 1.331255025 | EW108: 1.334538259 | EX108: 1.33782959 | EY108: 1.341129039 | EZ108: 1.344436625 | FA108: 1.347752368 | FB108: 1.351076289 | FC108: 1.354408408 | FD108: 1.357748744 | FE108: 1.361097319 | FF108: 1.364454152 | FG108: 1.367819264 | FH108: 1.371192675 | FI108: 1.374574406 | FJ108: 1.377964478 | FK108: 1.38136291 | FL108: 1.384769724 | FM108: 1.388184939 | FN108: 1.391608578 | FO108: 1.39504066 | FP108: 1.398481207 | FQ108: 1.401930238 | FR108: 1.405387777 | FS108: 1.408853842 | FT108: 1.412328456 | FU108: 1.415811639 | FV108: 1.419303412 | FW108: 1.422803797 | FX108: 1.426312815 | FY108: 1.429830487 | FZ108: 1.433356835 | GA108: 1.43689188 | GB108: 1.440435643 | GC108: 1.443988146 | GD108: 1.44754941 | GE108: 1.451119457 | GF108: 1.454698309 | GG108: 1.458285988 | GH108: 1.461882514 | GI108: 1.465487911 | GJ108: 1.4691022 | GK108: 1.472725402 | GL108: 1.47635754 | GM108: 1.479998636 | GN108: 1.483648712 | GO108: 1.48730779 | GP108: 1.490975892 | GQ108: 1.494653041 | GR108: 1.498339259 | GS108: 1.502034567 | GT108: 1.50573899 | GU108: =GT108*(1+GU107*(GU2>=$G$108)) -> 1.509452548 | GV108: 1.513175266 | GW108: 1.516907164 | GX108: 1.520648266 | GY108: 1.524398595 | GZ108: 1.528158173 | HA108: 1.531927024 | HB108: 1.535705169 | HC108: 1.539492632 | HD108: 1.543289436 | HE108: 1.547095604 | HF108: 1.55091116 | HG108: 1.554736125 | HH108: 1.558570524 | HI108: 1.562414379 | HJ108: 1.566267714 | HK108: 1.570130553 | HL108: 1.574002919 | HM108: 1.577884834 | HN108: 1.581776324 | HO108: 1.585677411 | HP108: 1.589588119 | HQ108: 1.593508473 | HR108: 1.597438494 | HS108: 1.601378209 | HT108: 1.605327639 | HU108: 1.60928681 | HV108: 1.613255746 | HW108: 1.61723447 | HX108: 1.621223006 | HY108: 1.625221379 | HZ108: 1.629229614 | IA108: 1.633247734 | IB108: 1.637275763 | IC108: 1.641313727 | ID108: 1.645361649 | IE108: 1.649419555 | IF108: 1.653487469 | IG108: 1.657565415 | IH108: 1.661653418 | II108: 1.665751504 | IJ108: 1.669859696 | IK108: 1.673978021 | IL108: 1.678106502 | IM108: 1.682245166 | IN108: 1.686394036 | IO108: 1.690553139 | IP108: 1.694722499 | IQ108: 1.698902142 | IR108: 1.703092093 | IS108: 1.707292377 | IT108: 1.711503021 | IU108: 1.715724049 | IV108: 1.719955487 | IW108: 1.724197361 | IX108: 1.728449697 | IY108: 1.732712521 | IZ108: 1.736985857 | JA108: 1.741269733 | JB108: 1.745564174 | JC108: 1.749869206 | JD108: 1.754184855 | JE108: 1.758511148 | JF108: 1.762848111 | JG108: =JF108*(1+JG107*(JG2>=$G$108)) -> 1.76719577 | JH108: 1.771554152 | JI108: 1.775923282 | JJ108: 1.780303188 | JK108: 1.784693896 | JL108: 1.789095433 | JM108: 1.793507825 | JN108: 1.797931099 | JO108: 1.802365282 | JP108: 1.806810401 | JQ108: 1.811266483 | JR108: 1.815733555 | JS108: 1.820211643 | JT108: 1.824700776 | JU108: 1.829200981 | JV108: 1.833712284 | JW108: 1.838234713 | JX108: 1.842768296 | JY108: 1.847313059 | JZ108: 1.851869032 | KA108: 1.85643624 | KB108: 1.861014713 | KC108: 1.865604477 | KD108: 1.870205561 | KE108: 1.874817993 | KF108: 1.8794418 | KG108: 1.88407701 | KH108: 1.888723652 | KI108: 1.893381754 | KJ108: 1.898051345 | KK108: 1.902732451 | KL108: 1.907425103 | KM108: 1.912129328 | KN108: 1.916845154 | KO108: 1.921572612 | KP108: 1.926311728 | KQ108: 1.931062533 | KR108: 1.935825054 | KS108: 1.94059932 | KT108: 1.945385362 | KU108: 1.950183207 | KV108: 1.954992885 | KW108: 1.959814425 | KX108: 1.964647856 | KY108: 1.969493207 | KZ108: 1.974350509 | LA108: 1.97921979 | LB108: 1.98410108 | LC108: 1.988994409 | LD108: 1.993899805 | LE108: 1.9988173 | LF108: 2.003746923 | LG108: 2.008688703 | LH108: 2.013642671 | LI108: 2.018608858 | LJ108: 2.023587292 | LK108: 2.028578004 | LL108: 2.033581024 | LM108: 2.038596384 | LN108: 2.043624112 | LO108: 2.048664241 | LP108: 2.053716799 | LQ108: 2.058781819 | LR108: 2.06385933 | LS108: =LR108*(1+LS107*(LS2>=$G$108)) -> 2.068949364 | LT108: 2.074051952 | LU108: 2.079167123 | LV108: 2.08429491 | LW108: 2.089435344 | LX108: 2.094588455 | LY108: 2.099754275 | LZ108: 2.104932836 | MA108: 2.110124168 | MB108: 2.115328303 | MC108: 2.120545274 | MD108: 2.12577511 | ME108: 2.131017845 | MF108: 2.13627351 | MG108: 2.141542137 | MH108: 2.146823758 | MI108: 2.152118404 | MJ108: 2.157426109 | MK108: 2.162746904 | ML108: 2.168080821 | MM108: 2.173427893 | MN108: 2.178788153 | MO108: 2.184161632 | MP108: 2.189548364 | MQ108: 2.194948381 | MR108: 2.200361715 | MS108: 2.205788401 | MT108: 2.21122847 | MU108: 2.216681956 | MV108: 2.222148892 | MW108: 2.227629311 | MX108: 2.233123245 | MY108: 2.23863073 | MZ108: 2.244151797 | NA108: 2.249686481 | NB108: 2.255234815 | NC108: 2.260796832 | ND108: 2.266372567 | NE108: 2.271962053 | NF108: 2.277565324 | NG108: 2.283182415 | NH108: 2.288813359 | NI108: 2.29445819 | NJ108: 2.300116943 | NK108: 2.305789652 | NL108: 2.311476351 | NM108: 2.317177075 | NN108: 2.322891859 | NO108: 2.328620737 | NP108: 2.334363744 | NQ108: 2.340120915 | NR108: 2.345892284 | NS108: 2.351677887 | NT108: 2.357477759 | NU108: 2.363291936 | NV108: 2.369120451 | NW108: 2.374963341 | NX108: 2.380820642 | NY108: 2.386692388 | NZ108: 2.392578615 | OA108: 2.398479359 | OB108: 2.404394656 | OC108: 2.410324542 | OD108: 2.416269053 | OE108: =OD108*(1+OE107*(OE2>=$G$108)) -> 2.422228224
C109: Nominal Opexp per kW | E109: USD/kW-mo | K109: =K108*K106 -> 0 | L109: =L108*L106 -> 0 | M109: 0 | N109: 0 | O109: 0 | P109: 0 | Q109: 0 | R109: 0 | S109: 0 | T109: 0 | U109: 0 | V109: 0 | W109: 0 | X109: 0 | Y109: 0 | Z109: 0 | AA109: 0 | AB109: 0 | AC109: 0 | AD109: 0 | AE109: 0 | AF109: 0 | AG109: 0 | AH109: 0 | AI109: 0 | AJ109: 0 | AK109: 0 | AL109: 0 | AM109: 0 | AN109: 0 | AO109: 0 | AP109: 0 | AQ109: 0 | AR109: 0 | AS109: 0 | AT109: 0 | AU109: 0 | AV109: 0 | AW109: 0 | AX109: 0 | AY109: 3.069756366 | AZ109: 3.074826318 | BA109: 3.079904644 | BB109: 3.084991357 | BC109: 3.090086471 | BD109: 3.09519 | BE109: 3.100301958 | BF109: 3.105422359 | BG109: 3.110551216 | BH109: 3.115688544 | BI109: 3.120834357 | BJ109: 3.125988669 | BK109: 3.131151493 | BL109: 3.136322845 | BM109: 3.141502737 | BN109: 3.146691184 | BO109: 3.1518882 | BP109: 3.1570938 | BQ109: 3.164880045 | BR109: 3.172685493 | BS109: 3.180510191 | BT109: 3.188354187 | BU109: 3.196217529 | BV109: 3.204100264 | BW109: 3.212002439 | BX109: =BX108*BX106 -> 3.219924104 | BY109: 3.227865305 | BZ109: 3.235826092 | CA109: 3.243806512 | CB109: 3.251806614 | CC109: 3.259826446 | CD109: 3.267866058 | CE109: 3.275925497 | CF109: 3.284004813 | CG109: 3.292104055 | CH109: 3.300223272 | CI109: 3.308362513 | CJ109: 3.316521827 | CK109: 3.324701265 | CL109: 3.332900875 | CM109: 3.341120707 | CN109: 3.349360812 | CO109: 3.35762124 | CP109: 3.36590204 | CQ109: 3.374203262 | CR109: 3.382524957 | CS109: 3.390867177 | CT109: 3.39922997 | CU109: 3.407613388 | CV109: 3.416017482 | CW109: 3.424442302 | CX109: 3.432887901 | CY109: 3.441354329 | CZ109: 3.449841637 | DA109: 3.458349877 | DB109: 3.466879101 | DC109: 3.47542936 | DD109: 3.484000706 | DE109: 3.492593192 | DF109: 3.501206869 | DG109: 3.50984179 | DH109: 3.518498006 | DI109: 3.527175572 | DJ109: 3.535874538 | DK109: 3.544594958 | DL109: 3.553336886 | DM109: 3.562100373 | DN109: 3.570885474 | DO109: 3.579692241 | DP109: 3.588520727 | DQ109: 3.597370988 | DR109: 3.606243075 | DS109: 3.615137043 | DT109: 3.624052946 | DU109: 3.632990839 | DV109: 3.641950774 | DW109: 3.650932807 | DX109: 3.659936992 | DY109: 3.668963384 | DZ109: 3.678012038 | EA109: 3.687083008 | EB109: 3.696176349 | EC109: 3.705292117 | ED109: 3.714430367 | EE109: 3.723591155 | EF109: 3.732774535 | EG109: 3.741980564 | EH109: 3.751209297 | EI109: 3.760460791 | EJ109: =EJ108*EJ106 -> 3.769735102 | EK109: 3.779032286 | EL109: 3.788352399 | EM109: 3.797695498 | EN109: 3.80706164 | EO109: 3.816450881 | EP109: 3.825863278 | EQ109: 3.835298889 | ER109: 3.844757771 | ES109: 3.854239981 | ET109: 3.863745576 | EU109: 3.873274615 | EV109: 3.882827155 | EW109: 3.892403255 | EX109: 3.902002971 | EY109: 3.911626363 | EZ109: 3.921273489 | FA109: 3.930944407 | FB109: 3.940639177 | FC109: 4.740429427 | FD109: 4.752120605 | FE109: 4.763840616 | FF109: 4.775589532 | FG109: 4.787367424 | FH109: 4.799174364 | FI109: 4.811010423 | FJ109: 4.822875672 | FK109: 4.834770185 | FL109: 4.846694032 | FM109: 4.858647287 | FN109: 4.870630022 | FO109: 4.88264231 | FP109: 4.894684223 | FQ109: 4.906755835 | FR109: 4.918857218 | FS109: 4.930988447 | FT109: 4.943149595 | FU109: 4.955340735 | FV109: 4.967561942 | FW109: 4.97981329 | FX109: 4.992094853 | FY109: 5.004406706 | FZ109: 5.016748923 | GA109: 5.029121579 | GB109: 5.04152475 | GC109: 5.05395851 | GD109: 5.066422935 | GE109: 5.078918101 | GF109: 5.091444083 | GG109: 5.104000957 | GH109: 5.116588801 | GI109: 5.129207689 | GJ109: 5.141857699 | GK109: 5.154538907 | GL109: 5.167251391 | GM109: 5.179995226 | GN109: 5.192770492 | GO109: 5.205577265 | GP109: 5.218415623 | GQ109: 5.231285644 | GR109: 5.244187405 | GS109: 5.257120986 | GT109: 5.270086465 | GU109: 5.28308392 | GV109: =GV108*GV106 -> 5.29611343 | GW109: 5.309175074 | GX109: 5.322268932 | GY109: 5.335395083 | GZ109: 5.348553607 | HA109: 5.361744583 | HB109: 5.374968092 | HC109: 5.388224213 | HD109: 5.401513027 | HE109: 5.414834616 | HF109: 5.428189059 | HG109: 5.441576437 | HH109: 5.454996833 | HI109: 5.468450326 | HJ109: 5.481937 | HK109: 5.887989574 | HL109: 5.902510945 | HM109: 5.917068129 | HN109: 5.931661215 | HO109: 5.946290292 | HP109: 5.960955448 | HQ109: 5.975656772 | HR109: 5.990394354 | HS109: 6.005168282 | HT109: 6.019978648 | HU109: 6.034825539 | HV109: 6.049709047 | HW109: 6.064629261 | HX109: 6.079586273 | HY109: 6.094580173 | HZ109: 6.109611052 | IA109: 6.124679001 | IB109: 6.139784112 | IC109: 6.154926475 | ID109: 6.170106185 | IE109: 6.185323331 | IF109: 6.200578007 | IG109: 6.215870305 | IH109: 6.231200318 | II109: 6.246568139 | IJ109: 6.261973861 | IK109: 6.277417578 | IL109: 6.292899383 | IM109: 6.308419371 | IN109: 6.323977635 | IO109: 6.33957427 | IP109: 6.35520937 | IQ109: 6.370883031 | IR109: 6.386595347 | IS109: 6.402346414 | IT109: 6.418136328 | IU109: 6.433965183 | IV109: 6.449833077 | IW109: 6.465740105 | IX109: 6.481686365 | IY109: 6.497671952 | IZ109: 6.513696964 | JA109: 6.529761498 | JB109: 6.545865651 | JC109: 6.562009522 | JD109: 6.578193208 | JE109: 6.594416807 | JF109: 6.610680417 | JG109: 6.626984139 | JH109: =JH108*JH106 -> 6.643328069 | JI109: 6.659712309 | JJ109: 6.676136956 | JK109: 6.692602111 | JL109: 6.709107873 | JM109: 6.725654343 | JN109: 6.742241621 | JO109: 6.758869807 | JP109: 6.775539004 | JQ109: 6.792249311 | JR109: 6.80900083 | JS109: 6.825793663 | JT109: 6.842627911 | JU109: 6.859503678 | JV109: 6.876421064 | JW109: 6.893380174 | JX109: 6.910381109 | JY109: 6.927423973 | JZ109: 6.944508869 | KA109: 6.961635902 | KB109: 6.978805174 | KC109: 6.99601679 | KD109: 7.013270855 | KE109: 7.030567473 | KF109: 7.047906749 | KG109: 7.065288788 | KH109: 7.082713696 | KI109: 7.100181579 | KJ109: 7.117692542 | KK109: 7.135246692 | KL109: 7.152844135 | KM109: 7.170484979 | KN109: 7.188169329 | KO109: 7.205897294 | KP109: 7.223668981 | KQ109: 7.241484497 | KR109: 7.259343951 | KS109: 7.277247452 | KT109: 7.295195107 | KU109: 7.313187026 | KV109: 7.331223319 | KW109: 7.349304093 | KX109: 7.36742946 | KY109: 7.385599528 | KZ109: 7.403814409 | LA109: 7.422074213 | LB109: 7.44037905 | LC109: 7.458729032 | LD109: 7.47712427 | LE109: 7.495564875 | LF109: 7.51405096 | LG109: 7.532582637 | LH109: 7.551160018 | LI109: 7.569783216 | LJ109: 7.588452343 | LK109: 7.607167514 | LL109: 7.625928841 | LM109: 7.644736439 | LN109: 7.663590421 | LO109: 7.682490903 | LP109: 7.701437998 | LQ109: 7.720431822 | LR109: 7.739472489 | LS109: 7.758560116 | LT109: =LT108*LT106 -> 7.777694819 | LU109: 7.796876712 | LV109: 7.816105914 | LW109: 7.835382539 | LX109: 7.854706706 | LY109: 7.874078532 | LZ109: 7.893498134 | MA109: 7.91296563 | MB109: 7.932481138 | MC109: 7.952044776 | MD109: 7.971656664 | ME109: 7.99131692 | MF109: 8.011025663 | MG109: 8.030783014 | MH109: 8.050589091 | MI109: 8.070444016 | MJ109: 8.090347908 | MK109: 8.110300888 | ML109: 8.130303078 | MM109: 8.150354599 | MN109: 8.170455572 | MO109: 8.19060612 | MP109: 8.210806364 | MQ109: 8.231056427 | MR109: 8.251356433 | MS109: 8.271706504 | MT109: 8.292106764 | MU109: 8.312557336 | MV109: 8.333058345 | MW109: 8.353609915 | MX109: 8.37421217 | MY109: 8.394865237 | MZ109: 8.415569239 | NA109: 8.436324303 | NB109: 8.457130555 | NC109: 8.47798812 | ND109: 8.498897126 | NE109: 8.519857699 | NF109: 8.540869967 | NG109: 8.561934056 | NH109: 8.583050095 | NI109: 8.604218212 | NJ109: 8.625438536 | NK109: 8.646711194 | NL109: 8.668036316 | NM109: 8.689414032 | NN109: 8.710844471 | NO109: 8.732327764 | NP109: 8.75386404 | NQ109: 8.77545343 | NR109: 8.797096066 | NS109: 8.818792078 | NT109: 8.840541598 | NU109: 8.862344759 | NV109: 8.884201692 | NW109: 8.90611253 | NX109: 8.928077406 | NY109: 8.950096453 | NZ109: 8.972169806 | OA109: 8.994297597 | OB109: 9.016479961 | OC109: 9.038717033 | OD109: 9.061008948 | OE109: 9.08335584
C110: Nominal OpEX | E110: USD 000 | F110: Capacity | G110: =G77 -> 300 | K110: =K109*$G$110 -> 0 | L110: =L109*$G$110 -> 0 | M110: 0 | N110: 0 | O110: 0 | P110: 0 | Q110: 0 | R110: 0 | S110: 0 | T110: 0 | U110: 0 | V110: 0 | W110: 0 | X110: 0 | Y110: 0 | Z110: 0 | AA110: 0 | AB110: 0 | AC110: 0 | AD110: 0 | AE110: 0 | AF110: 0 | AG110: 0 | AH110: 0 | AI110: 0 | AJ110: 0 | AK110: 0 | AL110: 0 | AM110: 0 | AN110: 0 | AO110: 0 | AP110: 0 | AQ110: 0 | AR110: 0 | AS110: 0 | AT110: 0 | AU110: 0 | AV110: 0 | AW110: 0 | AX110: 0 | AY110: 920.9269098 | AZ110: 922.4478955 | BA110: 923.9713932 | BB110: 925.4974071 | BC110: 927.0259413 | BD110: 928.557 | BE110: 930.0905874 | BF110: 931.6267076 | BG110: 933.1653649 | BH110: 934.7065633 | BI110: 936.2503072 | BJ110: 937.7966007 | BK110: 939.345448 | BL110: 940.8968534 | BM110: 942.4508211 | BN110: 944.0073552 | BO110: 945.5664601 | BP110: 947.12814 | BQ110: 949.4640135 | BR110: 951.8056479 | BS110: 954.1530574 | BT110: 956.5062562 | BU110: 958.8652587 | BV110: 961.2300791 | BW110: 963.6007318 | BX110: =BX109*$G$110 -> 965.9772312 | BY110: 968.3595916 | BZ110: 970.7478276 | CA110: 973.1419536 | CB110: 975.5419842 | CC110: 977.9479339 | CD110: 980.3598173 | CE110: 982.7776491 | CF110: 985.2014439 | CG110: 987.6312165 | CH110: 990.0669815 | CI110: 992.5087538 | CJ110: 994.9565481 | CK110: 997.4103794 | CL110: 999.8702624 | CM110: 1002.336212 | CN110: 1004.808244 | CO110: 1007.286372 | CP110: 1009.770612 | CQ110: 1012.260979 | CR110: 1014.757487 | CS110: 1017.260153 | CT110: 1019.768991 | CU110: 1022.284016 | CV110: 1024.805245 | CW110: 1027.332691 | CX110: 1029.86637 | CY110: 1032.406299 | CZ110: 1034.952491 | DA110: 1037.504963 | DB110: 1040.06373 | DC110: 1042.628808 | DD110: 1045.200212 | DE110: 1047.777958 | DF110: 1050.362061 | DG110: 1052.952537 | DH110: 1055.549402 | DI110: 1058.152671 | DJ110: 1060.762361 | DK110: 1063.378488 | DL110: 1066.001066 | DM110: 1068.630112 | DN110: 1071.265642 | DO110: 1073.907672 | DP110: 1076.556218 | DQ110: 1079.211296 | DR110: 1081.872922 | DS110: 1084.541113 | DT110: 1087.215884 | DU110: 1089.897252 | DV110: 1092.585232 | DW110: 1095.279842 | DX110: 1097.981098 | DY110: 1100.689015 | DZ110: 1103.403611 | EA110: 1106.124902 | EB110: 1108.852905 | EC110: 1111.587635 | ED110: 1114.32911 | EE110: 1117.077346 | EF110: 1119.83236 | EG110: 1122.594169 | EH110: 1125.362789 | EI110: 1128.138237 | EJ110: =EJ109*$G$110 -> 1130.920531 | EK110: 1133.709686 | EL110: 1136.50572 | EM110: 1139.308649 | EN110: 1142.118492 | EO110: 1144.935264 | EP110: 1147.758983 | EQ110: 1150.589667 | ER110: 1153.427331 | ES110: 1156.271994 | ET110: 1159.123673 | EU110: 1161.982385 | EV110: 1164.848147 | EW110: 1167.720976 | EX110: 1170.600891 | EY110: 1173.487909 | EZ110: 1176.382047 | FA110: 1179.283322 | FB110: 1182.191753 | FC110: 1422.128828 | FD110: 1425.636181 | FE110: 1429.152185 | FF110: 1432.67686 | FG110: 1436.210227 | FH110: 1439.752309 | FI110: 1443.303127 | FJ110: 1446.862702 | FK110: 1450.431055 | FL110: 1454.00821 | FM110: 1457.594186 | FN110: 1461.189007 | FO110: 1464.792693 | FP110: 1468.405267 | FQ110: 1472.02675 | FR110: 1475.657165 | FS110: 1479.296534 | FT110: 1482.944878 | FU110: 1486.602221 | FV110: 1490.268583 | FW110: 1493.943987 | FX110: 1497.628456 | FY110: 1501.322012 | FZ110: 1505.024677 | GA110: 1508.736474 | GB110: 1512.457425 | GC110: 1516.187553 | GD110: 1519.92688 | GE110: 1523.67543 | GF110: 1527.433225 | GG110: 1531.200287 | GH110: 1534.97664 | GI110: 1538.762307 | GJ110: 1542.55731 | GK110: 1546.361672 | GL110: 1550.175417 | GM110: 1553.998568 | GN110: 1557.831148 | GO110: 1561.673179 | GP110: 1565.524687 | GQ110: 1569.385693 | GR110: 1573.256222 | GS110: 1577.136296 | GT110: 1581.025939 | GU110: 1584.925176 | GV110: =GV109*$G$110 -> 1588.834029 | GW110: 1592.752522 | GX110: 1596.68068 | GY110: 1600.618525 | GZ110: 1604.566082 | HA110: 1608.523375 | HB110: 1612.490427 | HC110: 1616.467264 | HD110: 1620.453908 | HE110: 1624.450385 | HF110: 1628.456718 | HG110: 1632.472931 | HH110: 1636.49905 | HI110: 1640.535098 | HJ110: 1644.5811 | HK110: 1766.396872 | HL110: 1770.753283 | HM110: 1775.120439 | HN110: 1779.498365 | HO110: 1783.887088 | HP110: 1788.286634 | HQ110: 1792.697032 | HR110: 1797.118306 | HS110: 1801.550485 | HT110: 1805.993594 | HU110: 1810.447662 | HV110: 1814.912714 | HW110: 1819.388778 | HX110: 1823.875882 | HY110: 1828.374052 | HZ110: 1832.883316 | IA110: 1837.4037 | IB110: 1841.935233 | IC110: 1846.477943 | ID110: 1851.031855 | IE110: 1855.596999 | IF110: 1860.173402 | IG110: 1864.761092 | IH110: 1869.360095 | II110: 1873.970442 | IJ110: 1878.592158 | IK110: 1883.225273 | IL110: 1887.869815 | IM110: 1892.525811 | IN110: 1897.19329 | IO110: 1901.872281 | IP110: 1906.562811 | IQ110: 1911.264909 | IR110: 1915.978604 | IS110: 1920.703924 | IT110: 1925.440898 | IU110: 1930.189555 | IV110: 1934.949923 | IW110: 1939.722032 | IX110: 1944.505909 | IY110: 1949.301586 | IZ110: 1954.109089 | JA110: 1958.928449 | JB110: 1963.759695 | JC110: 1968.602857 | JD110: 1973.457962 | JE110: 1978.325042 | JF110: 1983.204125 | JG110: 1988.095242 | JH110: =JH109*$G$110 -> 1992.998421 | JI110: 1997.913693 | JJ110: 2002.841087 | JK110: 2007.780633 | JL110: 2012.732362 | JM110: 2017.696303 | JN110: 2022.672486 | JO110: 2027.660942 | JP110: 2032.661701 | JQ110: 2037.674793 | JR110: 2042.700249 | JS110: 2047.738099 | JT110: 2052.788373 | JU110: 2057.851103 | JV110: 2062.926319 | JW110: 2068.014052 | JX110: 2073.114333 | JY110: 2078.227192 | JZ110: 2083.352661 | KA110: 2088.490771 | KB110: 2093.641552 | KC110: 2098.805037 | KD110: 2103.981256 | KE110: 2109.170242 | KF110: 2114.372025 | KG110: 2119.586636 | KH110: 2124.814109 | KI110: 2130.054474 | KJ110: 2135.307763 | KK110: 2140.574008 | KL110: 2145.853241 | KM110: 2151.145494 | KN110: 2156.450799 | KO110: 2161.769188 | KP110: 2167.100694 | KQ110: 2172.445349 | KR110: 2177.803185 | KS110: 2183.174236 | KT110: 2188.558532 | KU110: 2193.956108 | KV110: 2199.366996 | KW110: 2204.791228 | KX110: 2210.228838 | KY110: 2215.679858 | KZ110: 2221.144323 | LA110: 2226.622264 | LB110: 2232.113715 | LC110: 2237.61871 | LD110: 2243.137281 | LE110: 2248.669463 | LF110: 2254.215288 | LG110: 2259.774791 | LH110: 2265.348005 | LI110: 2270.934965 | LJ110: 2276.535703 | LK110: 2282.150254 | LL110: 2287.778652 | LM110: 2293.420932 | LN110: 2299.077126 | LO110: 2304.747271 | LP110: 2310.431399 | LQ110: 2316.129546 | LR110: 2321.841747 | LS110: 2327.568035 | LT110: =LT109*$G$110 -> 2333.308446 | LU110: 2339.063014 | LV110: 2344.831774 | LW110: 2350.614762 | LX110: 2356.412012 | LY110: 2362.22356 | LZ110: 2368.04944 | MA110: 2373.889689 | MB110: 2379.744341 | MC110: 2385.613433 | MD110: 2391.496999 | ME110: 2397.395076 | MF110: 2403.307699 | MG110: 2409.234904 | MH110: 2415.176727 | MI110: 2421.133205 | MJ110: 2427.104372 | MK110: 2433.090266 | ML110: 2439.090923 | MM110: 2445.10638 | MN110: 2451.136672 | MO110: 2457.181836 | MP110: 2463.241909 | MQ110: 2469.316928 | MR110: 2475.40693 | MS110: 2481.511951 | MT110: 2487.632029 | MU110: 2493.767201 | MV110: 2499.917503 | MW110: 2506.082974 | MX110: 2512.263651 | MY110: 2518.459571 | MZ110: 2524.670772 | NA110: 2530.897291 | NB110: 2537.139166 | NC110: 2543.396436 | ND110: 2549.669138 | NE110: 2555.95731 | NF110: 2562.26099 | NG110: 2568.580217 | NH110: 2574.915029 | NI110: 2581.265464 | NJ110: 2587.631561 | NK110: 2594.013358 | NL110: 2600.410895 | NM110: 2606.82421 | NN110: 2613.253341 | NO110: 2619.698329 | NP110: 2626.159212 | NQ110: 2632.636029 | NR110: 2639.12882 | NS110: 2645.637623 | NT110: 2652.162479 | NU110: 2658.703428 | NV110: 2665.260507 | NW110: 2671.833759 | NX110: 2678.423222 | NY110: 2685.028936 | NZ110: 2691.650942 | OA110: 2698.289279 | OB110: 2704.943988 | OC110: 2711.61511 | OD110: 2718.302684 | OE110: 2725.006752
B112: Working Capital
C113: Accounts Receivable as % of Revenue | E113: USD 000's | F113: Days
C114: Level of A/R | E114: USD 000's
C116: Accounts Payable as % of Expenses | E116: USD 000's | F116: Days
C117: Level of A/P | E117: USD 000's
C119: Working Capital | E119: USD 000's
C120: Change in Working Capital | E120: USD 000's
B122: Pre Tax Cash Flow
C123: EBITDA | E123: USD 000's
C124: Less: Capital Expenditures | E124: USD 000's
C125: Less: WC changes | E125: USD 000's
C126: Pre-tax Cashflow | E126: USD 000's
C127: Pre-tax IRR | E127: % | F127: Monthly
A129: EBIT and Taxes on EBIT
B131: Depreciation Expense
C132: Plant Balance
C133: Age in Years
C134: Depreciation Rate
C135: Depreciation Expense
C137: Accumulated Depreciation
C138: Net Plant Balance
C140: EBIT
C141: NOL Balance
C142: Opening Balance
C143: Add: NOL Pushed Forward
C144: Less: NOL Used
C145: Closing Balance
C147: Adjusted EBIT
C148: Taxes on EBIT | E148: Tax Rate
C150: Pre-tax Cash Flow
C151: Less: Taxes
C152: After Tax Free Cash Flow
C154: Project IRR | E154: %

Sheet After Tax Cash Flow Completed
A1: Timeline
B2: Start of Period | E2: Date | K2: =J3+1 -> 2015-03-01 | L2: =K3+1 -> 2015-04-01 | M2: 2015-05-01 | N2: 2015-06-01 | O2: 2015-07-01 | P2: 2015-08-01 | Q2: 2015-09-01 | R2: 2015-10-01 | S2: 2015-11-01 | T2: 2015-12-01 | U2: 2016-01-01 | V2: 2016-02-01 | W2: 2016-03-01 | X2: 2016-04-01 | Y2: 2016-05-01 | Z2: 2016-06-01 | AA2: 2016-07-01 | AB2: 2016-08-01 | AC2: 2016-09-01 | AD2: 2016-10-01 | AE2: 2016-11-01 | AF2: 2016-12-01 | AG2: 2017-01-01 | AH2: 2017-02-01 | AI2: 2017-03-01 | AJ2: 2017-04-01 | AK2: 2017-05-01 | AL2: 2017-06-01 | AM2: 2017-07-01 | AN2: 2017-08-01 | AO2: 2017-09-01 | AP2: 2017-10-01 | AQ2: 2017-11-01 | AR2: 2017-12-01 | AS2: 2018-01-01 | AT2: 2018-02-01 | AU2: 2018-03-01 | AV2: 2018-04-01 | AW2: 2018-05-01 | AX2: 2018-06-01 | AY2: 2018-07-01 | AZ2: 2018-08-01 | BA2: 2018-09-01 | BB2: 2018-10-01 | BC2: 2018-11-01 | BD2: 2018-12-01 | BE2: 2019-01-01 | BF2: 2019-02-01 | BG2: 2019-03-01 | BH2: 2019-04-01 | BI2: 2019-05-01 | BJ2: 2019-06-01 | BK2: 2019-07-01 | BL2: 2019-08-01 | BM2: 2019-09-01 | BN2: 2019-10-01 | BO2: 2019-11-01 | BP2: 2019-12-01 | BQ2: 2020-01-01 | BR2: 2020-02-01 | BS2: 2020-03-01 | BT2: 2020-04-01 | BU2: 2020-05-01 | BV2: 2020-06-01 | BW2: 2020-07-01 | BX2: =BW3+1 -> 2020-08-01 | BY2: 2020-09-01 | BZ2: 2020-10-01 | CA2: 2020-11-01 | CB2: 2020-12-01 | CC2: 2021-01-01 | CD2: 2021-02-01 | CE2: 2021-03-01 | CF2: 2021-04-01 | CG2: 2021-05-01 | CH2: 2021-06-01 | CI2: 2021-07-01 | CJ2: 2021-08-01 | CK2: 2021-09-01 | CL2: 2021-10-01 | CM2: 2021-11-01 | CN2: 2021-12-01 | CO2: 2022-01-01 | CP2: 2022-02-01 | CQ2: 2022-03-01 | CR2: 2022-04-01 | CS2: 2022-05-01 | CT2: 2022-06-01 | CU2: 2022-07-01 | CV2: 2022-08-01 | CW2: 2022-09-01 | CX2: 2022-10-01 | CY2: 2022-11-01 | CZ2: 2022-12-01 | DA2: 2023-01-01 | DB2: 2023-02-01 | DC2: 2023-03-01 | DD2: 2023-04-01 | DE2: 2023-05-01 | DF2: 2023-06-01 | DG2: 2023-07-01 | DH2: 2023-08-01 | DI2: 2023-09-01 | DJ2: 2023-10-01 | DK2: 2023-11-01 | DL2: 2023-12-01 | DM2: 2024-01-01 | DN2: 2024-02-01 | DO2: 2024-03-01 | DP2: 2024-04-01 | DQ2: 2024-05-01 | DR2: 2024-06-01 | DS2: 2024-07-01 | DT2: 2024-08-01 | DU2: 2024-09-01 | DV2: 2024-10-01 | DW2: 2024-11-01 | DX2: 2024-12-01 | DY2: 2025-01-01 | DZ2: 2025-02-01 | EA2: 2025-03-01 | EB2: 2025-04-01 | EC2: 2025-05-01 | ED2: 2025-06-01 | EE2: 2025-07-01 | EF2: 2025-08-01 | EG2: 2025-09-01 | EH2: 2025-10-01 | EI2: 2025-11-01 | EJ2: =EI3+1 -> 2025-12-01 | EK2: 2026-01-01 | EL2: 2026-02-01 | EM2: 2026-03-01 | EN2: 2026-04-01 | EO2: 2026-05-01 | EP2: 2026-06-01 | EQ2: 2026-07-01 | ER2: 2026-08-01 | ES2: 2026-09-01 | ET2: 2026-10-01 | EU2: 2026-11-01 | EV2: 2026-12-01 | EW2: 2027-01-01 | EX2: 2027-02-01 | EY2: 2027-03-01 | EZ2: 2027-04-01 | FA2: 2027-05-01 | FB2: 2027-06-01 | FC2: 2027-07-01 | FD2: 2027-08-01 | FE2: 2027-09-01 | FF2: 2027-10-01 | FG2: 2027-11-01 | FH2: 2027-12-01 | FI2: 2028-01-01 | FJ2: 2028-02-01 | FK2: 2028-03-01 | FL2: 2028-04-01 | FM2: 2028-05-01 | FN2: 2028-06-01 | FO2: 2028-07-01 | FP2: 2028-08-01 | FQ2: 2028-09-01 | FR2: 2028-10-01 | FS2: 2028-11-01 | FT2: 2028-12-01 | FU2: 2029-01-01 | FV2: 2029-02-01 | FW2: 2029-03-01 | FX2: 2029-04-01 | FY2: 2029-05-01 | FZ2: 2029-06-01 | GA2: 2029-07-01 | GB2: 2029-08-01 | GC2: 2029-09-01 | GD2: 2029-10-01 | GE2: 2029-11-01 | GF2: 2029-12-01 | GG2: 2030-01-01 | GH2: 2030-02-01 | GI2: 2030-03-01 | GJ2: 2030-04-01 | GK2: 2030-05-01 | GL2: 2030-06-01 | GM2: 2030-07-01 | GN2: 2030-08-01 | GO2: 2030-09-01 | GP2: 2030-10-01 | GQ2: 2030-11-01 | GR2: 2030-12-01 | GS2: 2031-01-01 | GT2: 2031-02-01 | GU2: 2031-03-01 | GV2: =GU3+1 -> 2031-04-01 | GW2: 2031-05-01 | GX2: 2031-06-01 | GY2: 2031-07-01 | GZ2: 2031-08-01 | HA2: 2031-09-01 | HB2: 2031-10-01 | HC2: 2031-11-01 | HD2: 2031-12-01 | HE2: 2032-01-01 | HF2: 2032-02-01 | HG2: 2032-03-01 | HH2: 2032-04-01 | HI2: 2032-05-01 | HJ2: 2032-06-01 | HK2: 2032-07-01 | HL2: 2032-08-01 | HM2: 2032-09-01 | HN2: 2032-10-01 | HO2: 2032-11-01 | HP2: 2032-12-01 | HQ2: 2033-01-01 | HR2: 2033-02-01 | HS2: 2033-03-01 | HT2: 2033-04-01 | HU2: 2033-05-01 | HV2: 2033-06-01 | HW2: 2033-07-01 | HX2: 2033-08-01 | HY2: 2033-09-01 | HZ2: 2033-10-01 | IA2: 2033-11-01 | IB2: 2033-12-01 | IC2: 2034-01-01 | ID2: 2034-02-01 | IE2: 2034-03-01 | IF2: 2034-04-01 | IG2: 2034-05-01 | IH2: 2034-06-01 | II2: 2034-07-01 | IJ2: 2034-08-01 | IK2: 2034-09-01 | IL2: 2034-10-01 | IM2: 2034-11-01 | IN2: 2034-12-01 | IO2: 2035-01-01 | IP2: 2035-02-01 | IQ2: 2035-03-01 | IR2: 2035-04-01 | IS2: 2035-05-01 | IT2: 2035-06-01 | IU2: 2035-07-01 | IV2: 2035-08-01 | IW2: 2035-09-01 | IX2: 2035-10-01 | IY2: 2035-11-01 | IZ2: 2035-12-01 | JA2: 2036-01-01 | JB2: 2036-02-01 | JC2: 2036-03-01 | JD2: 2036-04-01 | JE2: 2036-05-01 | JF2: 2036-06-01 | JG2: 2036-07-01 | JH2: =JG3+1 -> 2036-08-01 | JI2: 2036-09-01 | JJ2: 2036-10-01 | JK2: 2036-11-01 | JL2: 2036-12-01 | JM2: 2037-01-01 | JN2: 2037-02-01 | JO2: 2037-03-01 | JP2: 2037-04-01 | JQ2: 2037-05-01 | JR2: 2037-06-01 | JS2: 2037-07-01 | JT2: 2037-08-01 | JU2: 2037-09-01 | JV2: 2037-10-01 | JW2: 2037-11-01 | JX2: 2037-12-01 | JY2: 2038-01-01 | JZ2: 2038-02-01 | KA2: 2038-03-01 | KB2: 2038-04-01 | KC2: 2038-05-01 | KD2: 2038-06-01 | KE2: 2038-07-01 | KF2: 2038-08-01 | KG2: 2038-09-01 | KH2: 2038-10-01 | KI2: 2038-11-01 | KJ2: 2038-12-01 | KK2: 2039-01-01 | KL2: 2039-02-01 | KM2: 2039-03-01 | KN2: 2039-04-01 | KO2: 2039-05-01 | KP2: 2039-06-01 | KQ2: 2039-07-01 | KR2: 2039-08-01 | KS2: 2039-09-01 | KT2: 2039-10-01 | KU2: 2039-11-01 | KV2: 2039-12-01 | KW2: 2040-01-01 | KX2: 2040-02-01 | KY2: 2040-03-01 | KZ2: 2040-04-01 | LA2: 2040-05-01 | LB2: 2040-06-01 | LC2: 2040-07-01 | LD2: 2040-08-01 | LE2: 2040-09-01 | LF2: 2040-10-01 | LG2: 2040-11-01 | LH2: 2040-12-01 | LI2: 2041-01-01 | LJ2: 2041-02-01 | LK2: 2041-03-01 | LL2: 2041-04-01 | LM2: 2041-05-01 | LN2: 2041-06-01 | LO2: 2041-07-01 | LP2: 2041-08-01 | LQ2: 2041-09-01 | LR2: 2041-10-01 | LS2: 2041-11-01 | LT2: =LS3+1 -> 2041-12-01 | LU2: 2042-01-01 | LV2: 2042-02-01 | LW2: 2042-03-01 | LX2: 2042-04-01 | LY2: 2042-05-01 | LZ2: 2042-06-01 | MA2: 2042-07-01 | MB2: 2042-08-01 | MC2: 2042-09-01 | MD2: 2042-10-01 | ME2: 2042-11-01 | MF2: 2042-12-01 | MG2: 2043-01-01 | MH2: 2043-02-01 | MI2: 2043-03-01 | MJ2: 2043-04-01 | MK2: 2043-05-01 | ML2: 2043-06-01 | MM2: 2043-07-01 | MN2: 2043-08-01 | MO2: 2043-09-01 | MP2: 2043-10-01 | MQ2: 2043-11-01 | MR2: 2043-12-01 | MS2: 2044-01-01 | MT2: 2044-02-01 | MU2: 2044-03-01 | MV2: 2044-04-01 | MW2: 2044-05-01 | MX2: 2044-06-01 | MY2: 2044-07-01 | MZ2: 2044-08-01 | NA2: 2044-09-01 | NB2: 2044-10-01 | NC2: 2044-11-01 | ND2: 2044-12-01 | NE2: 2045-01-01 | NF2: 2045-02-01 | NG2: 2045-03-01 | NH2: 2045-04-01 | NI2: 2045-05-01 | NJ2: 2045-06-01 | NK2: 2045-07-01 | NL2: 2045-08-01 | NM2: 2045-09-01 | NN2: 2045-10-01 | NO2: 2045-11-01 | NP2: 2045-12-01 | NQ2: 2046-01-01 | NR2: 2046-02-01 | NS2: 2046-03-01 | NT2: 2046-04-01 | NU2: 2046-05-01 | NV2: 2046-06-01 | NW2: 2046-07-01 | NX2: 2046-08-01 | NY2: 2046-09-01 | NZ2: 2046-10-01 | OA2: 2046-11-01 | OB2: 2046-12-01 | OC2: 2047-01-01 | OD2: 2047-02-01 | OE2: 2047-03-01
B3: End of Period | E3: Date | J3: =F15-1 -> 2015-02-28 | K3: =EDATE(K2,1)-1 -> 2015-03-31 | L3: =EDATE(L2,1)-1 -> 2015-04-30 | M3: 2015-05-31 | N3: 2015-06-30 | O3: 2015-07-31 | P3: 2015-08-31 | Q3: 2015-09-30 | R3: 2015-10-31 | S3: 2015-11-30 | T3: 2015-12-31 | U3: 2016-01-31 | V3: 2016-02-29 | W3: 2016-03-31 | X3: 2016-04-30 | Y3: 2016-05-31 | Z3: 2016-06-30 | AA3: 2016-07-31 | AB3: 2016-08-31 | AC3: 2016-09-30 | AD3: 2016-10-31 | AE3: 2016-11-30 | AF3: 2016-12-31 | AG3: 2017-01-31 | AH3: 2017-02-28 | AI3: 2017-03-31 | AJ3: 2017-04-30 | AK3: 2017-05-31 | AL3: 2017-06-30 | AM3: 2017-07-31 | AN3: 2017-08-31 | AO3: 2017-09-30 | AP3: 2017-10-31 | AQ3: 2017-11-30 | AR3: 2017-12-31 | AS3: 2018-01-31 | AT3: 2018-02-28 | AU3: 2018-03-31 | AV3: 2018-04-30 | AW3: 2018-05-31 | AX3: 2018-06-30 | AY3: 2018-07-31 | AZ3: 2018-08-31 | BA3: 2018-09-30 | BB3: 2018-10-31 | BC3: 2018-11-30 | BD3: 2018-12-31 | BE3: 2019-01-31 | BF3: 2019-02-28 | BG3: 2019-03-31 | BH3: 2019-04-30 | BI3: 2019-05-31 | BJ3: 2019-06-30 | BK3: 2019-07-31 | BL3: 2019-08-31 | BM3: 2019-09-30 | BN3: 2019-10-31 | BO3: 2019-11-30 | BP3: 2019-12-31 | BQ3: 2020-01-31 | BR3: 2020-02-29 | BS3: 2020-03-31 | BT3: 2020-04-30 | BU3: 2020-05-31 | BV3: 2020-06-30 | BW3: 2020-07-31 | BX3: =EDATE(BX2,1)-1 -> 2020-08-31 | BY3: 2020-09-30 | BZ3: 2020-10-31 | CA3: 2020-11-30 | CB3: 2020-12-31 | CC3: 2021-01-31 | CD3: 2021-02-28 | CE3: 2021-03-31 | CF3: 2021-04-30 | CG3: 2021-05-31 | CH3: 2021-06-30 | CI3: 2021-07-31 | CJ3: 2021-08-31 | CK3: 2021-09-30 | CL3: 2021-10-31 | CM3: 2021-11-30 | CN3: 2021-12-31 | CO3: 2022-01-31 | CP3: 2022-02-28 | CQ3: 2022-03-31 | CR3: 2022-04-30 | CS3: 2022-05-31 | CT3: 2022-06-30 | CU3: 2022-07-31 | CV3: 2022-08-31 | CW3: 2022-09-30 | CX3: 2022-10-31 | CY3: 2022-11-30 | CZ3: 2022-12-31 | DA3: 2023-01-31 | DB3: 2023-02-28 | DC3: 2023-03-31 | DD3: 2023-04-30 | DE3: 2023-05-31 | DF3: 2023-06-30 | DG3: 2023-07-31 | DH3: 2023-08-31 | DI3: 2023-09-30 | DJ3: 2023-10-31 | DK3: 2023-11-30 | DL3: 2023-12-31 | DM3: 2024-01-31 | DN3: 2024-02-29 | DO3: 2024-03-31 | DP3: 2024-04-30 | DQ3: 2024-05-31 | DR3: 2024-06-30 | DS3: 2024-07-31 | DT3: 2024-08-31 | DU3: 2024-09-30 | DV3: 2024-10-31 | DW3: 2024-11-30 | DX3: 2024-12-31 | DY3: 2025-01-31 | DZ3: 2025-02-28 | EA3: 2025-03-31 | EB3: 2025-04-30 | EC3: 2025-05-31 | ED3: 2025-06-30 | EE3: 2025-07-31 | EF3: 2025-08-31 | EG3: 2025-09-30 | EH3: 2025-10-31 | EI3: 2025-11-30 | EJ3: =EDATE(EJ2,1)-1 -> 2025-12-31 | EK3: 2026-01-31 | EL3: 2026-02-28 | EM3: 2026-03-31 | EN3: 2026-04-30 | EO3: 2026-05-31 | EP3: 2026-06-30 | EQ3: 2026-07-31 | ER3: 2026-08-31 | ES3: 2026-09-30 | ET3: 2026-10-31 | EU3: 2026-11-30 | EV3: 2026-12-31 | EW3: 2027-01-31 | EX3: 2027-02-28 | EY3: 2027-03-31 | EZ3: 2027-04-30 | FA3: 2027-05-31 | FB3: 2027-06-30 | FC3: 2027-07-31 | FD3: 2027-08-31 | FE3: 2027-09-30 | FF3: 2027-10-31 | FG3: 2027-11-30 | FH3: 2027-12-31 | FI3: 2028-01-31 | FJ3: 2028-02-29 | FK3: 2028-03-31 | FL3: 2028-04-30 | FM3: 2028-05-31 | FN3: 2028-06-30 | FO3: 2028-07-31 | FP3: 2028-08-31 | FQ3: 2028-09-30 | FR3: 2028-10-31 | FS3: 2028-11-30 | FT3: 2028-12-31 | FU3: 2029-01-31 | FV3: 2029-02-28 | FW3: 2029-03-31 | FX3: 2029-04-30 | FY3: 2029-05-31 | FZ3: 2029-06-30 | GA3: 2029-07-31 | GB3: 2029-08-31 | GC3: 2029-09-30 | GD3: 2029-10-31 | GE3: 2029-11-30 | GF3: 2029-12-31 | GG3: 2030-01-31 | GH3: 2030-02-28 | GI3: 2030-03-31 | GJ3: 2030-04-30 | GK3: 2030-05-31 | GL3: 2030-06-30 | GM3: 2030-07-31 | GN3: 2030-08-31 | GO3: 2030-09-30 | GP3: 2030-10-31 | GQ3: 2030-11-30 | GR3: 2030-12-31 | GS3: 2031-01-31 | GT3: 2031-02-28 | GU3: 2031-03-31 | GV3: =EDATE(GV2,1)-1 -> 2031-04-30 | GW3: 2031-05-31 | GX3: 2031-06-30 | GY3: 2031-07-31 | GZ3: 2031-08-31 | HA3: 2031-09-30 | HB3: 2031-10-31 | HC3: 2031-11-30 | HD3: 2031-12-31 | HE3: 2032-01-31 | HF3: 2032-02-29 | HG3: 2032-03-31 | HH3: 2032-04-30 | HI3: 2032-05-31 | HJ3: 2032-06-30 | HK3: 2032-07-31 | HL3: 2032-08-31 | HM3: 2032-09-30 | HN3: 2032-10-31 | HO3: 2032-11-30 | HP3: 2032-12-31 | HQ3: 2033-01-31 | HR3: 2033-02-28 | HS3: 2033-03-31 | HT3: 2033-04-30 | HU3: 2033-05-31 | HV3: 2033-06-30 | HW3: 2033-07-31 | HX3: 2033-08-31 | HY3: 2033-09-30 | HZ3: 2033-10-31 | IA3: 2033-11-30 | IB3: 2033-12-31 | IC3: 2034-01-31 | ID3: 2034-02-28 | IE3: 2034-03-31 | IF3: 2034-04-30 | IG3: 2034-05-31 | IH3: 2034-06-30 | II3: 2034-07-31 | IJ3: 2034-08-31 | IK3: 2034-09-30 | IL3: 2034-10-31 | IM3: 2034-11-30 | IN3: 2034-12-31 | IO3: 2035-01-31 | IP3: 2035-02-28 | IQ3: 2035-03-31 | IR3: 2035-04-30 | IS3: 2035-05-31 | IT3: 2035-06-30 | IU3: 2035-07-31 | IV3: 2035-08-31 | IW3: 2035-09-30 | IX3: 2035-10-31 | IY3: 2035-11-30 | IZ3: 2035-12-31 | JA3: 2036-01-31 | JB3: 2036-02-29 | JC3: 2036-03-31 | JD3: 2036-04-30 | JE3: 2036-05-31 | JF3: 2036-06-30 | JG3: 2036-07-31 | JH3: =EDATE(JH2,1)-1 -> 2036-08-31 | JI3: 2036-09-30 | JJ3: 2036-10-31 | JK3: 2036-11-30 | JL3: 2036-12-31 | JM3: 2037-01-31 | JN3: 2037-02-28 | JO3: 2037-03-31 | JP3: 2037-04-30 | JQ3: 2037-05-31 | JR3: 2037-06-30 | JS3: 2037-07-31 | JT3: 2037-08-31 | JU3: 2037-09-30 | JV3: 2037-10-31 | JW3: 2037-11-30 | JX3: 2037-12-31 | JY3: 2038-01-31 | JZ3: 2038-02-28 | KA3: 2038-03-31 | KB3: 2038-04-30 | KC3: 2038-05-31 | KD3: 2038-06-30 | KE3: 2038-07-31 | KF3: 2038-08-31 | KG3: 2038-09-30 | KH3: 2038-10-31 | KI3: 2038-11-30 | KJ3: 2038-12-31 | KK3: 2039-01-31 | KL3: 2039-02-28 | KM3: 2039-03-31 | KN3: 2039-04-30 | KO3: 2039-05-31 | KP3: 2039-06-30 | KQ3: 2039-07-31 | KR3: 2039-08-31 | KS3: 2039-09-30 | KT3: 2039-10-31 | KU3: 2039-11-30 | KV3: 2039-12-31 | KW3: 2040-01-31 | KX3: 2040-02-29 | KY3: 2040-03-31 | KZ3: 2040-04-30 | LA3: 2040-05-31 | LB3: 2040-06-30 | LC3: 2040-07-31 | LD3: 2040-08-31 | LE3: 2040-09-30 | LF3: 2040-10-31 | LG3: 2040-11-30 | LH3: 2040-12-31 | LI3: 2041-01-31 | LJ3: 2041-02-28 | LK3: 2041-03-31 | LL3: 2041-04-30 | LM3: 2041-05-31 | LN3: 2041-06-30 | LO3: 2041-07-31 | LP3: 2041-08-31 | LQ3: 2041-09-30 | LR3: 2041-10-31 | LS3: 2041-11-30 | LT3: =EDATE(LT2,1)-1 -> 2041-12-31 | LU3: 2042-01-31 | LV3: 2042-02-28 | LW3: 2042-03-31 | LX3: 2042-04-30 | LY3: 2042-05-31 | LZ3: 2042-06-30 | MA3: 2042-07-31 | MB3: 2042-08-31 | MC3: 2042-09-30 | MD3: 2042-10-31 | ME3: 2042-11-30 | MF3: 2042-12-31 | MG3: 2043-01-31 | MH3: 2043-02-28 | MI3: 2043-03-31 | MJ3: =EDATE(MJ2,1)-1 -> 2043-04-30 | MK3: =EDATE(MK2,1)-1 -> 2043-05-31 | ML3: =EDATE(ML2,1)-1 -> 2043-06-30 | MM3: =EDATE(MM2,1)-1 -> 2043-07-31 | MN3: =EDATE(MN2,1)-1 -> 2043-08-31 | MO3: =EDATE(MO2,1)-1 -> 2043-09-30 | MP3: =EDATE(MP2,1)-1 -> 2043-10-31 | MQ3: =EDATE(MQ2,1)-1 -> 2043-11-30 | MR3: =EDATE(MR2,1)-1 -> 2043-12-31 | MS3: =EDATE(MS2,1)-1 -> 2044-01-31 | MT3: =EDATE(MT2,1)-1 -> 2044-02-29 | MU3: =EDATE(MU2,1)-1 -> 2044-03-31 | MV3: =EDATE(MV2,1)-1 -> 2044-04-30 | MW3: =EDATE(MW2,1)-1 -> 2044-05-31 | MX3: =EDATE(MX2,1)-1 -> 2044-06-30 | MY3: =EDATE(MY2,1)-1 -> 2044-07-31 | MZ3: =EDATE(MZ2,1)-1 -> 2044-08-31 | NA3: =EDATE(NA2,1)-1 -> 2044-09-30 | NB3: =EDATE(NB2,1)-1 -> 2044-10-31 | NC3: =EDATE(NC2,1)-1 -> 2044-11-30 | ND3: =EDATE(ND2,1)-1 -> 2044-12-31 | NE3: =EDATE(NE2,1)-1 -> 2045-01-31 | NF3: =EDATE(NF2,1)-1 -> 2045-02-28 | NG3: =EDATE(NG2,1)-1 -> 2045-03-31 | NH3: =EDATE(NH2,1)-1 -> 2045-04-30 | NI3: =EDATE(NI2,1)-1 -> 2045-05-31 | NJ3: =EDATE(NJ2,1)-1 -> 2045-06-30 | NK3: =EDATE(NK2,1)-1 -> 2045-07-31 | NL3: =EDATE(NL2,1)-1 -> 2045-08-31 | NM3: =EDATE(NM2,1)-1 -> 2045-09-30 | NN3: =EDATE(NN2,1)-1 -> 2045-10-31 | NO3: =EDATE(NO2,1)-1 -> 2045-11-30 | NP3: =EDATE(NP2,1)-1 -> 2045-12-31 | NQ3: =EDATE(NQ2,1)-1 -> 2046-01-31 | NR3: =EDATE(NR2,1)-1 -> 2046-02-28 | NS3: =EDATE(NS2,1)-1 -> 2046-03-31 | NT3: =EDATE(NT2,1)-1 -> 2046-04-30 | NU3: =EDATE(NU2,1)-1 -> 2046-05-31 | NV3: =EDATE(NV2,1)-1 -> 2046-06-30 | NW3: =EDATE(NW2,1)-1 -> 2046-07-31 | NX3: =EDATE(NX2,1)-1 -> 2046-08-31 | NY3: =EDATE(NY2,1)-1 -> 2046-09-30 | NZ3: =EDATE(NZ2,1)-1 -> 2046-10-31 | OA3: =EDATE(OA2,1)-1 -> 2046-11-30 | OB3: =EDATE(OB2,1)-1 -> 2046-12-31 | OC3: =EDATE(OC2,1)-1 -> 2047-01-31 | OD3: =EDATE(OD2,1)-1 -> 2047-02-28 | OE3: =EDATE(OE2,1)-1 -> 2047-03-31
B4: Construction Phase | G4: =F15 -> 2015-03-01 | H4: =F16 -> 2018-07-01 | I4: =COUNTIF(K4:MI4,TRUE)=F17 -> TRUE | K4: =AND(K$2>=$G4,K$2<$H4) -> TRUE | L4: TRUE | M4: TRUE | N4: TRUE | O4: TRUE | P4: TRUE | Q4: TRUE | R4: TRUE | S4: TRUE | T4: TRUE | U4: =AND(U$2>=$G4,U$2<$H4) -> TRUE | V4: TRUE | W4: TRUE | X4: TRUE | Y4: TRUE | Z4: TRUE | AA4: TRUE | AB4: TRUE | AC4: TRUE | AD4: TRUE | AE4: =AND(AE$2>=$G4,AE$2<$H4) -> TRUE | AF4: TRUE | AG4: TRUE | AH4: TRUE | AI4: TRUE | AJ4: TRUE | AK4: TRUE | AL4: TRUE | AM4: TRUE | AN4: TRUE | AO4: =AND(AO$2>=$G4,AO$2<$H4) -> TRUE | AP4: TRUE | AQ4: TRUE | AR4: TRUE | AS4: TRUE | AT4: TRUE | AU4: TRUE | AV4: TRUE | AW4: TRUE | AX4: TRUE | AY4: =AND(AY$2>=$G4,AY$2<$H4) -> FALSE | AZ4: FALSE | BA4: FALSE | BB4: FALSE | BC4: FALSE | BD4: FALSE | BE4: FALSE | BF4: FALSE | BG4: FALSE | BH4: FALSE | BI4: =AND(BI$2>=$G4,BI$2<$H4) -> FALSE | BJ4: FALSE | BK4: FALSE | BL4: FALSE | BM4: FALSE | BN4: FALSE | BO4: FALSE | BP4: FALSE | BQ4: FALSE | BR4: FALSE | BS4: =AND(BS$2>=$G4,BS$2<$H4) -> FALSE | BT4: FALSE | BU4: FALSE | BV4: FALSE | BW4: FALSE | BX4: FALSE | BY4: FALSE | BZ4: FALSE | CA4: FALSE | CB4: FALSE | CC4: =AND(CC$2>=$G4,CC$2<$H4) -> FALSE | CD4: FALSE | CE4: FALSE | CF4: FALSE | CG4: FALSE | CH4: FALSE | CI4: FALSE | CJ4: FALSE | CK4: FALSE | CL4: FALSE | CM4: =AND(CM$2>=$G4,CM$2<$H4) -> FALSE | CN4: FALSE | CO4: FALSE | CP4: FALSE | CQ4: FALSE | CR4: FALSE | CS4: FALSE | CT4: FALSE | CU4: FALSE | CV4: FALSE | CW4: =AND(CW$2>=$G4,CW$2<$H4) -> FALSE | CX4: FALSE | CY4: FALSE | CZ4: FALSE | DA4: FALSE | DB4: FALSE | DC4: FALSE | DD4: FALSE | DE4: FALSE | DF4: FALSE | DG4: =AND(DG$2>=$G4,DG$2<$H4) -> FALSE | DH4: FALSE | DI4: FALSE | DJ4: FALSE | DK4: FALSE | DL4: FALSE | DM4: FALSE | DN4: FALSE | DO4: FALSE | DP4: FALSE | DQ4: =AND(DQ$2>=$G4,DQ$2<$H4) -> FALSE | DR4: FALSE | DS4: FALSE | DT4: FALSE | DU4: FALSE | DV4: FALSE | DW4: FALSE | DX4: FALSE | DY4: FALSE | DZ4: FALSE | EA4: =AND(EA$2>=$G4,EA$2<$H4) -> FALSE | EB4: FALSE | EC4: FALSE | ED4: FALSE | EE4: FALSE | EF4: FALSE | EG4: FALSE | EH4: FALSE | EI4: FALSE | EJ4: FALSE | EK4: =AND(EK$2>=$G4,EK$2<$H4) -> FALSE | EL4: FALSE | EM4: FALSE | EN4: FALSE | EO4: FALSE | EP4: FALSE | EQ4: FALSE | ER4: FALSE | ES4: FALSE | ET4: FALSE | EU4: =AND(EU$2>=$G4,EU$2<$H4) -> FALSE | EV4: FALSE | EW4: FALSE | EX4: FALSE | EY4: FALSE | EZ4: FALSE | FA4: FALSE | FB4: FALSE | FC4: FALSE | FD4: FALSE | FE4: =AND(FE$2>=$G4,FE$2<$H4) -> FALSE | FF4: FALSE | FG4: FALSE | FH4: FALSE | FI4: FALSE | FJ4: FALSE | FK4: FALSE | FL4: FALSE | FM4: FALSE | FN4: FALSE | FO4: =AND(FO$2>=$G4,FO$2<$H4) -> FALSE | FP4: FALSE | FQ4: FALSE | FR4: FALSE | FS4: FALSE | FT4: FALSE | FU4: FALSE | FV4: FALSE | FW4: FALSE | FX4: FALSE | FY4: =AND(FY$2>=$G4,FY$2<$H4) -> FALSE | FZ4: FALSE | GA4: FALSE | GB4: FALSE | GC4: FALSE | GD4: FALSE | GE4: FALSE | GF4: FALSE | GG4: FALSE | GH4: FALSE | GI4: =AND(GI$2>=$G4,GI$2<$H4) -> FALSE | GJ4: FALSE | GK4: FALSE | GL4: FALSE | GM4: FALSE | GN4: FALSE | GO4: FALSE | GP4: FALSE | GQ4: FALSE | GR4: FALSE | GS4: =AND(GS$2>=$G4,GS$2<$H4) -> FALSE | GT4: FALSE | GU4: FALSE | GV4: FALSE | GW4: FALSE | GX4: FALSE | GY4: FALSE | GZ4: FALSE | HA4: FALSE | HB4: FALSE | HC4: =AND(HC$2>=$G4,HC$2<$H4) -> FALSE | HD4: FALSE | HE4: FALSE | HF4: FALSE | HG4: FALSE | HH4: FALSE | HI4: FALSE | HJ4: FALSE | HK4: FALSE | HL4: FALSE | HM4: =AND(HM$2>=$G4,HM$2<$H4) -> FALSE | HN4: FALSE | HO4: FALSE | HP4: FALSE | HQ4: FALSE | HR4: FALSE | HS4: FALSE | HT4: FALSE | HU4: FALSE | HV4: FALSE | HW4: =AND(HW$2>=$G4,HW$2<$H4) -> FALSE | HX4: FALSE | HY4: FALSE | HZ4: FALSE | IA4: FALSE | IB4: FALSE | IC4: FALSE | ID4: FALSE | IE4: FALSE | IF4: FALSE | IG4: =AND(IG$2>=$G4,IG$2<$H4) -> FALSE | IH4: FALSE | II4: FALSE | IJ4: FALSE | IK4: FALSE | IL4: FALSE | IM4: FALSE | IN4: FALSE | IO4: FALSE | IP4: FALSE | IQ4: =AND(IQ$2>=$G4,IQ$2<$H4) -> FALSE | IR4: FALSE | IS4: FALSE | IT4: FALSE | IU4: FALSE | IV4: FALSE | IW4: FALSE | IX4: FALSE | IY4: FALSE | IZ4: FALSE | JA4: =AND(JA$2>=$G4,JA$2<$H4) -> FALSE | JB4: FALSE | JC4: FALSE | JD4: FALSE | JE4: FALSE | JF4: FALSE | JG4: FALSE | JH4: FALSE | JI4: FALSE | JJ4: FALSE | JK4: =AND(JK$2>=$G4,JK$2<$H4) -> FALSE | JL4: FALSE | JM4: FALSE | JN4: FALSE | JO4: FALSE | JP4: FALSE | JQ4: FALSE | JR4: FALSE | JS4: FALSE | JT4: FALSE | JU4: =AND(JU$2>=$G4,JU$2<$H4) -> FALSE | JV4: FALSE | JW4: FALSE | JX4: FALSE | JY4: FALSE | JZ4: FALSE | KA4: FALSE | KB4: FALSE | KC4: FALSE | KD4: FALSE | KE4: =AND(KE$2>=$G4,KE$2<$H4) -> FALSE | KF4: FALSE | KG4: FALSE | KH4: FALSE | KI4: FALSE | KJ4: FALSE | KK4: FALSE | KL4: FALSE | KM4: FALSE | KN4: FALSE | KO4: =AND(KO$2>=$G4,KO$2<$H4) -> FALSE | KP4: FALSE | KQ4: FALSE | KR4: FALSE | KS4: FALSE | KT4: FALSE | KU4: FALSE | KV4: FALSE | KW4: FALSE | KX4: FALSE | KY4: =AND(KY$2>=$G4,KY$2<$H4) -> FALSE | KZ4: FALSE | LA4: FALSE | LB4: FALSE | LC4: FALSE | LD4: FALSE | LE4: FALSE | LF4: FALSE | LG4: FALSE | LH4: FALSE | LI4: =AND(LI$2>=$G4,LI$2<$H4) -> FALSE | LJ4: FALSE | LK4: FALSE | LL4: FALSE | LM4: FALSE | LN4: FALSE | LO4: FALSE | LP4: FALSE | LQ4: FALSE | LR4: FALSE | LS4: =AND(LS$2>=$G4,LS$2<$H4) -> FALSE | LT4: FALSE | LU4: FALSE | LV4: FALSE | LW4: FALSE | LX4: FALSE | LY4: FALSE | LZ4: FALSE | MA4: FALSE | MB4: FALSE | MC4: =AND(MC$2>=$G4,MC$2<$H4) -> FALSE | MD4: FALSE | ME4: FALSE | MF4: FALSE | MG4: FALSE | MH4: FALSE | MI4: FALSE | MJ4: FALSE | MK4: FALSE | ML4: FALSE | MM4: =AND(MM$2>=$G4,MM$2<$H4) -> FALSE | MN4: FALSE | MO4: FALSE | MP4: FALSE | MQ4: FALSE | MR4: FALSE | MS4: FALSE | MT4: FALSE | MU4: FALSE | MV4: FALSE | MW4: =AND(MW$2>=$G4,MW$2<$H4) -> FALSE | MX4: FALSE | MY4: FALSE | MZ4: FALSE | NA4: FALSE | NB4: FALSE | NC4: FALSE | ND4: FALSE | NE4: FALSE | NF4: FALSE | NG4: =AND(NG$2>=$G4,NG$2<$H4) -> FALSE | NH4: FALSE | NI4: FALSE | NJ4: FALSE | NK4: FALSE | NL4: FALSE | NM4: FALSE | NN4: FALSE | NO4: FALSE | NP4: FALSE | NQ4: =AND(NQ$2>=$G4,NQ$2<$H4) -> FALSE | NR4: FALSE | NS4: FALSE | NT4: FALSE | NU4: FALSE | NV4: FALSE | NW4: FALSE | NX4: FALSE | NY4: FALSE | NZ4: FALSE | OA4: FALSE | OB4: FALSE | OC4: FALSE | OD4: FALSE | OE4: FALSE
B5: Operation Phase | G5: =F16 -> 2018-07-01 | H5: =F19 -> 2043-07-01 | I5: =COUNTIF(K5:OE5,TRUE)=F18*12 -> TRUE | K5: FALSE | L5: FALSE | M5: FALSE | N5: FALSE | O5: FALSE | P5: FALSE | Q5: FALSE | R5: FALSE | S5: FALSE | T5: FALSE | U5: FALSE | V5: FALSE | W5: FALSE | X5: FALSE | Y5: FALSE | Z5: FALSE | AA5: FALSE | AB5: FALSE | AC5: FALSE | AD5: FALSE | AE5: FALSE | AF5: FALSE | AG5: FALSE | AH5: FALSE | AI5: FALSE | AJ5: FALSE | AK5: FALSE | AL5: FALSE | AM5: FALSE | AN5: FALSE | AO5: FALSE | AP5: FALSE | AQ5: FALSE | AR5: FALSE | AS5: FALSE | AT5: FALSE | AU5: FALSE | AV5: FALSE | AW5: FALSE | AX5: FALSE | AY5: TRUE | AZ5: TRUE | BA5: TRUE | BB5: TRUE | BC5: TRUE | BD5: TRUE | BE5: TRUE | BF5: TRUE | BG5: TRUE | BH5: TRUE | BI5: TRUE | BJ5: TRUE | BK5: TRUE | BL5: TRUE | BM5: TRUE | BN5: TRUE | BO5: TRUE | BP5: TRUE | BQ5: TRUE | BR5: TRUE | BS5: TRUE | BT5: TRUE | BU5: TRUE | BV5: TRUE | BW5: TRUE | BX5: TRUE | BY5: TRUE | BZ5: TRUE | CA5: TRUE | CB5: TRUE | CC5: TRUE | CD5: TRUE | CE5: TRUE | CF5: TRUE | CG5: TRUE | CH5: TRUE | CI5: TRUE | CJ5: TRUE | CK5: TRUE | CL5: TRUE | CM5: TRUE | CN5: TRUE | CO5: TRUE | CP5: TRUE | CQ5: TRUE | CR5: TRUE | CS5: TRUE | CT5: TRUE | CU5: TRUE | CV5: TRUE | CW5: TRUE | CX5: TRUE | CY5: TRUE | CZ5: TRUE | DA5: TRUE | DB5: TRUE | DC5: TRUE | DD5: TRUE | DE5: TRUE | DF5: TRUE | DG5: TRUE | DH5: TRUE | DI5: TRUE | DJ5: TRUE | DK5: TRUE | DL5: TRUE | DM5: TRUE | DN5: TRUE | DO5: TRUE | DP5: TRUE | DQ5: TRUE | DR5: TRUE | DS5: TRUE | DT5: TRUE | DU5: TRUE | DV5: TRUE | DW5: TRUE | DX5: TRUE | DY5: TRUE | DZ5: TRUE | EA5: TRUE | EB5: TRUE | EC5: TRUE | ED5: TRUE | EE5: TRUE | EF5: TRUE | EG5: TRUE | EH5: TRUE | EI5: TRUE | EJ5: TRUE | EK5: TRUE | EL5: TRUE | EM5: TRUE | EN5: TRUE | EO5: TRUE | EP5: TRUE | EQ5: TRUE | ER5: TRUE | ES5: TRUE | ET5: TRUE | EU5: TRUE | EV5: TRUE | EW5: TRUE | EX5: TRUE | EY5: TRUE | EZ5: TRUE | FA5: TRUE | FB5: TRUE | FC5: TRUE | FD5: TRUE | FE5: TRUE | FF5: TRUE | FG5: TRUE | FH5: TRUE | FI5: TRUE | FJ5: TRUE | FK5: TRUE | FL5: TRUE | FM5: TRUE | FN5: TRUE | FO5: TRUE | FP5: TRUE | FQ5: TRUE | FR5: TRUE | FS5: TRUE | FT5: TRUE | FU5: TRUE | FV5: TRUE | FW5: TRUE | FX5: TRUE | FY5: TRUE | FZ5: TRUE | GA5: TRUE | GB5: TRUE | GC5: TRUE | GD5: TRUE | GE5: TRUE | GF5: TRUE | GG5: TRUE | GH5: TRUE | GI5: TRUE | GJ5: TRUE | GK5: TRUE | GL5: TRUE | GM5: TRUE | GN5: TRUE | GO5: TRUE | GP5: TRUE | GQ5: TRUE | GR5: TRUE | GS5: TRUE | GT5: TRUE | GU5: TRUE | GV5: TRUE | GW5: TRUE | GX5: TRUE | GY5: TRUE | GZ5: TRUE | HA5: TRUE | HB5: TRUE | HC5: TRUE | HD5: TRUE | HE5: TRUE | HF5: TRUE | HG5: TRUE | HH5: TRUE | HI5: TRUE | HJ5: TRUE | HK5: TRUE | HL5: TRUE | HM5: TRUE | HN5: TRUE | HO5: TRUE | HP5: TRUE | HQ5: TRUE | HR5: TRUE | HS5: TRUE | HT5: TRUE | HU5: TRUE | HV5: TRUE | HW5: TRUE | HX5: TRUE | HY5: TRUE | HZ5: TRUE | IA5: TRUE | IB5: TRUE | IC5: TRUE | ID5: TRUE | IE5: TRUE | IF5: TRUE | IG5: TRUE | IH5: TRUE | II5: TRUE | IJ5: TRUE | IK5: TRUE | IL5: TRUE | IM5: TRUE | IN5: TRUE | IO5: TRUE | IP5: TRUE | IQ5: TRUE | IR5: TRUE | IS5: TRUE | IT5: TRUE | IU5: TRUE | IV5: TRUE | IW5: TRUE | IX5: TRUE | IY5: TRUE | IZ5: TRUE | JA5: TRUE | JB5: TRUE | JC5: TRUE | JD5: TRUE | JE5: TRUE | JF5: TRUE | JG5: TRUE | JH5: TRUE | JI5: TRUE | JJ5: TRUE | JK5: TRUE | JL5: TRUE | JM5: TRUE | JN5: TRUE | JO5: TRUE | JP5: TRUE | JQ5: TRUE | JR5: TRUE | JS5: TRUE | JT5: TRUE | JU5: TRUE | JV5: TRUE | JW5: TRUE | JX5: TRUE | JY5: TRUE | JZ5: TRUE | KA5: TRUE | KB5: TRUE | KC5: TRUE | KD5: TRUE | KE5: TRUE | KF5: TRUE | KG5: TRUE | KH5: TRUE | KI5: TRUE | KJ5: TRUE | KK5: TRUE | KL5: TRUE | KM5: TRUE | KN5: TRUE | KO5: TRUE | KP5: TRUE | KQ5: TRUE | KR5: TRUE | KS5: TRUE | KT5: TRUE | KU5: TRUE | KV5: TRUE | KW5: TRUE | KX5: TRUE | KY5: TRUE | KZ5: TRUE | LA5: TRUE | LB5: TRUE | LC5: TRUE | LD5: TRUE | LE5: TRUE | LF5: TRUE | LG5: TRUE | LH5: TRUE | LI5: TRUE | LJ5: TRUE | LK5: TRUE | LL5: TRUE | LM5: TRUE | LN5: TRUE | LO5: TRUE | LP5: TRUE | LQ5: TRUE | LR5: TRUE | LS5: TRUE | LT5: TRUE | LU5: TRUE | LV5: TRUE | LW5: TRUE | LX5: TRUE | LY5: TRUE | LZ5: TRUE | MA5: TRUE | MB5: TRUE | MC5: TRUE | MD5: TRUE | ME5: TRUE | MF5: TRUE | MG5: TRUE | MH5: TRUE | MI5: TRUE | MJ5: TRUE | MK5: TRUE | ML5: TRUE | MM5: FALSE | MN5: FALSE | MO5: FALSE | MP5: FALSE | MQ5: FALSE | MR5: FALSE | MS5: FALSE | MT5: FALSE | MU5: FALSE | MV5: FALSE | MW5: FALSE | MX5: FALSE | MY5: FALSE | MZ5: FALSE | NA5: FALSE | NB5: FALSE | NC5: FALSE | ND5: FALSE | NE5: FALSE | NF5: FALSE | NG5: FALSE | NH5: FALSE | NI5: FALSE | NJ5: FALSE | NK5: FALSE | NL5: FALSE | NM5: FALSE | NN5: FALSE | NO5: FALSE | NP5: FALSE | NQ5: FALSE | NR5: FALSE | NS5: FALSE | NT5: FALSE | NU5: FALSE | NV5: FALSE | NW5: FALSE | NX5: FALSE | NY5: FALSE | NZ5: FALSE | OA5: FALSE | OB5: FALSE | OC5: FALSE | OD5: FALSE | OE5: FALSE
B6: Commercial Operation | G6: =F16 -> 2018-07-01 | K6: =K$2=$G6 -> FALSE | L6: FALSE | M6: FALSE | N6: FALSE | O6: FALSE | P6: FALSE | Q6: FALSE | R6: FALSE | S6: FALSE | T6: FALSE | U6: =U$2=$G6 -> FALSE | V6: FALSE | W6: FALSE | X6: FALSE | Y6: FALSE | Z6: FALSE | AA6: FALSE | AB6: FALSE | AC6: FALSE | AD6: FALSE | AE6: =AE$2=$G6 -> FALSE | AF6: FALSE | AG6: FALSE | AH6: FALSE | AI6: FALSE | AJ6: FALSE | AK6: FALSE | AL6: FALSE | AM6: FALSE | AN6: FALSE | AO6: =AO$2=$G6 -> FALSE | AP6: FALSE | AQ6: FALSE | AR6: FALSE | AS6: FALSE | AT6: FALSE | AU6: FALSE | AV6: FALSE | AW6: FALSE | AX6: FALSE | AY6: =AY$2=$G6 -> TRUE | AZ6: FALSE | BA6: FALSE | BB6: FALSE | BC6: FALSE | BD6: FALSE | BE6: FALSE | BF6: FALSE | BG6: FALSE | BH6: FALSE | BI6: =BI$2=$G6 -> FALSE | BJ6: FALSE | BK6: FALSE | BL6: FALSE | BM6: FALSE | BN6: FALSE | BO6: FALSE | BP6: FALSE | BQ6: FALSE | BR6: FALSE | BS6: =BS$2=$G6 -> FALSE | BT6: FALSE | BU6: FALSE | BV6: FALSE | BW6: FALSE | BX6: FALSE | BY6: FALSE | BZ6: FALSE | CA6: FALSE | CB6: FALSE | CC6: =CC$2=$G6 -> FALSE | CD6: FALSE | CE6: FALSE | CF6: FALSE | CG6: FALSE | CH6: FALSE | CI6: FALSE | CJ6: FALSE | CK6: FALSE | CL6: FALSE | CM6: =CM$2=$G6 -> FALSE | CN6: FALSE | CO6: FALSE | CP6: FALSE | CQ6: FALSE | CR6: FALSE | CS6: FALSE | CT6: FALSE | CU6: FALSE | CV6: FALSE | CW6: =CW$2=$G6 -> FALSE | CX6: FALSE | CY6: FALSE | CZ6: FALSE | DA6: FALSE | DB6: FALSE | DC6: FALSE | DD6: FALSE | DE6: FALSE | DF6: FALSE | DG6: =DG$2=$G6 -> FALSE | DH6: FALSE | DI6: FALSE | DJ6: FALSE | DK6: FALSE | DL6: FALSE | DM6: FALSE | DN6: FALSE | DO6: FALSE | DP6: FALSE | DQ6: =DQ$2=$G6 -> FALSE | DR6: FALSE | DS6: FALSE | DT6: FALSE | DU6: FALSE | DV6: FALSE | DW6: FALSE | DX6: FALSE | DY6: FALSE | DZ6: FALSE | EA6: =EA$2=$G6 -> FALSE | EB6: FALSE | EC6: FALSE | ED6: FALSE | EE6: FALSE | EF6: FALSE | EG6: FALSE | EH6: FALSE | EI6: FALSE | EJ6: FALSE | EK6: =EK$2=$G6 -> FALSE | EL6: FALSE | EM6: FALSE | EN6: FALSE | EO6: FALSE | EP6: FALSE | EQ6: FALSE | ER6: FALSE | ES6: FALSE | ET6: FALSE | EU6: =EU$2=$G6 -> FALSE | EV6: FALSE | EW6: FALSE | EX6: FALSE | EY6: FALSE | EZ6: FALSE | FA6: FALSE | FB6: FALSE | FC6: FALSE | FD6: FALSE | FE6: =FE$2=$G6 -> FALSE | FF6: FALSE | FG6: FALSE | FH6: FALSE | FI6: FALSE | FJ6: FALSE | FK6: FALSE | FL6: FALSE | FM6: FALSE | FN6: FALSE | FO6: =FO$2=$G6 -> FALSE | FP6: FALSE | FQ6: FALSE | FR6: FALSE | FS6: FALSE | FT6: FALSE | FU6: FALSE | FV6: FALSE | FW6: FALSE | FX6: FALSE | FY6: =FY$2=$G6 -> FALSE | FZ6: FALSE | GA6: FALSE | GB6: FALSE | GC6: FALSE | GD6: FALSE | GE6: FALSE | GF6: FALSE | GG6: FALSE | GH6: FALSE | GI6: =GI$2=$G6 -> FALSE | GJ6: FALSE | GK6: FALSE | GL6: FALSE | GM6: FALSE | GN6: FALSE | GO6: FALSE | GP6: FALSE | GQ6: FALSE | GR6: FALSE | GS6: =GS$2=$G6 -> FALSE | GT6: FALSE | GU6: FALSE | GV6: FALSE | GW6: FALSE | GX6: FALSE | GY6: FALSE | GZ6: FALSE | HA6: FALSE | HB6: FALSE | HC6: =HC$2=$G6 -> FALSE | HD6: FALSE | HE6: FALSE | HF6: FALSE | HG6: FALSE | HH6: FALSE | HI6: FALSE | HJ6: FALSE | HK6: FALSE | HL6: FALSE | HM6: =HM$2=$G6 -> FALSE | HN6: FALSE | HO6: FALSE | HP6: FALSE | HQ6: FALSE | HR6: FALSE | HS6: FALSE | HT6: FALSE | HU6: FALSE | HV6: FALSE | HW6: =HW$2=$G6 -> FALSE | HX6: FALSE | HY6: FALSE | HZ6: FALSE | IA6: FALSE | IB6: FALSE | IC6: FALSE | ID6: FALSE | IE6: FALSE | IF6: FALSE | IG6: =IG$2=$G6 -> FALSE | IH6: FALSE | II6: FALSE | IJ6: FALSE | IK6: FALSE | IL6: FALSE | IM6: FALSE | IN6: FALSE | IO6: FALSE | IP6: FALSE | IQ6: =IQ$2=$G6 -> FALSE | IR6: FALSE | IS6: FALSE | IT6: FALSE | IU6: FALSE | IV6: FALSE | IW6: FALSE | IX6: FALSE | IY6: FALSE | IZ6: FALSE | JA6: =JA$2=$G6 -> FALSE | JB6: FALSE | JC6: FALSE | JD6: FALSE | JE6: FALSE | JF6: FALSE | JG6: FALSE | JH6: FALSE | JI6: FALSE | JJ6: FALSE | JK6: =JK$2=$G6 -> FALSE | JL6: FALSE | JM6: FALSE | JN6: FALSE | JO6: FALSE | JP6: FALSE | JQ6: FALSE | JR6: FALSE | JS6: FALSE | JT6: FALSE | JU6: =JU$2=$G6 -> FALSE | JV6: FALSE | JW6: FALSE | JX6: FALSE | JY6: FALSE | JZ6: FALSE | KA6: FALSE | KB6: FALSE | KC6: FALSE | KD6: FALSE | KE6: =KE$2=$G6 -> FALSE | KF6: FALSE | KG6: FALSE | KH6: FALSE | KI6: FALSE | KJ6: FALSE | KK6: FALSE | KL6: FALSE | KM6: FALSE | KN6: FALSE | KO6: =KO$2=$G6 -> FALSE | KP6: FALSE | KQ6: FALSE | KR6: FALSE | KS6: FALSE | KT6: FALSE | KU6: FALSE | KV6: FALSE | KW6: FALSE | KX6: FALSE | KY6: =KY$2=$G6 -> FALSE | KZ6: FALSE | LA6: FALSE | LB6: FALSE | LC6: FALSE | LD6: FALSE | LE6: FALSE | LF6: FALSE | LG6: FALSE | LH6: FALSE | LI6: =LI$2=$G6 -> FALSE | LJ6: FALSE | LK6: FALSE | LL6: FALSE | LM6: FALSE | LN6: FALSE | LO6: FALSE | LP6: FALSE | LQ6: FALSE | LR6: FALSE | LS6: =LS$2=$G6 -> FALSE | LT6: FALSE | LU6: FALSE | LV6: FALSE | LW6: FALSE | LX6: FALSE | LY6: FALSE | LZ6: FALSE | MA6: FALSE | MB6: FALSE | MC6: =MC$2=$G6 -> FALSE | MD6: FALSE | ME6: FALSE | MF6: FALSE | MG6: FALSE | MH6: FALSE | MI6: FALSE | MJ6: FALSE | MK6: FALSE | ML6: FALSE | MM6: =MM$2=$G6 -> FALSE | MN6: FALSE | MO6: FALSE | MP6: FALSE | MQ6: FALSE | MR6: FALSE | MS6: FALSE | MT6: FALSE | MU6: FALSE | MV6: FALSE | MW6: =MW$2=$G6 -> FALSE | MX6: FALSE | MY6: FALSE | MZ6: FALSE | NA6: FALSE | NB6: FALSE | NC6: FALSE | ND6: FALSE | NE6: FALSE | NF6: FALSE | NG6: =NG$2=$G6 -> FALSE | NH6: FALSE | NI6: FALSE | NJ6: FALSE | NK6: FALSE | NL6: FALSE | NM6: FALSE | NN6: FALSE | NO6: FALSE | NP6: FALSE | NQ6: =NQ$2=$G6 -> FALSE | NR6: FALSE | NS6: FALSE | NT6: FALSE | NU6: FALSE | NV6: FALSE | NW6: FALSE | NX6: FALSE | NY6: FALSE | NZ6: FALSE | OA6: FALSE | OB6: FALSE | OC6: FALSE | OD6: FALSE | OE6: FALSE
B7: Decommissioning | G7: =F19 -> 2043-07-01 | K7: FALSE | L7: FALSE | M7: FALSE | N7: FALSE | O7: FALSE | P7: FALSE | Q7: FALSE | R7: FALSE | S7: FALSE | T7: FALSE | U7: FALSE | V7: FALSE | W7: FALSE | X7: FALSE | Y7: FALSE | Z7: FALSE | AA7: FALSE | AB7: FALSE | AC7: FALSE | AD7: FALSE | AE7: FALSE | AF7: FALSE | AG7: FALSE | AH7: FALSE | AI7: FALSE | AJ7: FALSE | AK7: FALSE | AL7: FALSE | AM7: FALSE | AN7: FALSE | AO7: FALSE | AP7: FALSE | AQ7: FALSE | AR7: FALSE | AS7: FALSE | AT7: FALSE | AU7: FALSE | AV7: FALSE | AW7: FALSE | AX7: FALSE | AY7: FALSE | AZ7: FALSE | BA7: FALSE | BB7: FALSE | BC7: FALSE | BD7: FALSE | BE7: FALSE | BF7: FALSE | BG7: FALSE | BH7: FALSE | BI7: FALSE | BJ7: FALSE | BK7: FALSE | BL7: FALSE | BM7: FALSE | BN7: FALSE | BO7: FALSE | BP7: FALSE | BQ7: FALSE | BR7: FALSE | BS7: FALSE | BT7: FALSE | BU7: FALSE | BV7: FALSE | BW7: FALSE | BX7: FALSE | BY7: FALSE | BZ7: FALSE | CA7: FALSE | CB7: FALSE | CC7: FALSE | CD7: FALSE | CE7: FALSE | CF7: FALSE | CG7: FALSE | CH7: FALSE | CI7: FALSE | CJ7: FALSE | CK7: FALSE | CL7: FALSE | CM7: FALSE | CN7: FALSE | CO7: FALSE | CP7: FALSE | CQ7: FALSE | CR7: FALSE | CS7: FALSE | CT7: FALSE | CU7: FALSE | CV7: FALSE | CW7: FALSE | CX7: FALSE | CY7: FALSE | CZ7: FALSE | DA7: FALSE | DB7: FALSE | DC7: FALSE | DD7: FALSE | DE7: FALSE | DF7: FALSE | DG7: FALSE | DH7: FALSE | DI7: FALSE | DJ7: FALSE | DK7: FALSE | DL7: FALSE | DM7: FALSE | DN7: FALSE | DO7: FALSE | DP7: FALSE | DQ7: FALSE | DR7: FALSE | DS7: FALSE | DT7: FALSE | DU7: FALSE | DV7: FALSE | DW7: FALSE | DX7: FALSE | DY7: FALSE | DZ7: FALSE | EA7: FALSE | EB7: FALSE | EC7: FALSE | ED7: FALSE | EE7: FALSE | EF7: FALSE | EG7: FALSE | EH7: FALSE | EI7: FALSE | EJ7: FALSE | EK7: FALSE | EL7: FALSE | EM7: FALSE | EN7: FALSE | EO7: FALSE | EP7: FALSE | EQ7: FALSE | ER7: FALSE | ES7: FALSE | ET7: FALSE | EU7: FALSE | EV7: FALSE | EW7: FALSE | EX7: FALSE | EY7: FALSE | EZ7: FALSE | FA7: FALSE | FB7: FALSE | FC7: FALSE | FD7: FALSE | FE7: FALSE | FF7: FALSE | FG7: FALSE | FH7: FALSE | FI7: FALSE | FJ7: FALSE | FK7: FALSE | FL7: FALSE | FM7: FALSE | FN7: FALSE | FO7: FALSE | FP7: FALSE | FQ7: FALSE | FR7: FALSE | FS7: FALSE | FT7: FALSE | FU7: FALSE | FV7: FALSE | FW7: FALSE | FX7: FALSE | FY7: FALSE | FZ7: FALSE | GA7: FALSE | GB7: FALSE | GC7: FALSE | GD7: FALSE | GE7: FALSE | GF7: FALSE | GG7: FALSE | GH7: FALSE | GI7: FALSE | GJ7: FALSE | GK7: FALSE | GL7: FALSE | GM7: FALSE | GN7: FALSE | GO7: FALSE | GP7: FALSE | GQ7: FALSE | GR7: FALSE | GS7: FALSE | GT7: FALSE | GU7: FALSE | GV7: FALSE | GW7: FALSE | GX7: FALSE | GY7: FALSE | GZ7: FALSE | HA7: FALSE | HB7: FALSE | HC7: FALSE | HD7: FALSE | HE7: FALSE | HF7: FALSE | HG7: FALSE | HH7: FALSE | HI7: FALSE | HJ7: FALSE | HK7: FALSE | HL7: FALSE | HM7: FALSE | HN7: FALSE | HO7: FALSE | HP7: FALSE | HQ7: FALSE | HR7: FALSE | HS7: FALSE | HT7: FALSE | HU7: FALSE | HV7: FALSE | HW7: FALSE | HX7: FALSE | HY7: FALSE | HZ7: FALSE | IA7: FALSE | IB7: FALSE | IC7: FALSE | ID7: FALSE | IE7: FALSE | IF7: FALSE | IG7: FALSE | IH7: FALSE | II7: FALSE | IJ7: FALSE | IK7: FALSE | IL7: FALSE | IM7: FALSE | IN7: FALSE | IO7: FALSE | IP7: FALSE | IQ7: FALSE | IR7: FALSE | IS7: FALSE | IT7: FALSE | IU7: FALSE | IV7: FALSE | IW7: FALSE | IX7: FALSE | IY7: FALSE | IZ7: FALSE | JA7: FALSE | JB7: FALSE | JC7: FALSE | JD7: FALSE | JE7: FALSE | JF7: FALSE | JG7: FALSE | JH7: FALSE | JI7: FALSE | JJ7: FALSE | JK7: FALSE | JL7: FALSE | JM7: FALSE | JN7: FALSE | JO7: FALSE | JP7: FALSE | JQ7: FALSE | JR7: FALSE | JS7: FALSE | JT7: FALSE | JU7: FALSE | JV7: FALSE | JW7: FALSE | JX7: FALSE | JY7: FALSE | JZ7: FALSE | KA7: FALSE | KB7: FALSE | KC7: FALSE | KD7: FALSE | KE7: FALSE | KF7: FALSE | KG7: FALSE | KH7: FALSE | KI7: FALSE | KJ7: FALSE | KK7: FALSE | KL7: FALSE | KM7: FALSE | KN7: FALSE | KO7: FALSE | KP7: FALSE | KQ7: FALSE | KR7: FALSE | KS7: FALSE | KT7: FALSE | KU7: FALSE | KV7: FALSE | KW7: FALSE | KX7: FALSE | KY7: FALSE | KZ7: FALSE | LA7: FALSE | LB7: FALSE | LC7: FALSE | LD7: FALSE | LE7: FALSE | LF7: FALSE | LG7: FALSE | LH7: FALSE | LI7: FALSE | LJ7: FALSE | LK7: FALSE | LL7: FALSE | LM7: FALSE | LN7: FALSE | LO7: FALSE | LP7: FALSE | LQ7: FALSE | LR7: FALSE | LS7: FALSE | LT7: FALSE | LU7: FALSE | LV7: FALSE | LW7: FALSE | LX7: FALSE | LY7: FALSE | LZ7: FALSE | MA7: FALSE | MB7: FALSE | MC7: FALSE | MD7: FALSE | ME7: FALSE | MF7: FALSE | MG7: FALSE | MH7: FALSE | MI7: FALSE | MJ7: FALSE | MK7: FALSE | ML7: FALSE | MM7: TRUE | MN7: FALSE | MO7: FALSE | MP7: FALSE | MQ7: FALSE | MR7: FALSE | MS7: FALSE | MT7: FALSE | MU7: FALSE | MV7: FALSE | MW7: FALSE | MX7: FALSE | MY7: FALSE | MZ7: FALSE | NA7: FALSE | NB7: FALSE | NC7: FALSE | ND7: FALSE | NE7: FALSE | NF7: FALSE | NG7: FALSE | NH7: FALSE | NI7: FALSE | NJ7: FALSE | NK7: FALSE | NL7: FALSE | NM7: FALSE | NN7: FALSE | NO7: FALSE | NP7: FALSE | NQ7: FALSE | NR7: FALSE | NS7: FALSE | NT7: FALSE | NU7: FALSE | NV7: FALSE | NW7: FALSE | NX7: FALSE | NY7: FALSE | NZ7: FALSE | OA7: FALSE | OB7: FALSE | OC7: FALSE | OD7: FALSE | OE7: FALSE
B8: Last Construction Month | G8: =EDATE(G6,-1) -> 2018-06-01 | K8: =K2=$G$8 -> FALSE | L8: FALSE | M8: FALSE | N8: FALSE | O8: FALSE | P8: FALSE | Q8: FALSE | R8: FALSE | S8: FALSE | T8: FALSE | U8: FALSE | V8: FALSE | W8: FALSE | X8: FALSE | Y8: FALSE | Z8: FALSE | AA8: FALSE | AB8: FALSE | AC8: FALSE | AD8: FALSE | AE8: FALSE | AF8: FALSE | AG8: FALSE | AH8: FALSE | AI8: FALSE | AJ8: FALSE | AK8: FALSE | AL8: FALSE | AM8: FALSE | AN8: FALSE | AO8: FALSE | AP8: FALSE | AQ8: FALSE | AR8: FALSE | AS8: FALSE | AT8: FALSE | AU8: FALSE | AV8: FALSE | AW8: FALSE | AX8: TRUE | AY8: FALSE | AZ8: FALSE | BA8: FALSE | BB8: FALSE | BC8: FALSE | BD8: FALSE | BE8: FALSE | BF8: FALSE | BG8: FALSE | BH8: FALSE | BI8: FALSE | BJ8: FALSE | BK8: FALSE | BL8: FALSE | BM8: FALSE | BN8: FALSE | BO8: FALSE | BP8: FALSE | BQ8: FALSE | BR8: FALSE | BS8: FALSE | BT8: FALSE | BU8: FALSE | BV8: FALSE | BW8: =BW2=$G$8 -> FALSE | BX8: FALSE | BY8: FALSE | BZ8: FALSE | CA8: FALSE | CB8: FALSE | CC8: FALSE | CD8: FALSE | CE8: FALSE | CF8: FALSE | CG8: FALSE | CH8: FALSE | CI8: FALSE | CJ8: FALSE | CK8: FALSE | CL8: FALSE | CM8: FALSE | CN8: FALSE | CO8: FALSE | CP8: FALSE | CQ8: FALSE | CR8: FALSE | CS8: FALSE | CT8: FALSE | CU8: FALSE | CV8: FALSE | CW8: FALSE | CX8: FALSE | CY8: FALSE | CZ8: FALSE | DA8: FALSE | DB8: FALSE | DC8: FALSE | DD8: FALSE | DE8: FALSE | DF8: FALSE | DG8: FALSE | DH8: FALSE | DI8: FALSE | DJ8: FALSE | DK8: FALSE | DL8: FALSE | DM8: FALSE | DN8: FALSE | DO8: FALSE | DP8: FALSE | DQ8: FALSE | DR8: FALSE | DS8: FALSE | DT8: FALSE | DU8: FALSE | DV8: FALSE | DW8: FALSE | DX8: FALSE | DY8: FALSE | DZ8: FALSE | EA8: FALSE | EB8: FALSE | EC8: FALSE | ED8: FALSE | EE8: FALSE | EF8: FALSE | EG8: FALSE | EH8: FALSE | EI8: =EI2=$G$8 -> FALSE | EJ8: FALSE | EK8: FALSE | EL8: FALSE | EM8: FALSE | EN8: FALSE | EO8: FALSE | EP8: FALSE | EQ8: FALSE | ER8: FALSE | ES8: FALSE | ET8: FALSE | EU8: FALSE | EV8: FALSE | EW8: FALSE | EX8: FALSE | EY8: FALSE | EZ8: FALSE | FA8: FALSE | FB8: FALSE | FC8: FALSE | FD8: FALSE | FE8: FALSE | FF8: FALSE | FG8: FALSE | FH8: FALSE | FI8: FALSE | FJ8: FALSE | FK8: FALSE | FL8: FALSE | FM8: FALSE | FN8: FALSE | FO8: FALSE | FP8: FALSE | FQ8: FALSE | FR8: FALSE | FS8: FALSE | FT8: FALSE | FU8: FALSE | FV8: FALSE | FW8: FALSE | FX8: FALSE | FY8: FALSE | FZ8: FALSE | GA8: FALSE | GB8: FALSE | GC8: FALSE | GD8: FALSE | GE8: FALSE | GF8: FALSE | GG8: FALSE | GH8: FALSE | GI8: FALSE | GJ8: FALSE | GK8: FALSE | GL8: FALSE | GM8: FALSE | GN8: FALSE | GO8: FALSE | GP8: FALSE | GQ8: FALSE | GR8: FALSE | GS8: FALSE | GT8: FALSE | GU8: =GU2=$G$8 -> FALSE | GV8: FALSE | GW8: FALSE | GX8: FALSE | GY8: FALSE | GZ8: FALSE | HA8: FALSE | HB8: FALSE | HC8: FALSE | HD8: FALSE | HE8: FALSE | HF8: FALSE | HG8: FALSE | HH8: FALSE | HI8: FALSE | HJ8: FALSE | HK8: FALSE | HL8: FALSE | HM8: FALSE | HN8: FALSE | HO8: FALSE | HP8: FALSE | HQ8: FALSE | HR8: FALSE | HS8: FALSE | HT8: FALSE | HU8: FALSE | HV8: FALSE | HW8: FALSE | HX8: FALSE | HY8: FALSE | HZ8: FALSE | IA8: FALSE | IB8: FALSE | IC8: FALSE | ID8: FALSE | IE8: FALSE | IF8: FALSE | IG8: FALSE | IH8: FALSE | II8: FALSE | IJ8: FALSE | IK8: FALSE | IL8: FALSE | IM8: FALSE | IN8: FALSE | IO8: FALSE | IP8: FALSE | IQ8: FALSE | IR8: FALSE | IS8: FALSE | IT8: FALSE | IU8: FALSE | IV8: FALSE | IW8: FALSE | IX8: FALSE | IY8: FALSE | IZ8: FALSE | JA8: FALSE | JB8: FALSE | JC8: FALSE | JD8: FALSE | JE8: FALSE | JF8: FALSE | JG8: =JG2=$G$8 -> FALSE | JH8: FALSE | JI8: FALSE | JJ8: FALSE | JK8: FALSE | JL8: FALSE | JM8: FALSE | JN8: FALSE | JO8: FALSE | JP8: FALSE | JQ8: FALSE | JR8: FALSE | JS8: FALSE | JT8: FALSE | JU8: FALSE | JV8: FALSE | JW8: FALSE | JX8: FALSE | JY8: FALSE | JZ8: FALSE | KA8: FALSE | KB8: FALSE | KC8: FALSE | KD8: FALSE | KE8: FALSE | KF8: FALSE | KG8: FALSE | KH8: FALSE | KI8: FALSE | KJ8: FALSE | KK8: FALSE | KL8: FALSE | KM8: FALSE | KN8: FALSE | KO8: FALSE | KP8: FALSE | KQ8: FALSE | KR8: FALSE | KS8: FALSE | KT8: FALSE | KU8: FALSE | KV8: FALSE | KW8: FALSE | KX8: FALSE | KY8: FALSE | KZ8: FALSE | LA8: FALSE | LB8: FALSE | LC8: FALSE | LD8: FALSE | LE8: FALSE | LF8: FALSE | LG8: FALSE | LH8: FALSE | LI8: FALSE | LJ8: FALSE | LK8: FALSE | LL8: FALSE | LM8: FALSE | LN8: FALSE | LO8: FALSE | LP8: FALSE | LQ8: FALSE | LR8: FALSE | LS8: =LS2=$G$8 -> FALSE | LT8: FALSE | LU8: FALSE | LV8: FALSE | LW8: FALSE | LX8: FALSE | LY8: FALSE | LZ8: FALSE | MA8: FALSE | MB8: FALSE | MC8: FALSE | MD8: FALSE | ME8: FALSE | MF8: FALSE | MG8: FALSE | MH8: FALSE | MI8: FALSE | MJ8: FALSE | MK8: FALSE | ML8: FALSE | MM8: FALSE | MN8: FALSE | MO8: FALSE | MP8: FALSE | MQ8: FALSE | MR8: FALSE | MS8: FALSE | MT8: FALSE | MU8: FALSE | MV8: FALSE | MW8: FALSE | MX8: FALSE | MY8: FALSE | MZ8: FALSE | NA8: FALSE | NB8: FALSE | NC8: FALSE | ND8: FALSE | NE8: FALSE | NF8: FALSE | NG8: FALSE | NH8: FALSE | NI8: FALSE | NJ8: FALSE | NK8: FALSE | NL8: FALSE | NM8: FALSE | NN8: FALSE | NO8: FALSE | NP8: FALSE | NQ8: FALSE | NR8: FALSE | NS8: FALSE | NT8: FALSE | NU8: FALSE | NV8: FALSE | NW8: FALSE | NX8: FALSE | NY8: FALSE | NZ8: FALSE | OA8: FALSE | OB8: FALSE | OC8: FALSE | OD8: FALSE | OE8: FALSE
B9: Days | E9: Days | K9: =K3-K2+1 -> 31 | L9: 30 | M9: 31 | N9: 30 | O9: 31 | P9: 31 | Q9: 30 | R9: 31 | S9: 30 | T9: 31 | U9: 31 | V9: 29 | W9: 31 | X9: 30 | Y9: 31 | Z9: 30 | AA9: 31 | AB9: 31 | AC9: 30 | AD9: 31 | AE9: 30 | AF9: 31 | AG9: 31 | AH9: 28 | AI9: 31 | AJ9: 30 | AK9: 31 | AL9: 30 | AM9: 31 | AN9: 31 | AO9: 30 | AP9: 31 | AQ9: 30 | AR9: 31 | AS9: 31 | AT9: 28 | AU9: 31 | AV9: 30 | AW9: 31 | AX9: 30 | AY9: 31 | AZ9: 31 | BA9: 30 | BB9: 31 | BC9: 30 | BD9: 31 | BE9: 31 | BF9: 28 | BG9: 31 | BH9: 30 | BI9: 31 | BJ9: 30 | BK9: 31 | BL9: 31 | BM9: 30 | BN9: 31 | BO9: 30 | BP9: 31 | BQ9: 31 | BR9: 29 | BS9: 31 | BT9: 30 | BU9: 31 | BV9: 30 | BW9: =BW3-BW2+1 -> 31 | BX9: 31 | BY9: 30 | BZ9: 31 | CA9: 30 | CB9: 31 | CC9: 31 | CD9: 28 | CE9: 31 | CF9: 30 | CG9: 31 | CH9: 30 | CI9: 31 | CJ9: 31 | CK9: 30 | CL9: 31 | CM9: 30 | CN9: 31 | CO9: 31 | CP9: 28 | CQ9: 31 | CR9: 30 | CS9: 31 | CT9: 30 | CU9: 31 | CV9: 31 | CW9: 30 | CX9: 31 | CY9: 30 | CZ9: 31 | DA9: 31 | DB9: 28 | DC9: 31 | DD9: 30 | DE9: 31 | DF9: 30 | DG9: 31 | DH9: 31 | DI9: 30 | DJ9: 31 | DK9: 30 | DL9: 31 | DM9: 31 | DN9: 29 | DO9: 31 | DP9: 30 | DQ9: 31 | DR9: 30 | DS9: 31 | DT9: 31 | DU9: 30 | DV9: 31 | DW9: 30 | DX9: 31 | DY9: 31 | DZ9: 28 | EA9: 31 | EB9: 30 | EC9: 31 | ED9: 30 | EE9: 31 | EF9: 31 | EG9: 30 | EH9: 31 | EI9: =EI3-EI2+1 -> 30 | EJ9: 31 | EK9: 31 | EL9: 28 | EM9: 31 | EN9: 30 | EO9: 31 | EP9: 30 | EQ9: 31 | ER9: 31 | ES9: 30 | ET9: 31 | EU9: 30 | EV9: 31 | EW9: 31 | EX9: 28 | EY9: 31 | EZ9: 30 | FA9: 31 | FB9: 30 | FC9: 31 | FD9: 31 | FE9: 30 | FF9: 31 | FG9: 30 | FH9: 31 | FI9: 31 | FJ9: 29 | FK9: 31 | FL9: 30 | FM9: 31 | FN9: 30 | FO9: 31 | FP9: 31 | FQ9: 30 | FR9: 31 | FS9: 30 | FT9: 31 | FU9: 31 | FV9: 28 | FW9: 31 | FX9: 30 | FY9: 31 | FZ9: 30 | GA9: 31 | GB9: 31 | GC9: 30 | GD9: 31 | GE9: 30 | GF9: 31 | GG9: 31 | GH9: 28 | GI9: 31 | GJ9: 30 | GK9: 31 | GL9: 30 | GM9: 31 | GN9: 31 | GO9: 30 | GP9: 31 | GQ9: 30 | GR9: 31 | GS9: 31 | GT9: 28 | GU9: =GU3-GU2+1 -> 31 | GV9: 30 | GW9: 31 | GX9: 30 | GY9: 31 | GZ9: 31 | HA9: 30 | HB9: 31 | HC9: 30 | HD9: 31 | HE9: 31 | HF9: 29 | HG9: 31 | HH9: 30 | HI9: 31 | HJ9: 30 | HK9: 31 | HL9: 31 | HM9: 30 | HN9: 31 | HO9: 30 | HP9: 31 | HQ9: 31 | HR9: 28 | HS9: 31 | HT9: 30 | HU9: 31 | HV9: 30 | HW9: 31 | HX9: 31 | HY9: 30 | HZ9: 31 | IA9: 30 | IB9: 31 | IC9: 31 | ID9: 28 | IE9: 31 | IF9: 30 | IG9: 31 | IH9: 30 | II9: 31 | IJ9: 31 | IK9: 30 | IL9: 31 | IM9: 30 | IN9: 31 | IO9: 31 | IP9: 28 | IQ9: 31 | IR9: 30 | IS9: 31 | IT9: 30 | IU9: 31 | IV9: 31 | IW9: 30 | IX9: 31 | IY9: 30 | IZ9: 31 | JA9: 31 | JB9: 29 | JC9: 31 | JD9: 30 | JE9: 31 | JF9: 30 | JG9: =JG3-JG2+1 -> 31 | JH9: 31 | JI9: 30 | JJ9: 31 | JK9: 30 | JL9: 31 | JM9: 31 | JN9: 28 | JO9: 31 | JP9: 30 | JQ9: 31 | JR9: 30 | JS9: 31 | JT9: 31 | JU9: 30 | JV9: 31 | JW9: 30 | JX9: 31 | JY9: 31 | JZ9: 28 | KA9: 31 | KB9: 30 | KC9: 31 | KD9: 30 | KE9: 31 | KF9: 31 | KG9: 30 | KH9: 31 | KI9: 30 | KJ9: 31 | KK9: 31 | KL9: 28 | KM9: 31 | KN9: 30 | KO9: 31 | KP9: 30 | KQ9: 31 | KR9: 31 | KS9: 30 | KT9: 31 | KU9: 30 | KV9: 31 | KW9: 31 | KX9: 29 | KY9: 31 | KZ9: 30 | LA9: 31 | LB9: 30 | LC9: 31 | LD9: 31 | LE9: 30 | LF9: 31 | LG9: 30 | LH9: 31 | LI9: 31 | LJ9: 28 | LK9: 31 | LL9: 30 | LM9: 31 | LN9: 30 | LO9: 31 | LP9: 31 | LQ9: 30 | LR9: 31 | LS9: =LS3-LS2+1 -> 30 | LT9: 31 | LU9: 31 | LV9: 28 | LW9: 31 | LX9: 30 | LY9: 31 | LZ9: 30 | MA9: 31 | MB9: 31 | MC9: 30 | MD9: 31 | ME9: 30 | MF9: 31 | MG9: 31 | MH9: 28 | MI9: 31 | MJ9: 30 | MK9: 31 | ML9: 30 | MM9: 31 | MN9: 31 | MO9: 30 | MP9: 31 | MQ9: 30 | MR9: 31 | MS9: 31 | MT9: 29 | MU9: 31 | MV9: 30 | MW9: 31 | MX9: 30 | MY9: 31 | MZ9: 31 | NA9: 30 | NB9: 31 | NC9: 30 | ND9: 31 | NE9: 31 | NF9: 28 | NG9: 31 | NH9: 30 | NI9: 31 | NJ9: 30 | NK9: 31 | NL9: 31 | NM9: 30 | NN9: 31 | NO9: 30 | NP9: 31 | NQ9: 31 | NR9: 28 | NS9: 31 | NT9: 30 | NU9: 31 | NV9: 30 | NW9: 31 | NX9: 31 | NY9: 30 | NZ9: 31 | OA9: 30 | OB9: 31 | OC9: 31 | OD9: 28 | OE9: 31
B10: Hours | E10: Hours | K10: =K9*24 -> 744 | L10: =L9*24 -> 720 | M10: 744 | N10: 720 | O10: 744 | P10: 744 | Q10: 720 | R10: 744 | S10: 720 | T10: 744 | U10: 744 | V10: 696 | W10: 744 | X10: 720 | Y10: 744 | Z10: 720 | AA10: 744 | AB10: 744 | AC10: 720 | AD10: 744 | AE10: 720 | AF10: 744 | AG10: 744 | AH10: 672 | AI10: 744 | AJ10: 720 | AK10: 744 | AL10: 720 | AM10: 744 | AN10: 744 | AO10: 720 | AP10: 744 | AQ10: 720 | AR10: 744 | AS10: 744 | AT10: 672 | AU10: 744 | AV10: 720 | AW10: 744 | AX10: 720 | AY10: 744 | AZ10: 744 | BA10: 720 | BB10: 744 | BC10: 720 | BD10: 744 | BE10: 744 | BF10: 672 | BG10: 744 | BH10: 720 | BI10: 744 | BJ10: 720 | BK10: 744 | BL10: 744 | BM10: 720 | BN10: 744 | BO10: 720 | BP10: 744 | BQ10: 744 | BR10: 696 | BS10: 744 | BT10: 720 | BU10: 744 | BV10: 720 | BW10: 744 | BX10: =BX9*24 -> 744 | BY10: 720 | BZ10: 744 | CA10: 720 | CB10: 744 | CC10: 744 | CD10: 672 | CE10: 744 | CF10: 720 | CG10: 744 | CH10: 720 | CI10: 744 | CJ10: 744 | CK10: 720 | CL10: 744 | CM10: 720 | CN10: 744 | CO10: 744 | CP10: 672 | CQ10: 744 | CR10: 720 | CS10: 744 | CT10: 720 | CU10: 744 | CV10: 744 | CW10: 720 | CX10: 744 | CY10: 720 | CZ10: 744 | DA10: 744 | DB10: 672 | DC10: 744 | DD10: 720 | DE10: 744 | DF10: 720 | DG10: 744 | DH10: 744 | DI10: 720 | DJ10: 744 | DK10: 720 | DL10: 744 | DM10: 744 | DN10: 696 | DO10: 744 | DP10: 720 | DQ10: 744 | DR10: 720 | DS10: 744 | DT10: 744 | DU10: 720 | DV10: 744 | DW10: 720 | DX10: 744 | DY10: 744 | DZ10: 672 | EA10: 744 | EB10: 720 | EC10: 744 | ED10: 720 | EE10: 744 | EF10: 744 | EG10: 720 | EH10: 744 | EI10: 720 | EJ10: =EJ9*24 -> 744 | EK10: 744 | EL10: 672 | EM10: 744 | EN10: 720 | EO10: 744 | EP10: 720 | EQ10: 744 | ER10: 744 | ES10: 720 | ET10: 744 | EU10: 720 | EV10: 744 | EW10: 744 | EX10: 672 | EY10: 744 | EZ10: 720 | FA10: 744 | FB10: 720 | FC10: 744 | FD10: 744 | FE10: 720 | FF10: 744 | FG10: 720 | FH10: 744 | FI10: 744 | FJ10: 696 | FK10: 744 | FL10: 720 | FM10: 744 | FN10: 720 | FO10: 744 | FP10: 744 | FQ10: 720 | FR10: 744 | FS10: 720 | FT10: 744 | FU10: 744 | FV10: 672 | FW10: 744 | FX10: 720 | FY10: 744 | FZ10: 720 | GA10: 744 | GB10: 744 | GC10: 720 | GD10: 744 | GE10: 720 | GF10: 744 | GG10: 744 | GH10: 672 | GI10: 744 | GJ10: 720 | GK10: 744 | GL10: 720 | GM10: 744 | GN10: 744 | GO10: 720 | GP10: 744 | GQ10: 720 | GR10: 744 | GS10: 744 | GT10: 672 | GU10: 744 | GV10: =GV9*24 -> 720 | GW10: 744 | GX10: 720 | GY10: 744 | GZ10: 744 | HA10: 720 | HB10: 744 | HC10: 720 | HD10: 744 | HE10: 744 | HF10: 696 | HG10: 744 | HH10: 720 | HI10: 744 | HJ10: 720 | HK10: 744 | HL10: 744 | HM10: 720 | HN10: 744 | HO10: 720 | HP10: 744 | HQ10: 744 | HR10: 672 | HS10: 744 | HT10: 720 | HU10: 744 | HV10: 720 | HW10: 744 | HX10: 744 | HY10: 720 | HZ10: 744 | IA10: 720 | IB10: 744 | IC10: 744 | ID10: 672 | IE10: 744 | IF10: 720 | IG10: 744 | IH10: 720 | II10: 744 | IJ10: 744 | IK10: 720 | IL10: 744 | IM10: 720 | IN10: 744 | IO10: 744 | IP10: 672 | IQ10: 744 | IR10: 720 | IS10: 744 | IT10: 720 | IU10: 744 | IV10: 744 | IW10: 720 | IX10: 744 | IY10: 720 | IZ10: 744 | JA10: 744 | JB10: 696 | JC10: 744 | JD10: 720 | JE10: 744 | JF10: 720 | JG10: 744 | JH10: =JH9*24 -> 744 | JI10: 720 | JJ10: 744 | JK10: 720 | JL10: 744 | JM10: 744 | JN10: 672 | JO10: 744 | JP10: 720 | JQ10: 744 | JR10: 720 | JS10: 744 | JT10: 744 | JU10: 720 | JV10: 744 | JW10: 720 | JX10: 744 | JY10: 744 | JZ10: 672 | KA10: 744 | KB10: 720 | KC10: 744 | KD10: 720 | KE10: 744 | KF10: 744 | KG10: 720 | KH10: 744 | KI10: 720 | KJ10: 744 | KK10: 744 | KL10: 672 | KM10: 744 | KN10: 720 | KO10: 744 | KP10: 720 | KQ10: 744 | KR10: 744 | KS10: 720 | KT10: 744 | KU10: 720 | KV10: 744 | KW10: 744 | KX10: 696 | KY10: 744 | KZ10: 720 | LA10: 744 | LB10: 720 | LC10: 744 | LD10: 744 | LE10: 720 | LF10: 744 | LG10: 720 | LH10: 744 | LI10: 744 | LJ10: 672 | LK10: 744 | LL10: 720 | LM10: 744 | LN10: 720 | LO10: 744 | LP10: 744 | LQ10: 720 | LR10: 744 | LS10: 720 | LT10: =LT9*24 -> 744 | LU10: 744 | LV10: 672 | LW10: 744 | LX10: 720 | LY10: 744 | LZ10: 720 | MA10: 744 | MB10: 744 | MC10: 720 | MD10: 744 | ME10: 720 | MF10: 744 | MG10: 744 | MH10: 672 | MI10: 744 | MJ10: =MJ9*24 -> 720 | MK10: =MK9*24 -> 744 | ML10: =ML9*24 -> 720 | MM10: =MM9*24 -> 744 | MN10: =MN9*24 -> 744 | MO10: =MO9*24 -> 720 | MP10: =MP9*24 -> 744 | MQ10: =MQ9*24 -> 720 | MR10: =MR9*24 -> 744 | MS10: =MS9*24 -> 744 | MT10: =MT9*24 -> 696 | MU10: =MU9*24 -> 744 | MV10: =MV9*24 -> 720 | MW10: =MW9*24 -> 744 | MX10: =MX9*24 -> 720 | MY10: =MY9*24 -> 744 | MZ10: =MZ9*24 -> 744 | NA10: =NA9*24 -> 720 | NB10: =NB9*24 -> 744 | NC10: =NC9*24 -> 720 | ND10: =ND9*24 -> 744 | NE10: =NE9*24 -> 744 | NF10: =NF9*24 -> 672 | NG10: =NG9*24 -> 744 | NH10: =NH9*24 -> 720 | NI10: =NI9*24 -> 744 | NJ10: =NJ9*24 -> 720 | NK10: =NK9*24 -> 744 | NL10: =NL9*24 -> 744 | NM10: =NM9*24 -> 720 | NN10: =NN9*24 -> 744 | NO10: =NO9*24 -> 720 | NP10: =NP9*24 -> 744 | NQ10: =NQ9*24 -> 744 | NR10: =NR9*24 -> 672 | NS10: =NS9*24 -> 744 | NT10: =NT9*24 -> 720 | NU10: =NU9*24 -> 744 | NV10: =NV9*24 -> 720 | NW10: =NW9*24 -> 744 | NX10: =NX9*24 -> 744 | NY10: =NY9*24 -> 720 | NZ10: =NZ9*24 -> 744 | OA10: =OA9*24 -> 720 | OB10: =OB9*24 -> 744 | OC10: =OC9*24 -> 744 | OD10: =OD9*24 -> 672 | OE10: =OE9*24 -> 744
B11: Year | K11: =YEAR(K3) -> 2015 | L11: 2015 | M11: 2015 | N11: 2015 | O11: 2015 | P11: 2015 | Q11: 2015 | R11: 2015 | S11: 2015 | T11: 2015 | U11: 2016 | V11: 2016 | W11: 2016 | X11: 2016 | Y11: 2016 | Z11: 2016 | AA11: 2016 | AB11: 2016 | AC11: 2016 | AD11: 2016 | AE11: 2016 | AF11: 2016 | AG11: 2017 | AH11: 2017 | AI11: 2017 | AJ11: 2017 | AK11: 2017 | AL11: 2017 | AM11: 2017 | AN11: 2017 | AO11: 2017 | AP11: 2017 | AQ11: 2017 | AR11: 2017 | AS11: 2018 | AT11: 2018 | AU11: 2018 | AV11: 2018 | AW11: 2018 | AX11: 2018 | AY11: 2018 | AZ11: 2018 | BA11: 2018 | BB11: 2018 | BC11: 2018 | BD11: 2018 | BE11: 2019 | BF11: 2019 | BG11: 2019 | BH11: 2019 | BI11: 2019 | BJ11: 2019 | BK11: 2019 | BL11: 2019 | BM11: 2019 | BN11: 2019 | BO11: 2019 | BP11: 2019 | BQ11: 2020 | BR11: 2020 | BS11: 2020 | BT11: 2020 | BU11: 2020 | BV11: 2020 | BW11: =YEAR(BW3) -> 2020 | BX11: 2020 | BY11: 2020 | BZ11: 2020 | CA11: 2020 | CB11: 2020 | CC11: 2021 | CD11: 2021 | CE11: 2021 | CF11: 2021 | CG11: 2021 | CH11: 2021 | CI11: 2021 | CJ11: 2021 | CK11: 2021 | CL11: 2021 | CM11: 2021 | CN11: 2021 | CO11: 2022 | CP11: 2022 | CQ11: 2022 | CR11: 2022 | CS11: 2022 | CT11: 2022 | CU11: 2022 | CV11: 2022 | CW11: 2022 | CX11: 2022 | CY11: 2022 | CZ11: 2022 | DA11: 2023 | DB11: 2023 | DC11: 2023 | DD11: 2023 | DE11: 2023 | DF11: 2023 | DG11: 2023 | DH11: 2023 | DI11: 2023 | DJ11: 2023 | DK11: 2023 | DL11: 2023 | DM11: 2024 | DN11: 2024 | DO11: 2024 | DP11: 2024 | DQ11: 2024 | DR11: 2024 | DS11: 2024 | DT11: 2024 | DU11: 2024 | DV11: 2024 | DW11: 2024 | DX11: 2024 | DY11: 2025 | DZ11: 2025 | EA11: 2025 | EB11: 2025 | EC11: 2025 | ED11: 2025 | EE11: 2025 | EF11: 2025 | EG11: 2025 | EH11: 2025 | EI11: =YEAR(EI3) -> 2025 | EJ11: 2025 | EK11: 2026 | EL11: 2026 | EM11: 2026 | EN11: 2026 | EO11: 2026 | EP11: 2026 | EQ11: 2026 | ER11: 2026 | ES11: 2026 | ET11: 2026 | EU11: 2026 | EV11: 2026 | EW11: 2027 | EX11: 2027 | EY11: 2027 | EZ11: 2027 | FA11: 2027 | FB11: 2027 | FC11: 2027 | FD11: 2027 | FE11: 2027 | FF11: 2027 | FG11: 2027 | FH11: 2027 | FI11: 2028 | FJ11: 2028 | FK11: 2028 | FL11: 2028 | FM11: 2028 | FN11: 2028 | FO11: 2028 | FP11: 2028 | FQ11: 2028 | FR11: 2028 | FS11: 2028 | FT11: 2028 | FU11: 2029 | FV11: 2029 | FW11: 2029 | FX11: 2029 | FY11: 2029 | FZ11: 2029 | GA11: 2029 | GB11: 2029 | GC11: 2029 | GD11: 2029 | GE11: 2029 | GF11: 2029 | GG11: 2030 | GH11: 2030 | GI11: 2030 | GJ11: 2030 | GK11: 2030 | GL11: 2030 | GM11: 2030 | GN11: 2030 | GO11: 2030 | GP11: 2030 | GQ11: 2030 | GR11: 2030 | GS11: 2031 | GT11: 2031 | GU11: =YEAR(GU3) -> 2031 | GV11: 2031 | GW11: 2031 | GX11: 2031 | GY11: 2031 | GZ11: 2031 | HA11: 2031 | HB11: 2031 | HC11: 2031 | HD11: 2031 | HE11: 2032 | HF11: 2032 | HG11: 2032 | HH11: 2032 | HI11: 2032 | HJ11: 2032 | HK11: 2032 | HL11: 2032 | HM11: 2032 | HN11: 2032 | HO11: 2032 | HP11: 2032 | HQ11: 2033 | HR11: 2033 | HS11: 2033 | HT11: 2033 | HU11: 2033 | HV11: 2033 | HW11: 2033 | HX11: 2033 | HY11: 2033 | HZ11: 2033 | IA11: 2033 | IB11: 2033 | IC11: 2034 | ID11: 2034 | IE11: 2034 | IF11: 2034 | IG11: 2034 | IH11: 2034 | II11: 2034 | IJ11: 2034 | IK11: 2034 | IL11: 2034 | IM11: 2034 | IN11: 2034 | IO11: 2035 | IP11: 2035 | IQ11: 2035 | IR11: 2035 | IS11: 2035 | IT11: 2035 | IU11: 2035 | IV11: 2035 | IW11: 2035 | IX11: 2035 | IY11: 2035 | IZ11: 2035 | JA11: 2036 | JB11: 2036 | JC11: 2036 | JD11: 2036 | JE11: 2036 | JF11: 2036 | JG11: =YEAR(JG3) -> 2036 | JH11: 2036 | JI11: 2036 | JJ11: 2036 | JK11: 2036 | JL11: 2036 | JM11: 2037 | JN11: 2037 | JO11: 2037 | JP11: 2037 | JQ11: 2037 | JR11: 2037 | JS11: 2037 | JT11: 2037 | JU11: 2037 | JV11: 2037 | JW11: 2037 | JX11: 2037 | JY11: 2038 | JZ11: 2038 | KA11: 2038 | KB11: 2038 | KC11: 2038 | KD11: 2038 | KE11: 2038 | KF11: 2038 | KG11: 2038 | KH11: 2038 | KI11: 2038 | KJ11: 2038 | KK11: 2039 | KL11: 2039 | KM11: 2039 | KN11: 2039 | KO11: 2039 | KP11: 2039 | KQ11: 2039 | KR11: 2039 | KS11: 2039 | KT11: 2039 | KU11: 2039 | KV11: 2039 | KW11: 2040 | KX11: 2040 | KY11: 2040 | KZ11: 2040 | LA11: 2040 | LB11: 2040 | LC11: 2040 | LD11: 2040 | LE11: 2040 | LF11: 2040 | LG11: 2040 | LH11: 2040 | LI11: 2041 | LJ11: 2041 | LK11: 2041 | LL11: 2041 | LM11: 2041 | LN11: 2041 | LO11: 2041 | LP11: 2041 | LQ11: 2041 | LR11: 2041 | LS11: =YEAR(LS3) -> 2041 | LT11: 2041 | LU11: 2042 | LV11: 2042 | LW11: 2042 | LX11: 2042 | LY11: 2042 | LZ11: 2042 | MA11: 2042 | MB11: 2042 | MC11: 2042 | MD11: 2042 | ME11: 2042 | MF11: 2042 | MG11: 2043 | MH11: 2043 | MI11: 2043 | MJ11: 2043 | MK11: 2043 | ML11: 2043 | MM11: 2043 | MN11: 2043 | MO11: 2043 | MP11: 2043 | MQ11: 2043 | MR11: 2043 | MS11: 2044 | MT11: 2044 | MU11: 2044 | MV11: 2044 | MW11: 2044 | MX11: 2044 | MY11: 2044 | MZ11: 2044 | NA11: 2044 | NB11: 2044 | NC11: 2044 | ND11: 2044 | NE11: 2045 | NF11: 2045 | NG11: 2045 | NH11: 2045 | NI11: 2045 | NJ11: 2045 | NK11: 2045 | NL11: 2045 | NM11: 2045 | NN11: 2045 | NO11: 2045 | NP11: 2045 | NQ11: 2046 | NR11: 2046 | NS11: 2046 | NT11: 2046 | NU11: 2046 | NV11: 2046 | NW11: 2046 | NX11: 2046 | NY11: 2046 | NZ11: 2046 | OA11: 2046 | OB11: 2046 | OC11: 2047 | OD11: 2047 | OE11: 2047
A13: Assumptions
B14: Timing Assumptions | K14: Pre-tax IRR | L14: =I127 -> 0.06722324301
C15: Model Start | E15: date | F15: 2015-03-01 | K15: After Tax IRR | L15: =I154 -> 0.05622237837
C16: Commercial Operation | E16: date | F16: 2018-07-01
C17: Construction Period | E17: months | F17: =DAYS360(F15,F16)/30 -> 40
C18: Plant Life | E18: years | F18: 25
C19: Decomissioning | E19: date | F19: =EDATE(F16,F18*12) -> 2043-07-01
B21: Operating Assumptions
C22: Capacity | E22: MW | F22: 300
C24: Capacity Factor | E24: Code Number | F24: 2 | H24: 1 | I24: 2 | J24: 3 | K24: 4
E25: % | F25: Month | G25: Date | H25: P25 | I25: P50 | J25: P75 | K25: P95
F26: 0 | G26: =EDATE($F$16,F26) -> 2018-07-01 | H26: 0.35 | I26: 0.33 | J26: 0.3 | K26: 0.25
F27: 12 | G27: =EDATE($F$16,F27) -> 2019-07-01 | H27: 0.36 | I27: 0.35 | J27: 0.3 | K27: 0.26
F28: 50 | G28: 2022-09-01 | H28: 0.365 | I28: 0.355 | J28: 0.3 | K28: 0.255
F29: 120 | G29: 2028-07-01 | H29: 0.365 | I29: 0.34 | J29: 0.3 | K29: 0.253
F30: 250 | G30: 2039-05-01 | H30: 0.365 | I30: 0.33 | J30: 0.3 | K30: 0.24
B32: Capital Expenditures
C33: Capex/kW | E33: USD/kW | F33: 2000
C34: Construction Year | G34: 1 | H34: 2 | I34: 3 | J34: 4
C35: Percent | G35: 0.2 | H35: 0.65 | I35: =1-SUM(G35:H35) -> 0.15 | J35: 0
B37: Revenue Assumptions
C38: Merchant Revenues | E38: USD/MWH | F38: 70
C40: Year | G40: 2015 | H40: 2016 | I40: 2017 | J40: 2018 | K40: 2019 | L40: 2020 | M40: 2021 | N40: 2022 | O40: 2023
C41: Scenario Number | E41: Code | F41: 1
D42: Base Case Revenue Growth | G42: -0.03 | H42: 0 | I42: 0.01 | J42: 0.025 | K42: 0.02 | L42: 0.015 | M42: 0.015 | N42: 0.015 | O42: 0.015
D43: Low Case Growth | G43: -0.04 | H43: -0.01 | I43: 0 | J43: 0 | K43: 0.01 | L43: 0.01 | M43: 0.01 | N43: 0.015 | O43: 0.015
D44: High Case Growth | G44: 0 | H44: 0.015 | I44: 0.02 | J44: 0.025 | K44: 0.025 | L44: 0.025 | M44: 0.025 | N44: 0.015 | O44: 0.015
D46: =INDEX(D42:D44,$F$41) -> Base Case Revenue Growth | G46: =INDEX(G42:G44,$F$41) -> -0.03 | H46: 0 | I46: 0.01 | J46: 0.025 | K46: 0.02 | L46: 0.015 | M46: 0.015 | N46: 0.015 | O46: 0.015
B48: Operating Expenses | E48: Base Period | F48: 2016-01-01
C49: Fixed OM | F49: Age | G49: USD/kW-year
F50: 1 | G50: 35
F51: 10 | G51: 42
F52: 15 | G52: 45
C54: O&M Escalation (General Inflation) | G54: 2015 | H54: 2016 | I54: 2017 | J54: 2018 | K54: 2019 | L54: 2020 | M54: 2021 | N54: 2022 | O54: 2023
C55: Scenario Number | E55: Code | F55: 1
D56: Base Case Inflation Case | G56: 0.015 | H56: 0.02 | I56: 0.02 | J56: 0.02 | K56: 0.02 | L56: 0.03 | M56: 0.03 | N56: 0.03 | O56: 0.03
D57: Low Inflation Case | G57: 0 | H57: 0.002 | I57: 0.005 | J57: 0.01 | K57: 0.01 | L57: 0.01 | M57: 0.01 | N57: 0.01 | O57: 0.01
D58: High Inflation Case | G58: 0.015 | H58: 0.0175 | I58: 0.019 | J58: 0.025 | K58: 0.03 | L58: 0.03 | M58: 0.03 | N58: 0.03 | O58: 0.03
D60: =INDEX(D56:D58,$F$55) -> Base Case Inflation Case | G60: =INDEX(G56:G58,$F$55) -> 0.015 | H60: 0.02 | I60: 0.02 | J60: 0.02 | K60: 0.02 | L60: 0.03 | M60: 0.03 | N60: 0.03 | O60: 0.03
C62: Working Capital
D63: Days Receivables | E63: Days | F63: 45
D64: Days Payables | E64: Days | F64: 20
B66: Deprecaition and Tax Assumptions
C67: Income Tax Rate | E67: % | F67: 0.25
C69: Tax Life | E69: Years | F69: 10
C70: Declining Balance Factor | E70: Times | F70: 1.5
C72: Year | G72: 0 | H72: 1 | I72: 2 | J72: 3 | K72: 4 | L72: 5 | M72: 6 | N72: 7 | O72: 8 | P72: 9 | Q72: 10 | R72: 11 | S72: 12 | T72: 13 | U72: 14 | V72: 15
C73: Rate | F73: =SUM(G73:V73) -> 1 | G73: =IF(G72<=$F$69,VDB(1,0,$F$69,F72,G72)) -> 0 | H73: =IF(H72<=$F$69,VDB(1,0,$F$69,G72,H72)) -> 0.2 | I73: 0.16 | J73: 0.128 | K73: 0.1024 | L73: 0.08192 | M73: 0.065536 | N73: 0.065536 | O73: 0.065536 | P73: 0.065536 | Q73: 0.065536 | R73: FALSE | S73: FALSE | T73: FALSE | U73: FALSE | V73: FALSE
A76: Capacity, Output and Capital Expenditures
B77: Plant Capacity | E77: MW | F77: Total Cap | G77: =F22 -> 300 | K77: =$G$77*K5 -> 0 | L77: 0 | M77: 0 | N77: 0 | O77: 0 | P77: 0 | Q77: 0 | R77: 0 | S77: 0 | T77: 0 | U77: 0 | V77: 0 | W77: 0 | X77: 0 | Y77: 0 | Z77: 0 | AA77: 0 | AB77: 0 | AC77: 0 | AD77: 0 | AE77: 0 | AF77: 0 | AG77: 0 | AH77: 0 | AI77: 0 | AJ77: 0 | AK77: 0 | AL77: 0 | AM77: 0 | AN77: 0 | AO77: 0 | AP77: 0 | AQ77: 0 | AR77: 0 | AS77: 0 | AT77: 0 | AU77: 0 | AV77: 0 | AW77: 0 | AX77: 0 | AY77: 300 | AZ77: 300 | BA77: 300 | BB77: 300 | BC77: 300 | BD77: 300 | BE77: 300 | BF77: 300 | BG77: 300 | BH77: 300 | BI77: 300 | BJ77: 300 | BK77: 300 | BL77: 300 | BM77: 300 | BN77: 300 | BO77: 300 | BP77: 300 | BQ77: 300 | BR77: 300 | BS77: 300 | BT77: 300 | BU77: 300 | BV77: 300 | BW77: =$G$77*BW5 -> 300 | BX77: 300 | BY77: 300 | BZ77: 300 | CA77: 300 | CB77: 300 | CC77: 300 | CD77: 300 | CE77: 300 | CF77: 300 | CG77: 300 | CH77: 300 | CI77: 300 | CJ77: 300 | CK77: 300 | CL77: 300 | CM77: 300 | CN77: 300 | CO77: 300 | CP77: 300 | CQ77: 300 | CR77: 300 | CS77: 300 | CT77: 300 | CU77: 300 | CV77: 300 | CW77: 300 | CX77: 300 | CY77: 300 | CZ77: 300 | DA77: 300 | DB77: 300 | DC77: 300 | DD77: 300 | DE77: 300 | DF77: 300 | DG77: 300 | DH77: 300 | DI77: 300 | DJ77: 300 | DK77: 300 | DL77: 300 | DM77: 300 | DN77: 300 | DO77: 300 | DP77: 300 | DQ77: 300 | DR77: 300 | DS77: 300 | DT77: 300 | DU77: 300 | DV77: 300 | DW77: 300 | DX77: 300 | DY77: 300 | DZ77: 300 | EA77: 300 | EB77: 300 | EC77: 300 | ED77: 300 | EE77: 300 | EF77: 300 | EG77: 300 | EH77: 300 | EI77: =$G$77*EI5 -> 300 | EJ77: 300 | EK77: 300 | EL77: 300 | EM77: 300 | EN77: 300 | EO77: 300 | EP77: 300 | EQ77: 300 | ER77: 300 | ES77: 300 | ET77: 300 | EU77: 300 | EV77: 300 | EW77: 300 | EX77: 300 | EY77: 300 | EZ77: 300 | FA77: 300 | FB77: 300 | FC77: 300 | FD77: 300 | FE77: 300 | FF77: 300 | FG77: 300 | FH77: 300 | FI77: 300 | FJ77: 300 | FK77: 300 | FL77: 300 | FM77: 300 | FN77: 300 | FO77: 300 | FP77: 300 | FQ77: 300 | FR77: 300 | FS77: 300 | FT77: 300 | FU77: 300 | FV77: 300 | FW77: 300 | FX77: 300 | FY77: 300 | FZ77: 300 | GA77: 300 | GB77: 300 | GC77: 300 | GD77: 300 | GE77: 300 | GF77: 300 | GG77: 300 | GH77: 300 | GI77: 300 | GJ77: 300 | GK77: 300 | GL77: 300 | GM77: 300 | GN77: 300 | GO77: 300 | GP77: 300 | GQ77: 300 | GR77: 300 | GS77: 300 | GT77: 300 | GU77: =$G$77*GU5 -> 300 | GV77: 300 | GW77: 300 | GX77: 300 | GY77: 300 | GZ77: 300 | HA77: 300 | HB77: 300 | HC77: 300 | HD77: 300 | HE77: 300 | HF77: 300 | HG77: 300 | HH77: 300 | HI77: 300 | HJ77: 300 | HK77: 300 | HL77: 300 | HM77: 300 | HN77: 300 | HO77: 300 | HP77: 300 | HQ77: 300 | HR77: 300 | HS77: 300 | HT77: 300 | HU77: 300 | HV77: 300 | HW77: 300 | HX77: 300 | HY77: 300 | HZ77: 300 | IA77: 300 | IB77: 300 | IC77: 300 | ID77: 300 | IE77: 300 | IF77: 300 | IG77: 300 | IH77: 300 | II77: 300 | IJ77: 300 | IK77: 300 | IL77: 300 | IM77: 300 | IN77: 300 | IO77: 300 | IP77: 300 | IQ77: 300 | IR77: 300 | IS77: 300 | IT77: 300 | IU77: 300 | IV77: 300 | IW77: 300 | IX77: 300 | IY77: 300 | IZ77: 300 | JA77: 300 | JB77: 300 | JC77: 300 | JD77: 300 | JE77: 300 | JF77: 300 | JG77: =$G$77*JG5 -> 300 | JH77: 300 | JI77: 300 | JJ77: 300 | JK77: 300 | JL77: 300 | JM77: 300 | JN77: 300 | JO77: 300 | JP77: 300 | JQ77: 300 | JR77: 300 | JS77: 300 | JT77: 300 | JU77: 300 | JV77: 300 | JW77: 300 | JX77: 300 | JY77: 300 | JZ77: 300 | KA77: 300 | KB77: 300 | KC77: 300 | KD77: 300 | KE77: 300 | KF77: 300 | KG77: 300 | KH77: 300 | KI77: 300 | KJ77: 300 | KK77: 300 | KL77: 300 | KM77: 300 | KN77: 300 | KO77: 300 | KP77: 300 | KQ77: 300 | KR77: 300 | KS77: 300 | KT77: 300 | KU77: 300 | KV77: 300 | KW77: 300 | KX77: 300 | KY77: 300 | KZ77: 300 | LA77: 300 | LB77: 300 | LC77: 300 | LD77: 300 | LE77: 300 | LF77: 300 | LG77: 300 | LH77: 300 | LI77: 300 | LJ77: 300 | LK77: 300 | LL77: 300 | LM77: 300 | LN77: 300 | LO77: 300 | LP77: 300 | LQ77: 300 | LR77: 300 | LS77: =$G$77*LS5 -> 300 | LT77: 300 | LU77: 300 | LV77: 300 | LW77: 300 | LX77: 300 | LY77: 300 | LZ77: 300 | MA77: 300 | MB77: 300 | MC77: 300 | MD77: 300 | ME77: 300 | MF77: 300 | MG77: 300 | MH77: 300 | MI77: 300 | MJ77: 300 | MK77: 300 | ML77: 300 | MM77: 0 | MN77: 0 | MO77: 0 | MP77: 0 | MQ77: 0 | MR77: 0 | MS77: 0 | MT77: 0 | MU77: 0 | MV77: 0 | MW77: 0 | MX77: 0 | MY77: 0 | MZ77: 0 | NA77: 0 | NB77: 0 | NC77: 0 | ND77: 0 | NE77: 0 | NF77: 0 | NG77: 0 | NH77: 0 | NI77: 0 | NJ77: 0 | NK77: 0 | NL77: 0 | NM77: 0 | NN77: 0 | NO77: 0 | NP77: 0 | NQ77: 0 | NR77: 0 | NS77: 0 | NT77: 0 | NU77: 0 | NV77: 0 | NW77: 0 | NX77: 0 | NY77: 0 | NZ77: 0 | OA77: 0 | OB77: 0 | OC77: 0 | OD77: 0 | OE77: 0
B78: Capacity Factor | E78: %
C79: Row Number | K79: =MATCH(K2,$G$26:$G$30,1) ->  | AY79: 1 | AZ79: 1 | BA79: 1 | BB79: 1 | BC79: 1 | BD79: 1 | BE79: 1 | BF79: 1 | BG79: 1 | BH79: 1 | BI79: 1 | BJ79: 1 | BK79: 2 | BL79: 2 | BM79: 2 | BN79: 2 | BO79: 2 | BP79: 2 | BQ79: 2 | BR79: 2 | BS79: 2 | BT79: 2 | BU79: 2 | BV79: 2 | BW79: =MATCH(BW2,$G$26:$G$30,1) -> 2 | BX79: 2 | BY79: 2 | BZ79: 2 | CA79: 2 | CB79: 2 | CC79: 2 | CD79: 2 | CE79: 2 | CF79: 2 | CG79: 2 | CH79: 2 | CI79: 2 | CJ79: 2 | CK79: 2 | CL79: 2 | CM79: 2 | CN79: 2 | CO79: 2 | CP79: 2 | CQ79: 2 | CR79: 2 | CS79: 2 | CT79: 2 | CU79: 2 | CV79: 2 | CW79: 3 | CX79: 3 | CY79: 3 | CZ79: 3 | DA79: 3 | DB79: 3 | DC79: 3 | DD79: 3 | DE79: 3 | DF79: 3 | DG79: 3 | DH79: 3 | DI79: 3 | DJ79: 3 | DK79: 3 | DL79: 3 | DM79: 3 | DN79: 3 | DO79: 3 | DP79: 3 | DQ79: 3 | DR79: 3 | DS79: 3 | DT79: 3 | DU79: 3 | DV79: 3 | DW79: 3 | DX79: 3 | DY79: 3 | DZ79: 3 | EA79: 3 | EB79: 3 | EC79: 3 | ED79: 3 | EE79: 3 | EF79: 3 | EG79: 3 | EH79: 3 | EI79: =MATCH(EI2,$G$26:$G$30,1) -> 3 | EJ79: 3 | EK79: 3 | EL79: 3 | EM79: 3 | EN79: 3 | EO79: 3 | EP79: 3 | EQ79: 3 | ER79: 3 | ES79: 3 | ET79: 3 | EU79: 3 | EV79: 3 | EW79: 3 | EX79: 3 | EY79: 3 | EZ79: 3 | FA79: 3 | FB79: 3 | FC79: 3 | FD79: 3 | FE79: 3 | FF79: 3 | FG79: 3 | FH79: 3 | FI79: 3 | FJ79: 3 | FK79: 3 | FL79: 3 | FM79: 3 | FN79: 3 | FO79: 4 | FP79: 4 | FQ79: 4 | FR79: 4 | FS79: 4 | FT79: 4 | FU79: 4 | FV79: 4 | FW79: 4 | FX79: 4 | FY79: 4 | FZ79: 4 | GA79: 4 | GB79: 4 | GC79: 4 | GD79: 4 | GE79: 4 | GF79: 4 | GG79: 4 | GH79: 4 | GI79: 4 | GJ79: 4 | GK79: 4 | GL79: 4 | GM79: 4 | GN79: 4 | GO79: 4 | GP79: 4 | GQ79: 4 | GR79: 4 | GS79: 4 | GT79: 4 | GU79: =MATCH(GU2,$G$26:$G$30,1) -> 4 | GV79: 4 | GW79: 4 | GX79: 4 | GY79: 4 | GZ79: 4 | HA79: 4 | HB79: 4 | HC79: 4 | HD79: 4 | HE79: 4 | HF79: 4 | HG79: 4 | HH79: 4 | HI79: 4 | HJ79: 4 | HK79: 4 | HL79: 4 | HM79: 4 | HN79: 4 | HO79: 4 | HP79: 4 | HQ79: 4 | HR79: 4 | HS79: 4 | HT79: 4 | HU79: 4 | HV79: 4 | HW79: 4 | HX79: 4 | HY79: 4 | HZ79: 4 | IA79: 4 | IB79: 4 | IC79: 4 | ID79: 4 | IE79: 4 | IF79: 4 | IG79: 4 | IH79: 4 | II79: 4 | IJ79: 4 | IK79: 4 | IL79: 4 | IM79: 4 | IN79: 4 | IO79: 4 | IP79: 4 | IQ79: 4 | IR79: 4 | IS79: 4 | IT79: 4 | IU79: 4 | IV79: 4 | IW79: 4 | IX79: 4 | IY79: 4 | IZ79: 4 | JA79: 4 | JB79: 4 | JC79: 4 | JD79: 4 | JE79: 4 | JF79: 4 | JG79: =MATCH(JG2,$G$26:$G$30,1) -> 4 | JH79: 4 | JI79: 4 | JJ79: 4 | JK79: 4 | JL79: 4 | JM79: 4 | JN79: 4 | JO79: 4 | JP79: 4 | JQ79: 4 | JR79: 4 | JS79: 4 | JT79: 4 | JU79: 4 | JV79: 4 | JW79: 4 | JX79: 4 | JY79: 4 | JZ79: 4 | KA79: 4 | KB79: 4 | KC79: 4 | KD79: 4 | KE79: 4 | KF79: 4 | KG79: 4 | KH79: 4 | KI79: 4 | KJ79: 4 | KK79: 4 | KL79: 4 | KM79: 4 | KN79: 4 | KO79: 5 | KP79: 5 | KQ79: 5 | KR79: 5 | KS79: 5 | KT79: 5 | KU79: 5 | KV79: 5 | KW79: 5 | KX79: 5 | KY79: 5 | KZ79: 5 | LA79: 5 | LB79: 5 | LC79: 5 | LD79: 5 | LE79: 5 | LF79: 5 | LG79: 5 | LH79: 5 | LI79: 5 | LJ79: 5 | LK79: 5 | LL79: 5 | LM79: 5 | LN79: 5 | LO79: 5 | LP79: 5 | LQ79: 5 | LR79: 5 | LS79: =MATCH(LS2,$G$26:$G$30,1) -> 5 | LT79: 5 | LU79: 5 | LV79: 5 | LW79: 5 | LX79: 5 | LY79: 5 | LZ79: 5 | MA79: 5 | MB79: 5 | MC79: 5 | MD79: 5 | ME79: 5 | MF79: 5 | MG79: 5 | MH79: 5 | MI79: 5 | MJ79: 5 | MK79: 5 | ML79: 5 | MM79: 5 | MN79: 5 | MO79: 5 | MP79: 5 | MQ79: 5 | MR79: 5 | MS79: 5 | MT79: 5 | MU79: 5 | MV79: 5 | MW79: 5 | MX79: 5 | MY79: 5 | MZ79: 5 | NA79: 5 | NB79: 5 | NC79: 5 | ND79: 5 | NE79: 5 | NF79: 5 | NG79: 5 | NH79: 5 | NI79: 5 | NJ79: 5 | NK79: 5 | NL79: 5 | NM79: 5 | NN79: 5 | NO79: 5 | NP79: 5 | NQ79: 5 | NR79: 5 | NS79: 5 | NT79: 5 | NU79: 5 | NV79: 5 | NW79: 5 | NX79: 5 | NY79: 5 | NZ79: 5 | OA79: 5 | OB79: 5 | OC79: 5 | OD79: 5 | OE79: 5
C80: Capacity Factor | K80: =INDEX($H$26:$K$30,K79,$F$24) ->  | L80: =INDEX($H$26:$K$30,L79,$F$24) ->  | AY80: 0.33 | AZ80: 0.33 | BA80: 0.33 | BB80: 0.33 | BC80: 0.33 | BD80: 0.33 | BE80: 0.33 | BF80: 0.33 | BG80: 0.33 | BH80: 0.33 | BI80: 0.33 | BJ80: 0.33 | BK80: 0.35 | BL80: 0.35 | BM80: 0.35 | BN80: 0.35 | BO80: 0.35 | BP80: 0.35 | BQ80: 0.35 | BR80: 0.35 | BS80: 0.35 | BT80: 0.35 | BU80: 0.35 | BV80: 0.35 | BW80: 0.35 | BX80: =INDEX($H$26:$K$30,BX79,$F$24) -> 0.35 | BY80: 0.35 | BZ80: 0.35 | CA80: 0.35 | CB80: 0.35 | CC80: 0.35 | CD80: 0.35 | CE80: 0.35 | CF80: 0.35 | CG80: 0.35 | CH80: 0.35 | CI80: 0.35 | CJ80: 0.35 | CK80: 0.35 | CL80: 0.35 | CM80: 0.35 | CN80: 0.35 | CO80: 0.35 | CP80: 0.35 | CQ80: 0.35 | CR80: 0.35 | CS80: 0.35 | CT80: 0.35 | CU80: 0.35 | CV80: 0.35 | CW80: 0.355 | CX80: 0.355 | CY80: 0.355 | CZ80: 0.355 | DA80: 0.355 | DB80: 0.355 | DC80: 0.355 | DD80: 0.355 | DE80: 0.355 | DF80: 0.355 | DG80: 0.355 | DH80: 0.355 | DI80: 0.355 | DJ80: 0.355 | DK80: 0.355 | DL80: 0.355 | DM80: 0.355 | DN80: 0.355 | DO80: 0.355 | DP80: 0.355 | DQ80: 0.355 | DR80: 0.355 | DS80: 0.355 | DT80: 0.355 | DU80: 0.355 | DV80: 0.355 | DW80: 0.355 | DX80: 0.355 | DY80: 0.355 | DZ80: 0.355 | EA80: 0.355 | EB80: 0.355 | EC80: 0.355 | ED80: 0.355 | EE80: 0.355 | EF80: 0.355 | EG80: 0.355 | EH80: 0.355 | EI80: 0.355 | EJ80: =INDEX($H$26:$K$30,EJ79,$F$24) -> 0.355 | EK80: 0.355 | EL80: 0.355 | EM80: 0.355 | EN80: 0.355 | EO80: 0.355 | EP80: 0.355 | EQ80: 0.355 | ER80: 0.355 | ES80: 0.355 | ET80: 0.355 | EU80: 0.355 | EV80: 0.355 | EW80: 0.355 | EX80: 0.355 | EY80: 0.355 | EZ80: 0.355 | FA80: 0.355 | FB80: 0.355 | FC80: 0.355 | FD80: 0.355 | FE80: 0.355 | FF80: 0.355 | FG80: 0.355 | FH80: 0.355 | FI80: 0.355 | FJ80: 0.355 | FK80: 0.355 | FL80: 0.355 | FM80: 0.355 | FN80: 0.355 | FO80: 0.34 | FP80: 0.34 | FQ80: 0.34 | FR80: 0.34 | FS80: 0.34 | FT80: 0.34 | FU80: 0.34 | FV80: 0.34 | FW80: 0.34 | FX80: 0.34 | FY80: 0.34 | FZ80: 0.34 | GA80: 0.34 | GB80: 0.34 | GC80: 0.34 | GD80: 0.34 | GE80: 0.34 | GF80: 0.34 | GG80: 0.34 | GH80: 0.34 | GI80: 0.34 | GJ80: 0.34 | GK80: 0.34 | GL80: 0.34 | GM80: 0.34 | GN80: 0.34 | GO80: 0.34 | GP80: 0.34 | GQ80: 0.34 | GR80: 0.34 | GS80: 0.34 | GT80: 0.34 | GU80: 0.34 | GV80: =INDEX($H$26:$K$30,GV79,$F$24) -> 0.34 | GW80: 0.34 | GX80: 0.34 | GY80: 0.34 | GZ80: 0.34 | HA80: 0.34 | HB80: 0.34 | HC80: 0.34 | HD80: 0.34 | HE80: 0.34 | HF80: 0.34 | HG80: 0.34 | HH80: 0.34 | HI80: 0.34 | HJ80: 0.34 | HK80: 0.34 | HL80: 0.34 | HM80: 0.34 | HN80: 0.34 | HO80: 0.34 | HP80: 0.34 | HQ80: 0.34 | HR80: 0.34 | HS80: 0.34 | HT80: 0.34 | HU80: 0.34 | HV80: 0.34 | HW80: 0.34 | HX80: 0.34 | HY80: 0.34 | HZ80: 0.34 | IA80: 0.34 | IB80: 0.34 | IC80: 0.34 | ID80: 0.34 | IE80: 0.34 | IF80: 0.34 | IG80: 0.34 | IH80: 0.34 | II80: 0.34 | IJ80: 0.34 | IK80: 0.34 | IL80: 0.34 | IM80: 0.34 | IN80: 0.34 | IO80: 0.34 | IP80: 0.34 | IQ80: 0.34 | IR80: 0.34 | IS80: 0.34 | IT80: 0.34 | IU80: 0.34 | IV80: 0.34 | IW80: 0.34 | IX80: 0.34 | IY80: 0.34 | IZ80: 0.34 | JA80: 0.34 | JB80: 0.34 | JC80: 0.34 | JD80: 0.34 | JE80: 0.34 | JF80: 0.34 | JG80: 0.34 | JH80: =INDEX($H$26:$K$30,JH79,$F$24) -> 0.34 | JI80: 0.34 | JJ80: 0.34 | JK80: 0.34 | JL80: 0.34 | JM80: 0.34 | JN80: 0.34 | JO80: 0.34 | JP80: 0.34 | JQ80: 0.34 | JR80: 0.34 | JS80: 0.34 | JT80: 0.34 | JU80: 0.34 | JV80: 0.34 | JW80: 0.34 | JX80: 0.34 | JY80: 0.34 | JZ80: 0.34 | KA80: 0.34 | KB80: 0.34 | KC80: 0.34 | KD80: 0.34 | KE80: 0.34 | KF80: 0.34 | KG80: 0.34 | KH80: 0.34 | KI80: 0.34 | KJ80: 0.34 | KK80: 0.34 | KL80: 0.34 | KM80: 0.34 | KN80: 0.34 | KO80: 0.33 | KP80: 0.33 | KQ80: 0.33 | KR80: 0.33 | KS80: 0.33 | KT80: 0.33 | KU80: 0.33 | KV80: 0.33 | KW80: 0.33 | KX80: 0.33 | KY80: 0.33 | KZ80: 0.33 | LA80: 0.33 | LB80: 0.33 | LC80: 0.33 | LD80: 0.33 | LE80: 0.33 | LF80: 0.33 | LG80: 0.33 | LH80: 0.33 | LI80: 0.33 | LJ80: 0.33 | LK80: 0.33 | LL80: 0.33 | LM80: 0.33 | LN80: 0.33 | LO80: 0.33 | LP80: 0.33 | LQ80: 0.33 | LR80: 0.33 | LS80: 0.33 | LT80: =INDEX($H$26:$K$30,LT79,$F$24) -> 0.33 | LU80: 0.33 | LV80: 0.33 | LW80: 0.33 | LX80: 0.33 | LY80: 0.33 | LZ80: 0.33 | MA80: 0.33 | MB80: 0.33 | MC80: 0.33 | MD80: 0.33 | ME80: 0.33 | MF80: 0.33 | MG80: 0.33 | MH80: 0.33 | MI80: 0.33 | MJ80: 0.33 | MK80: 0.33 | ML80: 0.33 | MM80: 0.33 | MN80: 0.33 | MO80: 0.33 | MP80: 0.33 | MQ80: 0.33 | MR80: 0.33 | MS80: 0.33 | MT80: 0.33 | MU80: 0.33 | MV80: 0.33 | MW80: 0.33 | MX80: 0.33 | MY80: 0.33 | MZ80: 0.33 | NA80: 0.33 | NB80: 0.33 | NC80: 0.33 | ND80: 0.33 | NE80: 0.33 | NF80: 0.33 | NG80: 0.33 | NH80: 0.33 | NI80: 0.33 | NJ80: 0.33 | NK80: 0.33 | NL80: 0.33 | NM80: 0.33 | NN80: 0.33 | NO80: 0.33 | NP80: 0.33 | NQ80: 0.33 | NR80: 0.33 | NS80: 0.33 | NT80: 0.33 | NU80: 0.33 | NV80: 0.33 | NW80: 0.33 | NX80: 0.33 | NY80: 0.33 | NZ80: 0.33 | OA80: 0.33 | OB80: 0.33 | OC80: 0.33 | OD80: 0.33 | OE80: 0.33
C82: Generation | E82: MWH | K82: =IF(K5,K77*K80*K10) -> FALSE | L82: FALSE | M82: FALSE | N82: FALSE | O82: FALSE | P82: FALSE | Q82: FALSE | R82: FALSE | S82: FALSE | T82: FALSE | U82: FALSE | V82: FALSE | W82: FALSE | X82: FALSE | Y82: FALSE | Z82: FALSE | AA82: FALSE | AB82: FALSE | AC82: FALSE | AD82: FALSE | AE82: FALSE | AF82: FALSE | AG82: FALSE | AH82: FALSE | AI82: FALSE | AJ82: FALSE | AK82: FALSE | AL82: FALSE | AM82: FALSE | AN82: FALSE | AO82: FALSE | AP82: FALSE | AQ82: FALSE | AR82: FALSE | AS82: FALSE | AT82: FALSE | AU82: FALSE | AV82: FALSE | AW82: FALSE | AX82: FALSE | AY82: 73656 | AZ82: 73656 | BA82: 71280 | BB82: 73656 | BC82: 71280 | BD82: 73656 | BE82: 73656 | BF82: 66528 | BG82: 73656 | BH82: 71280 | BI82: 73656 | BJ82: 71280 | BK82: 78120 | BL82: 78120 | BM82: 75600 | BN82: 78120 | BO82: 75600 | BP82: 78120 | BQ82: 78120 | BR82: 73080 | BS82: 78120 | BT82: 75600 | BU82: 78120 | BV82: 75600 | BW82: =IF(BW5,BW77*BW80*BW10) -> 78120 | BX82: 78120 | BY82: 75600 | BZ82: 78120 | CA82: 75600 | CB82: 78120 | CC82: 78120 | CD82: 70560 | CE82: 78120 | CF82: 75600 | CG82: 78120 | CH82: 75600 | CI82: 78120 | CJ82: 78120 | CK82: 75600 | CL82: 78120 | CM82: 75600 | CN82: 78120 | CO82: 78120 | CP82: 70560 | CQ82: 78120 | CR82: 75600 | CS82: 78120 | CT82: 75600 | CU82: 78120 | CV82: 78120 | CW82: 76680 | CX82: 79236 | CY82: 76680 | CZ82: 79236 | DA82: 79236 | DB82: 71568 | DC82: 79236 | DD82: 76680 | DE82: 79236 | DF82: 76680 | DG82: 79236 | DH82: 79236 | DI82: 76680 | DJ82: 79236 | DK82: 76680 | DL82: 79236 | DM82: 79236 | DN82: 74124 | DO82: 79236 | DP82: 76680 | DQ82: 79236 | DR82: 76680 | DS82: 79236 | DT82: 79236 | DU82: 76680 | DV82: 79236 | DW82: 76680 | DX82: 79236 | DY82: 79236 | DZ82: 71568 | EA82: 79236 | EB82: 76680 | EC82: 79236 | ED82: 76680 | EE82: 79236 | EF82: 79236 | EG82: 76680 | EH82: 79236 | EI82: =IF(EI5,EI77*EI80*EI10) -> 76680 | EJ82: 79236 | EK82: 79236 | EL82: 71568 | EM82: 79236 | EN82: 76680 | EO82: 79236 | EP82: 76680 | EQ82: 79236 | ER82: 79236 | ES82: 76680 | ET82: 79236 | EU82: 76680 | EV82: 79236 | EW82: 79236 | EX82: 71568 | EY82: 79236 | EZ82: 76680 | FA82: 79236 | FB82: 76680 | FC82: 79236 | FD82: 79236 | FE82: 76680 | FF82: 79236 | FG82: 76680 | FH82: 79236 | FI82: 79236 | FJ82: 74124 | FK82: 79236 | FL82: 76680 | FM82: 79236 | FN82: 76680 | FO82: 75888 | FP82: 75888 | FQ82: 73440 | FR82: 75888 | FS82: 73440 | FT82: 75888 | FU82: 75888 | FV82: 68544 | FW82: 75888 | FX82: 73440 | FY82: 75888 | FZ82: 73440 | GA82: 75888 | GB82: 75888 | GC82: 73440 | GD82: 75888 | GE82: 73440 | GF82: 75888 | GG82: 75888 | GH82: 68544 | GI82: 75888 | GJ82: 73440 | GK82: 75888 | GL82: 73440 | GM82: 75888 | GN82: 75888 | GO82: 73440 | GP82: 75888 | GQ82: 73440 | GR82: 75888 | GS82: 75888 | GT82: 68544 | GU82: =IF(GU5,GU77*GU80*GU10) -> 75888 | GV82: 73440 | GW82: 75888 | GX82: 73440 | GY82: 75888 | GZ82: 75888 | HA82: 73440 | HB82: 75888 | HC82: 73440 | HD82: 75888 | HE82: 75888 | HF82: 70992 | HG82: 75888 | HH82: 73440 | HI82: 75888 | HJ82: 73440 | HK82: 75888 | HL82: 75888 | HM82: 73440 | HN82: 75888 | HO82: 73440 | HP82: 75888 | HQ82: 75888 | HR82: 68544 | HS82: 75888 | HT82: 73440 | HU82: 75888 | HV82: 73440 | HW82: 75888 | HX82: 75888 | HY82: 73440 | HZ82: 75888 | IA82: 73440 | IB82: 75888 | IC82: 75888 | ID82: 68544 | IE82: 75888 | IF82: 73440 | IG82: 75888 | IH82: 73440 | II82: 75888 | IJ82: 75888 | IK82: 73440 | IL82: 75888 | IM82: 73440 | IN82: 75888 | IO82: 75888 | IP82: 68544 | IQ82: 75888 | IR82: 73440 | IS82: 75888 | IT82: 73440 | IU82: 75888 | IV82: 75888 | IW82: 73440 | IX82: 75888 | IY82: 73440 | IZ82: 75888 | JA82: 75888 | JB82: 70992 | JC82: 75888 | JD82: 73440 | JE82: 75888 | JF82: 73440 | JG82: =IF(JG5,JG77*JG80*JG10) -> 75888 | JH82: 75888 | JI82: 73440 | JJ82: 75888 | JK82: 73440 | JL82: 75888 | JM82: 75888 | JN82: 68544 | JO82: 75888 | JP82: 73440 | JQ82: 75888 | JR82: 73440 | JS82: 75888 | JT82: 75888 | JU82: 73440 | JV82: 75888 | JW82: 73440 | JX82: 75888 | JY82: 75888 | JZ82: 68544 | KA82: 75888 | KB82: 73440 | KC82: 75888 | KD82: 73440 | KE82: 75888 | KF82: 75888 | KG82: 73440 | KH82: 75888 | KI82: 73440 | KJ82: 75888 | KK82: 75888 | KL82: 68544 | KM82: 75888 | KN82: 73440 | KO82: 73656 | KP82: 71280 | KQ82: 73656 | KR82: 73656 | KS82: 71280 | KT82: 73656 | KU82: 71280 | KV82: 73656 | KW82: 73656 | KX82: 68904 | KY82: 73656 | KZ82: 71280 | LA82: 73656 | LB82: 71280 | LC82: 73656 | LD82: 73656 | LE82: 71280 | LF82: 73656 | LG82: 71280 | LH82: 73656 | LI82: 73656 | LJ82: 66528 | LK82: 73656 | LL82: 71280 | LM82: 73656 | LN82: 71280 | LO82: 73656 | LP82: 73656 | LQ82: 71280 | LR82: 73656 | LS82: =IF(LS5,LS77*LS80*LS10) -> 71280 | LT82: 73656 | LU82: 73656 | LV82: 66528 | LW82: 73656 | LX82: 71280 | LY82: 73656 | LZ82: 71280 | MA82: 73656 | MB82: 73656 | MC82: 71280 | MD82: 73656 | ME82: 71280 | MF82: 73656 | MG82: 73656 | MH82: 66528 | MI82: 73656 | MJ82: 71280 | MK82: 73656 | ML82: 71280 | MM82: FALSE | MN82: FALSE | MO82: FALSE | MP82: FALSE | MQ82: FALSE | MR82: FALSE | MS82: FALSE | MT82: FALSE | MU82: FALSE | MV82: FALSE | MW82: FALSE | MX82: FALSE | MY82: FALSE | MZ82: FALSE | NA82: FALSE | NB82: FALSE | NC82: FALSE | ND82: FALSE | NE82: FALSE | NF82: FALSE | NG82: FALSE | NH82: FALSE | NI82: FALSE | NJ82: FALSE | NK82: FALSE | NL82: FALSE | NM82: FALSE | NN82: FALSE | NO82: FALSE | NP82: FALSE | NQ82: FALSE | NR82: FALSE | NS82: FALSE | NT82: FALSE | NU82: FALSE | NV82: FALSE | NW82: FALSE | NX82: FALSE | NY82: FALSE | NZ82: FALSE | OA82: FALSE | OB82: FALSE | OC82: FALSE | OD82: FALSE | OE82: FALSE
B84: Capital Expenditures
C85: Construction Period | K85: =J85+K4 -> 1 | L85: 2 | M85: 3 | N85: 4 | O85: 5 | P85: 6 | Q85: 7 | R85: 8 | S85: 9 | T85: 10 | U85: 11 | V85: 12 | W85: 13 | X85: 14 | Y85: 15 | Z85: 16 | AA85: 17 | AB85: 18 | AC85: 19 | AD85: 20 | AE85: 21 | AF85: 22 | AG85: 23 | AH85: 24 | AI85: 25 | AJ85: 26 | AK85: 27 | AL85: 28 | AM85: 29 | AN85: 30 | AO85: 31 | AP85: 32 | AQ85: 33 | AR85: 34 | AS85: 35 | AT85: 36 | AU85: 37 | AV85: 38 | AW85: 39 | AX85: 40 | AY85: 40 | AZ85: 40 | BA85: 40 | BB85: 40 | BC85: 40 | BD85: 40 | BE85: 40 | BF85: 40 | BG85: 40 | BH85: 40 | BI85: 40 | BJ85: 40 | BK85: 40 | BL85: 40 | BM85: 40 | BN85: 40 | BO85: 40 | BP85: 40 | BQ85: 40 | BR85: 40 | BS85: 40 | BT85: 40 | BU85: 40 | BV85: 40 | BW85: =BV85+BW4 -> 40 | BX85: 40 | BY85: 40 | BZ85: 40 | CA85: 40 | CB85: 40 | CC85: 40 | CD85: 40 | CE85: 40 | CF85: 40 | CG85: 40 | CH85: 40 | CI85: 40 | CJ85: 40 | CK85: 40 | CL85: 40 | CM85: 40 | CN85: 40 | CO85: 40 | CP85: 40 | CQ85: 40 | CR85: 40 | CS85: 40 | CT85: 40 | CU85: 40 | CV85: 40 | CW85: 40 | CX85: 40 | CY85: 40 | CZ85: 40 | DA85: 40 | DB85: 40 | DC85: 40 | DD85: 40 | DE85: 40 | DF85: 40 | DG85: 40 | DH85: 40 | DI85: 40 | DJ85: 40 | DK85: 40 | DL85: 40 | DM85: 40 | DN85: 40 | DO85: 40 | DP85: 40 | DQ85: 40 | DR85: 40 | DS85: 40 | DT85: 40 | DU85: 40 | DV85: 40 | DW85: 40 | DX85: 40 | DY85: 40 | DZ85: 40 | EA85: 40 | EB85: 40 | EC85: 40 | ED85: 40 | EE85: 40 | EF85: 40 | EG85: 40 | EH85: 40 | EI85: =EH85+EI4 -> 40 | EJ85: 40 | EK85: 40 | EL85: 40 | EM85: 40 | EN85: 40 | EO85: 40 | EP85: 40 | EQ85: 40 | ER85: 40 | ES85: 40 | ET85: 40 | EU85: 40 | EV85: 40 | EW85: 40 | EX85: 40 | EY85: 40 | EZ85: 40 | FA85: 40 | FB85: 40 | FC85: 40 | FD85: 40 | FE85: 40 | FF85: 40 | FG85: 40 | FH85: 40 | FI85: 40 | FJ85: 40 | FK85: 40 | FL85: 40 | FM85: 40 | FN85: 40 | FO85: 40 | FP85: 40 | FQ85: 40 | FR85: 40 | FS85: 40 | FT85: 40 | FU85: 40 | FV85: 40 | FW85: 40 | FX85: 40 | FY85: 40 | FZ85: 40 | GA85: 40 | GB85: 40 | GC85: 40 | GD85: 40 | GE85: 40 | GF85: 40 | GG85: 40 | GH85: 40 | GI85: 40 | GJ85: 40 | GK85: 40 | GL85: 40 | GM85: 40 | GN85: 40 | GO85: 40 | GP85: 40 | GQ85: 40 | GR85: 40 | GS85: 40 | GT85: 40 | GU85: =GT85+GU4 -> 40 | GV85: 40 | GW85: 40 | GX85: 40 | GY85: 40 | GZ85: 40 | HA85: 40 | HB85: 40 | HC85: 40 | HD85: 40 | HE85: 40 | HF85: 40 | HG85: 40 | HH85: 40 | HI85: 40 | HJ85: 40 | HK85: 40 | HL85: 40 | HM85: 40 | HN85: 40 | HO85: 40 | HP85: 40 | HQ85: 40 | HR85: 40 | HS85: 40 | HT85: 40 | HU85: 40 | HV85: 40 | HW85: 40 | HX85: 40 | HY85: 40 | HZ85: 40 | IA85: 40 | IB85: 40 | IC85: 40 | ID85: 40 | IE85: 40 | IF85: 40 | IG85: 40 | IH85: 40 | II85: 40 | IJ85: 40 | IK85: 40 | IL85: 40 | IM85: 40 | IN85: 40 | IO85: 40 | IP85: 40 | IQ85: 40 | IR85: 40 | IS85: 40 | IT85: 40 | IU85: 40 | IV85: 40 | IW85: 40 | IX85: 40 | IY85: 40 | IZ85: 40 | JA85: 40 | JB85: 40 | JC85: 40 | JD85: 40 | JE85: 40 | JF85: 40 | JG85: =JF85+JG4 -> 40 | JH85: 40 | JI85: 40 | JJ85: 40 | JK85: 40 | JL85: 40 | JM85: 40 | JN85: 40 | JO85: 40 | JP85: 40 | JQ85: 40 | JR85: 40 | JS85: 40 | JT85: 40 | JU85: 40 | JV85: 40 | JW85: 40 | JX85: 40 | JY85: 40 | JZ85: 40 | KA85: 40 | KB85: 40 | KC85: 40 | KD85: 40 | KE85: 40 | KF85: 40 | KG85: 40 | KH85: 40 | KI85: 40 | KJ85: 40 | KK85: 40 | KL85: 40 | KM85: 40 | KN85: 40 | KO85: 40 | KP85: 40 | KQ85: 40 | KR85: 40 | KS85: 40 | KT85: 40 | KU85: 40 | KV85: 40 | KW85: 40 | KX85: 40 | KY85: 40 | KZ85: 40 | LA85: 40 | LB85: 40 | LC85: 40 | LD85: 40 | LE85: 40 | LF85: 40 | LG85: 40 | LH85: 40 | LI85: 40 | LJ85: 40 | LK85: 40 | LL85: 40 | LM85: 40 | LN85: 40 | LO85: 40 | LP85: 40 | LQ85: 40 | LR85: 40 | LS85: =LR85+LS4 -> 40 | LT85: 40 | LU85: 40 | LV85: 40 | LW85: 40 | LX85: 40 | LY85: 40 | LZ85: 40 | MA85: 40 | MB85: 40 | MC85: 40 | MD85: 40 | ME85: 40 | MF85: 40 | MG85: 40 | MH85: 40 | MI85: 40 | MJ85: 40 | MK85: 40 | ML85: 40 | MM85: 40 | MN85: 40 | MO85: 40 | MP85: 40 | MQ85: 40 | MR85: 40 | MS85: 40 | MT85: 40 | MU85: 40 | MV85: 40 | MW85: 40 | MX85: 40 | MY85: 40 | MZ85: 40 | NA85: 40 | NB85: 40 | NC85: 40 | ND85: 40 | NE85: 40 | NF85: 40 | NG85: 40 | NH85: 40 | NI85: 40 | NJ85: 40 | NK85: 40 | NL85: 40 | NM85: 40 | NN85: 40 | NO85: 40 | NP85: 40 | NQ85: 40 | NR85: 40 | NS85: 40 | NT85: 40 | NU85: 40 | NV85: 40 | NW85: 40 | NX85: 40 | NY85: 40 | NZ85: 40 | OA85: 40 | OB85: 40 | OC85: 40 | OD85: 40 | OE85: 40
C86: Construction Year | K86: =ROUNDUP(K85/12,0) -> 1 | L86: =ROUNDUP(L85/12,0) -> 1 | M86: 1 | N86: 1 | O86: 1 | P86: 1 | Q86: 1 | R86: 1 | S86: 1 | T86: 1 | U86: 1 | V86: 1 | W86: 2 | X86: 2 | Y86: 2 | Z86: 2 | AA86: 2 | AB86: 2 | AC86: 2 | AD86: 2 | AE86: 2 | AF86: 2 | AG86: 2 | AH86: 2 | AI86: 3 | AJ86: 3 | AK86: 3 | AL86: 3 | AM86: 3 | AN86: 3 | AO86: 3 | AP86: 3 | AQ86: 3 | AR86: 3 | AS86: 3 | AT86: 3 | AU86: 4 | AV86: 4 | AW86: 4 | AX86: 4 | AY86: 4 | AZ86: 4 | BA86: 4 | BB86: 4 | BC86: 4 | BD86: 4 | BE86: 4 | BF86: 4 | BG86: 4 | BH86: 4 | BI86: 4 | BJ86: 4 | BK86: 4 | BL86: 4 | BM86: 4 | BN86: 4 | BO86: 4 | BP86: 4 | BQ86: 4 | BR86: 4 | BS86: 4 | BT86: 4 | BU86: 4 | BV86: 4 | BW86: 4 | BX86: =ROUNDUP(BX85/12,0) -> 4 | BY86: 4 | BZ86: 4 | CA86: 4 | CB86: 4 | CC86: 4 | CD86: 4 | CE86: 4 | CF86: 4 | CG86: 4 | CH86: 4 | CI86: 4 | CJ86: 4 | CK86: 4 | CL86: 4 | CM86: 4 | CN86: 4 | CO86: 4 | CP86: 4 | CQ86: 4 | CR86: 4 | CS86: 4 | CT86: 4 | CU86: 4 | CV86: 4 | CW86: 4 | CX86: 4 | CY86: 4 | CZ86: 4 | DA86: 4 | DB86: 4 | DC86: 4 | DD86: 4 | DE86: 4 | DF86: 4 | DG86: 4 | DH86: 4 | DI86: 4 | DJ86: 4 | DK86: 4 | DL86: 4 | DM86: 4 | DN86: 4 | DO86: 4 | DP86: 4 | DQ86: 4 | DR86: 4 | DS86: 4 | DT86: 4 | DU86: 4 | DV86: 4 | DW86: 4 | DX86: 4 | DY86: 4 | DZ86: 4 | EA86: 4 | EB86: 4 | EC86: 4 | ED86: 4 | EE86: 4 | EF86: 4 | EG86: 4 | EH86: 4 | EI86: 4 | EJ86: =ROUNDUP(EJ85/12,0) -> 4 | EK86: 4 | EL86: 4 | EM86: 4 | EN86: 4 | EO86: 4 | EP86: 4 | EQ86: 4 | ER86: 4 | ES86: 4 | ET86: 4 | EU86: 4 | EV86: 4 | EW86: 4 | EX86: 4 | EY86: 4 | EZ86: 4 | FA86: 4 | FB86: 4 | FC86: 4 | FD86: 4 | FE86: 4 | FF86: 4 | FG86: 4 | FH86: 4 | FI86: 4 | FJ86: 4 | FK86: 4 | FL86: 4 | FM86: 4 | FN86: 4 | FO86: 4 | FP86: 4 | FQ86: 4 | FR86: 4 | FS86: 4 | FT86: 4 | FU86: 4 | FV86: 4 | FW86: 4 | FX86: 4 | FY86: 4 | FZ86: 4 | GA86: 4 | GB86: 4 | GC86: 4 | GD86: 4 | GE86: 4 | GF86: 4 | GG86: 4 | GH86: 4 | GI86: 4 | GJ86: 4 | GK86: 4 | GL86: 4 | GM86: 4 | GN86: 4 | GO86: 4 | GP86: 4 | GQ86: 4 | GR86: 4 | GS86: 4 | GT86: 4 | GU86: 4 | GV86: =ROUNDUP(GV85/12,0) -> 4 | GW86: 4 | GX86: 4 | GY86: 4 | GZ86: 4 | HA86: 4 | HB86: 4 | HC86: 4 | HD86: 4 | HE86: 4 | HF86: 4 | HG86: 4 | HH86: 4 | HI86: 4 | HJ86: 4 | HK86: 4 | HL86: 4 | HM86: 4 | HN86: 4 | HO86: 4 | HP86: 4 | HQ86: 4 | HR86: 4 | HS86: 4 | HT86: 4 | HU86: 4 | HV86: 4 | HW86: 4 | HX86: 4 | HY86: 4 | HZ86: 4 | IA86: 4 | IB86: 4 | IC86: 4 | ID86: 4 | IE86: 4 | IF86: 4 | IG86: 4 | IH86: 4 | II86: 4 | IJ86: 4 | IK86: 4 | IL86: 4 | IM86: 4 | IN86: 4 | IO86: 4 | IP86: 4 | IQ86: 4 | IR86: 4 | IS86: 4 | IT86: 4 | IU86: 4 | IV86: 4 | IW86: 4 | IX86: 4 | IY86: 4 | IZ86: 4 | JA86: 4 | JB86: 4 | JC86: 4 | JD86: 4 | JE86: 4 | JF86: 4 | JG86: 4 | JH86: =ROUNDUP(JH85/12,0) -> 4 | JI86: 4 | JJ86: 4 | JK86: 4 | JL86: 4 | JM86: 4 | JN86: 4 | JO86: 4 | JP86: 4 | JQ86: 4 | JR86: 4 | JS86: 4 | JT86: 4 | JU86: 4 | JV86: 4 | JW86: 4 | JX86: 4 | JY86: 4 | JZ86: 4 | KA86: 4 | KB86: 4 | KC86: 4 | KD86: 4 | KE86: 4 | KF86: 4 | KG86: 4 | KH86: 4 | KI86: 4 | KJ86: 4 | KK86: 4 | KL86: 4 | KM86: 4 | KN86: 4 | KO86: 4 | KP86: 4 | KQ86: 4 | KR86: 4 | KS86: 4 | KT86: 4 | KU86: 4 | KV86: 4 | KW86: 4 | KX86: 4 | KY86: 4 | KZ86: 4 | LA86: 4 | LB86: 4 | LC86: 4 | LD86: 4 | LE86: 4 | LF86: 4 | LG86: 4 | LH86: 4 | LI86: 4 | LJ86: 4 | LK86: 4 | LL86: 4 | LM86: 4 | LN86: 4 | LO86: 4 | LP86: 4 | LQ86: 4 | LR86: 4 | LS86: 4 | LT86: =ROUNDUP(LT85/12,0) -> 4 | LU86: 4 | LV86: 4 | LW86: 4 | LX86: 4 | LY86: 4 | LZ86: 4 | MA86: 4 | MB86: 4 | MC86: 4 | MD86: 4 | ME86: 4 | MF86: 4 | MG86: 4 | MH86: 4 | MI86: 4 | MJ86: 4 | MK86: 4 | ML86: 4 | MM86: 4 | MN86: 4 | MO86: 4 | MP86: 4 | MQ86: 4 | MR86: 4 | MS86: 4 | MT86: 4 | MU86: 4 | MV86: 4 | MW86: 4 | MX86: 4 | MY86: 4 | MZ86: 4 | NA86: 4 | NB86: 4 | NC86: 4 | ND86: 4 | NE86: 4 | NF86: 4 | NG86: 4 | NH86: 4 | NI86: 4 | NJ86: 4 | NK86: 4 | NL86: 4 | NM86: 4 | NN86: 4 | NO86: 4 | NP86: 4 | NQ86: 4 | NR86: 4 | NS86: 4 | NT86: 4 | NU86: 4 | NV86: 4 | NW86: 4 | NX86: 4 | NY86: 4 | NZ86: 4 | OA86: 4 | OB86: 4 | OC86: 4 | OD86: 4 | OE86: 4
C87: Unadjusted S-Curve | K87: =LOOKUP(K86,34:34,35:35)/12*K4 -> 0.01666666667 | L87: 0.01666666667 | M87: 0.01666666667 | N87: 0.01666666667 | O87: 0.01666666667 | P87: 0.01666666667 | Q87: 0.01666666667 | R87: 0.01666666667 | S87: 0.01666666667 | T87: 0.01666666667 | U87: 0.01666666667 | V87: 0.01666666667 | W87: 0.05416666667 | X87: 0.05416666667 | Y87: 0.05416666667 | Z87: 0.05416666667 | AA87: 0.05416666667 | AB87: 0.05416666667 | AC87: 0.05416666667 | AD87: 0.05416666667 | AE87: 0.05416666667 | AF87: 0.05416666667 | AG87: 0.05416666667 | AH87: 0.05416666667 | AI87: 0.0125 | AJ87: 0.0125 | AK87: 0.0125 | AL87: 0.0125 | AM87: 0.0125 | AN87: 0.0125 | AO87: 0.0125 | AP87: 0.0125 | AQ87: 0.0125 | AR87: 0.0125 | AS87: 0.0125 | AT87: 0.0125 | AU87: 0 | AV87: 0 | AW87: 0 | AX87: 0 | AY87: 0 | AZ87: 0 | BA87: 0 | BB87: 0 | BC87: 0 | BD87: 0 | BE87: 0 | BF87: 0 | BG87: 0 | BH87: 0 | BI87: 0 | BJ87: 0 | BK87: 0 | BL87: 0 | BM87: 0 | BN87: 0 | BO87: 0 | BP87: 0 | BQ87: 0 | BR87: 0 | BS87: 0 | BT87: 0 | BU87: 0 | BV87: 0 | BW87: =LOOKUP(BW86,34:34,35:35)/12*BW4 -> 0 | BX87: 0 | BY87: 0 | BZ87: 0 | CA87: 0 | CB87: 0 | CC87: 0 | CD87: 0 | CE87: 0 | CF87: 0 | CG87: 0 | CH87: 0 | CI87: 0 | CJ87: 0 | CK87: 0 | CL87: 0 | CM87: 0 | CN87: 0 | CO87: 0 | CP87: 0 | CQ87: 0 | CR87: 0 | CS87: 0 | CT87: 0 | CU87: 0 | CV87: 0 | CW87: 0 | CX87: 0 | CY87: 0 | CZ87: 0 | DA87: 0 | DB87: 0 | DC87: 0 | DD87: 0 | DE87: 0 | DF87: 0 | DG87: 0 | DH87: 0 | DI87: 0 | DJ87: 0 | DK87: 0 | DL87: 0 | DM87: 0 | DN87: 0 | DO87: 0 | DP87: 0 | DQ87: 0 | DR87: 0 | DS87: 0 | DT87: 0 | DU87: 0 | DV87: 0 | DW87: 0 | DX87: 0 | DY87: 0 | DZ87: 0 | EA87: 0 | EB87: 0 | EC87: 0 | ED87: 0 | EE87: 0 | EF87: 0 | EG87: 0 | EH87: 0 | EI87: =LOOKUP(EI86,34:34,35:35)/12*EI4 -> 0 | EJ87: 0 | EK87: 0 | EL87: 0 | EM87: 0 | EN87: 0 | EO87: 0 | EP87: 0 | EQ87: 0 | ER87: 0 | ES87: 0 | ET87: 0 | EU87: 0 | EV87: 0 | EW87: 0 | EX87: 0 | EY87: 0 | EZ87: 0 | FA87: 0 | FB87: 0 | FC87: 0 | FD87: 0 | FE87: 0 | FF87: 0 | FG87: 0 | FH87: 0 | FI87: 0 | FJ87: 0 | FK87: 0 | FL87: 0 | FM87: 0 | FN87: 0 | FO87: 0 | FP87: 0 | FQ87: 0 | FR87: 0 | FS87: 0 | FT87: 0 | FU87: 0 | FV87: 0 | FW87: 0 | FX87: 0 | FY87: 0 | FZ87: 0 | GA87: 0 | GB87: 0 | GC87: 0 | GD87: 0 | GE87: 0 | GF87: 0 | GG87: 0 | GH87: 0 | GI87: 0 | GJ87: 0 | GK87: 0 | GL87: 0 | GM87: 0 | GN87: 0 | GO87: 0 | GP87: 0 | GQ87: 0 | GR87: 0 | GS87: 0 | GT87: 0 | GU87: =LOOKUP(GU86,34:34,35:35)/12*GU4 -> 0 | GV87: 0 | GW87: 0 | GX87: 0 | GY87: 0 | GZ87: 0 | HA87: 0 | HB87: 0 | HC87: 0 | HD87: 0 | HE87: 0 | HF87: 0 | HG87: 0 | HH87: 0 | HI87: 0 | HJ87: 0 | HK87: 0 | HL87: 0 | HM87: 0 | HN87: 0 | HO87: 0 | HP87: 0 | HQ87: 0 | HR87: 0 | HS87: 0 | HT87: 0 | HU87: 0 | HV87: 0 | HW87: 0 | HX87: 0 | HY87: 0 | HZ87: 0 | IA87: 0 | IB87: 0 | IC87: 0 | ID87: 0 | IE87: 0 | IF87: 0 | IG87: 0 | IH87: 0 | II87: 0 | IJ87: 0 | IK87: 0 | IL87: 0 | IM87: 0 | IN87: 0 | IO87: 0 | IP87: 0 | IQ87: 0 | IR87: 0 | IS87: 0 | IT87: 0 | IU87: 0 | IV87: 0 | IW87: 0 | IX87: 0 | IY87: 0 | IZ87: 0 | JA87: 0 | JB87: 0 | JC87: 0 | JD87: 0 | JE87: 0 | JF87: 0 | JG87: =LOOKUP(JG86,34:34,35:35)/12*JG4 -> 0 | JH87: 0 | JI87: 0 | JJ87: 0 | JK87: 0 | JL87: 0 | JM87: 0 | JN87: 0 | JO87: 0 | JP87: 0 | JQ87: 0 | JR87: 0 | JS87: 0 | JT87: 0 | JU87: 0 | JV87: 0 | JW87: 0 | JX87: 0 | JY87: 0 | JZ87: 0 | KA87: 0 | KB87: 0 | KC87: 0 | KD87: 0 | KE87: 0 | KF87: 0 | KG87: 0 | KH87: 0 | KI87: 0 | KJ87: 0 | KK87: 0 | KL87: 0 | KM87: 0 | KN87: 0 | KO87: 0 | KP87: 0 | KQ87: 0 | KR87: 0 | KS87: 0 | KT87: 0 | KU87: 0 | KV87: 0 | KW87: 0 | KX87: 0 | KY87: 0 | KZ87: 0 | LA87: 0 | LB87: 0 | LC87: 0 | LD87: 0 | LE87: 0 | LF87: 0 | LG87: 0 | LH87: 0 | LI87: 0 | LJ87: 0 | LK87: 0 | LL87: 0 | LM87: 0 | LN87: 0 | LO87: 0 | LP87: 0 | LQ87: 0 | LR87: 0 | LS87: =LOOKUP(LS86,34:34,35:35)/12*LS4 -> 0 | LT87: 0 | LU87: 0 | LV87: 0 | LW87: 0 | LX87: 0 | LY87: 0 | LZ87: 0 | MA87: 0 | MB87: 0 | MC87: 0 | MD87: 0 | ME87: 0 | MF87: 0 | MG87: 0 | MH87: 0 | MI87: 0 | MJ87: 0 | MK87: 0 | ML87: 0 | MM87: 0 | MN87: 0 | MO87: 0 | MP87: 0 | MQ87: 0 | MR87: 0 | MS87: 0 | MT87: 0 | MU87: 0 | MV87: 0 | MW87: 0 | MX87: 0 | MY87: 0 | MZ87: 0 | NA87: 0 | NB87: 0 | NC87: 0 | ND87: 0 | NE87: 0 | NF87: 0 | NG87: 0 | NH87: 0 | NI87: 0 | NJ87: 0 | NK87: 0 | NL87: 0 | NM87: 0 | NN87: 0 | NO87: 0 | NP87: 0 | NQ87: 0 | NR87: 0 | NS87: 0 | NT87: 0 | NU87: 0 | NV87: 0 | NW87: 0 | NX87: 0 | NY87: 0 | NZ87: 0 | OA87: 0 | OB87: 0 | OC87: 0 | OD87: 0 | OE87: =LOOKUP(OE86,34:34,35:35)/12*OE4 -> 0
C88: Accumulated S-Curve | K88: =J88+K87 -> 0.01666666667 | L88: =K88+L87 -> 0.03333333333 | M88: 0.05 | N88: 0.06666666667 | O88: 0.08333333333 | P88: 0.1 | Q88: 0.1166666667 | R88: 0.1333333333 | S88: 0.15 | T88: 0.1666666667 | U88: 0.1833333333 | V88: 0.2 | W88: 0.2541666667 | X88: 0.3083333333 | Y88: 0.3625 | Z88: 0.4166666667 | AA88: 0.4708333333 | AB88: 0.525 | AC88: 0.5791666667 | AD88: 0.6333333333 | AE88: 0.6875 | AF88: 0.7416666667 | AG88: 0.7958333333 | AH88: 0.85 | AI88: 0.8625 | AJ88: 0.875 | AK88: 0.8875 | AL88: 0.9 | AM88: 0.9125 | AN88: 0.925 | AO88: 0.9375 | AP88: 0.95 | AQ88: 0.9625 | AR88: 0.975 | AS88: 0.9875 | AT88: 1 | AU88: 1 | AV88: 1 | AW88: 1 | AX88: 1 | AY88: 1 | AZ88: 1 | BA88: 1 | BB88: 1 | BC88: 1 | BD88: 1 | BE88: 1 | BF88: 1 | BG88: 1 | BH88: 1 | BI88: 1 | BJ88: 1 | BK88: 1 | BL88: 1 | BM88: 1 | BN88: 1 | BO88: 1 | BP88: 1 | BQ88: 1 | BR88: 1 | BS88: 1 | BT88: 1 | BU88: 1 | BV88: 1 | BW88: 1 | BX88: =BW88+BX87 -> 1 | BY88: 1 | BZ88: 1 | CA88: 1 | CB88: 1 | CC88: 1 | CD88: 1 | CE88: 1 | CF88: 1 | CG88: 1 | CH88: 1 | CI88: 1 | CJ88: 1 | CK88: 1 | CL88: 1 | CM88: 1 | CN88: 1 | CO88: 1 | CP88: 1 | CQ88: 1 | CR88: 1 | CS88: 1 | CT88: 1 | CU88: 1 | CV88: 1 | CW88: 1 | CX88: 1 | CY88: 1 | CZ88: 1 | DA88: 1 | DB88: 1 | DC88: 1 | DD88: 1 | DE88: 1 | DF88: 1 | DG88: 1 | DH88: 1 | DI88: 1 | DJ88: 1 | DK88: 1 | DL88: 1 | DM88: 1 | DN88: 1 | DO88: 1 | DP88: 1 | DQ88: 1 | DR88: 1 | DS88: 1 | DT88: 1 | DU88: 1 | DV88: 1 | DW88: 1 | DX88: 1 | DY88: 1 | DZ88: 1 | EA88: 1 | EB88: 1 | EC88: 1 | ED88: 1 | EE88: 1 | EF88: 1 | EG88: 1 | EH88: 1 | EI88: 1 | EJ88: =EI88+EJ87 -> 1 | EK88: 1 | EL88: 1 | EM88: 1 | EN88: 1 | EO88: 1 | EP88: 1 | EQ88: 1 | ER88: 1 | ES88: 1 | ET88: 1 | EU88: 1 | EV88: 1 | EW88: 1 | EX88: 1 | EY88: 1 | EZ88: 1 | FA88: 1 | FB88: 1 | FC88: 1 | FD88: 1 | FE88: 1 | FF88: 1 | FG88: 1 | FH88: 1 | FI88: 1 | FJ88: 1 | FK88: 1 | FL88: 1 | FM88: 1 | FN88: 1 | FO88: 1 | FP88: 1 | FQ88: 1 | FR88: 1 | FS88: 1 | FT88: 1 | FU88: 1 | FV88: 1 | FW88: 1 | FX88: 1 | FY88: 1 | FZ88: 1 | GA88: 1 | GB88: 1 | GC88: 1 | GD88: 1 | GE88: 1 | GF88: 1 | GG88: 1 | GH88: 1 | GI88: 1 | GJ88: 1 | GK88: 1 | GL88: 1 | GM88: 1 | GN88: 1 | GO88: 1 | GP88: 1 | GQ88: 1 | GR88: 1 | GS88: 1 | GT88: 1 | GU88: 1 | GV88: =GU88+GV87 -> 1 | GW88: 1 | GX88: 1 | GY88: 1 | GZ88: 1 | HA88: 1 | HB88: 1 | HC88: 1 | HD88: 1 | HE88: 1 | HF88: 1 | HG88: 1 | HH88: 1 | HI88: 1 | HJ88: 1 | HK88: 1 | HL88: 1 | HM88: 1 | HN88: 1 | HO88: 1 | HP88: 1 | HQ88: 1 | HR88: 1 | HS88: 1 | HT88: 1 | HU88: 1 | HV88: 1 | HW88: 1 | HX88: 1 | HY88: 1 | HZ88: 1 | IA88: 1 | IB88: 1 | IC88: 1 | ID88: 1 | IE88: 1 | IF88: 1 | IG88: 1 | IH88: 1 | II88: 1 | IJ88: 1 | IK88: 1 | IL88: 1 | IM88: 1 | IN88: 1 | IO88: 1 | IP88: 1 | IQ88: 1 | IR88: 1 | IS88: 1 | IT88: 1 | IU88: 1 | IV88: 1 | IW88: 1 | IX88: 1 | IY88: 1 | IZ88: 1 | JA88: 1 | JB88: 1 | JC88: 1 | JD88: 1 | JE88: 1 | JF88: 1 | JG88: 1 | JH88: =JG88+JH87 -> 1 | JI88: 1 | JJ88: 1 | JK88: 1 | JL88: 1 | JM88: 1 | JN88: 1 | JO88: 1 | JP88: 1 | JQ88: 1 | JR88: 1 | JS88: 1 | JT88: 1 | JU88: 1 | JV88: 1 | JW88: 1 | JX88: 1 | JY88: 1 | JZ88: 1 | KA88: 1 | KB88: 1 | KC88: 1 | KD88: 1 | KE88: 1 | KF88: 1 | KG88: 1 | KH88: 1 | KI88: 1 | KJ88: 1 | KK88: 1 | KL88: 1 | KM88: 1 | KN88: 1 | KO88: 1 | KP88: 1 | KQ88: 1 | KR88: 1 | KS88: 1 | KT88: 1 | KU88: 1 | KV88: 1 | KW88: 1 | KX88: 1 | KY88: 1 | KZ88: 1 | LA88: 1 | LB88: 1 | LC88: 1 | LD88: 1 | LE88: 1 | LF88: 1 | LG88: 1 | LH88: 1 | LI88: 1 | LJ88: 1 | LK88: 1 | LL88: 1 | LM88: 1 | LN88: 1 | LO88: 1 | LP88: 1 | LQ88: 1 | LR88: 1 | LS88: 1 | LT88: =LS88+LT87 -> 1 | LU88: 1 | LV88: 1 | LW88: 1 | LX88: 1 | LY88: 1 | LZ88: 1 | MA88: 1 | MB88: 1 | MC88: 1 | MD88: 1 | ME88: 1 | MF88: 1 | MG88: 1 | MH88: 1 | MI88: 1 | MJ88: 1 | MK88: 1 | ML88: 1 | MM88: 1 | MN88: 1 | MO88: 1 | MP88: 1 | MQ88: 1 | MR88: 1 | MS88: 1 | MT88: 1 | MU88: 1 | MV88: 1 | MW88: 1 | MX88: 1 | MY88: 1 | MZ88: 1 | NA88: 1 | NB88: 1 | NC88: 1 | ND88: 1 | NE88: 1 | NF88: 1 | NG88: 1 | NH88: 1 | NI88: 1 | NJ88: 1 | NK88: 1 | NL88: 1 | NM88: 1 | NN88: 1 | NO88: 1 | NP88: 1 | NQ88: 1 | NR88: 1 | NS88: 1 | NT88: 1 | NU88: 1 | NV88: 1 | NW88: 1 | NX88: 1 | NY88: 1 | NZ88: 1 | OA88: 1 | OB88: 1 | OC88: 1 | OD88: 1 | OE88: 1
